Workbook

Sheet PSLinkList (hidden)
A1: Count: | B1: 1
A2: Type | B2: Name | C2: Location | D2: Orientation | E2: tmpProtocol
A3: Project | B3: =PSLink!B2 -> ProjectArea1 | C3: ProjectLoc1 | D3: column

Sheet PSLink
A1: PS Link Area
A2: Area Name: | B2: ProjectArea1 | D2: Project Name: | E2: Geo_ORC_Chad 2018-03-07 | G2: Geo_ORC_Chad 2018-03-07 | H2: Geo_ORC_Chad 2018-03-07 | I2: Geo_ORC_Chad 2018-03-07 | J2: Geo_ORC_Chad 2018-03-07 | K2: Geo_ORC_Chad 2018-03-07 | L2: Geo_ORC_Chad 2018-03-07 | M2: Geo_ORC_Chad 2018-03-07 | N2: Geo_ORC_Chad 2018-03-07 | O2: Geo_ORC_Chad 2018-03-07 | P2: Geo_ORC_Chad 2018-03-07 | Q2: Geo_ORC_Chad 2018-03-07 | R2: Geo_ORC_Chad 2018-03-07 | S2: Geo_ORC_Chad 2018-03-07 | T2: Geo_ORC_Chad 2018-03-07 | U2: Geo_ORC_Chad 2018-03-07 | V2: Geo_ORC_Chad 2018-03-07 | W2: Geo_ORC_Chad 2018-03-07 | X2: Geo_ORC_Chad 2018-03-07 | Y2: Geo_ORC_Chad 2018-03-07 | Z2: Geo_ORC_Chad 2018-03-07 | AA2: Geo_ORC_Chad 2018-03-07 | AB2: Geo_ORC_Chad 2018-03-07 | AC2: Geo_ORC_Chad 2018-03-07 | AD2: Geo_ORC_Chad 2018-03-07 | AE2: Geo_ORC_Chad 2018-03-07 | AF2: Geo_ORC_Chad 2018-03-07 | AG2: Geo_ORC_Chad 2018-03-07 | AH2: Geo_ORC_Chad 2018-03-07 | AI2: Geo_ORC_Chad 2018-03-07 | AJ2: Geo_ORC_Chad 2018-03-07 | AK2: Geo_ORC_Chad 2018-03-07 | AL2: Geo_ORC_Chad 2018-03-07 | AM2: Geo_ORC_Chad 2018-03-07 | AN2: Geo_ORC_Chad 2018-03-07 | AO2: Geo_ORC_Chad 2018-03-07 | AP2: Geo_ORC_Chad 2018-03-07 | AQ2: Geo_ORC_Chad 2018-03-07 | AR2: Geo_ORC_Chad 2018-03-07 | AS2: Geo_ORC_Chad 2018-03-07 | AT2: Geo_ORC_Chad 2018-03-07 | AU2: Geo_ORC_Chad 2018-03-07 | AV2: Geo_ORC_Chad 2018-03-07 | AW2: Geo_ORC_Chad 2018-03-07 | AX2: Geo_ORC_Chad 2018-03-07 | AY2: Geo_ORC_Chad 2018-03-07 | AZ2: Geo_ORC_Chad 2018-03-07 | BA2: Geo_ORC_Chad 2018-03-07 | BB2: Geo_ORC_Chad 2018-03-07 | BC2: Geo_ORC_Chad 2018-03-07 | BD2: Geo_ORC_Chad 2018-03-07 | BE2: Geo_ORC_Chad 2018-03-07 | BF2: Geo_ORC_Chad 2018-03-07 | BG2: Geo_ORC_Chad 2018-03-07 | BH2: Geo_ORC_Chad 2018-03-07 | BI2: Geo_ORC_Chad 2018-03-07 | BJ2: Geo_ORC_Chad 2018-03-07 | BK2: Geo_ORC_Chad 2018-03-07 | BL2: Geo_ORC_Chad 2018-03-07 | BM2: Geo_ORC_Chad 2018-03-07 | BN2: Geo_ORC_Chad 2018-03-07 | BO2: Geo_ORC_Chad 2018-03-07 | BP2: Geo_ORC_Chad 2018-03-07 | BQ2: Geo_ORC_Chad 2018-03-07
A3: Project Location: | B3: C:\Users\caugusti\Desktop\IPSEpro\GTO CEMAC Binary Plant | D3: Dataset Id: | E3: 1 | G3: 1 | H3: 1 | I3: 1 | J3: 1 | K3: 1 | L3: 1 | M3: 1 | N3: 1 | O3: 1 | P3: 1 | Q3: 1 | R3: 1 | S3: 1 | T3: 1 | U3: 1 | V3: 1 | W3: 1 | X3: 1 | Y3: 1 | Z3: 1 | AA3: 1 | AB3: 1 | AC3: 1 | AD3: 1 | AE3: 1 | AF3: 1 | AG3: 1 | AH3: 1 | AI3: 1 | AJ3: 1 | AK3: 1 | AL3: 1 | AM3: 1 | AN3: 1 | AO3: 1 | AP3: 1 | AQ3: 1 | AR3: 1 | AS3: 1 | AT3: 1 | AU3: 1 | AV3: 1 | AW3: 1 | AX3: 1 | AY3: 1 | AZ3: 1 | BA3: 1 | BB3: 1 | BC3: 1 | BD3: 1 | BE3: 1 | BF3: 1 | BG3: 1 | BH3: 1 | BI3: 1 | BJ3: 1 | BK3: 1 | BL3: 1 | BM3: 1 | BN3: 1 | BO3: 1 | BP3: 1 | BQ3: 1
A4: Library: | B4: C:\ProgramData\SimTech\IPSEpro 7.0\LTP_Lib\LTP_Lib_GTO_CEMAC.IML | E4: Off-Design with n-Pentane | G4: Off-Design with n-Pentane | H4: Off-Design with n-Pentane | I4: Off-Design with n-Pentane | J4: Off-Design with n-Pentane | K4: Off-Design with n-Pentane | L4: Off-Design with n-Pentane | M4: Off-Design with n-Pentane | N4: Off-Design with n-Pentane | O4: Off-Design with n-Pentane | P4: Off-Design with n-Pentane | Q4: Off-Design with n-Pentane | R4: Off-Design with n-Pentane | S4: Off-Design with n-Pentane | T4: Off-Design with n-Pentane | U4: Off-Design with n-Pentane | V4: Off-Design with n-Pentane | W4: Off-Design with n-Pentane | X4: Off-Design with n-Pentane | Y4: Off-Design with n-Pentane | Z4: Off-Design with n-Pentane | AA4: Off-Design with n-Pentane | AB4: Off-Design with n-Pentane | AC4: Off-Design with n-Pentane | AD4: Off-Design with n-Pentane | AE4: Off-Design with n-Pentane | AF4: Off-Design with n-Pentane | AG4: Off-Design with n-Pentane | AH4: Off-Design with n-Pentane | AI4: Off-Design with n-Pentane | AJ4: Off-Design with n-Pentane | AK4: Off-Design with n-Pentane | AL4: Off-Design with n-Pentane | AM4: Off-Design with n-Pentane | AN4: Off-Design with n-Pentane | AO4: Off-Design with n-Pentane | AP4: Off-Design with n-Pentane | AQ4: Off-Design with n-Pentane | AR4: Off-Design with n-Pentane | AS4: Off-Design with n-Pentane | AT4: Off-Design with n-Pentane | AU4: Off-Design with n-Pentane | AV4: Off-Design with n-Pentane | AW4: Off-Design with n-Pentane | AX4: Off-Design with n-Pentane | AY4: Off-Design with n-Pentane | AZ4: Off-Design with n-Pentane | BA4: Off-Design with n-Pentane | BB4: Off-Design with n-Pentane | BC4: Off-Design with n-Pentane | BD4: Off-Design with n-Pentane | BE4: Off-Design with n-Pentane | BF4: Off-Design with n-Pentane | BG4: Off-Design with n-Pentane | BH4: Off-Design with n-Pentane | BI4: Off-Design with n-Pentane | BJ4: Off-Design with n-Pentane | BK4: Off-Design with n-Pentane | BL4: Off-Design with n-Pentane | BM4: Off-Design with n-Pentane | BN4: Off-Design with n-Pentane | BO4: Off-Design with n-Pentane | BP4: Off-Design with n-Pentane | BQ4: Off-Design with n-Pentane
D5: Date: | E5: 2018-04-02 | G5: 2018-03-31 | H5: 2018-03-31 | I5: 2018-03-31 | J5: 2018-03-31 | K5: 2018-03-31 | L5: 2018-03-31 | M5: 2018-03-31 | N5: 2018-03-31 | O5: 2018-03-31 | P5: 2018-03-31 | Q5: 2018-03-31 | R5: 2018-03-31 | S5: 2018-03-31 | T5: 2018-03-31 | U5: 2018-03-31 | V5: 2018-03-31 | W5: 2018-03-31 | X5: 2018-03-31 | Y5: 2018-03-30 | Z5: 2018-03-30 | AA5: 2018-03-30 | AB5: 2018-03-30 | AC5: 2018-03-30 | AD5: 2018-03-30 | AE5: 2018-03-30 | AF5: 2018-03-30 | AG5: 2018-03-30 | AH5: 2018-03-30 | AI5: 2018-03-30 | AJ5: 2018-03-30 | AK5: 2018-03-30 | AL5: 2018-03-30 | AM5: 2018-03-30 | AN5: 2018-03-30 | AO5: 2018-03-30 | AP5: 2018-03-30 | AQ5: 2018-03-30 | AR5: 2018-03-30 | AS5: 2018-03-30 | AT5: 2018-03-30 | AU5: 2018-03-30 | AV5: 2018-03-30 | AW5: 2018-03-30 | AX5: 2018-04-02 | AY5: 2018-03-30 | AZ5: 2018-03-30 | BA5: 2018-03-30 | BB5: 2018-03-30 | BC5: 2018-03-30 | BD5: 2018-03-30 | BE5: 2018-03-30 | BF5: 2018-03-30 | BG5: 2018-03-30 | BH5: 2018-03-30 | BI5: 2018-03-30 | BJ5: 2018-03-30 | BK5: 2018-03-30 | BL5: 2018-03-30 | BM5: 2018-03-30 | BN5: 2018-03-30 | BO5: 2018-03-30 | BP5: 2018-03-30 | BQ5: 2018-03-30
D6: Start Time: | E6: 10:23:40 | G6: 07:39:42 | H6: 07:38:48 | I6: 07:38:04 | J6: 07:37:18 | K6: 07:36:35 | L6: 07:35:57 | M6: 07:35:10 | N6: 07:34:17 | O6: 07:32:52 | P6: 07:32:22 | Q6: 07:31:28 | R6: 07:31:00 | S6: 07:30:33 | T6: 07:29:58 | U6: 07:29:37 | V6: 07:29:08 | W6: 07:28:41 | X6: 07:27:45 | Y6: 16:47:47 | Z6: 16:46:31 | AA6: 16:45:58 | AB6: 16:45:36 | AC6: 16:45:08 | AD6: 16:43:59 | AE6: 16:43:48 | AF6: 16:43:17 | AG6: 16:42:56 | AH6: 16:33:43 | AI6: 16:33:13 | AJ6: 16:32:39 | AK6: 16:32:02 | AL6: 16:30:57 | AM6: 16:30:37 | AN6: 16:29:49 | AO6: 16:29:14 | AP6: 16:28:16 | AQ6: 16:27:45 | AR6: 16:27:25 | AS6: 16:27:01 | AT6: 16:26:28 | AU6: 16:25:57 | AV6: 16:25:37 | AW6: 16:25:14 | AX6: 10:18:30 | AY6: 16:24:17 | AZ6: 16:21:27 | BA6: 12:33:06 | BB6: 12:32:49 | BC6: 12:32:31 | BD6: 12:32:18 | BE6: 12:31:59 | BF6: 12:31:07 | BG6: 12:30:26 | BH6: 12:29:39 | BI6: 12:29:07 | BJ6: 12:28:46 | BK6: 12:28:21 | BL6: 12:27:54 | BM6: 12:27:01 | BN6: 12:26:41 | BO6: 12:26:21 | BP6: 12:25:53 | BQ6: 12:24:50
D7: End Time: | E7: 10:23:40 | G7: 07:39:42 | H7: 07:38:49 | I7: 07:38:05 | J7: 07:37:18 | K7: 07:36:35 | L7: 07:35:57 | M7: 07:35:11 | N7: 07:34:18 | O7: 07:32:53 | P7: 07:32:22 | Q7: 07:31:28 | R7: 07:31:01 | S7: 07:30:34 | T7: 07:29:58 | U7: 07:29:37 | V7: 07:29:08 | W7: 07:28:41 | X7: 07:27:46 | Y7: 16:47:47 | Z7: 16:46:31 | AA7: 16:45:59 | AB7: 16:45:36 | AC7: 16:45:08 | AD7: 16:43:59 | AE7: 16:43:48 | AF7: 16:43:18 | AG7: 16:42:56 | AH7: 16:33:44 | AI7: 16:33:14 | AJ7: 16:32:39 | AK7: 16:32:03 | AL7: 16:30:57 | AM7: 16:30:37 | AN7: 16:29:50 | AO7: 16:29:14 | AP7: 16:28:16 | AQ7: 16:27:45 | AR7: 16:27:25 | AS7: 16:27:02 | AT7: 16:26:29 | AU7: 16:25:57 | AV7: 16:25:37 | AW7: 16:25:15 | AX7: 10:18:30 | AY7: 16:24:17 | AZ7: 16:21:27 | BA7: 12:33:06 | BB7: 12:32:50 | BC7: 12:32:31 | BD7: 12:32:18 | BE7: 12:31:59 | BF7: 12:31:08 | BG7: 12:30:26 | BH7: 12:29:39 | BI7: 12:29:07 | BJ7: 12:28:46 | BK7: 12:28:21 | BL7: 12:27:54 | BM7: 12:27:02 | BN7: 12:26:41 | BO7: 12:26:21 | BP7: 12:25:53 | BQ7: 12:24:50
C8: 0 | D8: Status: | E8: Converged | G8: Converged | H8: Converged | I8: Converged | J8: Converged | K8: Converged | L8: Converged | M8: Converged | N8: Converged | O8: Converged | P8: Converged | Q8: Converged | R8: Converged | S8: Converged | T8: Converged | U8: Converged | V8: Converged | W8: Converged | X8: Converged | Y8: Converged | Z8: Converged | AA8: Converged | AB8: Converged | AC8: Converged | AD8: Converged | AE8: Converged | AF8: Converged | AG8: Converged | AH8: Converged | AI8: Converged | AJ8: Converged | AK8: Converged | AL8: Converged | AM8: Converged | AN8: Converged | AO8: Converged | AP8: Converged | AQ8: Converged | AR8: Converged | AS8: Converged | AT8: Converged | AU8: Converged | AV8: Converged | AW8: Converged | AX8: Converged | AY8: Converged | AZ8: Converged | BA8: Converged | BB8: Converged | BC8: Converged | BD8: Converged | BE8: Converged | BF8: Converged | BG8: Converged | BH8: Converged | BI8: Converged | BJ8: Converged | BK8: Converged | BL8: Converged | BM8: Converged | BN8: Converged | BO8: Converged | BP8: Converged | BQ8: Converged
A9: PS Control
D10: Damping | E10: Yes | G10: Yes | H10: Yes | I10: Yes | J10: Yes | K10: Yes | L10: Yes | M10: Yes | N10: Yes | O10: Yes | P10: Yes | Q10: Yes | R10: Yes | S10: Yes | T10: Yes | U10: Yes | V10: Yes | W10: Yes | X10: Yes | Y10: Yes | Z10: Yes | AA10: Yes | AB10: Yes | AC10: Yes | AD10: Yes | AE10: Yes | AF10: Yes | AG10: Yes | AH10: Yes | AI10: Yes | AJ10: Yes | AK10: Yes | AL10: Yes | AM10: Yes | AN10: Yes | AO10: Yes | AP10: Yes | AQ10: Yes | AR10: Yes | AS10: Yes | AT10: Yes | AU10: Yes | AV10: Yes | AW10: Yes | AX10: Yes | AY10: Yes | AZ10: Yes | BA10: Yes | BB10: Yes | BC10: Yes | BD10: Yes | BE10: Yes | BF10: Yes | BG10: Yes | BH10: Yes | BI10: Yes | BJ10: Yes | BK10: Yes | BL10: Yes | BM10: Yes | BN10: Yes | BO10: Yes | BP10: Yes | BQ10: Yes
D11: Damping Decrease Factor | E11: 0.5 | G11: 0.5 | H11: 0.5 | I11: 0.5 | J11: 0.5 | K11: 0.5 | L11: 0.5 | M11: 0.5 | N11: 0.5 | O11: 0.5 | P11: 0.5 | Q11: 0.5 | R11: 0.5 | S11: 0.5 | T11: 0.5 | U11: 0.5 | V11: 0.5 | W11: 0.5 | X11: 0.5 | Y11: 0.5 | Z11: 0.5 | AA11: 0.5 | AB11: 0.5 | AC11: 0.5 | AD11: 0.5 | AE11: 0.5 | AF11: 0.5 | AG11: 0.5 | AH11: 0.5 | AI11: 0.5 | AJ11: 0.5 | AK11: 0.5 | AL11: 0.5 | AM11: 0.5 | AN11: 0.5 | AO11: 0.5 | AP11: 0.5 | AQ11: 0.5 | AR11: 0.5 | AS11: 0.5 | AT11: 0.5 | AU11: 0.5 | AV11: 0.5 | AW11: 0.5 | AX11: 0.5 | AY11: 0.5 | AZ11: 0.5 | BA11: 0.5 | BB11: 0.5 | BC11: 0.5 | BD11: 0.5 | BE11: 0.5 | BF11: 0.5 | BG11: 0.5 | BH11: 0.5 | BI11: 0.5 | BJ11: 0.5 | BK11: 0.5 | BL11: 0.5 | BM11: 0.5 | BN11: 0.5 | BO11: 0.5 | BP11: 0.5 | BQ11: 0.5
D12: Minimum Damping Factor | E12: 0.1 | G12: 0.1 | H12: 0.1 | I12: 0.1 | J12: 0.1 | K12: 0.1 | L12: 0.1 | M12: 0.1 | N12: 0.1 | O12: 0.1 | P12: 0.1 | Q12: 0.1 | R12: 0.1 | S12: 0.1 | T12: 0.1 | U12: 0.1 | V12: 0.1 | W12: 0.1 | X12: 0.1 | Y12: 0.1 | Z12: 0.1 | AA12: 0.1 | AB12: 0.1 | AC12: 0.1 | AD12: 0.1 | AE12: 0.1 | AF12: 0.1 | AG12: 0.1 | AH12: 0.1 | AI12: 0.1 | AJ12: 0.1 | AK12: 0.1 | AL12: 0.1 | AM12: 0.1 | AN12: 0.1 | AO12: 0.1 | AP12: 0.1 | AQ12: 0.1 | AR12: 0.1 | AS12: 0.1 | AT12: 0.1 | AU12: 0.1 | AV12: 0.1 | AW12: 0.1 | AX12: 0.1 | AY12: 0.1 | AZ12: 0.1 | BA12: 0.1 | BB12: 0.1 | BC12: 0.1 | BD12: 0.1 | BE12: 0.1 | BF12: 0.1 | BG12: 0.1 | BH12: 0.1 | BI12: 0.1 | BJ12: 0.1 | BK12: 0.1 | BL12: 0.1 | BM12: 0.1 | BN12: 0.1 | BO12: 0.1 | BP12: 0.1 | BQ12: 0.1
D13: X Tolerance | E13: 0.01 | G13: 0.01 | H13: 0.01 | I13: 0.01 | J13: 0.01 | K13: 0.01 | L13: 0.01 | M13: 0.01 | N13: 0.01 | O13: 0.01 | P13: 0.01 | Q13: 0.01 | R13: 0.01 | S13: 0.01 | T13: 0.01 | U13: 0.01 | V13: 0.01 | W13: 0.01 | X13: 0.01 | Y13: 0.01 | Z13: 0.01 | AA13: 0.01 | AB13: 0.01 | AC13: 0.01 | AD13: 0.01 | AE13: 0.01 | AF13: 0.01 | AG13: 0.01 | AH13: 0.01 | AI13: 0.01 | AJ13: 0.01 | AK13: 0.01 | AL13: 0.01 | AM13: 0.01 | AN13: 0.01 | AO13: 0.01 | AP13: 0.01 | AQ13: 0.01 | AR13: 0.01 | AS13: 0.01 | AT13: 0.01 | AU13: 0.01 | AV13: 0.01 | AW13: 0.01 | AX13: 0.01 | AY13: 0.01 | AZ13: 0.01 | BA13: 0.01 | BB13: 0.01 | BC13: 0.01 | BD13: 0.01 | BE13: 0.01 | BF13: 0.01 | BG13: 0.01 | BH13: 0.01 | BI13: 0.01 | BJ13: 0.01 | BK13: 0.01 | BL13: 0.01 | BM13: 0.01 | BN13: 0.01 | BO13: 0.01 | BP13: 0.01 | BQ13: 0.01
D14: Y Tolerance | E14: 0.01 | G14: 0.01 | H14: 0.01 | I14: 0.01 | J14: 0.01 | K14: 0.01 | L14: 0.01 | M14: 0.01 | N14: 0.01 | O14: 0.01 | P14: 0.01 | Q14: 0.01 | R14: 0.01 | S14: 0.01 | T14: 0.01 | U14: 0.01 | V14: 0.01 | W14: 0.01 | X14: 0.01 | Y14: 0.01 | Z14: 0.01 | AA14: 0.01 | AB14: 0.01 | AC14: 0.01 | AD14: 0.01 | AE14: 0.01 | AF14: 0.01 | AG14: 0.01 | AH14: 0.01 | AI14: 0.01 | AJ14: 0.01 | AK14: 0.01 | AL14: 0.01 | AM14: 0.01 | AN14: 0.01 | AO14: 0.01 | AP14: 0.01 | AQ14: 0.01 | AR14: 0.01 | AS14: 0.01 | AT14: 0.01 | AU14: 0.01 | AV14: 0.01 | AW14: 0.01 | AX14: 0.01 | AY14: 0.01 | AZ14: 0.01 | BA14: 0.01 | BB14: 0.01 | BC14: 0.01 | BD14: 0.01 | BE14: 0.01 | BF14: 0.01 | BG14: 0.01 | BH14: 0.01 | BI14: 0.01 | BJ14: 0.01 | BK14: 0.01 | BL14: 0.01 | BM14: 0.01 | BN14: 0.01 | BO14: 0.01 | BP14: 0.01 | BQ14: 0.01
D15: Extended Protocol | E15: Yes | G15: Yes | H15: Yes | I15: Yes | J15: Yes | K15: Yes | L15: Yes | M15: Yes | N15: Yes | O15: Yes | P15: Yes | Q15: Yes | R15: Yes | S15: Yes | T15: Yes | U15: Yes | V15: Yes | W15: Yes | X15: Yes | Y15: Yes | Z15: Yes | AA15: Yes | AB15: Yes | AC15: Yes | AD15: Yes | AE15: Yes | AF15: Yes | AG15: Yes | AH15: Yes | AI15: Yes | AJ15: Yes | AK15: Yes | AL15: Yes | AM15: Yes | AN15: Yes | AO15: Yes | AP15: Yes | AQ15: Yes | AR15: Yes | AS15: Yes | AT15: Yes | AU15: Yes | AV15: Yes | AW15: Yes | AX15: Yes | AY15: Yes | AZ15: Yes | BA15: Yes | BB15: Yes | BC15: Yes | BD15: Yes | BE15: Yes | BF15: Yes | BG15: Yes | BH15: Yes | BI15: Yes | BJ15: Yes | BK15: Yes | BL15: Yes | BM15: Yes | BN15: Yes | BO15: Yes | BP15: Yes | BQ15: Yes
A16: PS Control End
B19: Variables
A20: Object | B20: Item | C20: UOM | D20: Description | E20: Value | G20: Value | H20: Value | I20: Value | J20: Value | K20: Value | L20: Value | M20: Value | N20: Value | O20: Value | P20: Value | Q20: Value | R20: Value | S20: Value | T20: Value | U20: Value | V20: Value | W20: Value | X20: Value | Y20: Value | Z20: Value | AA20: Value | AB20: Value | AC20: Value | AD20: Value | AE20: Value | AF20: Value | AG20: Value | AH20: Value | AI20: Value | AJ20: Value | AK20: Value | AL20: Value | AM20: Value | AN20: Value | AO20: Value | AP20: Value | AQ20: Value | AR20: Value | AS20: Value | AT20: Value | AU20: Value | AV20: Value | AW20: Value | AX20: Value | AY20: Value | AZ20: Value | BA20: Value | BB20: Value | BC20: Value | BD20: Value | BE20: Value | BF20: Value | BG20: Value | BH20: Value | BI20: Value | BJ20: Value | BK20: Value | BL20: Value | BM20: Value | BN20: Value | BO20: Value | BP20: Value | BQ20: Value
A21: PS Inputs
A22: W_Stream001 | B22: mass | C22: kg/s | D22: mass flow | E22: 100 | G22: 40 | H22: 50 | I22: 60 | J22: 70 | K22: 80 | L22: 90 | M22: 100 | N22: 110 | O22: 120 | P22: 40 | Q22: 50 | R22: 60 | S22: 70 | T22: 80 | U22: 90 | V22: 100 | W22: 110 | X22: 120 | Y22: 40 | Z22: 50 | AA22: 60 | AB22: 70 | AC22: 80 | AD22: 90 | AE22: 100 | AF22: 110 | AG22: 120 | AH22: 40 | AI22: 50 | AJ22: 60 | AK22: 70 | AL22: 80 | AM22: 90 | AN22: 100 | AO22: 110 | AP22: 120 | AQ22: 40 | AR22: 50 | AS22: 60 | AT22: 70 | AU22: 80 | AV22: 90 | AW22: 100 | AX22: 110 | AY22: 120 | AZ22: 40 | BA22: 50 | BB22: 60 | BC22: 70 | BD22: 80 | BE22: 90 | BF22: 100 | BG22: 110 | BH22: 120 | BI22: 40 | BJ22: 50 | BK22: 60 | BL22: 70 | BM22: 80 | BN22: 90 | BO22: 100 | BP22: 110 | BQ22: 120
A23: W_Stream001 | B23: t | C23: °C | D23: temperature | E23: 190 | G23: 160 | H23: 160 | I23: 160 | J23: 160 | K23: 160 | L23: 160 | M23: 160 | N23: 160 | O23: 160 | P23: 165 | Q23: 165 | R23: 165 | S23: 165 | T23: 165 | U23: 165 | V23: 165 | W23: 165 | X23: 165 | Y23: 170 | Z23: 170 | AA23: 170 | AB23: 170 | AC23: 170 | AD23: 170 | AE23: 170 | AF23: 170 | AG23: 170 | AH23: 175 | AI23: 175 | AJ23: 175 | AK23: 175 | AL23: 175 | AM23: 175 | AN23: 175 | AO23: 175 | AP23: 175 | AQ23: 180 | AR23: 180 | AS23: 180 | AT23: 180 | AU23: 180 | AV23: 180 | AW23: 180 | AX23: 180 | AY23: 180 | AZ23: 185 | BA23: 185 | BB23: 185 | BC23: 185 | BD23: 185 | BE23: 185 | BF23: 185 | BG23: 185 | BH23: 185 | BI23: 190 | BJ23: 190 | BK23: 190 | BL23: 190 | BM23: 190 | BN23: 190 | BO23: 190 | BP23: 190 | BQ23: 190
A24: O_Stream001 | B24: p | C24: bar | D24: pressure | E24: 10.365 | G24: 3.968673152 | H24: 4.635622211 | I24: 5.23780144 | J24: 5.786423485 | K24: 6.286578227 | L24: 6.746843818 | M24: 7.1694838 | N24: 7.560841361 | O24: 7.923404721 | P24: 4.178873737 | Q24: 4.895129717 | R24: 5.544312308 | S24: 6.137152922 | T24: 6.68128028 | U24: 7.18184323 | V24: 7.644247211 | W24: 8.071487851 | X24: 8.468673029 | Y24: 4.394224815 | Z24: 5.162777087 | AA24: 5.862777087 | AB24: 6.503737087 | AC24: 7.093128049 | AD24: 7.636 | AE24: 8.139737087 | AF24: 8.606692574 | AG24: 9.041179941 | AH24: 4.6177482 | AI24: 5.43881475 | AJ24: 6.191410065 | AK24: 6.883222721 | AL24: 7.52 | AM24: 8.110703734 | AN24: 8.65830213 | AO24: 9.167523258 | AP24: 9.641770237 | AQ24: 4.845686697 | AR24: 5.725319877 | AS24: 6.532991822 | AT24: 7.277753271 | AU24: 7.966759763 | AV24: 8.605839198 | AW24: 9.20117472 | AX24: 9.756 | AY24: 10.2737856 | AZ24: 5.08128028 | BA24: 6.02 | BB24: 6.886275996 | BC24: 7.686578227 | BD24: 8.430502442 | BE24: 9.123518387 | BF24: 9.76948376 | BG24: 10.3737855 | BH24: 10.94025447 | BI24: 5.323518437 | BJ24: 6.325319877 | BK24: 7.25161475 | BL24: 8.113128002 | BM24: 8.915408525 | BN24: 9.664810237 | BO24: 10.36699021 | BP24: 11.02461561 | BQ24: 11.64308097
A25: O_Stream002 | B25: p | C25: bar | D25: pressure | E25: 0.817 | G25: 0.817 | H25: 0.817 | I25: 0.817 | J25: 0.817 | K25: 0.817 | L25: 0.817 | M25: 0.817 | N25: 0.817 | O25: 0.817 | P25: 0.817 | Q25: 0.817 | R25: 0.817 | S25: 0.817 | T25: 0.817 | U25: 0.817 | V25: 0.817 | W25: 0.817 | X25: 0.817 | Y25: 0.817 | Z25: 0.817 | AA25: 0.817 | AB25: 0.817 | AC25: 0.817 | AD25: 0.817 | AE25: 0.817 | AF25: 0.817 | AG25: 0.817 | AH25: 0.817 | AI25: 0.817 | AJ25: 0.817 | AK25: 0.817 | AL25: 0.817 | AM25: 0.817 | AN25: 0.817 | AO25: 0.817 | AP25: 0.817 | AQ25: 0.817 | AR25: 0.817 | AS25: 0.817 | AT25: 0.817 | AU25: 0.817 | AV25: 0.817 | AW25: 0.817 | AX25: 0.817 | AY25: 0.817 | AZ25: 0.817 | BA25: 0.817 | BB25: 0.817 | BC25: 0.817 | BD25: 0.817 | BE25: 0.817 | BF25: 0.817 | BG25: 0.817 | BH25: 0.817 | BI25: 0.817 | BJ25: 0.817 | BK25: 0.817 | BL25: 0.817 | BM25: 0.817 | BN25: 0.817 | BO25: 0.817 | BP25: 0.817 | BQ25: 0.817
A26: PS Inputs End
A29: PS Outputs
A30: generator001 | B30: power | C30: kW | D30: electrical power output | E30: 7065.747318 | G30: 1406.025049 | H30: 1956.024878 | I30: 2479.150985 | J30: 2954.317459 | K30: 3420.574531 | L30: 3816.132313 | M30: 4222.726004 | N30: 4568.233624 | O30: 4875.02084 | P30: 1574.290856 | Q30: 2173.727598 | R30: 2755.269934 | S30: 3302.819908 | T30: 3783.079175 | U30: 4230.496382 | V30: 4628.432772 | W30: 5015.83797 | X30: 5358.475328 | Y30: 1770.993062 | Z30: 2412.616767 | AA30: 3029.555112 | AB30: 3597.106204 | AC30: 4126.784952 | AD30: 4653.821411 | AE30: 5060.505591 | AF30: 5469.156532 | AG30: 5850.033741 | AH30: 1941.647232 | AI30: 2663.14933 | AJ30: 3333.861527 | AK30: 3943.263409 | AL30: 4559.105002 | AM30: 5041.727602 | AN30: 5507.710733 | AO30: 5949.524921 | AP30: 6381.910122 | AQ30: 2141.291362 | AR30: 2903.817808 | AS30: 3623.180503 | AT30: 4286.086621 | AU30: 4908.230809 | AV30: 5475.014262 | AW30: 5970.2871 | AX30: 6426.37793 | AY30: 6928.316152 | AZ30: 2345.05522 | BA30: 3179.715614 | BB30: 3940.316822 | BC30: 4697.915012 | BD30: 5347.301718 | BE30: 5922.454362 | BF30: 6460.840612 | BG30: 6978.290342 | BH30: 7437.862647 | BI30: 2560.821533 | BJ30: 3438.644457 | BK30: 4295.012772 | BL30: 5048.471843 | BM30: 5751.607117 | BN30: 6386.60296 | BO30: 6937.730974 | BP30: 7518.710792 | BQ30: 8021.094675
A31: motor001 | B31: power | C31: kW | D31: electrical power input | E31: 232.7133316 | G31: 29.4135935 | H31: 40.35808539 | I31: 53.39473825 | J31: 66.85546554 | K31: 80.18839501 | L31: 93.75484446 | M31: 106.80242 | N31: 119.8849475 | O31: 132.6038882 | P31: 32.19621195 | Q31: 45.77959028 | R31: 60.64757362 | S31: 75.9678784 | T31: 91.60092453 | U31: 107.2257866 | V31: 122.8319631 | W31: 137.8730227 | X31: 152.7477782 | Y31: 35.53929631 | Z31: 51.68185388 | AA31: 68.80187297 | AB31: 86.5233641 | AC31: 104.5335972 | AD31: 122.3183352 | AE31: 140.4816946 | AF31: 158.139815 | AG31: 175.462964 | AH31: 39.99507849 | AI31: 58.07563293 | AJ31: 77.54885819 | AK31: 97.89695042 | AL31: 118.3061375 | AM31: 139.3664391 | AN31: 160.199849 | AO31: 180.7444146 | AP31: 200.5794997 | AQ31: 44.66684338 | AR31: 65.26162267 | AS31: 87.37697587 | AT31: 110.5063776 | AU31: 134.1885874 | AV31: 158.0594139 | AW31: 182.2013685 | AX31: 206.0120394 | AY31: 228.9707667 | AZ31: 49.81271852 | BA31: 72.90704159 | BB31: 98.02710586 | BC31: 124.068345 | BD31: 151.1260499 | BE31: 178.8445383 | BF31: 206.4312589 | BG31: 233.9369746 | BH31: 261.434674 | BI31: 55.34314743 | BJ31: 81.38726473 | BK31: 109.4881417 | BL31: 139.4226987 | BM31: 170.2730867 | BN31: 201.7050027 | BO31: 233.8989826 | BP31: 265.550323 | BQ31: 297.449682
A32: motor002 | B32: power | C32: kW | D32: electrical power input | E32: 1016.660962 | G32: 314.740631 | H32: 372.995608 | I32: 439.8904777 | J32: 487.3991463 | K32: 557.1426928 | L32: 582.2945413 | M32: 645.8327941 | N32: 667.1669409 | O32: 692.0691779 | P32: 332.8328474 | Q32: 399.385958 | R32: 480.6249814 | S32: 553.896484 | T32: 602.3397261 | U32: 643.3966498 | V32: 662.3197713 | W32: 715.9092646 | X32: 746.2944376 | Y32: 359.7462974 | Z32: 430.6736911 | AA32: 500.1095603 | AB32: 560.7669415 | AC32: 613.1338439 | AD32: 693.5481484 | AE32: 707.26474 | AF32: 749.7798396 | AG32: 789.5024275 | AH32: 371.4201366 | AI32: 470.5880087 | AJ32: 545.7007376 | AK32: 599.7912311 | AL32: 690.3567503 | AM32: 711.1324111 | AN32: 748.4015146 | AO32: 791.0164945 | AP32: 876.0233823 | AQ32: 403.4918565 | AR32: 485.8835663 | AS32: 563.345167 | AT32: 629.7659809 | AU32: 691.5582893 | AV32: 755.9550424 | AW32: 786.6158593 | AX32: 833.9691483 | AY32: 940.7303403 | AZ32: 427.020813 | BA32: 524.1889341 | BB32: 594.7097957 | BC32: 697.683021 | BD32: 764.6441441 | BE32: 797.0535277 | BF32: 857.1119052 | BG32: 913.2380032 | BH32: 940.2239578 | BI32: 456.6330139 | BJ32: 544.9291903 | BK32: 650.2786956 | BL32: 715.7746435 | BM32: 789.5799657 | BN32: 862.7262759 | BO32: 879.3483502 | BP32: 956.1588346 | BQ32: 986.6220961
A33: O_Turbine001 | B33: eta_s | C33: ---- | D33: isentropic efficiency | E33: 0.7844676331 | G33: 0.6804910278 | H33: 0.7298298981 | I33: 0.7576121474 | J33: 0.7747342057 | K33: 0.7851337147 | L33: 0.7921281629 | M33: 0.7964472662 | N33: 0.8 | O33: 0.7991867714 | P33: 0.6985553694 | Q33: 0.7421842569 | R33: 0.767234382 | S33: 0.7828388453 | T33: 0.7912096846 | U33: 0.7965710531 | V33: 0.8 | W33: 0.7988876713 | X33: 0.7976260707 | Y33: 0.7170721605 | Z33: 0.7548730505 | AA33: 0.7771206563 | AB33: 0.7884634822 | AC33: 0.79565842 | AD33: 0.8 | AE33: 0.7987513522 | AF33: 0.7969366185 | AG33: 0.7947670104 | AH33: 0.7289778523 | AI33: 0.7639399814 | AJ33: 0.7836628771 | AK33: 0.7935237558 | AL33: 0.8 | AM33: 0.798809451 | AN33: 0.7966794158 | AO33: 0.7939815116 | AP33: 0.7902020445 | AQ33: 0.7398911355 | AR33: 0.7728450499 | AS33: 0.7889103941 | AT33: 0.7975336153 | AU33: 0.7991001005 | AV33: 0.7969396624 | AW33: 0.7937154272 | AX33: 0.7893072742 | AY33: 0.7851996048 | AZ33: 0.7510487554 | BA33: 0.7810071119 | BB33: 0.7935508287 | BC33: 0.8 | BD33: 0.797813906 | BE33: 0.7943300488 | BF33: 0.7891943261 | BG33: 0.784417078 | BH33: 0.7799624354 | BI33: 0.7603225289 | BJ33: 0.7857138263 | BK33: 0.7972798339 | BL33: 0.7988042131 | BM33: 0.7953916518 | BN33: 0.7900226455 | BO33: 0.7844773505 | BP33: 0.779298386 | BQ33: 0.7744579398
A34: O_Turbine001 | B34: delta_hs | C34: kJ/kg | D34: isentropic enthalpy difference | E34: 98.36926408 | G34: 56.8133354 | H34: 63.23410254 | I34: 68.53113274 | J34: 72.5386329 | K34: 76.51001565 | L34: 79.08437005 | M34: 82.11858895 | N34: 84.08548839 | O34: 85.9161144 | P34: 58.87993799 | Q34: 65.51796545 | R34: 71.1710854 | S34: 75.813 | T34: 79.20974908 | U34: 82.12393451 | V34: 84.31592391 | W34: 86.88528346 | X34: 88.8288931 | Y34: 61.39094566 | Z34: 67.87978912 | AA34: 73.22177513 | AB34: 77.56503586 | AC34: 81.16998552 | AD34: 84.85078712 | AE34: 86.98108176 | AF34: 89.36601681 | AG34: 91.48465699 | AH34: 63.08067062 | AI34: 70.3818297 | AJ34: 75.813 | AK34: 80.02685185 | AL34: 84.3392123 | AM34: 86.94487626 | AN34: 89.51860812 | AO34: 91.91960513 | AP34: 94.44870882 | AQ34: 65.36968531 | AR34: 72.203446 | AS34: 77.75039312 | AT34: 82.07095212 | AU34: 86.0671111 | AV34: 89.4673804 | AW34: 91.95443896 | AX34: 94.17429507 | AY34: 97.18622775 | AZ34: 67.34143193 | BA34: 74.53985357 | BB34: 79.93489029 | BC34: 85.11912707 | BD34: 88.99615126 | BE34: 91.87591407 | BF34: 94.56245065 | BG34: 97.10135115 | BH34: 99.00527415 | BI34: 69.42696965 | BJ34: 76.41906251 | BK34: 82.53821282 | BL34: 87.03523235 | BM34: 91.06903993 | BN34: 94.33069441 | BO34: 96.59664793 | BP34: 99.44295291 | BQ34: 101.4093553
A35: W_O_Htex002 | B35: htc_area | C35: kW/K | D35: heat transfer coefficient x transfer area | E35: 1495.146938 | G35: 395.8666533 | H35: 469.7676331 | I35: 534.9878605 | J35: 591.3082277 | K35: 642.7384503 | L35: 686.6163508 | M35: 728.0702178 | N35: 763.8755552 | O35: 796.6735193 | P35: 443.0033189 | Q35: 525.9006367 | R35: 599.3594535 | S35: 663.5599939 | T35: 719.4327412 | U35: 769.2831468 | V35: 813.3131988 | W35: 854.8644693 | X35: 891.8086492 | Y35: 497.7714066 | Z35: 590.2997559 | AA35: 671.122271 | AB35: 741.9857014 | AC35: 804.7268712 | AD35: 862.5043558 | AE35: 911.5743943 | AF35: 957.4642027 | AG35: 999.2462587 | AH35: 559.2305681 | AI35: 665.0946381 | AJ35: 755.5265265 | AK35: 834.1627974 | AL35: 906.3605963 | AM35: 967.6667591 | AN35: 1023.91557 | AO35: 1075.325917 | AP35: 1124.061753 | AQ35: 633.4405372 | AR35: 750.0807428 | AS35: 851.5819762 | AT35: 940.5625961 | AU35: 1019.716612 | AV35: 1091.024049 | AW35: 1153.816928 | AX35: 1211.750634 | AY35: 1267.277769 | AZ35: 720.4902237 | BA35: 852.7870187 | BB35: 966.0120265 | BC35: 1068.332987 | BD35: 1157.323405 | BE35: 1235.54023 | BF35: 1307.814037 | BG35: 1373.404751 | BH35: 1432.048603 | BI35: 826.6413006 | BJ35: 974.747899 | BK35: 1105.262985 | BL35: 1217.56906 | BM35: 1318.445967 | BN35: 1409.184127 | BO35: 1488.353259 | BP35: 1563.707253 | BQ35: 1630.366024
A36: W_O_Htex002 | B36: MTD | C36: °C | D36: mean temperature difference | E36: 16.54076471 | G36: 13.23059967 | H36: 14.52919737 | I36: 15.69619834 | J36: 16.68688932 | K36: 17.63111836 | L36: 18.39429453 | M36: 19.16972695 | N36: 19.80358201 | O36: 20.39461113 | P36: 12.92114671 | Q36: 14.23282507 | R36: 15.42728442 | S36: 16.47474368 | T36: 17.3737262 | U36: 18.18081437 | V36: 18.88218062 | W36: 19.58828903 | X36: 20.20409363 | Y36: 12.57723505 | Z36: 13.88174216 | AA36: 15.03939302 | AB36: 16.06344645 | AC36: 16.97924982 | AD36: 17.86325082 | AE36: 18.57087931 | AF36: 19.26930647 | AG36: 19.91383117 | AH36: 12.12605759 | AI36: 13.47492648 | AJ36: 14.63118682 | AK36: 15.64145607 | AL36: 16.61863442 | AM36: 17.41418209 | AN36: 18.17058611 | AO36: 18.87965839 | AP36: 19.59497421 | AQ36: 11.65672036 | AR36: 12.94518451 | AS36: 14.09550972 | AT36: 15.12325042 | AU36: 16.05795718 | AV36: 16.92178504 | AW36: 17.67808532 | AX36: 18.4018147 | AY36: 19.1473156 | AZ36: 11.09345985 | BA36: 12.37842726 | BB36: 13.50201148 | BC36: 14.56881992 | BD36: 15.50465887 | BE36: 16.33073245 | BF36: 17.12759777 | BG36: 17.86706747 | BH36: 18.5277812 | BI36: 10.45988003 | BJ36: 11.6996987 | BK36: 12.84770863 | BL36: 13.85511969 | BM36: 14.79322503 | BN36: 15.66205016 | BO36: 16.41558372 | BP36: 17.17910991 | BQ36: 17.8505974
A37: W_O_Htex002 | B37: q_trans | C37: kW | D37: transferred heat | E37: 24730.87371 | G37: 5237.553214 | H37: 6825.346657 | I37: 8397.275568 | J37: 9867.094953 | K37: 11332.19769 | L37: 12629.82339 | M37: 13956.90727 | N37: 15127.4722 | O37: 16247.84662 | P37: 5724.110877 | Q37: 7485.051768 | R37: 9246.488759 | S37: 10931.98081 | T37: 12499.22747 | U37: 13986.19409 | V37: 15357.12672 | W37: 16745.33231 | X37: 18018.18545 | Y37: 6260.587984 | Z37: 8194.389009 | AA37: 10093.2716 | AB37: 11918.84758 | AC37: 13663.65858 | AD37: 15407.13164 | AE37: 16928.73806 | AF37: 18449.67116 | AG37: 19898.82129 | AH37: 6781.262075 | AI37: 8962.101354 | AJ37: 11054.24976 | AK37: 13047.52075 | AL37: 15062.4754 | AM37: 16851.12515 | AN37: 18605.14603 | AO37: 20301.78596 | AP37: 22025.96106 | AQ37: 7383.839208 | AR37: 9709.933612 | AS37: 12003.48202 | AT37: 14224.36367 | AU37: 16374.56568 | AV37: 18462.07444 | AW37: 20397.27409 | AX37: 22298.41063 | AY37: 24264.9674 | AZ37: 7992.729367 | BA37: 10556.16208 | BB37: 13043.10547 | BC37: 15564.35089 | BD37: 17943.90461 | BE37: 20177.27693 | BF37: 22399.71277 | BG37: 24538.71534 | BH37: 26532.68318 | BI37: 8646.568833 | BJ37: 11404.25672 | BK37: 14200.09678 | BL37: 16869.56505 | BM37: 19504.06789 | BN37: 22070.71247 | BO37: 24432.18753 | BP37: 26863.09877 | BQ37: 29103.0075
A38: W_O_Htex001 | B38: htc_area | C38: kW/K | D38: heat transfer coefficient x transfer area | E38: 1077.443551 | G38: 452.4525169 | H38: 548.5152338 | I38: 639.9067827 | J38: 727.0894152 | K38: 810.5539955 | L38: 890.5241941 | M38: 967.418041 | N38: 1041.353197 | O38: 1112.606947 | P38: 459.9613853 | Q38: 558.0537297 | R38: 651.493254 | S38: 740.7445749 | T38: 826.1943474 | U38: 908.1984284 | V38: 987.013201 | W38: 1062.948644 | X38: 1136.136542 | Y38: 467.276877 | Z38: 567.3329826 | AA38: 662.7249453 | AB38: 753.9383517 | AC38: 841.3604774 | AD38: 925.3554818 | AE38: 1006.09531 | AF38: 1083.901573 | AG38: 1158.950252 | AH38: 474.3646785 | AI38: 576.3741883 | AJ38: 673.6951147 | AK38: 766.8232412 | AL38: 856.1932334 | AM38: 942.0182282 | AN38: 1024.638511 | AO38: 1104.270136 | AP38: 1181.138761 | AQ38: 481.3064945 | AR38: 585.1558615 | AS38: 684.35833 | AT38: 779.3747337 | AU38: 870.5754688 | AV38: 958.2716084 | AW38: 1042.68367 | AX38: 1124.071761 | AY38: 1202.655322 | AZ38: 488.0663539 | BA38: 593.7542914 | BB38: 694.7839584 | BC38: 791.6554845 | BD38: 884.6653568 | BE38: 974.1093821 | BF38: 1060.276854 | BG38: 1143.34854 | BH38: 1223.508416 | BI38: 494.6778542 | BJ38: 602.1405064 | BK38: 704.9919121 | BL38: 803.6170109 | BM38: 898.387414 | BN38: 989.5731331 | BO38: 1077.380503 | BP38: 1162.073273 | BQ38: 1243.776144
A39: W_O_Htex001 | B39: MTD | C39: °C | D39: mean temperature difference | E39: 22.88735681 | G39: 25.97704392 | H39: 24.4603454 | I39: 23.19873204 | J39: 22.12055858 | K39: 21.18700914 | L39: 20.36296811 | M39: 19.63267966 | N39: 18.97580451 | O39: 18.38255347 | P39: 26.71542753 | Q39: 25.15945316 | R39: 23.86316467 | S39: 22.75453797 | T39: 21.78947407 | U39: 20.93946751 | V39: 20.18209123 | W39: 19.50358457 | X39: 18.88909527 | Y39: 27.45598856 | Z39: 25.85907862 | AA39: 24.5249118 | AB39: 23.38314891 | AC39: 22.38893395 | AD39: 21.51347968 | AE39: 20.73072313 | AF39: 20.02795191 | AG39: 19.39156713 | AH39: 28.19249865 | AI39: 26.55929681 | AJ39: 25.18865955 | AK39: 24.01305903 | AL39: 22.99024413 | AM39: 22.08398003 | AN39: 21.27591971 | AO39: 20.5487789 | AP39: 19.89051127 | AQ39: 28.93339689 | AR39: 27.25617606 | AS39: 25.849334 | AT39: 24.6411482 | AU39: 23.58593625 | AV39: 22.6526439 | AW39: 21.81727934 | AX39: 21.06476787 | AY39: 20.3828067 | AZ39: 29.67235505 | BA39: 27.95530204 | BB39: 26.51035811 | BC39: 25.26954664 | BD39: 24.18216106 | BE39: 23.21746426 | BF39: 22.3546926 | BG39: 21.57541346 | BH39: 20.86668477 | BI39: 30.41213492 | BJ39: 28.65215674 | BK39: 27.17173362 | BL39: 25.89349936 | BM39: 24.77332973 | BN39: 23.7784907 | BO39: 22.88487297 | BP39: 22.07790781 | BQ39: 21.34239774
A40: W_O_Htex001 | B40: q_trans | C40: kW | D40: transferred heat | E40: 24659.83499 | G40: 11753.3789 | H40: 13416.87208 | I40: 14845.02598 | J40: 16083.624 | K40: 17173.21491 | L40: 18133.71577 | M40: 18993.00849 | N40: 19760.51469 | O40: 20452.5567 | P40: 12288.06506 | Q40: 14040.32667 | R40: 15546.6908 | S40: 16855.30056 | T40: 18002.34031 | U40: 19017.19148 | V40: 19919.99047 | W40: 20731.30878 | X40: 21460.59139 | Y40: 12829.54859 | Z40: 14670.7082 | AA40: 16253.27083 | AB40: 17629.45275 | AC40: 18837.16416 | AD40: 19907.61635 | AE40: 20857.08332 | AF40: 21708.32857 | AG40: 22473.86162 | AH40: 13373.52556 | AI40: 15308.09314 | AJ40: 16969.47688 | AK40: 18413.77176 | AL40: 19684.09146 | AM40: 20803.51174 | AN40: 21800.12669 | AO40: 22691.40286 | AP40: 23493.45385 | AQ40: 13925.83183 | AR40: 15949.11118 | AS40: 17690.20705 | AT40: 19204.68831 | AU40: 20533.33751 | AV40: 21707.38551 | AW40: 22748.52089 | AX40: 23678.31072 | AY40: 24513.49095 | AZ40: 14482.07814 | BA40: 16598.58056 | BB40: 18418.97155 | BC40: 20004.77519 | BD40: 21393.12014 | BE40: 22616.34976 | BF40: 23702.16315 | BG40: 24668.21748 | BH40: 25530.56442 | BI40: 15044.20964 | BJ40: 17252.62417 | BK40: 19155.85244 | BL40: 20808.45656 | BM40: 22256.04764 | BN40: 23530.55555 | BO40: 24655.71595 | BP40: 25656.14658 | BQ40: 26545.16516
A41: O_Xprescription003 | B41: x | C41: --- | D41: vapor quality | E41: 1.216663498 | G41: 1.131901528 | H41: 1.138858254 | I41: 1.146633124 | J41: 1.153425259 | K41: 1.160320564 | L41: 1.165877073 | M41: 1.17168078 | N41: 1.176305645 | O41: 1.181409944 | P41: 1.13411084 | Q41: 1.142308315 | R41: 1.150896548 | S41: 1.158376974 | T41: 1.165479746 | U41: 1.171784711 | V41: 1.177310571 | W41: 1.183606597 | X41: 1.18906988 | Y41: 1.135979581 | Z41: 1.145612725 | AA41: 1.154424384 | AB41: 1.162843581 | AC41: 1.170353365 | AD41: 1.177604189 | AE41: 1.184372979 | AF41: 1.190911049 | AG41: 1.196900771 | AH41: 1.138615936 | AI41: 1.149574576 | AJ41: 1.159028017 | AK41: 1.16775343 | AL41: 1.176070586 | AM41: 1.184050433 | AN41: 1.191564545 | AO41: 1.198542069 | AP41: 1.206154485 | AQ41: 1.141980396 | AR41: 1.152806989 | AS41: 1.163214454 | AT41: 1.173033923 | AU41: 1.181963512 | AV41: 1.190968641 | AW41: 1.198940692 | AX41: 1.207215382 | AY41: 1.214890583 | AZ41: 1.144820072 | BA41: 1.156555724 | BB41: 1.167707594 | BC41: 1.178300918 | BD41: 1.188766009 | BE41: 1.198020782 | BF41: 1.207634034 | BG41: 1.215901558 | BH41: 1.223156664 | BI41: 1.148007813 | BJ41: 1.16054333 | BK41: 1.17265117 | BL41: 1.184136887 | BM41: 1.195308142 | BN41: 1.206325887 | BO41: 1.215481317 | BP41: 1.224328541 | BQ41: 1.231968642
A42: O_Condenser_a001 | B42: htc_area | C42: kW/K | D42: heat transfer coefficient x heat transfer area | E42: 4044.632486 | G42: 1486.568882 | H42: 1726.701418 | I42: 1968.277888 | J42: 2160.150679 | K42: 2386.978649 | L42: 2519.382461 | M42: 2720.211861 | N42: 2833.936516 | O42: 2948.886013 | P42: 1561.968348 | Q42: 1825.694495 | R42: 2103.437703 | S42: 2353.581012 | T42: 2546.38866 | U42: 2717.838483 | V42: 2839.462107 | W42: 3022.940556 | X42: 3156.107371 | Y42: 1657.987669 | Z42: 1936.567323 | AA42: 2199.210194 | AB42: 2433.243499 | AC42: 2642.515697 | AD42: 2898.728832 | AE42: 3018.412821 | AF42: 3188.462634 | AG42: 3348.010198 | AH42: 1720.407991 | AI42: 2064.763813 | AJ42: 2347.539314 | AK42: 2578.397624 | AL42: 2870.836668 | AM42: 3020.770247 | AN42: 3195.14639 | AO42: 3374.411281 | AP42: 3632.912677 | AQ42: 1825.430029 | AR42: 2146.27845 | AS42: 2443.541703 | AT42: 2708.399058 | AU42: 2955.705064 | AV42: 3200.592734 | AW42: 3371.620272 | AX42: 3570.526955 | AY42: 3883.016068 | AZ42: 1914.654252 | BA42: 2274.896681 | BB42: 2568.880638 | BC42: 2916.100801 | BD42: 3184.655207 | BE42: 3378.420613 | BF42: 3620.113005 | BG42: 3848.125375 | BH42: 4011.16028 | BI42: 2016.688229 | BJ42: 2370.038552 | BK42: 2744.034551 | BL42: 3030.363323 | BM42: 3324.738273 | BN42: 3611.320488 | BO42: 3777.352957 | BP42: 4060.122624 | BQ42: 4241.02915
A43: O_Condenser_a001 | B43: MTD | C43: °C | D43: mean temperature difference | E43: 10.44217712 | G43: 10.46191455 | H43: 10.5637403 | I43: 10.52040496 | J43: 10.61609918 | K43: 10.47898346 | L43: 10.66574659 | M43: 10.53057338 | N43: 10.66891079 | O43: 10.76304373 | P43: 10.50008585 | Q43: 10.57219158 | R43: 10.44800299 | S43: 10.37310395 | T43: 10.46253393 | U43: 10.55660068 | V43: 10.76401479 | W43: 10.70916126 | X43: 10.78270842 | Y43: 10.42036653 | Z43: 10.53290166 | AA43: 10.57267735 | AB43: 10.6350485 | AC43: 10.70730952 | AD43: 10.54764528 | AE43: 10.8129953 | AF43: 10.85163232 | AG43: 10.88201552 | AH43: 10.56008287 | AI43: 10.43578647 | AJ43: 10.4873348 | AK43: 10.64229007 | AL43: 10.48535312 | AM43: 10.76728276 | AN43: 10.89431583 | AO43: 10.95141445 | AP43: 10.74832703 | AQ43: 10.47353014 | AR43: 10.57267473 | AS43: 10.63891799 | AT43: 10.73023384 | AU43: 10.79717995 | AV43: 10.81215841 | AW43: 10.99970361 | AX43: 11.05255185 | AY43: 10.75513998 | AZ43: 10.48550418 | BA43: 10.5090207 | BB43: 10.6832603 | BC43: 10.556817 | BD43: 10.64475236 | BE43: 10.88720533 | BF43: 10.92592069 | BG43: 10.95159579 | BH43: 11.1051844 | BI43: 10.44891479 | BJ43: 10.61029126 | BK43: 10.5605369 | BL43: 10.73861282 | BM43: 10.80341601 | BN43: 10.83417362 | BO43: 11.13644494 | BP43: 11.06371707 | BQ43: 11.21271455
A44: O_Condenser_a001 | B44: q_trans | C44: kW | D44: transferred heat | E44: 42234.76879 | G44: 15552.35662 | H44: 18240.42535 | I44: 20707.08046 | J44: 22932.37385 | K44: 25013.10978 | L44: 26871.09488 | M44: 28645.3906 | N44: 30235.01586 | O44: 31738.98912 | P44: 16400.80174 | Q44: 19301.59197 | R44: 21976.72341 | S44: 24413.94048 | T44: 26641.67776 | U44: 28691.13558 | V44: 30564.01212 | W44: 32373.1579 | X44: 34031.38553 | Y44: 17276.83922 | Z44: 20397.67317 | AA44: 23251.5398 | AB44: 25877.66263 | AC44: 28294.23347 | AD44: 30574.76348 | AE44: 32638.08363 | AF44: 34600.02418 | AG44: 36433.09895 | AH44: 18167.65096 | AI44: 21547.43426 | AJ44: 24619.43073 | AK44: 27440.05543 | AL44: 30101.7362 | AM44: 32525.48741 | AN44: 34808.93388 | AO44: 36954.57646 | AP44: 39047.73354 | AQ44: 19118.69643 | AR44: 22691.90393 | AS44: 25996.63978 | AT44: 29061.75522 | AU44: 31913.27944 | AV44: 34605.31564 | AW44: 37086.82369 | AX44: 39463.43431 | AY44: 41762.38136 | AZ44: 20076.11517 | BA44: 23906.93631 | BB44: 27444.02054 | BC44: 30784.7425 | BD44: 33899.86602 | BE44: 36781.5589 | BF44: 39553.06756 | BG44: 42143.11366 | BH44: 44544.67458 | BI44: 21072.20345 | BJ44: 25146.79933 | BK44: 28978.47813 | BL44: 32541.89844 | BM44: 35918.53067 | BN44: 39125.67315 | BO44: 42066.28322 | BP44: 44920.04799 | BQ44: 47553.44925
A45: G_Stream001 | B45: mass | C45: kg/s | D45: mass flow | E45: 4786.280333 | G45: 1481.74952 | H45: 1756.004813 | I45: 2070.935367 | J45: 2294.598726 | K45: 2622.940403 | L45: 2741.35136 | M45: 3040.479487 | N45: 3140.917304 | O45: 3258.15313 | P45: 1566.924836 | Q45: 1880.246441 | R45: 2262.70702 | S45: 2607.657761 | T45: 2835.720946 | U45: 3029.010502 | V45: 3118.09759 | W45: 3370.388518 | X45: 3513.437146 | Y45: 1693.629137 | Z45: 2027.544181 | AA45: 2354.437361 | AB45: 2640.002797 | AC45: 2886.537959 | AD45: 3265.115891 | AE45: 3329.691452 | AF45: 3529.845872 | AG45: 3716.853585 | AH45: 1748.587741 | AI45: 2215.454527 | AJ45: 2569.073473 | AK45: 2823.723031 | AL45: 3250.091289 | AM45: 3347.899842 | AN45: 3523.356935 | AO45: 3723.981575 | AP45: 4124.180668 | AQ45: 1899.576368 | AR45: 2287.463613 | AS45: 2652.140679 | AT45: 2964.839451 | AU45: 3255.747946 | AV45: 3558.917759 | AW45: 3703.264075 | AX45: 3926.195931 | AY45: 4428.810877 | AZ45: 2010.347004 | BA45: 2467.799276 | BB45: 2799.80043 | BC45: 3284.582222 | BD45: 3599.824686 | BE45: 3752.40298 | BF45: 4035.148401 | BG45: 4299.381266 | BH45: 4426.426907 | BI45: 2149.756601 | BJ45: 2565.441149 | BK45: 3061.410094 | BL45: 3369.754743 | BM45: 3717.218623 | BN45: 4061.579978 | BO45: 4139.834096 | BP45: 4501.445808 | BQ45: 4644.862064
A46: O_Stream001 | B46: mass | C46: kg/s | D46: mass flow | E46: 95.33919907 | G46: 37.86763797 | H46: 44.13155323 | I46: 49.71826741 | J46: 54.7372421 | K46: 59.29048305 | L46: 63.42860484 | M46: 67.22677026 | N46: 70.71069675 | O46: 73.92671545 | P46: 39.85333249 | Q46: 46.54583516 | R46: 52.53882503 | S46: 57.94509672 | T46: 62.85257098 | U46: 67.33562696 | V46: 71.44670726 | W46: 75.24183975 | X46: 78.74726754 | Y46: 41.88876182 | Z46: 49.02547215 | AA46: 55.43678038 | AB46: 61.24258699 | AC46: 66.53306877 | AD46: 71.38577841 | AE46: 75.84122631 | AF46: 79.95985872 | AG46: 83.77571123 | AH46: 43.96504692 | AI46: 51.57314014 | AJ46: 58.4281922 | AK46: 64.65587179 | AL46: 70.35709765 | AM46: 75.58576936 | AN46: 80.4122204 | AO46: 84.88121683 | AP46: 89.03573702 | AQ46: 46.09771465 | AR46: 54.18347543 | AS46: 61.50459281 | AT46: 68.18209216 | AU46: 74.30780192 | AV46: 79.95450531 | AW46: 85.17370596 | AX46: 90.01929923 | AY46: 94.53459064 | AZ46: 48.27813054 | BA46: 56.87122777 | BB46: 64.67967941 | BC46: 71.83496035 | BD46: 78.41690744 | BE46: 84.4980928 | BF46: 90.14345567 | BG46: 95.39477107 | BH46: 100.2914673 | BI46: 50.5127593 | BJ46: 59.63057831 | BK46: 67.95891991 | BL46: 75.60880031 | BM46: 82.67710754 | BN46: 89.2329385 | BO46: 95.32851739 | BP46: 101.0214133 | BQ46: 106.3421981
A47: PS Outputs End
D50: Net Power | E50: =E30-E31-E32 -> 5816.373025 | G50: =G30-G31-G32 -> 1061.870824 | H50: 1542.671185 | I50: 1985.865769 | J50: 2400.062847 | K50: 2783.243443 | L50: 3140.082927 | M50: 3470.09079 | N50: 3781.181735 | O50: 4050.347773 | P50: 1209.261797 | Q50: 1728.562049 | R50: 2213.997379 | S50: 2672.955546 | T50: 3089.138524 | U50: 3479.873946 | V50: 3843.281038 | W50: 4162.055683 | X50: 4459.433112 | Y50: 1375.707468 | Z50: 1930.261222 | AA50: 2460.643678 | AB50: 2949.815899 | AC50: 3409.117511 | AD50: 3837.954927 | AE50: 4212.759156 | AF50: 4561.236877 | AG50: 4885.068349 | AH50: 1530.232017 | AI50: 2134.485688 | AJ50: 2710.611932 | AK50: 3245.575227 | AL50: 3750.442114 | AM50: =AM30-AM31-AM32 -> 4191.228752 | AN50: 4599.10937 | AO50: 4977.764012 | AP50: 5305.30724 | AQ50: 1693.132662 | AR50: 2352.672619 | AS50: 2972.45836 | AT50: 3545.814262 | AU50: 4082.483933 | AV50: 4560.999806 | AW50: 5001.469873 | AX50: 5386.396742 | AY50: 5758.615045 | AZ50: 1868.221689 | BA50: 2582.619638 | BB50: 3247.57992 | BC50: 3876.163646 | BD50: 4431.531524 | BE50: 4946.556296 | BF50: 5397.297448 | BG50: 5831.115364 | BH50: 6236.204015 | BI50: 2048.845371 | BJ50: 2812.328002 | BK50: 3535.245935 | BL50: 4193.274501 | BM50: 4791.754064 | BN50: 5322.171682 | BO50: 5824.483641 | BP50: 6297.001634 | BQ50: 6737.022896
B51: Min Mass Flow | C51: 120 | E51: 2 | G51: 2 | H51: 2 | I51: 2 | J51: 2 | K51: 2 | L51: 2 | M51: 2 | N51: 2 | O51: 2 | P51: 2 | Q51: 2 | R51: 2 | S51: 2 | T51: 2 | U51: 2 | V51: 2 | W51: 2 | X51: 2 | Y51: 2 | Z51: 2 | AA51: 2 | AB51: 2 | AC51: 2 | AD51: 2 | AE51: 2 | AF51: 2 | AG51: 2 | AH51: 2 | AI51: 2 | AJ51: 2 | AK51: 2 | AL51: 2 | AM51: 2 | AN51: 2 | AO51: 2 | AP51: 2 | AQ51: 2 | AR51: 2 | AS51: 2 | AT51: 2 | AU51: 2 | AV51: 2 | AW51: 2 | AX51: 2 | AY51: 2 | AZ51: 2 | BA51: 2 | BB51: 2 | BC51: 2 | BD51: 2 | BE51: 2 | BF51: 2 | BG51: 2 | BH51: 2 | BI51: 2 | BJ51: 2 | BK51: 2 | BL51: 2 | BM51: 2 | BN51: 2 | BO51: 2 | BP51: 2 | BQ51: 2
B52: Max Mass Flow | C52: 40 | D52: Actual Plant Efficiency (w-hr/lb) | E52: =E50*1000/(E22*2.20462*3600) -> 7.328515452 | G52: =G50*1000/(G22*2.20462*3600) -> 3.34484081 | H52: 3.887470616 | I52: 4.170252925 | J52: 4.320045593 | K52: 4.3835399 | L52: 4.396047379 | M52: 4.372246049 | N52: 4.331104102 | O52: 4.252798682 | P52: 3.809115115 | Q52: 4.355908273 | R52: 4.649321818 | S52: 4.811244773 | T52: 4.865317121 | U52: 4.871747369 | V52: 4.842458411 | W52: 4.767371076 | X52: 4.682331574 | Y52: =Y50*1000/(Y22*2.20462*3600) -> 4.333410785 | Z52: 4.864182243 | AA52: 5.16727095 | AB52: 5.309585618 | AC52: 5.369276147 | AD52: 5.373052907 | AE52: 5.307993563 | AF52: 5.224607843 | AG52: 5.129241586 | AH52: =AH50*1000/(AH22*2.20462*3600) -> 4.820155504 | AI52: 5.378819853 | AJ52: 5.692196076 | AK52: 5.841944088 | AL52: 5.906853994 | AM52: 5.86762853 | AN52: 5.794787222 | AO52: 5.701713284 | AP52: 5.570485524 | AQ52: 5.333284516 | AR52: 5.928642323 | AS52: 6.24206498 | AT52: 6.382365903 | AU52: 6.429811683 | AV52: 6.385299914 | AW52: 6.30175353 | AX52: 6.169776186 | AY52: 6.046451279 | AZ52: =AZ50*1000/(AZ22*2.20462*3600) -> 5.884806328 | BA52: =BA50*1000/(BA22*2.20462*3600) -> 6.508099753 | BB52: 6.819811225 | BC52: 6.976985499 | BD52: 6.979553046 | BE52: 6.925070561 | BF52: 6.80048848 | BG52: 6.67917319 | BH52: 6.547911859 | BI52: 6.453762034 | BJ52: 7.086955782 | BK52: 7.423900413 | BL52: 7.547776114 | BM52: 7.546894678 | BN52: 7.450923881 | BO52: 7.338734669 | BP52: 7.212816394 | BQ52: 7.073763464
B53: Mass Flow Step | C53: -10 | D53: Actual Plant Efficiency (kW/kg/s) | E53: =E50/E22 -> 58.16373025 | G53: =G50/G22 -> 26.5467706 | H53: 30.85342369 | I53: 33.09776282 | J53: 34.28661209 | K53: 34.79054304 | L53: 34.8898103 | M53: 34.7009079 | N53: 34.37437941 | O53: 33.75289811 | P53: 30.23154492 | Q53: 34.57124099 | R53: 36.89995632 | S53: 38.18507922 | T53: 38.61423155 | U53: 38.66526606 | V53: 38.43281038 | W53: 37.83686984 | X53: 37.1619426 | Y53: =Y50/Y22 -> 34.39268671 | Z53: 38.60522445 | AA53: 41.01072797 | AB53: 42.14022712 | AC53: 42.61396888 | AD53: 42.64394364 | AE53: 42.12759156 | AF53: 41.46578979 | AG53: 40.70890291 | AH53: =AH50/AH22 -> 38.25580042 | AI53: 42.68971377 | AJ53: 45.17686553 | AK53: 46.36536039 | AL53: 46.88052643 | AM53: 46.56920836 | AN53: 45.9910937 | AO53: 45.25240011 | AP53: 44.21089366 | AQ53: 42.32831656 | AR53: 47.05345238 | AS53: 49.54097266 | AT53: 50.65448946 | AU53: 51.03104916 | AV53: 50.67777562 | AW53: 50.01469873 | AX53: 48.96724311 | AY53: 47.98845871 | AZ53: =AZ50/AZ22 -> 46.70554222 | BA53: =BA50/BA22 -> 51.65239276 | BB53: 54.126332 | BC53: 55.37376637 | BD53: 55.39414405 | BE53: 54.96173662 | BF53: 53.97297448 | BG53: 53.01013967 | BH53: 51.96836679 | BI53: 51.22113428 | BJ53: 56.24656004 | BK53: 58.92076558 | BL53: 59.90392144 | BM53: 59.8969258 | BN53: 59.13524091 | BO53: 58.24483641 | BP53: 57.2454694 | BQ53: 56.14185747
D54: 1st Law Efficiency (%) | E54: =E50/(E37+E40) -> 0.1177624937 | G54: =G50/(G37+G40) -> 0.06249632551 | H54: 0.07621057774 | I54: 0.08544187264 | J54: 0.09248540862 | K54: 0.09763912146 | L54: 0.1020715761 | M54: 0.105314102 | N54: 0.1083806225 | O54: 0.1103624867 | P54: 0.06713579754 | Q54: 0.08030344525 | R54: 0.08929864658 | S54: 0.09619348902 | T54: 0.1012780244 | U54: 0.1054399082 | V54: 0.1089454395 | W54: 0.1110573296 | X54: 0.1129577325 | Y54: =Y50/(Y37+Y40) -> 0.07206378346 | Z54: 0.08441955024 | AA54: 0.09339531686 | AB54: 0.09983030717 | AC54: 0.104893268 | AD54: 0.1086785308 | AE54: 0.1114904745 | AF54: 0.1135822727 | AG54: 0.115288153 | AH54: =AH50/(AH37+AH40) -> 0.07592399605 | AI54: 0.08794678958 | AJ54: 0.09672560564 | AK54: 0.1031608993 | AL54: 0.1079370554 | AM54: 0.1113071085 | AN54: 0.1138244853 | AO54: 0.1157802933 | AP54: 0.1165504269 | AQ54: 0.07945372122 | AR54: 0.09168979741 | AS54: 0.1001040441 | AT54: 0.106069842 | AU54: 0.11061273 | AV54: 0.1135439663 | AW54: 0.115920216 | AX54: 0.1171548685 | AY54: 0.11805652 | AZ54: =AZ50/(AZ37+AZ40) -> 0.08312514748 | BA54: =BA50/(BA37+BA40) -> 0.09510749825 | BB54: 0.1032220447 | BC54: 0.1089755097 | BD54: 0.112655483 | BE54: 0.1155909578 | BF54: 0.1170732717 | BG54: 0.1185019067 | BH54: 0.1197813103 | BI54: 0.08648282172 | BJ54: 0.09813796597 | BK54: 0.1059854694 | BL54: 0.1112923217 | BM54: 0.1147447512 | BN54: 0.1167110458 | BO54: 0.1186541536 | BP54: 0.119898936 | BQ54: 0.1210645844
B55: Min Temp | C55: 165
B56: Max Temp | C56: 160
B57: Temp Step | C57: -5
A69: Design Point Values for Turbine (geofluid = 175C, 80 kg/s)
A71: O_Stream001a.p | B71: 7.521 | C71: bar
A72: O_Stream001a.t | B72: 111.785 | C72: °C
A73: O_Stream001a.v | B73: 0.048494 | C73: m³/kg
A74: O_Stream001a.mass | B74: 70.351 | C74: kg/s

Sheet Custom Design Results
L1: PS Link Area
C2: Flow | D2: Temp | E2: Pressure | F2: Power | L2: Area Name: | M2: ProjectArea1 | O2: Project Name: | P2: Geo_ORC_Chad 2018-03-07 | R2: Geo_ORC_Chad 2018-03-07 | S2: Geo_ORC_Chad 2018-03-07 | T2: Geo_ORC_Chad 2018-03-07 | U2: Geo_ORC_Chad 2018-03-07 | V2: Geo_ORC_Chad 2018-03-07 | W2: Geo_ORC_Chad 2018-03-07 | X2: Geo_ORC_Chad 2018-03-07 | Y2: Geo_ORC_Chad 2018-03-07 | Z2: Geo_ORC_Chad 2018-03-07 | AA2: Geo_ORC_Chad 2018-03-07 | AB2: Geo_ORC_Chad 2018-03-07 | AC2: Geo_ORC_Chad 2018-03-07 | AD2: Geo_ORC_Chad 2018-03-07 | AE2: Geo_ORC_Chad 2018-03-07 | AF2: Geo_ORC_Chad 2018-03-07 | AG2: Geo_ORC_Chad 2018-03-07 | AH2: Geo_ORC_Chad 2018-03-07 | AI2: Geo_ORC_Chad 2018-03-07 | AJ2: Geo_ORC_Chad 2018-03-07 | AK2: Geo_ORC_Chad 2018-03-07 | AL2: Geo_ORC_Chad 2018-03-07 | AM2: Geo_ORC_Chad 2018-03-07 | AN2: Geo_ORC_Chad 2018-03-07 | AO2: Geo_ORC_Chad 2018-03-07 | AP2: Geo_ORC_Chad 2018-03-07 | AQ2: Geo_ORC_Chad 2018-03-07 | AR2: Geo_ORC_Chad 2018-03-07 | AS2: Geo_ORC_Chad 2018-03-07 | AT2: Geo_ORC_Chad 2018-03-07 | AU2: Geo_ORC_Chad 2018-03-07 | AV2: Geo_ORC_Chad 2018-03-07 | AW2: Geo_ORC_Chad 2018-03-07 | AX2: Geo_ORC_Chad 2018-03-07 | AY2: Geo_ORC_Chad 2018-03-07 | AZ2: Geo_ORC_Chad 2018-03-07 | BA2: Geo_ORC_Chad 2018-03-07 | BB2: Geo_ORC_Chad 2018-03-07 | BC2: Geo_ORC_Chad 2018-03-07 | BD2: Geo_ORC_Chad 2018-03-07 | BE2: Geo_ORC_Chad 2018-03-07 | BF2: Geo_ORC_Chad 2018-03-07 | BG2: Geo_ORC_Chad 2018-03-07 | BH2: Geo_ORC_Chad 2018-03-07 | BI2: Geo_ORC_Chad 2018-03-07 | BJ2: Geo_ORC_Chad 2018-03-07 | BK2: Geo_ORC_Chad 2018-03-07 | BL2: Geo_ORC_Chad 2018-03-07 | BM2: Geo_ORC_Chad 2018-03-07 | BN2: Geo_ORC_Chad 2018-03-07 | BO2: Geo_ORC_Chad 2018-03-07 | BP2: Geo_ORC_Chad 2018-03-07 | BQ2: Geo_ORC_Chad 2018-03-07 | BR2: Geo_ORC_Chad 2018-03-07 | BS2: Geo_ORC_Chad 2018-03-07 | BT2: Geo_ORC_Chad 2018-03-07 | BU2: Geo_ORC_Chad 2018-03-07 | BV2: Geo_ORC_Chad 2018-03-07 | BW2: Geo_ORC_Chad 2018-03-07 | BX2: Geo_ORC_Chad 2018-03-07 | BY2: Geo_ORC_Chad 2018-03-07 | BZ2: Geo_ORC_Chad 2018-03-07 | CA2: Geo_ORC_Chad 2018-03-07 | CB2: Geo_ORC_Chad 2018-03-07
C3: 120 | D3: 190 | E3: =CB24 -> 9.15625 | F3: =CB50 -> 7222.514079 | G3: =F3/F11 -> 3 | L3: Project Location: | M3: C:\Users\caugusti\Desktop\IPSEpro\GTO CEMAC Binary Plant | O3: Dataset Id: | P3: 0 | R3: 0 | S3: 0 | T3: 0 | U3: 0 | V3: 0 | W3: 0 | X3: 0 | Y3: 0 | Z3: 0 | AA3: 0 | AB3: 0 | AC3: 0 | AD3: 0 | AE3: 0 | AF3: 0 | AG3: 0 | AH3: 0 | AI3: 0 | AJ3: 0 | AK3: 0 | AL3: 0 | AM3: 0 | AN3: 0 | AO3: 0 | AP3: 0 | AQ3: 0 | AR3: 0 | AS3: 0 | AT3: 0 | AU3: 0 | AV3: 0 | AW3: 0 | AX3: 0 | AY3: 0 | AZ3: 0 | BA3: 0 | BB3: 0 | BC3: 0 | BD3: 0 | BE3: 0 | BF3: 0 | BG3: 0 | BH3: 0 | BI3: 0 | BJ3: 0 | BK3: 0 | BL3: 0 | BM3: 0 | BN3: 0 | BO3: 0 | BP3: 0 | BQ3: 0 | BR3: 0 | BS3: 0 | BT3: 0 | BU3: 0 | BV3: 0 | BW3: 0 | BX3: 0 | BY3: 0 | BZ3: 0 | CA3: 0 | CB3: 0
C4: 120 | D4: 180 | E4: =BJ24 -> 7.520996064 | F4: =BJ50 -> 6130.86297 | G4: =F4/F12 -> 3 | L4: Library: | M4: C:\ProgramData\SimTech\IPSEpro 7.0\LTP_Lib\LTP_Lib_GTO_CEMAC.IML | P4: Design with n-Pentane | R4: Design with n-Pentane | S4: Design with n-Pentane | T4: Design with n-Pentane | U4: Design with n-Pentane | V4: Design with n-Pentane | W4: Design with n-Pentane | X4: Design with n-Pentane | Y4: Design with n-Pentane | Z4: Design with n-Pentane | AA4: Design with n-Pentane | AB4: Design with n-Pentane | AC4: Design with n-Pentane | AD4: Design with n-Pentane | AE4: Design with n-Pentane | AF4: Design with n-Pentane | AG4: Design with n-Pentane | AH4: Design with n-Pentane | AI4: Design with n-Pentane | AJ4: Design with n-Pentane | AK4: Design with n-Pentane | AL4: Design with n-Pentane | AM4: Design with n-Pentane | AN4: Design with n-Pentane | AO4: Design with n-Pentane | AP4: Design with n-Pentane | AQ4: Design with n-Pentane | AR4: Design with n-Pentane | AS4: Design with n-Pentane | AT4: Design with n-Pentane | AU4: Design with n-Pentane | AV4: Design with n-Pentane | AW4: Design with n-Pentane | AX4: Design with n-Pentane | AY4: Design with n-Pentane | AZ4: Design with n-Pentane | BA4: Design with n-Pentane | BB4: Design with n-Pentane | BC4: Design with n-Pentane | BD4: Design with n-Pentane | BE4: Design with n-Pentane | BF4: Design with n-Pentane | BG4: Design with n-Pentane | BH4: Design with n-Pentane | BI4: Design with n-Pentane | BJ4: Design with n-Pentane | BK4: Design with n-Pentane | BL4: Design with n-Pentane | BM4: Design with n-Pentane | BN4: Design with n-Pentane | BO4: Design with n-Pentane | BP4: Design with n-Pentane | BQ4: Design with n-Pentane | BR4: Design with n-Pentane | BS4: Design with n-Pentane | BT4: Design with n-Pentane | BU4: Design with n-Pentane | BV4: Design with n-Pentane | BW4: Design with n-Pentane | BX4: Design with n-Pentane | BY4: Design with n-Pentane | BZ4: Design with n-Pentane | CA4: Design with n-Pentane | CB4: Design with n-Pentane
C5: 120 | D5: 170 | E5: =AR24 -> 6.78125 | F5: =AR50 -> 5139.432111 | G5: =F5/F13 -> 3 | O5: Date: | P5: 2018-03-07 | R5: 2018-03-07 | S5: 2018-03-07 | T5: 2018-03-07 | U5: 2018-03-07 | V5: 2018-03-07 | W5: 2018-03-07 | X5: 2018-03-07 | Y5: 2018-03-07 | Z5: 2018-03-07 | AA5: 2018-03-07 | AB5: 2018-03-07 | AC5: 2018-03-07 | AD5: 2018-03-07 | AE5: 2018-03-07 | AF5: 2018-03-07 | AG5: 2018-03-07 | AH5: 2018-03-07 | AI5: 2018-03-07 | AJ5: 2018-03-07 | AK5: 2018-03-07 | AL5: 2018-03-07 | AM5: 2018-03-07 | AN5: 2018-03-07 | AO5: 2018-03-07 | AP5: 2018-03-07 | AQ5: 2018-03-07 | AR5: 2018-03-07 | AS5: 2018-03-07 | AT5: 2018-03-07 | AU5: 2018-03-07 | AV5: 2018-03-07 | AW5: 2018-03-07 | AX5: 2018-03-07 | AY5: 2018-03-07 | AZ5: 2018-03-07 | BA5: 2018-03-07 | BB5: 2018-03-07 | BC5: 2018-03-07 | BD5: 2018-03-07 | BE5: 2018-03-07 | BF5: 2018-03-07 | BG5: 2018-03-07 | BH5: 2018-03-07 | BI5: 2018-03-07 | BJ5: 2018-03-07 | BK5: 2018-03-07 | BL5: 2018-03-07 | BM5: 2018-03-07 | BN5: 2018-03-07 | BO5: 2018-03-07 | BP5: 2018-03-07 | BQ5: 2018-03-07 | BR5: 2018-03-07 | BS5: 2018-03-07 | BT5: 2018-03-07 | BU5: 2018-03-07 | BV5: 2018-03-07 | BW5: 2018-03-07 | BX5: 2018-03-07 | BY5: 2018-03-07 | BZ5: 2018-03-07 | CA5: 2018-03-07 | CB5: 2018-03-07
C6: 120 | D6: 160 | E6: =Z24 -> 5.87890625 | F6: =Z50 -> 4272.351221 | G6: =F6/F14 -> 3 | O6: Start Time: | P6: 14:12:52 | R6: 14:12:52 | S6: 14:12:42 | T6: 14:12:32 | U6: 14:12:22 | V6: 14:12:12 | W6: 14:12:02 | X6: 14:11:52 | Y6: 14:11:42 | Z6: 14:11:32 | AA6: 14:11:20 | AB6: 14:11:12 | AC6: 14:11:03 | AD6: 14:10:55 | AE6: 14:10:44 | AF6: 14:10:32 | AG6: 14:10:21 | AH6: 14:10:08 | AI6: 14:09:57 | AJ6: 14:09:44 | AK6: 14:09:36 | AL6: 14:09:28 | AM6: 14:09:20 | AN6: 14:09:11 | AO6: 14:09:05 | AP6: 14:08:59 | AQ6: 14:08:50 | AR6: 14:08:44 | AS6: 14:00:21 | AT6: 14:00:05 | AU6: 13:59:50 | AV6: 13:59:34 | AW6: 13:59:18 | AX6: 13:58:55 | AY6: 13:58:31 | AZ6: 13:58:10 | BA6: 13:57:51 | BB6: 13:57:32 | BC6: 13:57:20 | BD6: 13:57:08 | BE6: 13:56:57 | BF6: 13:56:40 | BG6: 13:56:23 | BH6: 13:56:04 | BI6: 13:55:47 | BJ6: 13:55:28 | BK6: 13:55:10 | BL6: 13:55:04 | BM6: 13:54:59 | BN6: 13:54:54 | BO6: 13:54:50 | BP6: 13:54:46 | BQ6: 13:54:41 | BR6: 13:54:37 | BS6: 13:54:32 | BT6: 13:54:28 | BU6: 13:54:23 | BV6: 13:54:19 | BW6: 13:54:14 | BX6: 13:54:10 | BY6: 13:54:01 | BZ6: 13:53:55 | CA6: 13:53:50 | CB6: 13:53:46
C7: 80 | D7: 190 | E7: =BX24 -> 9.15625 | F7: =BX50 -> 4815.009386 | G7: =F7/F11 -> 2 | O7: End Time: | P7: 14:12:53 | R7: 14:12:53 | S7: 14:12:43 | T7: 14:12:33 | U7: 14:12:23 | V7: 14:12:12 | W7: 14:12:02 | X7: 14:11:53 | Y7: 14:11:42 | Z7: 14:11:32 | AA7: 14:11:21 | AB7: 14:11:12 | AC7: 14:11:04 | AD7: 14:10:56 | AE7: 14:10:44 | AF7: 14:10:32 | AG7: 14:10:21 | AH7: 14:10:08 | AI7: 14:09:58 | AJ7: 14:09:45 | AK7: 14:09:36 | AL7: 14:09:29 | AM7: 14:09:20 | AN7: 14:09:12 | AO7: 14:09:05 | AP7: 14:08:59 | AQ7: 14:08:51 | AR7: 14:08:44 | AS7: 14:00:22 | AT7: 14:00:06 | AU7: 13:59:50 | AV7: 13:59:34 | AW7: 13:59:19 | AX7: 13:58:55 | AY7: 13:58:31 | AZ7: 13:58:10 | BA7: 13:57:51 | BB7: 13:57:32 | BC7: 13:57:21 | BD7: 13:57:09 | BE7: 13:56:57 | BF7: 13:56:40 | BG7: 13:56:23 | BH7: 13:56:05 | BI7: 13:55:47 | BJ7: 13:55:28 | BK7: 13:55:10 | BL7: 13:55:04 | BM7: 13:55:00 | BN7: 13:54:55 | BO7: 13:54:50 | BP7: 13:54:46 | BQ7: 13:54:42 | BR7: 13:54:37 | BS7: 13:54:33 | BT7: 13:54:28 | BU7: 13:54:24 | BV7: 13:54:19 | BW7: 13:54:15 | BX7: 13:54:10 | BY7: 13:54:01 | BZ7: 13:53:56 | CA7: 13:53:50 | CB7: 13:53:46
C8: 80 | D8: 180 | E8: =BF24 -> 7.520996064 | F8: =BF50 -> 4087.24198 | G8: =F8/F12 -> 2 | N8: 0 | O8: Status: | P8: Converged | R8: Converged | S8: Converged | T8: Converged | U8: Converged | V8: Converged | W8: Converged | X8: Converged | Y8: Converged | Z8: Converged | AA8: Converged | AB8: Converged | AC8: Converged | AD8: Converged | AE8: Converged | AF8: Converged | AG8: Converged | AH8: Converged | AI8: Converged | AJ8: Converged | AK8: Converged | AL8: Converged | AM8: Converged | AN8: Converged | AO8: Converged | AP8: Converged | AQ8: Converged | AR8: Converged | AS8: Converged | AT8: Converged | AU8: Converged | AV8: Converged | AW8: Converged | AX8: Converged | AY8: Converged | AZ8: Converged | BA8: Converged | BB8: Converged | BC8: Converged | BD8: Converged | BE8: Converged | BF8: Converged | BG8: Converged | BH8: Converged | BI8: Converged | BJ8: Converged | BK8: Converged | BL8: Converged | BM8: Converged | BN8: Converged | BO8: Converged | BP8: Converged | BQ8: Converged | BR8: Converged | BS8: Converged | BT8: Converged | BU8: Converged | BV8: Converged | BW8: Converged | BX8: Converged | BY8: Converged | BZ8: Converged | CA8: Converged | CB8: Converged
C9: 80 | D9: 170 | E9: =AN24 -> 6.78125 | F9: =AN50 -> 3426.288074 | G9: =F9/F13 -> 2 | L9: PS Control
C10: 80 | D10: 160 | E10: =V24 -> 5.87890625 | F10: =V50 -> 2848.234148 | G10: =F10/F14 -> 2 | O10: Damping | P10: Yes | R10: Yes | S10: Yes | T10: Yes | U10: Yes | V10: Yes | W10: Yes | X10: Yes | Y10: Yes | Z10: Yes | AA10: Yes | AB10: Yes | AC10: Yes | AD10: Yes | AE10: Yes | AF10: Yes | AG10: Yes | AH10: Yes | AI10: Yes | AJ10: Yes | AK10: Yes | AL10: Yes | AM10: Yes | AN10: Yes | AO10: Yes | AP10: Yes | AQ10: Yes | AR10: Yes | AS10: Yes | AT10: Yes | AU10: Yes | AV10: Yes | AW10: Yes | AX10: Yes | AY10: Yes | AZ10: Yes | BA10: Yes | BB10: Yes | BC10: Yes | BD10: Yes | BE10: Yes | BF10: Yes | BG10: Yes | BH10: Yes | BI10: Yes | BJ10: Yes | BK10: Yes | BL10: Yes | BM10: Yes | BN10: Yes | BO10: Yes | BP10: Yes | BQ10: Yes | BR10: Yes | BS10: Yes | BT10: Yes | BU10: Yes | BV10: Yes | BW10: Yes | BX10: Yes | BY10: Yes | BZ10: Yes | CA10: Yes | CB10: Yes
C11: 40 | D11: 190 | E11: =BT24 -> 9.15625 | F11: =BT50 -> 2407.504693 | O11: Damping Decrease Factor | P11: 0.5 | R11: 0.5 | S11: 0.5 | T11: 0.5 | U11: 0.5 | V11: 0.5 | W11: 0.5 | X11: 0.5 | Y11: 0.5 | Z11: 0.5 | AA11: 0.5 | AB11: 0.5 | AC11: 0.5 | AD11: 0.5 | AE11: 0.5 | AF11: 0.5 | AG11: 0.5 | AH11: 0.5 | AI11: 0.5 | AJ11: 0.5 | AK11: 0.5 | AL11: 0.5 | AM11: 0.5 | AN11: 0.5 | AO11: 0.5 | AP11: 0.5 | AQ11: 0.5 | AR11: 0.5 | AS11: 0.5 | AT11: 0.5 | AU11: 0.5 | AV11: 0.5 | AW11: 0.5 | AX11: 0.5 | AY11: 0.5 | AZ11: 0.5 | BA11: 0.5 | BB11: 0.5 | BC11: 0.5 | BD11: 0.5 | BE11: 0.5 | BF11: 0.5 | BG11: 0.5 | BH11: 0.5 | BI11: 0.5 | BJ11: 0.5 | BK11: 0.5 | BL11: 0.5 | BM11: 0.5 | BN11: 0.5 | BO11: 0.5 | BP11: 0.5 | BQ11: 0.5 | BR11: 0.5 | BS11: 0.5 | BT11: 0.5 | BU11: 0.5 | BV11: 0.5 | BW11: 0.5 | BX11: 0.5 | BY11: 0.5 | BZ11: 0.5 | CA11: 0.5 | CB11: 0.5
C12: 40 | D12: 180 | E12: =BB24 -> 7.520996094 | F12: =BB50 -> 2043.62099 | O12: Minimum Damping Factor | P12: 0.1 | R12: 0.1 | S12: 0.1 | T12: 0.1 | U12: 0.1 | V12: 0.1 | W12: 0.1 | X12: 0.1 | Y12: 0.1 | Z12: 0.1 | AA12: 0.1 | AB12: 0.1 | AC12: 0.1 | AD12: 0.1 | AE12: 0.1 | AF12: 0.1 | AG12: 0.1 | AH12: 0.1 | AI12: 0.1 | AJ12: 0.1 | AK12: 0.1 | AL12: 0.1 | AM12: 0.1 | AN12: 0.1 | AO12: 0.1 | AP12: 0.1 | AQ12: 0.1 | AR12: 0.1 | AS12: 0.1 | AT12: 0.1 | AU12: 0.1 | AV12: 0.1 | AW12: 0.1 | AX12: 0.1 | AY12: 0.1 | AZ12: 0.1 | BA12: 0.1 | BB12: 0.1 | BC12: 0.1 | BD12: 0.1 | BE12: 0.1 | BF12: 0.1 | BG12: 0.1 | BH12: 0.1 | BI12: 0.1 | BJ12: 0.1 | BK12: 0.1 | BL12: 0.1 | BM12: 0.1 | BN12: 0.1 | BO12: 0.1 | BP12: 0.1 | BQ12: 0.1 | BR12: 0.1 | BS12: 0.1 | BT12: 0.1 | BU12: 0.1 | BV12: 0.1 | BW12: 0.1 | BX12: 0.1 | BY12: 0.1 | BZ12: 0.1 | CA12: 0.1 | CB12: 0.1
C13: 40 | D13: 170 | E13: =AJ24 -> 6.78125 | F13: =AJ50 -> 1713.144037 | O13: X Tolerance | P13: 0.01 | R13: 0.01 | S13: 0.01 | T13: 0.01 | U13: 0.01 | V13: 0.01 | W13: 0.01 | X13: 0.01 | Y13: 0.01 | Z13: 0.01 | AA13: 0.01 | AB13: 0.01 | AC13: 0.01 | AD13: 0.01 | AE13: 0.01 | AF13: 0.01 | AG13: 0.01 | AH13: 0.01 | AI13: 0.01 | AJ13: 0.01 | AK13: 0.01 | AL13: 0.01 | AM13: 0.01 | AN13: 0.01 | AO13: 0.01 | AP13: 0.01 | AQ13: 0.01 | AR13: 0.01 | AS13: 0.01 | AT13: 0.01 | AU13: 0.01 | AV13: 0.01 | AW13: 0.01 | AX13: 0.01 | AY13: 0.01 | AZ13: 0.01 | BA13: 0.01 | BB13: 0.01 | BC13: 0.01 | BD13: 0.01 | BE13: 0.01 | BF13: 0.01 | BG13: 0.01 | BH13: 0.01 | BI13: 0.01 | BJ13: 0.01 | BK13: 0.01 | BL13: 0.01 | BM13: 0.01 | BN13: 0.01 | BO13: 0.01 | BP13: 0.01 | BQ13: 0.01 | BR13: 0.01 | BS13: 0.01 | BT13: 0.01 | BU13: 0.01 | BV13: 0.01 | BW13: 0.01 | BX13: 0.01 | BY13: 0.01 | BZ13: 0.01 | CA13: 0.01 | CB13: 0.01
C14: 40 | D14: 160 | E14: =R24 -> 5.87890625 | F14: =R50 -> 1424.117074 | O14: Y Tolerance | P14: 0.01 | R14: 0.01 | S14: 0.01 | T14: 0.01 | U14: 0.01 | V14: 0.01 | W14: 0.01 | X14: 0.01 | Y14: 0.01 | Z14: 0.01 | AA14: 0.01 | AB14: 0.01 | AC14: 0.01 | AD14: 0.01 | AE14: 0.01 | AF14: 0.01 | AG14: 0.01 | AH14: 0.01 | AI14: 0.01 | AJ14: 0.01 | AK14: 0.01 | AL14: 0.01 | AM14: 0.01 | AN14: 0.01 | AO14: 0.01 | AP14: 0.01 | AQ14: 0.01 | AR14: 0.01 | AS14: 0.01 | AT14: 0.01 | AU14: 0.01 | AV14: 0.01 | AW14: 0.01 | AX14: 0.01 | AY14: 0.01 | AZ14: 0.01 | BA14: 0.01 | BB14: 0.01 | BC14: 0.01 | BD14: 0.01 | BE14: 0.01 | BF14: 0.01 | BG14: 0.01 | BH14: 0.01 | BI14: 0.01 | BJ14: 0.01 | BK14: 0.01 | BL14: 0.01 | BM14: 0.01 | BN14: 0.01 | BO14: 0.01 | BP14: 0.01 | BQ14: 0.01 | BR14: 0.01 | BS14: 0.01 | BT14: 0.01 | BU14: 0.01 | BV14: 0.01 | BW14: 0.01 | BX14: 0.01 | BY14: 0.01 | BZ14: 0.01 | CA14: 0.01 | CB14: 0.01
O15: Extended Protocol | P15: Yes | R15: Yes | S15: Yes | T15: Yes | U15: Yes | V15: Yes | W15: Yes | X15: Yes | Y15: Yes | Z15: Yes | AA15: Yes | AB15: Yes | AC15: Yes | AD15: Yes | AE15: Yes | AF15: Yes | AG15: Yes | AH15: Yes | AI15: Yes | AJ15: Yes | AK15: Yes | AL15: Yes | AM15: Yes | AN15: Yes | AO15: Yes | AP15: Yes | AQ15: Yes | AR15: Yes | AS15: Yes | AT15: Yes | AU15: Yes | AV15: Yes | AW15: Yes | AX15: Yes | AY15: Yes | AZ15: Yes | BA15: Yes | BB15: Yes | BC15: Yes | BD15: Yes | BE15: Yes | BF15: Yes | BG15: Yes | BH15: Yes | BI15: Yes | BJ15: Yes | BK15: Yes | BL15: Yes | BM15: Yes | BN15: Yes | BO15: Yes | BP15: Yes | BQ15: Yes | BR15: Yes | BS15: Yes | BT15: Yes | BU15: Yes | BV15: Yes | BW15: Yes | BX15: Yes | BY15: Yes | BZ15: Yes | CA15: Yes | CB15: Yes
L16: PS Control End
M19: Variables
L20: Object | M20: Item | N20: UOM | O20: Description | P20: Value | R20: Value | S20: Value | T20: Value | U20: Value | V20: Value | W20: Value | X20: Value | Y20: Value | Z20: Value | AA20: Value | AB20: Value | AC20: Value | AD20: Value | AE20: Value | AF20: Value | AG20: Value | AH20: Value | AI20: Value | AJ20: Value | AK20: Value | AL20: Value | AM20: Value | AN20: Value | AO20: Value | AP20: Value | AQ20: Value | AR20: Value | AS20: Value | AT20: Value | AU20: Value | AV20: Value | AW20: Value | AX20: Value | AY20: Value | AZ20: Value | BA20: Value | BB20: Value | BC20: Value | BD20: Value | BE20: Value | BF20: Value | BG20: Value | BH20: Value | BI20: Value | BJ20: Value | BK20: Value | BL20: Value | BM20: Value | BN20: Value | BO20: Value | BP20: Value | BQ20: Value | BR20: Value | BS20: Value | BT20: Value | BU20: Value | BV20: Value | BW20: Value | BX20: Value | BY20: Value | BZ20: Value | CA20: Value | CB20: Value
L21: PS Inputs
L22: W_Stream001 | M22: mass | N22: kg/s | O22: mass flow | P22: 40 | R22: 40 | S22: 50 | T22: 60 | U22: 70 | V22: 80 | W22: 90 | X22: 100 | Y22: 110 | Z22: 120 | AA22: 40 | AB22: 50 | AC22: 60 | AD22: 70 | AE22: 80 | AF22: 90 | AG22: 100 | AH22: 110 | AI22: 120 | AJ22: 40 | AK22: 50 | AL22: 60 | AM22: 70 | AN22: 80 | AO22: 90 | AP22: 100 | AQ22: 110 | AR22: 120 | AS22: 40 | AT22: 50 | AU22: 60 | AV22: 70 | AW22: 80 | AX22: 90 | AY22: 100 | AZ22: 110 | BA22: 120 | BB22: 40 | BC22: 50 | BD22: 60 | BE22: 70 | BF22: 80 | BG22: 90 | BH22: 100 | BI22: 110 | BJ22: 120 | BK22: 40 | BL22: 50 | BM22: 60 | BN22: 70 | BO22: 80 | BP22: 90 | BQ22: 100 | BR22: 110 | BS22: 120 | BT22: 40 | BU22: 50 | BV22: 60 | BW22: 70 | BX22: 80 | BY22: 90 | BZ22: 100 | CA22: 110 | CB22: 120
L23: W_Stream001 | M23: t | N23: °C | O23: temperature | P23: 160 | R23: 160 | S23: 160 | T23: 160 | U23: 160 | V23: 160 | W23: 160 | X23: 160 | Y23: 160 | Z23: 160 | AA23: 165 | AB23: 165 | AC23: 165 | AD23: 165 | AE23: 165 | AF23: 165 | AG23: 165 | AH23: 165 | AI23: 165 | AJ23: 170 | AK23: 170 | AL23: 170 | AM23: 170 | AN23: 170 | AO23: 170 | AP23: 170 | AQ23: 170 | AR23: 170 | AS23: 175 | AT23: 175 | AU23: 175 | AV23: 175 | AW23: 175 | AX23: 175 | AY23: 175 | AZ23: 175 | BA23: 175 | BB23: 180 | BC23: 180 | BD23: 180 | BE23: 180 | BF23: 180 | BG23: 180 | BH23: 180 | BI23: 180 | BJ23: 180 | BK23: 185 | BL23: 185 | BM23: 185 | BN23: 185 | BO23: 185 | BP23: 185 | BQ23: 185 | BR23: 185 | BS23: 185 | BT23: 190 | BU23: 190 | BV23: 190 | BW23: 190 | BX23: 190 | BY23: 190 | BZ23: 190 | CA23: 190 | CB23: 190
L24: O_Stream001 | M24: p | N24: bar | O24: pressure | P24: 5.87890625 | R24: 5.87890625 | S24: 5.87890625 | T24: 5.87890625 | U24: 5.87890625 | V24: 5.87890625 | W24: 5.87890625 | X24: 5.87890625 | Y24: 5.87890625 | Z24: 5.87890625 | AA24: 6.3125 | AB24: 6.3125 | AC24: 6.3125 | AD24: 6.31640625 | AE24: 6.31640625 | AF24: 6.31640625 | AG24: 6.31640625 | AH24: 6.31640625 | AI24: 6.31640625 | AJ24: 6.78125 | AK24: 6.78125 | AL24: 6.78125 | AM24: 6.78125 | AN24: 6.78125 | AO24: 6.78125 | AP24: 6.78125 | AQ24: 6.78125 | AR24: 6.78125 | AS24: 7.520996094 | AT24: 7.520996094 | AU24: 7.520996094 | AV24: 7.520996094 | AW24: 7.520996064 | AX24: 7.520996064 | AY24: 7.520996064 | AZ24: 7.520996064 | BA24: 7.520996064 | BB24: 7.520996094 | BC24: 7.520996094 | BD24: 7.520996094 | BE24: 7.520996064 | BF24: 7.520996064 | BG24: 7.520996064 | BH24: 7.520996064 | BI24: 7.520996064 | BJ24: 7.520996064 | BK24: 8.46875 | BL24: 8.46875 | BM24: 8.46875 | BN24: 8.46875 | BO24: 8.46875 | BP24: 8.46875 | BQ24: 8.46875 | BR24: 8.46875 | BS24: 8.46875 | BT24: 9.15625 | BU24: 9.15625 | BV24: 9.15625 | BW24: 9.15625 | BX24: 9.15625 | BY24: 9.15625 | BZ24: 9.15625 | CA24: 9.15625 | CB24: 9.15625
L25: O_Stream002 | M25: p | N25: bar | O25: pressure | P25: 0.817 | R25: 0.817 | S25: 0.817 | T25: 0.817 | U25: 0.817 | V25: 0.817 | W25: 0.817 | X25: 0.817 | Y25: 0.817 | Z25: 0.817 | AA25: 0.817 | AB25: 0.817 | AC25: 0.817 | AD25: 0.817 | AE25: 0.817 | AF25: 0.817 | AG25: 0.817 | AH25: 0.817 | AI25: 0.817 | AJ25: 0.817 | AK25: 0.817 | AL25: 0.817 | AM25: 0.817 | AN25: 0.817 | AO25: 0.817 | AP25: 0.817 | AQ25: 0.817 | AR25: 0.817 | AS25: 0.817 | AT25: 0.817 | AU25: 0.817 | AV25: 0.817 | AW25: 0.817 | AX25: 0.817 | AY25: 0.817 | AZ25: 0.817 | BA25: 0.817 | BB25: 0.817 | BC25: 0.817 | BD25: 0.817 | BE25: 0.817 | BF25: 0.817 | BG25: 0.817 | BH25: 0.817 | BI25: 0.817 | BJ25: 0.817 | BK25: 0.817 | BL25: 0.817 | BM25: 0.817 | BN25: 0.817 | BO25: 0.817 | BP25: 0.817 | BQ25: 0.817 | BR25: 0.817 | BS25: 0.817 | BT25: 0.817 | BU25: 0.817 | BV25: 0.817 | BW25: 0.817 | BX25: 0.817 | BY25: 0.817 | BZ25: 0.817 | CA25: 0.817 | CB25: 0.817
L26: PS Inputs End
L29: PS Outputs
L30: generator001 | M30: power | N30: kW | O30: electrical power output | P30: 1747.300813 | R30: 1747.300813 | S30: 2184.126017 | T30: 2620.95122 | U30: 3057.776423 | V30: 3494.601626 | W30: 3931.42683 | X30: 4368.252033 | Y30: 4805.077236 | Z30: 5241.90244 | AA30: 1909.722607 | AB30: 2387.153259 | AC30: 2864.58391 | AD30: 3341.877736 | AE30: 3819.288841 | AF30: 4296.699946 | AG30: 4774.111051 | AH30: 5251.522156 | AI30: 5728.933261 | AJ30: 2081.997256 | AK30: 2602.49657 | AL30: 3122.995883 | AM30: 3643.495197 | AN30: 4163.994511 | AO30: 4684.493825 | AP30: 5204.993139 | AQ30: 5725.492453 | AR30: 6245.991767 | AS30: 2265.775685 | AT30: 2832.219606 | AU30: 3398.663528 | AV30: 3965.107449 | AW30: 4531.55137 | AX30: 5097.995291 | AY30: 5664.439213 | AZ30: 6230.883134 | BA30: 6797.327055 | BB30: 2467.998399 | BC30: 3084.997999 | BD30: 3701.997599 | BE30: 4318.997199 | BF30: 4935.996799 | BG30: 5552.996398 | BH30: 6169.995998 | BI30: 6786.995598 | BJ30: 7403.995198 | BK30: 2664.928636 | BL30: 3331.160795 | BM30: 3997.392954 | BN30: 4663.625113 | BO30: 5329.857272 | BP30: 5996.089431 | BQ30: 6662.32159 | BR30: 7328.553749 | BS30: 7994.785908 | BT30: 2884.400491 | BU30: 3605.500613 | BV30: 4326.600736 | BW30: 5047.700858 | BX30: 5768.800981 | BY30: 6489.901104 | BZ30: 7211.001226 | CA30: 7932.101349 | CB30: 8653.201472
L31: motor001 | M31: power | N31: kW | O31: electrical power input | P31: 42.67740407 | R31: 42.67740407 | S31: 53.34675509 | T31: 64.01610611 | U31: 74.68545713 | V31: 85.35480815 | W31: 96.02415917 | X31: 106.6935102 | Y31: 117.3628612 | Z31: 128.0322122 | AA31: 48.69574336 | AB31: 60.8696792 | AC31: 73.04361503 | AD31: 85.24601763 | AE31: 97.42402015 | AF31: 109.6020227 | AG31: 121.7800252 | AH31: 133.9580277 | AI31: 146.1360302 | AJ31: 55.44963392 | AK31: 69.31204239 | AL31: 83.17445087 | AM31: 97.03685935 | AN31: 110.8992678 | AO31: 124.7616763 | AP31: 138.6240848 | AQ31: 152.4864933 | AR31: 166.3489017 | AS31: 64.12844384 | AT31: 80.1605548 | AU31: 96.19266576 | AV31: 112.2247767 | AW31: 128.2568877 | AX31: 144.2889986 | AY31: 160.3211096 | AZ31: 176.3532206 | BA31: 192.3853315 | BB31: 69.85197069 | BC31: 87.31496337 | BD31: 104.777956 | BE31: 122.2409487 | BF31: 139.7039414 | BG31: 157.1669341 | BH31: 174.6299267 | BI31: 192.0929194 | BJ31: 209.5559121 | BK31: 81.35618821 | BL31: 101.6952353 | BM31: 122.0342823 | BN31: 142.3733294 | BO31: 162.7123764 | BP31: 183.0514235 | BQ31: 203.3904705 | BR31: 223.7295176 | BS31: 244.0685646 | BT31: 92.44080604 | BU31: 115.5510076 | BV31: 138.6612091 | BW31: 161.7714106 | BX31: 184.8816121 | BY31: 207.9918136 | BZ31: 231.1020151 | CA31: 254.2122166 | CB31: 277.3224181
L32: motor002 | M32: power | N32: kW | O32: electrical power input | P32: 280.5063353 | R32: 280.5063353 | S32: 350.6329192 | T32: 420.759503 | U32: 490.8860869 | V32: 561.0126707 | W32: 631.1392545 | X32: 701.2658384 | Y32: 771.3924222 | Z32: 841.519006 | AA32: 296.7348738 | AB32: 370.9185922 | AC32: 445.1023107 | AD32: 519.1200493 | AE32: 593.2800563 | AF32: 667.4400633 | AG32: 741.6000704 | AH32: 815.7600774 | AI32: 889.9200844 | AJ32: 313.4035847 | AK32: 391.7544808 | AL32: 470.105377 | AM32: 548.4562732 | AN32: 626.8071693 | AO32: 705.1580655 | AP32: 783.5089617 | AQ32: 861.8598578 | AR32: 940.210754 | AS32: 325.476353 | AT32: 406.8454412 | AU32: 488.2145295 | AV32: 569.5836177 | AW32: 650.952706 | AX32: 732.3217942 | AY32: 813.6908825 | AZ32: 895.0599707 | BA32: 976.429059 | BB32: 354.5254385 | BC32: 443.1567981 | BD32: 531.7881577 | BE32: 620.4195173 | BF32: 709.0508769 | BG32: 797.6822365 | BH32: 886.3135962 | BI32: 974.9449558 | BJ32: 1063.576315 | BK32: 366.0090267 | BL32: 457.5112834 | BM32: 549.01354 | BN32: 640.5157967 | BO32: 732.0180534 | BP32: 823.52031 | BQ32: 915.0225667 | BR32: 1006.524823 | BS32: 1098.02708 | BT32: 384.4549916 | BU32: 480.5687395 | BV32: 576.6824874 | BW32: 672.7962353 | BX32: 768.9099832 | BY32: 865.0237311 | BZ32: 961.137479 | CA32: 1057.251227 | CB32: 1153.364975
L33: O_Turbine001 | M33: eta_s | N33: ---- | O33: isentropic efficiency | P33: 0.8 | R33: 0.8 | S33: 0.8 | T33: 0.8 | U33: 0.8 | V33: 0.8 | W33: 0.8 | X33: 0.8 | Y33: 0.8 | Z33: 0.8 | AA33: 0.8 | AB33: 0.8 | AC33: 0.8 | AD33: 0.8 | AE33: 0.8 | AF33: 0.8 | AG33: 0.8 | AH33: 0.8 | AI33: 0.8 | AJ33: 0.8 | AK33: 0.8 | AL33: 0.8 | AM33: 0.8 | AN33: 0.8 | AO33: 0.8 | AP33: 0.8 | AQ33: 0.8 | AR33: 0.8 | AS33: 0.8 | AT33: 0.8 | AU33: 0.8 | AV33: 0.8 | AW33: 0.8 | AX33: 0.8 | AY33: 0.8 | AZ33: 0.8 | BA33: 0.8 | BB33: 0.8 | BC33: 0.8 | BD33: 0.8 | BE33: 0.8 | BF33: 0.8 | BG33: 0.8 | BH33: 0.8 | BI33: 0.8 | BJ33: 0.8 | BK33: 0.8 | BL33: 0.8 | BM33: 0.8 | BN33: 0.8 | BO33: 0.8 | BP33: 0.8 | BQ33: 0.8 | BR33: 0.8 | BS33: 0.8 | BT33: 0.8 | BU33: 0.8 | BV33: 0.8 | BW33: 0.8 | BX33: 0.8 | BY33: 0.8 | BZ33: 0.8 | CA33: 0.8 | CB33: 0.8
L34: O_Turbine001 | M34: delta_hs | N34: kJ/kg | O34: isentropic enthalpy difference | P34: 73.42755823 | R34: 73.42755823 | S34: 73.42755823 | T34: 73.42755823 | U34: 73.42755823 | V34: 73.42755823 | W34: 73.42755823 | X34: 73.42755823 | Y34: 73.42755823 | Z34: 73.42755823 | AA34: 76.33567243 | AB34: 76.33567243 | AC34: 76.33567243 | AD34: 76.36109702 | AE34: 76.36109702 | AF34: 76.36109702 | AG34: 76.36109702 | AH34: 76.36109702 | AI34: 76.36109702 | AJ34: 79.29562517 | AK34: 79.29562517 | AL34: 79.29562517 | AM34: 79.29562517 | AN34: 79.29562517 | AO34: 79.29562517 | AP34: 79.29562517 | AQ34: 79.29562517 | AR34: 79.29562517 | AS34: 83.83661359 | AT34: 83.83661359 | AU34: 83.83661359 | AV34: 83.83661359 | AW34: 83.83661359 | AX34: 83.83661359 | AY34: 83.83661359 | AZ34: 83.83661359 | BA34: 83.83661359 | BB34: 83.83661359 | BC34: 83.83661359 | BD34: 83.83661359 | BE34: 83.83661359 | BF34: 83.83661359 | BG34: 83.83661359 | BH34: 83.83661359 | BI34: 83.83661359 | BJ34: 83.83661359 | BK34: 88.67357017 | BL34: 88.67357017 | BM34: 88.67357017 | BN34: 88.67357017 | BO34: 88.67357017 | BP34: 88.67357017 | BQ34: 88.67357017 | BR34: 88.67357017 | BS34: 88.67357017 | BT34: 92.03057283 | BU34: 92.03057283 | BV34: 92.03057283 | BW34: 92.03057283 | BX34: 92.03057283 | BY34: 92.03057283 | BZ34: 92.03057283 | CA34: 92.03057283 | CB34: 92.03057283
L35: W_O_Htex002 | M35: htc_area | N35: kW/K | O35: heat transfer coefficient x transfer area | P35: 334.9473437 | R35: 334.9473437 | S35: 418.6841796 | T35: 502.4210155 | U35: 586.1578514 | V35: 669.8946873 | W35: 753.6315233 | X35: 837.3683592 | Y35: 921.1051951 | Z35: 1004.842031 | AA35: 372.0475947 | AB35: 465.0594934 | AC35: 558.0713921 | AD35: 650.8406478 | AE35: 743.8178832 | AF35: 836.7951186 | AG35: 929.772354 | AH35: 1022.749589 | AI35: 1115.726825 | AJ35: 413.692657 | AK35: 517.1158213 | AL35: 620.5389856 | AM35: 723.9621498 | AN35: 827.3853141 | AO35: 930.8084783 | AP35: 1034.231643 | AQ35: 1137.654807 | AR35: 1241.077971 | AS35: 452.0231182 | AT35: 565.0288977 | AU35: 678.0346773 | AV35: 791.0404568 | AW35: 904.0462364 | AX35: 1017.052016 | AY35: 1130.057795 | AZ35: 1243.063575 | BA35: 1356.069355 | BB35: 527.5479417 | BC35: 659.4349271 | BD35: 791.3219125 | BE35: 923.2088979 | BF35: 1055.095883 | BG35: 1186.982869 | BH35: 1318.869854 | BI35: 1450.75684 | BJ35: 1582.643825 | BK35: 576.0626526 | BL35: 720.0783157 | BM35: 864.0939789 | BN35: 1008.109642 | BO35: 1152.125305 | BP35: 1296.140968 | BQ35: 1440.156631 | BR35: 1584.172295 | BS35: 1728.187958 | BT35: 648.0351256 | BU35: 810.043907 | BV35: 972.0526884 | BW35: 1134.06147 | BX35: 1296.070251 | BY35: 1458.079033 | BZ35: 1620.087814 | CA35: 1782.096595 | CB35: 1944.105377
L36: W_O_Htex002 | M36: MTD | N36: °C | O36: mean temperature difference | P36: 16.87039951 | R36: 16.87039951 | S36: 16.87039951 | T36: 16.87039951 | U36: 16.87039951 | V36: 16.87039951 | W36: 16.87039951 | X36: 16.87039951 | Y36: 16.87039951 | Z36: 16.87039951 | AA36: 16.70634677 | AB36: 16.70634677 | AC36: 16.70634677 | AD36: 16.71284162 | AE36: 16.71284162 | AF36: 16.71284162 | AG36: 16.71284162 | AH36: 16.71284162 | AI36: 16.71284162 | AJ36: 16.4907 | AK36: 16.4907 | AL36: 16.4907 | AM36: 16.4907 | AN36: 16.4907 | AO36: 16.4907 | AP36: 16.4907 | AQ36: 16.4907 | AR36: 16.4907 | AS36: 16.55355239 | AT36: 16.55355239 | AU36: 16.55355239 | AV36: 16.55355239 | AW36: 16.55355239 | AX36: 16.55355239 | AY36: 16.55355239 | AZ36: 16.55355239 | BA36: 16.55355239 | BB36: 15.4496229 | BC36: 15.4496229 | BD36: 15.4496229 | BE36: 15.4496229 | BF36: 15.4496229 | BG36: 15.4496229 | BH36: 15.4496229 | BI36: 15.4496229 | BJ36: 15.4496229 | BK36: 15.5100183 | BL36: 15.5100183 | BM36: 15.5100183 | BN36: 15.5100183 | BO36: 15.5100183 | BP36: 15.5100183 | BQ36: 15.5100183 | BR36: 15.5100183 | BS36: 15.5100183 | BT36: 15.0552375 | BU36: 15.0552375 | BV36: 15.0552375 | BW36: 15.0552375 | BX36: 15.0552375 | BY36: 15.0552375 | BZ36: 15.0552375 | CA36: 15.0552375 | CB36: 15.0552375
L37: W_O_Htex002 | M37: q_trans | N37: kW | O37: transferred heat | P37: 5650.695504 | R37: 5650.695504 | S37: 7063.369379 | T37: 8476.043255 | U37: 9888.717131 | V37: 11301.39101 | W37: 12714.06488 | X37: 14126.73876 | Y37: 15539.41263 | Z37: 16952.08651 | AA37: 6215.556131 | AB37: 7769.445164 | AC37: 9323.334197 | AD37: 10877.39666 | AE37: 12431.31047 | AF37: 13985.22428 | AG37: 15539.13809 | AH37: 17093.0519 | AI37: 18646.96571 | AJ37: 6822.081499 | AK37: 8527.601874 | AL37: 10233.12225 | AM37: 11938.64262 | AN37: 13644.163 | AO37: 15349.68337 | AP37: 17055.20375 | AQ37: 18760.72412 | AR37: 20466.2445 | AS37: 7482.58837 | AT37: 9353.235462 | AU37: 11223.88255 | AV37: 13094.52965 | AW37: 14965.17674 | AX37: 16835.82383 | AY37: 18706.47092 | AZ37: 20577.11802 | BA37: 22447.76511 | BB37: 8150.416761 | BC37: 10188.02095 | BD37: 12225.62514 | BE37: 14263.22933 | BF37: 16300.83352 | BG37: 18338.43771 | BH37: 20376.0419 | BI37: 22413.64609 | BJ37: 24451.25028 | BK37: 8934.742283 | BL37: 11168.42785 | BM37: 13402.11342 | BN37: 15635.799 | BO37: 17869.48457 | BP37: 20103.17014 | BQ37: 22336.85571 | BR37: 24570.54128 | BS37: 26804.22685 | BT37: 9756.322723 | BU37: 12195.4034 | BV37: 14634.48408 | BW37: 17073.56477 | BX37: 19512.64545 | BY37: 21951.72613 | BZ37: 24390.80681 | CA37: 26829.88749 | CB37: 29268.96817
L38: W_O_Htex001 | M38: htc_area | N38: kW/K | O38: heat transfer coefficient x transfer area | P38: 413.5988207 | R38: 413.5988207 | S38: 516.9985259 | T38: 620.3982311 | U38: 723.7979362 | V38: 827.1976414 | W38: 930.5973466 | X38: 1033.997052 | Y38: 1137.396757 | Z38: 1240.796462 | AA38: 420.0059618 | AB38: 525.0074522 | AC38: 630.0089427 | AD38: 734.8826438 | AE38: 839.8658786 | AF38: 944.8491135 | AG38: 1049.832348 | AH38: 1154.815583 | AI38: 1259.798818 | AJ38: 426.0538736 | AK38: 532.5673419 | AL38: 639.0808103 | AM38: 745.5942787 | AN38: 852.1077471 | AO38: 958.6212155 | AP38: 1065.134684 | AQ38: 1171.648152 | AR38: 1278.161621 | AS38: 428.0792038 | AT38: 535.0990048 | AU38: 642.1188057 | AV38: 749.1386067 | AW38: 856.1584076 | AX38: 963.1782086 | AY38: 1070.19801 | AZ38: 1177.21781 | BA38: 1284.237611 | BB38: 441.805455 | BC38: 552.2568188 | BD38: 662.7081825 | BE38: 773.1595463 | BF38: 883.61091 | BG38: 994.0622738 | BH38: 1104.513638 | BI38: 1214.965001 | BJ38: 1325.416365 | BK38: 441.8142776 | BL38: 552.267847 | BM38: 662.7214164 | BN38: 773.1749858 | BO38: 883.6285552 | BP38: 994.0821245 | BQ38: 1104.535694 | BR38: 1214.989263 | BS38: 1325.442833 | BT38: 446.1829034 | BU38: 557.7286293 | BV38: 669.2743551 | BW38: 780.820081 | BX38: 892.3658068 | BY38: 1003.911533 | BZ38: 1115.457259 | CA38: 1227.002984 | CB38: 1338.54871
L39: W_O_Htex001 | M39: MTD | N39: °C | O39: mean temperature difference | P39: 21.94460789 | R39: 21.94460789 | S39: 21.94460789 | T39: 21.94460789 | U39: 21.94460789 | V39: 21.94460789 | W39: 21.94460789 | X39: 21.94460789 | Y39: 21.94460789 | Z39: 21.94460789 | AA39: 22.43829374 | AB39: 22.43829374 | AC39: 22.43829374 | AD39: 22.43130951 | AE39: 22.43130951 | AF39: 22.43130951 | AG39: 22.43130951 | AH39: 22.43130951 | AI39: 22.43130951 | AJ39: 22.90893743 | AK39: 22.90893743 | AL39: 22.90893743 | AM39: 22.90893743 | AN39: 22.90893743 | AO39: 22.90893743 | AP39: 22.90893743 | AQ39: 22.90893743 | AR39: 22.90893743 | AS39: 22.98852658 | AT39: 22.98852658 | AU39: 22.98852658 | AV39: 22.98852658 | AW39: 22.98852658 | AX39: 22.98852658 | AY39: 22.98852658 | AZ39: 22.98852658 | BA39: 22.98852658 | BB39: 24.26231041 | BC39: 24.26231041 | BD39: 24.26231041 | BE39: 24.26231041 | BF39: 24.26231041 | BG39: 24.26231041 | BH39: 24.26231041 | BI39: 24.26231041 | BJ39: 24.26231041 | BK39: 24.12763616 | BL39: 24.12763616 | BM39: 24.12763616 | BN39: 24.12763616 | BO39: 24.12763616 | BP39: 24.12763616 | BQ39: 24.12763616 | BR39: 24.12763616 | BS39: 24.12763616 | BT39: 24.44853474 | BU39: 24.44853474 | BV39: 24.44853474 | BW39: 24.44853474 | BX39: 24.44853474 | BY39: 24.44853474 | BZ39: 24.44853474 | CA39: 24.44853474 | CB39: 24.44853474
L40: W_O_Htex001 | M40: q_trans | N40: kW | O40: transferred heat | P40: 9076.263946 | R40: 9076.263946 | S40: 11345.32993 | T40: 13614.39592 | U40: 15883.46191 | V40: 18152.52789 | W40: 20421.59388 | X40: 22690.65987 | Y40: 24959.72585 | Z40: 27228.79184 | AA40: 9424.217142 | AB40: 11780.27143 | AC40: 14136.32571 | AD40: 16484.38003 | AE40: 18839.29147 | AF40: 21194.2029 | AG40: 23549.11433 | AH40: 25904.02577 | AI40: 28258.9372 | AJ40: 9760.441532 | AK40: 12200.55192 | AL40: 14640.6623 | AM40: 17080.77268 | AN40: 19520.88306 | AO40: 21960.99345 | AP40: 24401.10383 | AQ40: 26841.21421 | AR40: 29281.3246 | AS40: 9840.910154 | AT40: 12301.13769 | AU40: 14761.36523 | AV40: 17221.59277 | AW40: 19681.82031 | AX40: 22142.04785 | AY40: 24602.27538 | AZ40: 27062.50292 | BA40: 29522.73046 | BB40: 10719.22109 | BC40: 13399.02636 | BD40: 16078.83163 | BE40: 18758.63691 | BF40: 21438.44218 | BG40: 24118.24745 | BH40: 26798.05272 | BI40: 29477.858 | BJ40: 32157.66327 | BK40: 10659.93414 | BL40: 13324.91768 | BM40: 15989.90121 | BN40: 18654.88475 | BO40: 21319.86828 | BP40: 23984.85182 | BQ40: 26649.83535 | BR40: 29314.81889 | BS40: 31979.80242 | BT40: 10908.51822 | BU40: 13635.64777 | BV40: 16362.77732 | BW40: 19089.90688 | BX40: 21817.03643 | BY40: 24544.16599 | BZ40: 27271.29554 | CA40: 29998.42509 | CB40: 32725.55465
L41: O_Xprescription003 | M41: x | N41: --- | O41: vapor quality | P41: 1.150156318 | R41: 1.150156318 | S41: 1.150156318 | T41: 1.150156318 | U41: 1.150156318 | V41: 1.150156318 | W41: 1.150156318 | X41: 1.150156318 | Y41: 1.150156318 | Z41: 1.150156318 | AA41: 1.157324931 | AB41: 1.157324931 | AC41: 1.157324931 | AD41: 1.157387894 | AE41: 1.157387894 | AF41: 1.157387894 | AG41: 1.157387894 | AH41: 1.157387894 | AI41: 1.157387894 | AJ41: 1.164687158 | AK41: 1.164687158 | AL41: 1.164687158 | AM41: 1.164687158 | AN41: 1.164687158 | AO41: 1.164687158 | AP41: 1.164687158 | AQ41: 1.164687158 | AR41: 1.164687158 | AS41: 1.175119333 | AT41: 1.175119333 | AU41: 1.175119333 | AV41: 1.175119333 | AW41: 1.175119333 | AX41: 1.175119333 | AY41: 1.175119333 | AZ41: 1.175119333 | BA41: 1.175119333 | BB41: 1.175119333 | BC41: 1.175119333 | BD41: 1.175119333 | BE41: 1.175119333 | BF41: 1.175119333 | BG41: 1.175119333 | BH41: 1.175119333 | BI41: 1.175119333 | BJ41: 1.175119333 | BK41: 1.188387064 | BL41: 1.188387064 | BM41: 1.188387064 | BN41: 1.188387064 | BO41: 1.188387064 | BP41: 1.188387064 | BQ41: 1.188387064 | BR41: 1.188387064 | BS41: 1.188387064 | BT41: 1.196980504 | BU41: 1.196980504 | BV41: 1.196980504 | BW41: 1.196980504 | BX41: 1.196980504 | BY41: 1.196980504 | BZ41: 1.196980504 | CA41: 1.196980504 | CB41: 1.196980504
L42: O_Condenser_a001 | M42: htc_area | N42: kW/K | O42: heat transfer coefficient x heat transfer area | P42: 1235.144138 | R42: 1235.144138 | S42: 1543.930172 | T42: 1852.716207 | U42: 2161.502241 | V42: 2470.288276 | W42: 2779.07431 | X42: 3087.860345 | Y42: 3396.646379 | Z42: 3705.432413 | AA42: 1295.08675 | AB42: 1618.858437 | AC42: 1942.630125 | AD42: 2265.516719 | AE42: 2589.161964 | AF42: 2912.80721 | AG42: 3236.452455 | AH42: 3560.097701 | AI42: 3883.742946 | AJ42: 1357.486535 | AK42: 1696.858169 | AL42: 2036.229803 | AM42: 2375.601437 | AN42: 2714.973071 | AO42: 3054.344704 | AP42: 3393.716338 | AQ42: 3733.087972 | AR42: 4072.459606 | AS42: 1397.55842 | AT42: 1746.948024 | AU42: 2096.337629 | AV42: 2445.727234 | AW42: 2795.116839 | AX42: 3144.506444 | AY42: 3493.896049 | AZ42: 3843.285654 | BA42: 4192.675259 | BB42: 1522.291887 | BC42: 1902.864858 | BD42: 2283.43783 | BE42: 2664.010802 | BF42: 3044.583773 | BG42: 3425.156745 | BH42: 3805.729717 | BI42: 4186.302688 | BJ42: 4566.87566 | BK42: 1558.505022 | BL42: 1948.131278 | BM42: 2337.757533 | BN42: 2727.383789 | BO42: 3117.010044 | BP42: 3506.6363 | BQ42: 3896.262555 | BR42: 4285.888811 | BS42: 4675.515066 | BT42: 1630.286246 | BU42: 2037.857807 | BV42: 2445.429368 | BW42: 2853.00093 | BX42: 3260.572491 | BY42: 3668.144053 | BZ42: 4075.715614 | CA42: 4483.287175 | CB42: 4890.858737
L43: O_Condenser_a001 | M43: MTD | N43: °C | O43: mean temperature difference | P43: 10.48015429 | R43: 10.48015429 | S43: 10.48015429 | T43: 10.48015429 | U43: 10.48015429 | V43: 10.48015429 | W43: 10.48015429 | X43: 10.48015429 | Y43: 10.48015429 | Z43: 10.48015429 | AA43: 10.57334427 | AB43: 10.57334427 | AC43: 10.57334427 | AD43: 10.57409419 | AE43: 10.57409419 | AF43: 10.57409419 | AG43: 10.57409419 | AH43: 10.57409419 | AI43: 10.57409419 | AJ43: 10.65396026 | AK43: 10.65396026 | AL43: 10.65396026 | AM43: 10.65396026 | AN43: 10.65396026 | AO43: 10.65396026 | AP43: 10.65396026 | AQ43: 10.65396026 | AR43: 10.65396026 | AS43: 10.74712039 | AT43: 10.74712039 | AU43: 10.74712039 | AV43: 10.74712039 | AW43: 10.74712039 | AX43: 10.74712039 | AY43: 10.74712039 | AZ43: 10.74712039 | BA43: 10.74712039 | BB43: 10.74712039 | BC43: 10.74712039 | BD43: 10.74712039 | BE43: 10.74712039 | BF43: 10.74712039 | BG43: 10.74712039 | BH43: 10.74712039 | BI43: 10.74712039 | BJ43: 10.74712039 | BK43: 10.83742822 | BL43: 10.83742822 | BM43: 10.83742822 | BN43: 10.83742822 | BO43: 10.83742822 | BP43: 10.83742822 | BQ43: 10.83742822 | BR43: 10.83742822 | BS43: 10.83742822 | BT43: 10.88238993 | BU43: 10.88238993 | BV43: 10.88238993 | BW43: 10.88238993 | BX43: 10.88238993 | BY43: 10.88238993 | BZ43: 10.88238993 | CA43: 10.88238993 | CB43: 10.88238993
L44: O_Condenser_a001 | M44: q_trans | N44: kW | O44: transferred heat | P44: 12944.50114 | R44: 12944.50114 | S44: 16180.62642 | T44: 19416.75171 | U44: 22652.87699 | V44: 25889.00228 | W44: 29125.12756 | X44: 32361.25285 | Y44: 35597.37813 | Z44: 38833.50341 | AA44: 13693.39807 | AB44: 17116.74759 | AC44: 20540.09711 | AD44: 23955.78717 | AE44: 27378.04248 | AF44: 30800.29779 | AG44: 34222.5531 | AH44: 37644.80841 | AI44: 41067.06371 | AJ44: 14462.6076 | AK44: 18078.2595 | AL44: 21693.91141 | AM44: 25309.56331 | AN44: 28925.21521 | AO44: 32540.86711 | AP44: 36156.51901 | AQ44: 39772.17091 | AR44: 43387.82281 | AS44: 15019.72858 | AT44: 18774.66072 | AU44: 22529.59287 | AV44: 26284.52501 | AW44: 30039.45716 | AX44: 33794.3893 | AY44: 37549.32145 | AZ44: 41304.25359 | BA44: 45059.18574 | BB44: 16360.25417 | BC44: 20450.31771 | BD44: 24540.38125 | BE44: 28630.44479 | BF44: 32720.50833 | BG44: 36810.57188 | BH44: 40900.63542 | BI44: 44990.69896 | BJ44: 49080.7625 | BK44: 16890.1863 | BL44: 21112.73288 | BM44: 25335.27945 | BN44: 29557.82603 | BO44: 33780.3726 | BP44: 38002.91918 | BQ44: 42225.46575 | BR44: 46448.01233 | BS44: 50670.5589 | BT44: 17741.41062 | BU44: 22176.76327 | BV44: 26612.11593 | BW44: 31047.46858 | BX44: 35482.82124 | BY44: 39918.17389 | BZ44: 44353.52655 | CA44: 48788.8792 | CB44: 53224.23186
L45: G_Stream001 | M45: mass | N45: kg/s | O45: mass flow | P45: 1320.579826 | R45: 1320.579826 | S45: 1650.724782 | T45: 1980.869739 | U45: 2311.014695 | V45: 2641.159652 | W45: 2971.304608 | X45: 3301.449565 | Y45: 3631.594521 | Z45: 3961.739477 | AA45: 1396.981239 | AB45: 1746.226549 | AC45: 2095.471859 | AD45: 2443.935761 | AE45: 2793.069442 | AF45: 3142.203122 | AG45: 3491.336802 | AH45: 3840.470482 | AI45: 4189.604162 | AJ45: 1475.454915 | AK45: 1844.318644 | AL45: 2213.182373 | AM45: 2582.046102 | AN45: 2950.909831 | AO45: 3319.773559 | AP45: 3688.637288 | AQ45: 4057.501017 | AR45: 4426.364746 | AS45: 1532.291615 | AT45: 1915.364518 | AU45: 2298.437422 | AV45: 2681.510326 | AW45: 3064.58323 | AX45: 3447.656133 | AY45: 3830.729037 | AZ45: 4213.801941 | BA45: 4596.874844 | BB45: 1669.050152 | BC45: 2086.312691 | BD45: 2503.575229 | BE45: 2920.837767 | BF45: 3338.100305 | BG45: 3755.362843 | BH45: 4172.625381 | BI45: 4589.887919 | BJ45: 5007.150457 | BK45: 1723.113084 | BL45: 2153.891356 | BM45: 2584.669627 | BN45: 3015.447898 | BO45: 3446.226169 | BP45: 3877.00444 | BQ45: 4307.782711 | BR45: 4738.560982 | BS45: 5169.339253 | BT45: 1809.953794 | BU45: 2262.442242 | BV45: 2714.930691 | BW45: 3167.419139 | BX45: 3619.907588 | BY45: 4072.396036 | BZ45: 4524.884485 | CA45: 4977.372933 | CB45: 5429.861381
L46: O_Stream001 | M46: mass | N46: kg/s | O46: mass flow | P46: 30.97180058 | R46: 30.97180058 | S46: 38.71475073 | T46: 46.45770087 | U46: 54.20065102 | V46: 61.94360116 | W46: 69.68655131 | X46: 77.42950145 | Y46: 85.1724516 | Z46: 92.91540174 | AA46: 32.561216 | AB46: 40.70152 | AC46: 48.841824 | AD46: 56.96082353 | AE46: 65.09808404 | AF46: 73.23534454 | AG46: 81.37260505 | AH46: 89.50986555 | AI46: 97.64712606 | AJ46: 34.17344696 | AK46: 42.7168087 | AL46: 51.26017044 | AM46: 59.80353219 | AN46: 68.34689393 | AO46: 76.89025567 | AP46: 85.43361741 | AQ46: 93.97697915 | AR46: 102.5203409 | AS46: 35.17556209 | AT46: 43.96945261 | AU46: 52.76334313 | AV46: 61.55723365 | AW46: 70.35112418 | AX46: 79.1450147 | AY46: 87.93890522 | AZ46: 96.73279574 | BA46: 105.5266863 | BB46: 38.31501569 | BC46: 47.89376962 | BD46: 57.47252354 | BE46: 67.05127746 | BF46: 76.63003138 | BG46: 86.20878531 | BH46: 95.78753923 | BI46: 105.3662932 | BJ46: 114.9450471 | BK46: 39.11553285 | BL46: 48.89441607 | BM46: 58.67329928 | BN46: 68.45218249 | BO46: 78.23106571 | BP46: 88.00994892 | BQ46: 97.78883213 | BR46: 107.5677153 | BS46: 117.3465986 | BT46: 40.79259157 | BU46: 50.99073947 | BV46: 61.18888736 | BW46: 71.38703525 | BX46: 81.58518315 | BY46: 91.78333104 | BZ46: 101.9814789 | CA46: 112.1796268 | CB46: 122.3777747
L47: PS Outputs End
O50: Net Power | P50: =P30-P31-P32 -> 1424.117074 | R50: 1424.117074 | S50: 1780.146342 | T50: 2136.175611 | U50: 2492.204879 | V50: 2848.234148 | W50: 3204.263416 | X50: 3560.292685 | Y50: 3916.321953 | Z50: 4272.351221 | AA50: 1564.29199 | AB50: 1955.364987 | AC50: 2346.437985 | AD50: 2737.511669 | AE50: 3128.584764 | AF50: 3519.65786 | AG50: 3910.730955 | AH50: 4301.804051 | AI50: 4692.877147 | AJ50: 1713.144037 | AK50: 2141.430046 | AL50: 2569.716056 | AM50: 2998.002065 | AN50: 3426.288074 | AO50: 3854.574083 | AP50: 4282.860093 | AQ50: 4711.146102 | AR50: 5139.432111 | AS50: 1876.170888 | AT50: 2345.21361 | AU50: 2814.256332 | AV50: 3283.299054 | AW50: 3752.341776 | AX50: 4221.384498 | AY50: 4690.42722 | AZ50: 5159.469943 | BA50: 5628.512665 | BB50: 2043.62099 | BC50: 2554.526238 | BD50: 3065.431485 | BE50: 3576.336733 | BF50: 4087.24198 | BG50: 4598.147228 | BH50: 5109.052475 | BI50: 5619.957723 | BJ50: 6130.86297 | BK50: 2217.563421 | BL50: 2771.954276 | BM50: 3326.345132 | BN50: 3880.735987 | BO50: 4435.126842 | BP50: 4989.517697 | BQ50: 5543.908553 | BR50: 6098.299408 | BS50: 6652.690263 | BT50: 2407.504693 | BU50: 3009.380866 | BV50: 3611.257039 | BW50: 4213.133213 | BX50: 4815.009386 | BY50: 5416.885559 | BZ50: 6018.761732 | CA50: 6620.637905 | CB50: 7222.514079
M51: Min Mass Flow | N51: 120 | P51: 2 | R51: 2 | S51: 2 | T51: 2 | U51: 2 | V51: 2 | W51: 2 | X51: 2 | Y51: 2 | Z51: 2 | AA51: 2 | AB51: 2 | AC51: 2 | AD51: 2 | AE51: 2 | AF51: 2 | AG51: 2 | AH51: 2 | AI51: 2 | AJ51: 2 | AK51: 2 | AL51: 2 | AM51: 2 | AN51: 2 | AO51: 2 | AP51: 2 | AQ51: 2 | AR51: 2 | AS51: 2 | AT51: 2 | AU51: 2 | AV51: 2 | AW51: 2 | AX51: 2 | AY51: 2 | AZ51: 2 | BA51: 2 | BB51: 2 | BC51: 2 | BD51: 2 | BE51: 2 | BF51: 2 | BG51: 2 | BH51: 2 | BI51: 2 | BJ51: 2 | BK51: 2 | BL51: 2 | BM51: 2 | BN51: 2 | BO51: 2 | BP51: 2 | BQ51: 2 | BR51: 2 | BS51: 2 | BT51: 2 | BU51: 2 | BV51: 2 | BW51: 2 | BX51: 2 | BY51: 2 | BZ51: 2 | CA51: 2 | CB51: 2
M52: Max Mass Flow | N52: 40 | O52: Actual Plant Efficiency (w-hr/lb) | P52: =P50*1000/(P22*2.20462*3600) -> 4.485898659 | R52: =R50*1000/(R22*2.20462*3600) -> 4.485898659 | S52: =S50*1000/(S22*2.20462*3600) -> 4.485898659 | T52: 4.485898659 | U52: 4.485898659 | V52: 4.485898659 | W52: 4.485898659 | X52: 4.485898659 | Y52: 4.485898659 | Z52: 4.485898659 | AA52: 4.927442742 | AB52: 4.927442742 | AC52: 4.927442742 | AD52: 4.927443978 | AE52: 4.927443978 | AF52: 4.927443978 | AG52: 4.927443978 | AH52: 4.927443978 | AI52: 4.927443978 | AJ52: 5.396319361 | AK52: 5.396319361 | AL52: 5.396319361 | AM52: 5.396319361 | AN52: 5.396319361 | AO52: 5.396319361 | AP52: 5.396319361 | AQ52: 5.396319361 | AR52: 5.396319361 | AS52: 5.909845915 | AT52: 5.909845915 | AU52: 5.909845915 | AV52: 5.909845915 | AW52: 5.909845915 | AX52: 5.909845915 | AY52: 5.909845915 | AZ52: =AZ50*1000/(AZ22*2.20462*3600) -> 5.909845915 | BA52: =BA50*1000/(BA22*2.20462*3600) -> 5.909845915 | BB52: 6.437305491 | BC52: 6.437305491 | BD52: 6.437305491 | BE52: 6.437305491 | BF52: 6.437305491 | BG52: 6.437305491 | BH52: 6.437305491 | BI52: 6.437305491 | BJ52: 6.437305491 | BK52: 6.985215583 | BL52: 6.985215583 | BM52: 6.985215583 | BN52: 6.985215583 | BO52: =BO50*1000/(BO22*2.20462*3600) -> 6.985215583 | BP52: 6.985215583 | BQ52: 6.985215583 | BR52: 6.985215583 | BS52: 6.985215583 | BT52: 7.583521237 | BU52: 7.583521237 | BV52: 7.583521237 | BW52: 7.583521237 | BX52: 7.583521237 | BY52: 7.583521237 | BZ52: 7.583521237 | CA52: 7.583521237 | CB52: 7.583521237
M53: Mass Flow Step | N53: -10 | O53: Actual Plant Efficiency (kW/kg/s) | P53: =P50/P22 -> 35.60292685 | R53: =R50/R22 -> 35.60292685 | S53: 35.60292685 | T53: 35.60292685 | U53: 35.60292685 | V53: 35.60292685 | W53: 35.60292685 | X53: 35.60292685 | Y53: 35.60292685 | Z53: 35.60292685 | AA53: 39.10729974 | AB53: 39.10729974 | AC53: 39.10729974 | AD53: 39.10730955 | AE53: 39.10730955 | AF53: 39.10730955 | AG53: 39.10730955 | AH53: 39.10730955 | AI53: 39.10730955 | AJ53: 42.82860093 | AK53: 42.82860093 | AL53: 42.82860093 | AM53: 42.82860093 | AN53: 42.82860093 | AO53: 42.82860093 | AP53: 42.82860093 | AQ53: 42.82860093 | AR53: 42.82860093 | AS53: 46.9042722 | AT53: 46.9042722 | AU53: 46.9042722 | AV53: 46.9042722 | AW53: 46.9042722 | AX53: 46.9042722 | AY53: 46.9042722 | AZ53: =AZ50/AZ22 -> 46.9042722 | BA53: =BA50/BA22 -> 46.9042722 | BB53: 51.09052475 | BC53: 51.09052475 | BD53: 51.09052475 | BE53: 51.09052475 | BF53: 51.09052475 | BG53: 51.09052475 | BH53: 51.09052475 | BI53: 51.09052475 | BJ53: 51.09052475 | BK53: 55.43908553 | BL53: 55.43908553 | BM53: 55.43908553 | BN53: 55.43908553 | BO53: =BO50/BO22 -> 55.43908553 | BP53: 55.43908553 | BQ53: 55.43908553 | BR53: 55.43908553 | BS53: 55.43908553 | BT53: 60.18761732 | BU53: 60.18761732 | BV53: 60.18761732 | BW53: 60.18761732 | BX53: 60.18761732 | BY53: 60.18761732 | BZ53: 60.18761732 | CA53: 60.18761732 | CB53: 60.18761732
O54: 1st Law Efficiency (%) | P54: =P50/(P37+P40) -> 0.09670136451 | R54: =R50/(R37+R40) -> 0.09670136451 | S54: 0.09670136451 | T54: 0.09670136451 | U54: 0.09670136451 | V54: 0.09670136451 | W54: 0.09670136451 | X54: 0.09670136451 | Y54: 0.09670136451 | Z54: 0.09670136451 | AA54: 0.1000201194 | AB54: 0.1000201194 | AC54: 0.1000201194 | AD54: 0.1000487541 | AE54: 0.1000487541 | AF54: 0.1000487541 | AG54: 0.1000487541 | AH54: 0.1000487541 | AI54: 0.1000487541 | AJ54: 0.1033102161 | AK54: 0.1033102161 | AL54: 0.1033102161 | AM54: 0.1033102161 | AN54: 0.1033102161 | AO54: 0.1033102161 | AP54: 0.1033102161 | AQ54: 0.1033102161 | AR54: 0.1033102161 | AS54: 0.108302078 | AT54: 0.108302078 | AU54: 0.108302078 | AV54: 0.108302078 | AW54: 0.108302078 | AX54: 0.108302078 | AY54: 0.108302078 | AZ54: =AZ50/(AZ37+AZ40) -> 0.108302078 | BA54: =BA50/(BA37+BA40) -> 0.108302078 | BB54: 0.108302078 | BC54: 0.108302078 | BD54: 0.108302078 | BE54: 0.108302078 | BF54: 0.108302078 | BG54: 0.108302078 | BH54: 0.108302078 | BI54: 0.108302078 | BJ54: 0.108302078 | BK54: 0.1131717296 | BL54: 0.1131717296 | BM54: 0.1131717296 | BN54: 0.1131717296 | BO54: =BO50/(BO37+BO40) -> 0.1131717296 | BP54: 0.1131717296 | BQ54: 0.1131717296 | BR54: 0.1131717296 | BS54: 0.1131717296 | BT54: 0.1165024546 | BU54: 0.1165024546 | BV54: 0.1165024546 | BW54: 0.1165024546 | BX54: 0.1165024546 | BY54: 0.1165024546 | BZ54: 0.1165024546 | CA54: 0.1165024546 | CB54: 0.1165024546
M55: Min Temp | N55: 190
M56: Max Temp | N56: 160
M57: Temp Step | N57: -5
Q58: Temp | R58: 160 | S58: 160 | T58: 160 | U58: 160 | V58: 160 | W58: 160 | X58: 160 | Y58: 160 | Z58: 160 | AA58: 165 | AB58: 165 | AC58: 165 | AD58: 165 | AE58: 165 | AF58: 165 | AG58: 165 | AH58: 165 | AI58: 165 | AJ58: 170 | AK58: 170 | AL58: 170 | AM58: 170 | AN58: 170 | AO58: 170 | AP58: 170 | AQ58: 170 | AR58: 170 | AS58: 175 | AT58: 175 | AU58: 175 | AV58: 175 | AW58: 175 | AX58: 175 | AY58: 175 | AZ58: 175 | BA58: 175 | BB58: 180 | BC58: 180 | BD58: 180 | BE58: 180 | BF58: 180 | BG58: 180 | BH58: 180 | BI58: 180 | BJ58: 180 | BK58: 185 | BL58: 185 | BM58: 185 | BN58: 185 | BO58: 185 | BP58: 185 | BQ58: 185 | BR58: 185 | BS58: 185 | BT58: 190 | BU58: 190 | BV58: 190 | BW58: 190 | BX58: 190 | BY58: 190 | BZ58: 190 | CA58: 190 | CB58: 190
Q59: Net Power (kW) | R59: 1424.117074 | S59: 1780.146342 | T59: 2136.175611 | U59: 2492.204879 | V59: 2848.234148 | W59: 3204.263416 | X59: 3560.292685 | Y59: 3916.321953 | Z59: 4272.351221 | AA59: 1564.29199 | AB59: 1955.364987 | AC59: 2346.437985 | AD59: 2737.511669 | AE59: 3128.584764 | AF59: 3519.65786 | AG59: 3910.730955 | AH59: 4301.804051 | AI59: 4692.877147 | AJ59: 1713.144037 | AK59: 2141.430046 | AL59: 2569.716056 | AM59: 2998.002065 | AN59: 3426.288074 | AO59: 3854.574083 | AP59: 4282.860093 | AQ59: 4711.146102 | AR59: 5139.432111 | AS59: 1876.170888 | AT59: 2345.21361 | AU59: 2814.256332 | AV59: 3283.299054 | AW59: 3752.341776 | AX59: 4221.384498 | AY59: 4690.42722 | AZ59: 5159.469943 | BA59: 5628.512665 | BB59: 2043.62099 | BC59: 2554.526238 | BD59: 3065.431485 | BE59: 3576.336733 | BF59: 4087.24198 | BG59: 4598.147228 | BH59: 5109.052475 | BI59: 5619.957723 | BJ59: 6130.86297 | BK59: 2217.563421 | BL59: 2771.954276 | BM59: 3326.345132 | BN59: 3880.735987 | BO59: 4435.126842 | BP59: 4989.517697 | BQ59: 5543.908553 | BR59: 6098.299408 | BS59: 6652.690263 | BT59: 2407.504693 | BU59: 3009.380866 | BV59: 3611.257039 | BW59: 4213.133213 | BX59: 4815.009386 | BY59: 5416.885559 | BZ59: 6018.761732 | CA59: 6620.637905 | CB59: 7222.514079
Q60: Actual Plant Efficiency (w-hr/lb) | R60: 4.485898659 | S60: 4.485898659 | T60: 4.485898659 | U60: 4.485898659 | V60: 4.485898659 | W60: 4.485898659 | X60: 4.485898659 | Y60: 4.485898659 | Z60: 4.485898659 | AA60: 4.927442742 | AB60: 4.927442742 | AC60: 4.927442742 | AD60: 4.927443978 | AE60: 4.927443978 | AF60: 4.927443978 | AG60: 4.927443978 | AH60: 4.927443978 | AI60: 4.927443978 | AJ60: 5.396319361 | AK60: 5.396319361 | AL60: 5.396319361 | AM60: 5.396319361 | AN60: 5.396319361 | AO60: 5.396319361 | AP60: 5.396319361 | AQ60: 5.396319361 | AR60: 5.396319361 | AS60: 5.909845915 | AT60: 5.909845915 | AU60: 5.909845915 | AV60: 5.909845915 | AW60: 5.909845915 | AX60: 5.909845915 | AY60: 5.909845915 | AZ60: 5.909845915 | BA60: 5.909845915 | BB60: 6.437305491 | BC60: 6.437305491 | BD60: 6.437305491 | BE60: 6.437305491 | BF60: 6.437305491 | BG60: 6.437305491 | BH60: 6.437305491 | BI60: 6.437305491 | BJ60: 6.437305491 | BK60: 6.985215583 | BL60: 6.985215583 | BM60: 6.985215583 | BN60: 6.985215583 | BO60: 6.985215583 | BP60: 6.985215583 | BQ60: 6.985215583 | BR60: 6.985215583 | BS60: 6.985215583 | BT60: 7.583521237 | BU60: 7.583521237 | BV60: 7.583521237 | BW60: 7.583521237 | BX60: 7.583521237 | BY60: 7.583521237 | BZ60: 7.583521237 | CA60: 7.583521237 | CB60: 7.583521237
P61: Estimated Nameplate | Q61: kW | R61: 1666.850125 | S61: 2083.562656 | T61: 2500.275187 | U61: 2916.987719 | V61: 3333.70025 | W61: 3750.412781 | X61: 4167.125312 | Y61: 4583.837844 | Z61: 5000.550375 | AA61: 1822.480267 | AB61: 2278.100333 | AC61: 2733.7204 | AD61: 3189.341323 | AE61: 3644.961512 | AF61: 4100.581701 | AG61: 4556.20189 | AH61: 5011.822079 | AI61: 5467.442268 | AJ61: 1987.405776 | AK61: 2484.25722 | AL61: 2981.108664 | AM61: 3477.960108 | AN61: 3974.811552 | AO61: 4471.662996 | AP61: 4968.51444 | AQ61: 5465.365884 | AR61: 5962.217328 | AS61: 2168.517613 | AT61: 2710.647016 | AU61: 3252.776419 | AV61: 3794.905822 | AW61: 4337.035226 | AX61: 4879.164629 | AY61: 5421.294032 | AZ61: 5963.423435 | BA61: 6505.552839 | BB61: 2354.033577 | BC61: 2942.541971 | BD61: 3531.050365 | BE61: 4119.558759 | BF61: 4708.067153 | BG61: 5296.575547 | BH61: 5885.083942 | BI61: 6473.592336 | BJ61: 7062.10073 | BK61: 2546.882314 | BL61: 3183.602892 | BM61: 3820.32347 | BN61: 4457.044049 | BO61: 5093.764627 | BP61: 5730.485206 | BQ61: 6367.205784 | BR61: 7003.926362 | BS61: 7640.646941 | BT61: 2758.856019 | BU61: 3448.570024 | BV61: 4138.284029 | BW61: 4827.998034 | BX61: 5517.712039 | BY61: 6207.426044 | BZ61: 6897.140049 | CA61: 7586.854053 | CB61: 8276.568058
P62: GF Heat Exchangers | Q62: $/kW | R62: 69.30542092 | S62: 68.41619794 | T62: 67.6981258 | U62: 67.09688749 | V62: 66.58038899 | W62: 66.12810622 | X62: 65.72612952 | Y62: 65.36460277 | Z62: 65.03629139 | AA62: 66.51996614 | AB62: 65.65857566 | AC62: 64.96305516 | AD62: 64.38076723 | AE62: 63.88057393 | AF62: 63.44259885 | AG62: 63.05336187 | AH62: 62.70331183 | AI62: 62.38543837 | AJ62: 63.91626214 | AK62: 63.08239883 | AL62: 62.40916488 | AM62: 61.84556225 | AN62: 61.36146319 | AO62: 60.93760384 | AP62: 60.56093026 | AQ62: 60.22219373 | AR62: 59.91460616 | AS62: 61.66743261 | AT62: 60.85829457 | AU62: 60.20506801 | AV62: 59.65824596 | AW62: 59.18858332 | AX62: 58.77738152 | AY62: 58.41197025 | AZ62: 58.08337294 | BA62: 57.78500147 | BB62: 59.44007594 | BC62: 58.65702517 | BD62: 58.02488989 | BE62: 57.49574491 | BF62: 57.04128068 | BG62: 56.64339747 | BH62: 56.28983112 | BI62: 55.97189305 | BJ62: 55.68320663 | BK62: 57.34335991 | BL62: 56.5861664 | BM62: 55.9749223 | BN62: 55.46327684 | BO62: 55.02385117 | BP62: 54.63914098 | BQ62: 54.29728574 | BR62: 53.98988298 | BS62: 53.71076614 | BT62: 55.64434886 | BU62: 54.90910337 | BV62: 54.31558157 | BW62: 53.818774 | BX62: 53.39209426 | BY62: 53.01854478 | BZ62: 52.68660849 | CA62: 52.38812621 | CB62: 52.11711002
P63: Air-Cooled Condenser | Q63: $/kW | R63: 251.165206 | S63: 251.165206 | T63: 251.165206 | U63: 251.165206 | V63: 251.165206 | W63: 251.165206 | X63: 251.165206 | Y63: 251.165206 | Z63: 251.165206 | AA63: 239.7730715 | AB63: 239.7730715 | AC63: 239.7730715 | AD63: 239.7731302 | AE63: 239.7731302 | AF63: 239.7731302 | AG63: 239.7731302 | AH63: 239.7731302 | AI63: 239.7731302 | AJ63: 229.704568 | AK63: 229.704568 | AL63: 229.704568 | AM63: 229.704568 | AN63: 229.704568 | AO63: 229.704568 | AP63: 229.704568 | AQ63: 229.704568 | AR63: 229.704568 | AS63: 221.2405502 | AT63: 221.2405502 | AU63: 221.2405502 | AV63: 221.2405502 | AW63: 221.2405502 | AX63: 221.2405502 | AY63: 221.2405502 | AZ63: 221.2405502 | BA63: 221.2405502 | BB63: 212.459076 | BC63: 212.459076 | BD63: 212.459076 | BE63: 212.459076 | BF63: 212.459076 | BG63: 212.459076 | BH63: 212.459076 | BI63: 212.459076 | BJ63: 212.459076 | BK63: 203.1425908 | BL63: 203.1425908 | BM63: 203.1425908 | BN63: 203.1425908 | BO63: 203.1425908 | BP63: 203.1425908 | BQ63: 203.1425908 | BR63: 203.1425908 | BS63: 203.1425908 | BT63: 194.0580198 | BU63: 194.0580198 | BV63: 194.0580198 | BW63: 194.0580198 | BX63: 194.0580198 | BY63: 194.0580198 | BZ63: 194.0580198 | CA63: 194.0580198 | CB63: 194.0580198
P64: WF Pumps | Q64: $/kW | R64: 58.44427003 | S64: 54.79607739 | T64: 51.98498924 | U64: 49.72105907 | V64: 47.83980383 | W64: 46.23959038 | X64: 44.85356035 | Y64: 43.63556865 | Z64: 42.55253228 | AA64: 57.72540426 | AB64: 54.04418203 | AC64: 51.21136019 | AD64: 48.93241542 | AE64: 47.04043489 | AF64: 45.43240426 | AG64: 44.0406067 | AH64: 42.818339 | AI64: 41.73214004 | AJ64: 56.98421882 | AK64: 53.27395785 | AL64: 50.42250763 | AM64: 48.13104506 | AN64: 46.23043639 | AO64: 44.61637501 | AP64: 43.22035769 | AQ64: 41.99517335 | AR64: 40.90701918 | AS64: 56.31031766 | AT64: 52.57248848 | AU64: 49.70340081 | AV64: 47.40012748 | AW64: 45.49139605 | AX64: 43.87167672 | AY64: 42.47171734 | AZ64: 41.24382377 | BA64: 40.15386852 | BB64: 55.43455134 | BC64: 51.69171279 | BD64: 48.82197137 | BE64: 46.52029568 | BF64: 44.61439021 | BG64: 42.99818129 | BH64: 41.60210897 | BI64: 40.37829701 | BJ64: 39.29250673 | BK64: 54.399264 | BL64: 50.67464627 | BM64: 47.82152438 | BN64: 45.53493891 | BO64: 43.64277396 | BP64: 42.0391385 | BQ64: 40.65463335 | BR64: 39.44151772 | BS64: 38.36566573 | BT64: 53.36324438 | BU64: 49.67210874 | BV64: 46.8465744 | BW64: 44.58338686 | BX64: 42.71149451 | BY64: 41.12571413 | BZ64: 39.75714041 | CA64: 38.5583906 | CB64: 37.49560637
N65: =R65*2/3 -> 537.4664114 | P65: Turbine-Generator | Q65: $/kW | R65: 806.1996171 | S65: 748.9742633 | T65: 705.2463561 | U65: 670.2727999 | V65: 641.382362 | W65: 616.9345807 | X65: 595.8560037 | Y65: 577.4092049 | Z65: 561.0677108 | AA65: 780.5107196 | AB65: 724.8706088 | AC65: 682.3667594 | AD65: 648.380593 | AE65: 620.3117935 | AF65: 596.5637003 | AG65: 576.0917514 | AH65: 558.1784878 | AI65: 542.3117682 | AJ65: 756.5562355 | AK65: 702.377214 | AL65: 661.0027248 | AM65: 627.928406 | AN65: 600.6188405 | AO65: 577.5176803 | AP65: 557.6069141 | AQ65: 540.1874445 | AR65: 524.7603172 | AS65: 733.6279655 | AT65: 680.8366452 | AU65: 640.5355958 | AV65: 608.3284549 | AW65: 581.741328 | AX65: 559.2560109 | AY65: 539.8796567 | AZ65: 522.9305791 | BA65: 507.9223335 | BB65: 712.7699197 | BC65: 661.2177717 | BD65: 621.8768915 | BE65: 590.4464782 | BF65: 564.5071696 | BG65: 542.5746198 | BH65: 523.6783462 | BI65: 507.1521526 | BJ65: 492.5207338 | BK65: 693.5756747 | BL65: 643.1427483 | BM65: 604.6706317 | BN65: 573.9440007 | BO65: 548.5923622 | BP65: 527.1617593 | BQ65: 508.7018078 | BR65: 492.5602476 | BS65: 478.2718055 | BT65: 675.1039351 | BU65: 625.7383761 | BV65: 588.095595 | BW65: 558.041334 | BX65: 533.2514989 | BY65: 512.3010115 | BZ65: 494.2586017 | CA65: 478.4852714 | CB65: 464.5252993
P66: Plant equipment cost | Q66: $/kW | R66: 1185.114514 | S66: 1123.351745 | T66: 1076.094677 | U66: 1038.255952 | V66: 1006.967761 | W66: 980.4674833 | X66: 957.6008996 | Y66: 937.5745824 | Z66: 919.8217405 | AA66: 1144.529161 | AB66: 1084.346438 | AC66: 1038.314246 | AD66: 1001.466906 | AE66: 971.0059325 | AF66: 945.2118336 | AG66: 922.9588502 | AH66: 903.4732689 | AI66: 886.2024768 | AJ66: 1107.161284 | AK66: 1048.438139 | AL66: 1003.538965 | AM66: 967.6095813 | AN66: 937.9153081 | AO66: 912.7762271 | AP66: 891.09277 | AQ66: 872.1093795 | AR66: 855.2865105 | AS66: 1072.846266 | AT66: 1015.507978 | AU66: 971.6846148 | AV66: 936.6273786 | AW66: 907.6618576 | AX66: 883.1456193 | AY66: 862.0038945 | AZ66: 843.498326 | BA66: 827.1017537 | BB66: 1040.103623 | BC66: 984.0255856 | BD66: 941.1828288 | BE66: 906.9215949 | BF66: 878.6219165 | BG66: 854.6752746 | BH66: 834.0293623 | BI66: 815.9614187 | BJ66: 799.9555232 | BK66: 1008.460889 | BL66: 953.5461518 | BM66: 911.6096692 | BN66: 878.0848073 | BO66: 850.4015782 | BP66: 826.9826296 | BQ66: 806.7963177 | BR66: 789.1342391 | BS66: 773.4908283 | BT66: 978.1695482 | BU66: 924.377608 | BV66: 883.3157708 | BW66: 850.5015147 | BX66: 823.4131075 | BY66: 800.5032903 | BZ66: 780.7603704 | CA66: 763.489808 | CB66: 748.1960356
Q67: Direct Installation Multiplier | R67: 2.530938219 | S67: 2.524023693 | T67: 2.518388138 | U67: 2.513633163 | V67: 2.509521474 | W67: 2.50590029 | X67: 2.502665458 | Y67: 2.499742794 | Z67: 2.497077592 | AA67: 2.530074827 | AB67: 2.523162659 | AC67: 2.517529028 | AD67: 2.512775656 | AE67: 2.508665369 | AF67: 2.505045421 | AG67: 2.501811693 | AH67: 2.498890026 | AI67: 2.496225733 | AJ67: 2.529147803 | AK67: 2.522238168 | AL67: 2.516606601 | AM67: 2.511854989 | AN67: 2.507746208 | AO67: 2.504127586 | AP67: 2.500895043 | AQ67: 2.497974447 | AR67: 2.49531113 | AS67: 2.52798451 | AT67: 2.521078053 | AU67: 2.515449076 | AV67: 2.51069965 | AW67: 2.506592759 | AX67: 2.502975801 | AY67: 2.499744744 | AZ67: 2.496825491 | BA67: 2.494163399 | BB67: 2.527098501 | BC67: 2.520194465 | BD67: 2.51456746 | BE67: 2.509819699 | BF67: 2.505714247 | BG67: 2.502098557 | BH67: 2.498868633 | BI67: 2.495950403 | BJ67: 2.493289244 | BK67: 2.52648026 | BL67: 2.519577912 | BM67: 2.513952285 | BN67: 2.509205685 | BO67: 2.505101238 | BP67: 2.501486432 | BQ67: 2.498257298 | BR67: 2.495339782 | BS67: 2.492679274 | BT67: 2.525834089 | BU67: 2.518933507 | BV67: 2.513309318 | BW67: 2.508563932 | BX67: 2.504460535 | BY67: 2.500846653 | BZ67: 2.497618345 | CA67: 2.494701576 | CB67: 2.492041748
Q69: GETEM Parasitics | R69: =R61-R59 -> 242.7330512 | S69: =S61-S59 -> 303.416314 | T69: 364.0995767 | U69: 424.7828395 | V69: 485.4661023 | W69: 546.1493651 | X69: 606.8326279 | Y69: 667.5158907 | Z69: 728.1991535 | AA69: 258.188277 | AB69: 322.7353463 | AC69: 387.2824155 | AD69: 451.8296542 | AE69: 516.3767476 | AF69: 580.9238411 | AG69: 645.4709346 | AH69: 710.018028 | AI69: 774.5651215 | AJ69: 274.261739 | AK69: 342.8271737 | AL69: 411.3926085 | AM69: 479.9580432 | AN69: 548.523478 | AO69: 617.0889127 | AP69: 685.6543475 | AQ69: 754.2197822 | AR69: 822.785217 | AS69: 292.3467246 | AT69: 365.4334058 | AU69: 438.520087 | AV69: 511.6067681 | AW69: =AW61-AW59 -> 584.6934493 | AX69: 657.7801304 | AY69: 730.8668116 | AZ69: 803.9534928 | BA69: 877.0401739 | BB69: 310.4125865 | BC69: 388.0157331 | BD69: 465.6188798 | BE69: 543.2220264 | BF69: 620.825173 | BG69: 698.4283197 | BH69: 776.0314663 | BI69: 853.6346129 | BJ69: 931.2377595 | BK69: 329.3188926 | BL69: 411.6486157 | BM69: 493.9783389 | BN69: 576.308062 | BO69: 658.6377852 | BP69: 740.9675083 | BQ69: 823.2972315 | BR69: 905.6269546 | BS69: 987.9566777 | BT69: 351.3513265 | BU69: 439.1891582 | BV69: 527.0269898 | BW69: 614.8648215 | BX69: 702.7026531 | BY69: 790.5404847 | BZ69: 878.3783164 | CA69: 966.216148 | CB69: 1054.05398
Q70: IPSEpro parasitics | R70: =R31+R32 -> 323.1837394 | S70: =S31+S32 -> 403.9796743 | T70: 484.7756091 | U70: 565.571544 | V70: 646.3674788 | W70: 727.1634137 | X70: 807.9593485 | Y70: 888.7552834 | Z70: 969.5512183 | AA70: 345.4306171 | AB70: 431.7882714 | AC70: 518.1459257 | AD70: 604.3660669 | AE70: 690.7040764 | AF70: 777.042086 | AG70: 863.3800956 | AH70: 949.7181051 | AI70: 1036.056115 | AJ70: 368.8532186 | AK70: 461.0665232 | AL70: 553.2798279 | AM70: 645.4931325 | AN70: 737.7064372 | AO70: 829.9197418 | AP70: 922.1330465 | AQ70: 1014.346351 | AR70: 1106.559656 | AS70: 389.6047968 | AT70: 487.005996 | AU70: 584.4071953 | AV70: 681.8083945 | AW70: 779.2095937 | AX70: 876.6107929 | AY70: 974.0119921 | AZ70: 1071.413191 | BA70: 1168.814391 | BB70: 424.3774092 | BC70: 530.4717614 | BD70: 636.5661137 | BE70: 742.660466 | BF70: 848.7548183 | BG70: 954.8491706 | BH70: 1060.943523 | BI70: 1167.037875 | BJ70: 1273.132227 | BK70: 447.3652149 | BL70: 559.2065186 | BM70: 671.0478223 | BN70: 782.8891261 | BO70: 894.7304298 | BP70: 1006.571734 | BQ70: 1118.413037 | BR70: 1230.254341 | BS70: 1342.095645 | BT70: 476.8957977 | BU70: 596.1197471 | BV70: 715.3436965 | BW70: 834.5676459 | BX70: 953.7915953 | BY70: 1073.015545 | BZ70: 1192.239494 | CA70: 1311.463444 | CB70: 1430.687393
R71: =R70/R69-1 -> 0.3314368928 | S71: =S70/S69-1 -> 0.3314368928 | T71: 0.3314368928 | U71: 0.3314368928 | V71: 0.3314368928 | W71: 0.3314368928 | X71: 0.3314368928 | Y71: 0.3314368928 | Z71: 0.3314368928 | AA71: 0.3379020191 | AB71: 0.3379020191 | AC71: 0.3379020191 | AD71: 0.3375971703 | AE71: 0.3375971703 | AF71: 0.3375971703 | AG71: 0.3375971703 | AH71: 0.3375971703 | AI71: 0.3375971703 | AJ71: 0.3448949166 | AK71: 0.3448949166 | AL71: 0.3448949166 | AM71: 0.3448949166 | AN71: 0.3448949166 | AO71: 0.3448949166 | AP71: 0.3448949166 | AQ71: 0.3448949166 | AR71: 0.3448949166 | AS71: 0.3326805604 | AT71: 0.3326805604 | AU71: 0.3326805604 | AV71: 0.3326805604 | AW71: 0.3326805604 | AX71: 0.3326805604 | AY71: 0.3326805604 | AZ71: 0.3326805604 | BA71: 0.3326805604 | BB71: 0.3671398248 | BC71: 0.3671398248 | BD71: 0.3671398248 | BE71: 0.3671398248 | BF71: 0.3671398248 | BG71: 0.3671398248 | BH71: 0.3671398248 | BI71: 0.3671398248 | BJ71: 0.3671398248 | BK71: 0.3584559677 | BL71: 0.3584559677 | BM71: 0.3584559677 | BN71: 0.3584559677 | BO71: 0.3584559677 | BP71: 0.3584559677 | BQ71: 0.3584559677 | BR71: 0.3584559677 | BS71: 0.3584559677 | BT71: 0.3573189045 | BU71: 0.3573189045 | BV71: 0.3573189045 | BW71: 0.3573189045 | BX71: 0.3573189045 | BY71: 0.3573189045 | BZ71: 0.3573189045 | CA71: 0.3573189045 | CB71: 0.3573189045
P72: SAM Inputs
Q73: SAM Plant Efficiency (%) | R73: =R60/VLOOKUP(R$58,'GETEM-Excel Max BE vs. Temp'!$C$4:$D$14,2) -> 0.563551568 | S73: =S60/VLOOKUP(S$58,'GETEM-Excel Max BE vs. Temp'!$C$4:$D$14,2)*100 -> 56.3551568 | T73: =T60/VLOOKUP(T$58,'GETEM-Excel Max BE vs. Temp'!$C$4:$D$14,2)*100 -> 56.3551568 | U73: =U60/VLOOKUP(U$58,'GETEM-Excel Max BE vs. Temp'!$C$4:$D$14,2)*100 -> 56.3551568 | V73: =V60/VLOOKUP(V$58,'GETEM-Excel Max BE vs. Temp'!$C$4:$D$14,2)*100 -> 56.3551568 | W73: =W60/VLOOKUP(W$58,'GETEM-Excel Max BE vs. Temp'!$C$4:$D$14,2)*100 -> 56.3551568 | X73: =X60/VLOOKUP(X$58,'GETEM-Excel Max BE vs. Temp'!$C$4:$D$14,2)*100 -> 56.3551568 | Y73: =Y60/VLOOKUP(Y$58,'GETEM-Excel Max BE vs. Temp'!$C$4:$D$14,2)*100 -> 56.3551568 | Z73: =Z60/VLOOKUP(Z$58,'GETEM-Excel Max BE vs. Temp'!$C$4:$D$14,2)*100 -> 56.3551568 | AA73: =AA60/VLOOKUP(AA$58,'GETEM-Excel Max BE vs. Temp'!$C$4:$D$14,2)*100 -> 59.15247701 | AB73: =AB60/VLOOKUP(AB$58,'GETEM-Excel Max BE vs. Temp'!$C$4:$D$14,2)*100 -> 59.15247701 | AC73: =AC60/VLOOKUP(AC$58,'GETEM-Excel Max BE vs. Temp'!$C$4:$D$14,2)*100 -> 59.15247701 | AD73: =AD60/VLOOKUP(AD$58,'GETEM-Excel Max BE vs. Temp'!$C$4:$D$14,2)*100 -> 59.15249185 | AE73: =AE60/VLOOKUP(AE$58,'GETEM-Excel Max BE vs. Temp'!$C$4:$D$14,2)*100 -> 59.15249185 | AF73: =AF60/VLOOKUP(AF$58,'GETEM-Excel Max BE vs. Temp'!$C$4:$D$14,2)*100 -> 59.15249185 | AG73: =AG60/VLOOKUP(AG$58,'GETEM-Excel Max BE vs. Temp'!$C$4:$D$14,2)*100 -> 59.15249185 | AH73: =AH60/VLOOKUP(AH$58,'GETEM-Excel Max BE vs. Temp'!$C$4:$D$14,2)*100 -> 59.15249185 | AI73: =AI60/VLOOKUP(AI$58,'GETEM-Excel Max BE vs. Temp'!$C$4:$D$14,2)*100 -> 59.15249185 | AJ73: =AJ60/VLOOKUP(AJ$58,'GETEM-Excel Max BE vs. Temp'!$C$4:$D$14,2)*100 -> 62.02444926 | AK73: =AK60/VLOOKUP(AK$58,'GETEM-Excel Max BE vs. Temp'!$C$4:$D$14,2)*100 -> 62.02444926 | AL73: =AL60/VLOOKUP(AL$58,'GETEM-Excel Max BE vs. Temp'!$C$4:$D$14,2)*100 -> 62.02444926 | AM73: =AM60/VLOOKUP(AM$58,'GETEM-Excel Max BE vs. Temp'!$C$4:$D$14,2)*100 -> 62.02444926 | AN73: =AN60/VLOOKUP(AN$58,'GETEM-Excel Max BE vs. Temp'!$C$4:$D$14,2)*100 -> 62.02444926 | AO73: =AO60/VLOOKUP(AO$58,'GETEM-Excel Max BE vs. Temp'!$C$4:$D$14,2)*100 -> 62.02444926 | AP73: =AP60/VLOOKUP(AP$58,'GETEM-Excel Max BE vs. Temp'!$C$4:$D$14,2)*100 -> 62.02444926 | AQ73: =AQ60/VLOOKUP(AQ$58,'GETEM-Excel Max BE vs. Temp'!$C$4:$D$14,2)*100 -> 62.02444926 | AR73: =AR60/VLOOKUP(AR$58,'GETEM-Excel Max BE vs. Temp'!$C$4:$D$14,2)*100 -> 62.02444926 | AS73: =AS60/VLOOKUP(AS$58,'GETEM-Excel Max BE vs. Temp'!$C$4:$D$14,2)*100 -> 65.14933383 | AT73: =AT60/VLOOKUP(AT$58,'GETEM-Excel Max BE vs. Temp'!$C$4:$D$14,2)*100 -> 65.14933383 | AU73: =AU60/VLOOKUP(AU$58,'GETEM-Excel Max BE vs. Temp'!$C$4:$D$14,2)*100 -> 65.14933383 | AV73: =AV60/VLOOKUP(AV$58,'GETEM-Excel Max BE vs. Temp'!$C$4:$D$14,2)*100 -> 65.14933383 | AW73: =AW60/VLOOKUP(AW$58,'GETEM-Excel Max BE vs. Temp'!$C$4:$D$14,2)*100 -> 65.14933383 | AX73: =AX60/VLOOKUP(AX$58,'GETEM-Excel Max BE vs. Temp'!$C$4:$D$14,2)*100 -> 65.14933383 | AY73: =AY60/VLOOKUP(AY$58,'GETEM-Excel Max BE vs. Temp'!$C$4:$D$14,2)*100 -> 65.14933383 | AZ73: =AZ60/VLOOKUP(AZ$58,'GETEM-Excel Max BE vs. Temp'!$C$4:$D$14,2)*100 -> 65.14933383 | BA73: =BA60/VLOOKUP(BA$58,'GETEM-Excel Max BE vs. Temp'!$C$4:$D$14,2)*100 -> 65.14933383 | BB73: =BB60/VLOOKUP(BB$58,'GETEM-Excel Max BE vs. Temp'!$C$4:$D$14,2)*100 -> 62.50053877 | BC73: =BC60/VLOOKUP(BC$58,'GETEM-Excel Max BE vs. Temp'!$C$4:$D$14,2)*100 -> 62.50053877 | BD73: =BD60/VLOOKUP(BD$58,'GETEM-Excel Max BE vs. Temp'!$C$4:$D$14,2)*100 -> 62.50053877 | BE73: =BE60/VLOOKUP(BE$58,'GETEM-Excel Max BE vs. Temp'!$C$4:$D$14,2)*100 -> 62.50053877 | BF73: =BF60/VLOOKUP(BF$58,'GETEM-Excel Max BE vs. Temp'!$C$4:$D$14,2)*100 -> 62.50053877 | BG73: =BG60/VLOOKUP(BG$58,'GETEM-Excel Max BE vs. Temp'!$C$4:$D$14,2)*100 -> 62.50053877 | BH73: =BH60/VLOOKUP(BH$58,'GETEM-Excel Max BE vs. Temp'!$C$4:$D$14,2)*100 -> 62.50053877 | BI73: =BI60/VLOOKUP(BI$58,'GETEM-Excel Max BE vs. Temp'!$C$4:$D$14,2)*100 -> 62.50053877 | BJ73: =BJ60/VLOOKUP(BJ$58,'GETEM-Excel Max BE vs. Temp'!$C$4:$D$14,2)*100 -> 62.50053877 | BK73: =BK60/VLOOKUP(BK$58,'GETEM-Excel Max BE vs. Temp'!$C$4:$D$14,2)*100 -> 65.27201831 | BL73: =BL60/VLOOKUP(BL$58,'GETEM-Excel Max BE vs. Temp'!$C$4:$D$14,2)*100 -> 65.27201831 | BM73: =BM60/VLOOKUP(BM$58,'GETEM-Excel Max BE vs. Temp'!$C$4:$D$14,2)*100 -> 65.27201831 | BN73: =BN60/VLOOKUP(BN$58,'GETEM-Excel Max BE vs. Temp'!$C$4:$D$14,2)*100 -> 65.27201831 | BO73: =BO60/VLOOKUP(BO$58,'GETEM-Excel Max BE vs. Temp'!$C$4:$D$14,2)*100 -> 65.27201831 | BP73: =BP60/VLOOKUP(BP$58,'GETEM-Excel Max BE vs. Temp'!$C$4:$D$14,2)*100 -> 65.27201831 | BQ73: =BQ60/VLOOKUP(BQ$58,'GETEM-Excel Max BE vs. Temp'!$C$4:$D$14,2)*100 -> 65.27201831 | BR73: =BR60/VLOOKUP(BR$58,'GETEM-Excel Max BE vs. Temp'!$C$4:$D$14,2)*100 -> 65.27201831 | BS73: =BS60/VLOOKUP(BS$58,'GETEM-Excel Max BE vs. Temp'!$C$4:$D$14,2)*100 -> 65.27201831 | BT73: =BT60/VLOOKUP(BT$58,'GETEM-Excel Max BE vs. Temp'!$C$4:$D$14,2)*100 -> 68.33355473 | BU73: =BU60/VLOOKUP(BU$58,'GETEM-Excel Max BE vs. Temp'!$C$4:$D$14,2)*100 -> 68.33355473 | BV73: =BV60/VLOOKUP(BV$58,'GETEM-Excel Max BE vs. Temp'!$C$4:$D$14,2)*100 -> 68.33355473 | BW73: =BW60/VLOOKUP(BW$58,'GETEM-Excel Max BE vs. Temp'!$C$4:$D$14,2)*100 -> 68.33355473 | BX73: =BX60/VLOOKUP(BX$58,'GETEM-Excel Max BE vs. Temp'!$C$4:$D$14,2)*100 -> 68.33355473 | BY73: =BY60/VLOOKUP(BY$58,'GETEM-Excel Max BE vs. Temp'!$C$4:$D$14,2)*100 -> 68.33355473 | BZ73: =BZ60/VLOOKUP(BZ$58,'GETEM-Excel Max BE vs. Temp'!$C$4:$D$14,2)*100 -> 68.33355473 | CA73: =CA60/VLOOKUP(CA$58,'GETEM-Excel Max BE vs. Temp'!$C$4:$D$14,2)*100 -> 68.33355473 | CB73: =CB60/VLOOKUP(CB$58,'GETEM-Excel Max BE vs. Temp'!$C$4:$D$14,2)*100 -> 68.33355473
Q74: Specified Plant Cost - Custom ($) | R74: =R66*R67*R59 -> 4271570.26 | S74: =S66*S67*S59 -> 5047367.159 | T74: 5789087.324 | U74: 6504142.82 | V74: 7197508.253 | W74: 7872727.018 | X74: 8532436.145 | Y74: 9178665.38 | Z74: 9813019.357 | AA74: 4529789.8 | AB74: 5349844.272 | AC74: 6133556.639 | AD74: 6888843.163 | AE74: 7621010.22 | AF74: 8333840.867 | AG74: 9030148.568 | AH74: 9712098.433 | AI74: 10381401.8 | AJ74: 4797102.299 | AK74: 5662820.507 | AL74: 6489850.75 | AM74: 7286628.892 | AN74: 8058813.054 | AO74: 8810431.321 | AP74: 9544480.023 | AQ74: 10263264.5 | AR74: 10968606.58 | AS74: 5088435.751 | AT74: 6004156.966 | AU74: 6878670.522 | AV74: 7720973.325 | AW74: 8537097.764 | AX74: 9331337.142 | AY74: 10106884.29 | AZ74: 10866195.17 | BA74: 11611210.3 | BB74: 5371543.956 | BC74: 6335061.156 | BD74: 7254857.73 | BE74: 8140492.305 | BF74: 8998371.619 | BG74: 9833054.028 | BH74: 10647928.58 | BI74: 11445601.58 | BJ74: 12228131.89 | BK74: 5650033.442 | BL74: 6659713.904 | BM74: 7623128.872 | BN74: 8550407.711 | BO74: 9448337.191 | BP74: 10321744.55 | BQ74: 11174217.75 | BR74: 12008515.43 | BS74: 12826816.3 | BT74: 5948207.374 | BU74: 7007180.027 | BV74: 8017155.869 | BW74: 8988877.381 | BX74: 9929539.472 | BY74: 10844258.07 | BZ74: 11736834.7 | CA74: 12610191.49 | CB74: =CB66*CB67*CB59 -> 13466635.75
Q75: Specified Plant Cost - Standard ($) | R75: =(SUM(R62:R64)*R59+1532154)*R67 -> 5243529.908 | S75: =(SUM(S62:S64)*S59+1532154)*S67 -> 5549320.267 | T75: 5853618.337 | U75: 6156499.456 | V75: 6458069.858 | W75: 6758436.086 | X75: 7057696.049 | Y75: 7355937.062 | Z75: 7653236.22 | AA75: 5317167.64 | AB75: 5639421.069 | AC75: 5959904.325 | AD75: 6278752.693 | AE75: 6596109.969 | AF75: 6912112.066 | AG75: 7226878.112 | AH75: 7540511.823 | AI75: 7853103.308 | AJ75: 5394143.543 | AK75: 5733600.387 | AL75: 6070998.538 | AM75: 6406533.536 | AN75: 6740392.643 | AO75: 7072740.354 | AP75: 7403717.868 | AQ75: 7733445.942 | AR75: 8062028.193 | AS75: 5482150.552 | AT75: 5841412.89 | AU75: 6198298.506 | AV75: 6553070.565 | AW75: =(SUM(AW62:AW64)*AW59+1532154)*AW67 -> 6905961.883 | AX75: 7257169.516 | AY75: 7606858.976 | AZ75: 7955169.791 | BA75: 8302220.466 | BB75: 5562396.578 | BC75: 5939531.387 | BD75: 6313989.559 | BE75: 6686098.4 | BF75: 7056133.868 | BG75: 7424323.821 | BH75: 7790856.744 | BI75: 8155889.889 | BJ75: 8519555.799 | BK75: 5635142.252 | BL75: 6028286.788 | BM75: 6418470.057 | BN75: 6806080.339 | BO75: 7191434.593 | BP75: 7574789.934 | BQ75: 7956356.665 | BR75: 8336308.865 | BS75: 8714792.405 | BT75: 5712895.892 | BU75: 6123207.931 | BV75: 6530256.046 | BW75: 6934492.766 | BX75: 7336278.349 | BY75: 7735900.868 | BZ75: 8133593.752 | CA75: 8529548.935 | CB75: 8923926.455
Y77: 0.99 | Z77: 0.98 | AA77: 0.97 | AB77: 0.96 | AC77: 0.95 | AD77: 0.94 | AE77: 0.93 | AF77: 0.92 | AG77: 0.91 | AH77: 0.9 | AI77: 0.89 | AJ77: 0.88 | AK77: 0.87 | AL77: 0.86 | AM77: 0.85
R78: 160 | S78: 40 | T78: 56.3551568 | U78: 4271570.26 | V78: 5243529.908 | Y78: =$T78*Y$77 -> 55.79160523 | Z78: =$T78*Z$77 -> 55.22805366 | AA78: 54.6645021 | AB78: 54.10095053 | AC78: 53.53739896 | AD78: 52.97384739 | AE78: 52.41029582 | AF78: 51.84674426 | AG78: 51.28319269 | AH78: 50.71964112 | AI78: 50.15608955 | AJ78: 49.59253798 | AK78: 49.02898642 | AL78: 48.46543485 | AM78: 47.90188328
R79: 160 | S79: 50 | T79: 56.3551568 | U79: 5047367.159 | V79: 5549320.267 | Y79: =$T79*Y$77 -> 55.79160523 | Z79: 55.22805366 | AA79: 54.6645021 | AB79: 54.10095053 | AC79: 53.53739896 | AD79: 52.97384739 | AE79: 52.41029582 | AF79: 51.84674426 | AG79: 51.28319269 | AH79: 50.71964112 | AI79: 50.15608955 | AJ79: 49.59253798 | AK79: 49.02898642 | AL79: 48.46543485 | AM79: 47.90188328
R80: 160 | S80: 60 | T80: 56.3551568 | U80: 5789087.324 | V80: 5853618.337 | Y80: 55.79160523 | Z80: 55.22805366 | AA80: 54.6645021 | AB80: 54.10095053 | AC80: 53.53739896 | AD80: 52.97384739 | AE80: 52.41029582 | AF80: 51.84674426 | AG80: 51.28319269 | AH80: 50.71964112 | AI80: 50.15608955 | AJ80: 49.59253798 | AK80: 49.02898642 | AL80: 48.46543485 | AM80: 47.90188328
R81: 160 | S81: 70 | T81: 56.3551568 | U81: 6504142.82 | V81: 6156499.456 | Y81: 55.79160523 | Z81: 55.22805366 | AA81: 54.6645021 | AB81: 54.10095053 | AC81: 53.53739896 | AD81: 52.97384739 | AE81: 52.41029582 | AF81: 51.84674426 | AG81: 51.28319269 | AH81: 50.71964112 | AI81: 50.15608955 | AJ81: 49.59253798 | AK81: 49.02898642 | AL81: 48.46543485 | AM81: 47.90188328
R82: 160 | S82: 80 | T82: 56.3551568 | U82: 7197508.253 | V82: 6458069.858 | Y82: 55.79160523 | Z82: 55.22805366 | AA82: 54.6645021 | AB82: 54.10095053 | AC82: 53.53739896 | AD82: 52.97384739 | AE82: 52.41029582 | AF82: 51.84674426 | AG82: 51.28319269 | AH82: 50.71964112 | AI82: 50.15608955 | AJ82: 49.59253798 | AK82: 49.02898642 | AL82: 48.46543485 | AM82: 47.90188328
R83: 160 | S83: 90 | T83: 56.3551568 | U83: 7872727.018 | V83: 6758436.086 | Y83: 55.79160523 | Z83: 55.22805366 | AA83: 54.6645021 | AB83: 54.10095053 | AC83: 53.53739896 | AD83: 52.97384739 | AE83: 52.41029582 | AF83: 51.84674426 | AG83: 51.28319269 | AH83: 50.71964112 | AI83: 50.15608955 | AJ83: 49.59253798 | AK83: 49.02898642 | AL83: 48.46543485 | AM83: 47.90188328
R84: 160 | S84: 100 | T84: 56.3551568 | U84: 8532436.145 | V84: 7057696.049 | Y84: 55.79160523 | Z84: 55.22805366 | AA84: 54.6645021 | AB84: 54.10095053 | AC84: 53.53739896 | AD84: 52.97384739 | AE84: 52.41029582 | AF84: 51.84674426 | AG84: 51.28319269 | AH84: 50.71964112 | AI84: 50.15608955 | AJ84: 49.59253798 | AK84: 49.02898642 | AL84: 48.46543485 | AM84: 47.90188328
R85: 160 | S85: 110 | T85: 56.3551568 | U85: 9178665.38 | V85: 7355937.062 | Y85: 55.79160523 | Z85: 55.22805366 | AA85: 54.6645021 | AB85: 54.10095053 | AC85: 53.53739896 | AD85: 52.97384739 | AE85: 52.41029582 | AF85: 51.84674426 | AG85: 51.28319269 | AH85: 50.71964112 | AI85: 50.15608955 | AJ85: 49.59253798 | AK85: 49.02898642 | AL85: 48.46543485 | AM85: 47.90188328
R86: 160 | S86: 120 | T86: 56.3551568 | U86: 9813019.357 | V86: 7653236.22 | Y86: 55.79160523 | Z86: 55.22805366 | AA86: 54.6645021 | AB86: 54.10095053 | AC86: 53.53739896 | AD86: 52.97384739 | AE86: 52.41029582 | AF86: 51.84674426 | AG86: 51.28319269 | AH86: 50.71964112 | AI86: 50.15608955 | AJ86: 49.59253798 | AK86: 49.02898642 | AL86: 48.46543485 | AM86: 47.90188328
R87: 165 | S87: 40 | T87: 59.15247701 | U87: 4529789.8 | V87: 5317167.64 | Y87: 58.56095224 | Z87: 57.96942747 | AA87: 57.3779027 | AB87: 56.78637793 | AC87: 56.19485316 | AD87: 55.60332839 | AE87: 55.01180362 | AF87: 54.42027885 | AG87: 53.82875408 | AH87: 53.23722931 | AI87: 52.64570454 | AJ87: 52.05417977 | AK87: 51.462655 | AL87: 50.87113023 | AM87: 50.27960546
R88: 165 | S88: 50 | T88: 59.15247701 | U88: 5349844.272 | V88: 5639421.069 | Y88: 58.56095224 | Z88: 57.96942747 | AA88: 57.3779027 | AB88: 56.78637793 | AC88: 56.19485316 | AD88: 55.60332839 | AE88: 55.01180362 | AF88: 54.42027885 | AG88: 53.82875408 | AH88: 53.23722931 | AI88: 52.64570454 | AJ88: 52.05417977 | AK88: 51.462655 | AL88: 50.87113023 | AM88: 50.27960546
R89: 165 | S89: 60 | T89: 59.15247701 | U89: 6133556.639 | V89: 5959904.325 | Y89: 58.56095224 | Z89: 57.96942747 | AA89: 57.3779027 | AB89: 56.78637793 | AC89: 56.19485316 | AD89: 55.60332839 | AE89: 55.01180362 | AF89: 54.42027885 | AG89: 53.82875408 | AH89: 53.23722931 | AI89: 52.64570454 | AJ89: 52.05417977 | AK89: 51.462655 | AL89: 50.87113023 | AM89: 50.27960546
R90: 165 | S90: 70 | T90: 59.15249185 | U90: 6888843.163 | V90: 6278752.693 | Y90: 58.56096693 | Z90: 57.96944202 | AA90: 57.3779171 | AB90: 56.78639218 | AC90: 56.19486726 | AD90: 55.60334234 | AE90: 55.01181742 | AF90: 54.4202925 | AG90: 53.82876759 | AH90: 53.23724267 | AI90: 52.64571775 | AJ90: 52.05419283 | AK90: 51.46266791 | AL90: 50.87114299 | AM90: 50.27961807
R91: 165 | S91: 80 | T91: 59.15249185 | U91: 7621010.22 | V91: 6596109.969 | Y91: 58.56096693 | Z91: 57.96944202 | AA91: 57.3779171 | AB91: 56.78639218 | AC91: 56.19486726 | AD91: 55.60334234 | AE91: 55.01181742 | AF91: 54.4202925 | AG91: 53.82876759 | AH91: 53.23724267 | AI91: 52.64571775 | AJ91: 52.05419283 | AK91: 51.46266791 | AL91: 50.87114299 | AM91: 50.27961807
R92: 165 | S92: 90 | T92: 59.15249185 | U92: 8333840.867 | V92: 6912112.066 | Y92: 58.56096693 | Z92: 57.96944202 | AA92: 57.3779171 | AB92: 56.78639218 | AC92: 56.19486726 | AD92: 55.60334234 | AE92: 55.01181742 | AF92: 54.4202925 | AG92: 53.82876759 | AH92: 53.23724267 | AI92: 52.64571775 | AJ92: 52.05419283 | AK92: 51.46266791 | AL92: 50.87114299 | AM92: 50.27961807
R93: 165 | S93: 100 | T93: 59.15249185 | U93: 9030148.568 | V93: 7226878.112 | Y93: 58.56096693 | Z93: 57.96944202 | AA93: 57.3779171 | AB93: 56.78639218 | AC93: 56.19486726 | AD93: 55.60334234 | AE93: 55.01181742 | AF93: 54.4202925 | AG93: 53.82876759 | AH93: 53.23724267 | AI93: 52.64571775 | AJ93: 52.05419283 | AK93: 51.46266791 | AL93: 50.87114299 | AM93: 50.27961807
R94: 165 | S94: 110 | T94: 59.15249185 | U94: 9712098.433 | V94: 7540511.823 | Y94: 58.56096693 | Z94: 57.96944202 | AA94: 57.3779171 | AB94: 56.78639218 | AC94: 56.19486726 | AD94: 55.60334234 | AE94: 55.01181742 | AF94: 54.4202925 | AG94: 53.82876759 | AH94: 53.23724267 | AI94: 52.64571775 | AJ94: 52.05419283 | AK94: 51.46266791 | AL94: 50.87114299 | AM94: 50.27961807
R95: 165 | S95: 120 | T95: 59.15249185 | U95: 10381401.8 | V95: 7853103.308 | Y95: =$T95*Y$77 -> 58.56096693 | Z95: 57.96944202 | AA95: 57.3779171 | AB95: 56.78639218 | AC95: 56.19486726 | AD95: 55.60334234 | AE95: 55.01181742 | AF95: 54.4202925 | AG95: 53.82876759 | AH95: 53.23724267 | AI95: 52.64571775 | AJ95: 52.05419283 | AK95: 51.46266791 | AL95: 50.87114299 | AM95: 50.27961807
R96: 170 | S96: 40 | T96: 62.02444926 | U96: 4797102.299 | V96: 5394143.543 | Y96: 61.40420477 | Z96: 60.78396028 | AA96: 60.16371578 | AB96: 59.54347129 | AC96: 58.9232268 | AD96: 58.3029823 | AE96: 57.68273781 | AF96: 57.06249332 | AG96: 56.44224883 | AH96: 55.82200433 | AI96: 55.20175984 | AJ96: 54.58151535 | AK96: 53.96127086 | AL96: 53.34102636 | AM96: 52.72078187
R97: 170 | S97: 50 | T97: 62.02444926 | U97: 5662820.507 | V97: 5733600.387 | Y97: 61.40420477 | Z97: 60.78396028 | AA97: 60.16371578 | AB97: 59.54347129 | AC97: 58.9232268 | AD97: 58.3029823 | AE97: 57.68273781 | AF97: 57.06249332 | AG97: 56.44224883 | AH97: 55.82200433 | AI97: 55.20175984 | AJ97: 54.58151535 | AK97: 53.96127086 | AL97: 53.34102636 | AM97: 52.72078187
R98: 170 | S98: 60 | T98: 62.02444926 | U98: 6489850.75 | V98: 6070998.538 | Y98: 61.40420477 | Z98: 60.78396028 | AA98: 60.16371578 | AB98: 59.54347129 | AC98: 58.9232268 | AD98: 58.3029823 | AE98: 57.68273781 | AF98: 57.06249332 | AG98: 56.44224883 | AH98: 55.82200433 | AI98: 55.20175984 | AJ98: 54.58151535 | AK98: 53.96127086 | AL98: 53.34102636 | AM98: 52.72078187
R99: 170 | S99: 70 | T99: 62.02444926 | U99: 7286628.892 | V99: 6406533.536 | Y99: 61.40420477 | Z99: 60.78396028 | AA99: 60.16371578 | AB99: 59.54347129 | AC99: 58.9232268 | AD99: 58.3029823 | AE99: 57.68273781 | AF99: 57.06249332 | AG99: 56.44224883 | AH99: 55.82200433 | AI99: 55.20175984 | AJ99: 54.58151535 | AK99: 53.96127086 | AL99: 53.34102636 | AM99: 52.72078187
R100: 170 | S100: 80 | T100: 62.02444926 | U100: 8058813.054 | V100: 6740392.643 | Y100: 61.40420477 | Z100: 60.78396028 | AA100: 60.16371578 | AB100: 59.54347129 | AC100: 58.9232268 | AD100: 58.3029823 | AE100: 57.68273781 | AF100: 57.06249332 | AG100: 56.44224883 | AH100: 55.82200433 | AI100: 55.20175984 | AJ100: 54.58151535 | AK100: 53.96127086 | AL100: 53.34102636 | AM100: 52.72078187
R101: 170 | S101: 90 | T101: 62.02444926 | U101: 8810431.321 | V101: 7072740.354 | Y101: 61.40420477 | Z101: 60.78396028 | AA101: 60.16371578 | AB101: 59.54347129 | AC101: 58.9232268 | AD101: 58.3029823 | AE101: 57.68273781 | AF101: 57.06249332 | AG101: 56.44224883 | AH101: 55.82200433 | AI101: 55.20175984 | AJ101: 54.58151535 | AK101: 53.96127086 | AL101: 53.34102636 | AM101: 52.72078187
R102: 170 | S102: 100 | T102: 62.02444926 | U102: 9544480.023 | V102: 7403717.868 | Y102: 61.40420477 | Z102: 60.78396028 | AA102: 60.16371578 | AB102: 59.54347129 | AC102: 58.9232268 | AD102: 58.3029823 | AE102: 57.68273781 | AF102: 57.06249332 | AG102: 56.44224883 | AH102: 55.82200433 | AI102: 55.20175984 | AJ102: 54.58151535 | AK102: 53.96127086 | AL102: 53.34102636 | AM102: 52.72078187
R103: 170 | S103: 110 | T103: 62.02444926 | U103: 10263264.5 | V103: 7733445.942 | Y103: 61.40420477 | Z103: 60.78396028 | AA103: 60.16371578 | AB103: 59.54347129 | AC103: 58.9232268 | AD103: 58.3029823 | AE103: 57.68273781 | AF103: 57.06249332 | AG103: 56.44224883 | AH103: 55.82200433 | AI103: 55.20175984 | AJ103: 54.58151535 | AK103: 53.96127086 | AL103: 53.34102636 | AM103: 52.72078187
R104: 170 | S104: 120 | T104: 62.02444926 | U104: 10968606.58 | V104: 8062028.193 | Y104: 61.40420477 | Z104: 60.78396028 | AA104: 60.16371578 | AB104: 59.54347129 | AC104: 58.9232268 | AD104: 58.3029823 | AE104: 57.68273781 | AF104: 57.06249332 | AG104: 56.44224883 | AH104: 55.82200433 | AI104: 55.20175984 | AJ104: 54.58151535 | AK104: 53.96127086 | AL104: 53.34102636 | AM104: 52.72078187
R105: 175 | S105: 40 | T105: 65.14933383 | U105: 5088435.751 | V105: 5482150.552 | Y105: 64.49784049 | Z105: 63.84634715 | AA105: 63.19485381 | AB105: 62.54336048 | AC105: 61.89186714 | AD105: 61.2403738 | AE105: 60.58888046 | AF105: 59.93738712 | AG105: 59.28589378 | AH105: 58.63440045 | AI105: 57.98290711 | AJ105: 57.33141377 | AK105: 56.67992043 | AL105: 56.02842709 | AM105: 55.37693375
R106: 175 | S106: 50 | T106: 65.14933383 | U106: 6004156.966 | V106: 5841412.89 | Y106: 64.49784049 | Z106: 63.84634715 | AA106: 63.19485381 | AB106: 62.54336048 | AC106: 61.89186714 | AD106: 61.2403738 | AE106: 60.58888046 | AF106: 59.93738712 | AG106: 59.28589378 | AH106: 58.63440045 | AI106: 57.98290711 | AJ106: 57.33141377 | AK106: 56.67992043 | AL106: 56.02842709 | AM106: 55.37693375
R107: 175 | S107: 60 | T107: 65.14933383 | U107: 6878670.522 | V107: 6198298.506 | Y107: 64.49784049 | Z107: 63.84634715 | AA107: 63.19485381 | AB107: 62.54336048 | AC107: 61.89186714 | AD107: 61.2403738 | AE107: 60.58888046 | AF107: 59.93738712 | AG107: 59.28589378 | AH107: 58.63440045 | AI107: 57.98290711 | AJ107: 57.33141377 | AK107: 56.67992043 | AL107: 56.02842709 | AM107: 55.37693375
R108: 175 | S108: 70 | T108: 65.14933383 | U108: 7720973.325 | V108: 6553070.565 | Y108: 64.49784049 | Z108: 63.84634715 | AA108: 63.19485381 | AB108: 62.54336048 | AC108: 61.89186714 | AD108: 61.2403738 | AE108: 60.58888046 | AF108: 59.93738712 | AG108: 59.28589378 | AH108: 58.63440045 | AI108: 57.98290711 | AJ108: 57.33141377 | AK108: 56.67992043 | AL108: 56.02842709 | AM108: 55.37693375
R109: 175 | S109: 80 | T109: 65.14933383 | U109: 8537097.764 | V109: 6905961.883 | Y109: 64.49784049 | Z109: 63.84634715 | AA109: 63.19485381 | AB109: 62.54336048 | AC109: 61.89186714 | AD109: 61.2403738 | AE109: 60.58888046 | AF109: 59.93738712 | AG109: 59.28589378 | AH109: 58.63440045 | AI109: 57.98290711 | AJ109: 57.33141377 | AK109: 56.67992043 | AL109: 56.02842709 | AM109: 55.37693375
R110: 175 | S110: 90 | T110: 65.14933383 | U110: 9331337.142 | V110: 7257169.516 | Y110: 64.49784049 | Z110: 63.84634715 | AA110: 63.19485381 | AB110: 62.54336048 | AC110: 61.89186714 | AD110: 61.2403738 | AE110: 60.58888046 | AF110: 59.93738712 | AG110: 59.28589378 | AH110: 58.63440045 | AI110: 57.98290711 | AJ110: 57.33141377 | AK110: 56.67992043 | AL110: 56.02842709 | AM110: 55.37693375
R111: 175 | S111: 100 | T111: 65.14933383 | U111: 10106884.29 | V111: 7606858.976 | Y111: =$T111*Y$77 -> 64.49784049 | Z111: 63.84634715 | AA111: 63.19485381 | AB111: 62.54336048 | AC111: 61.89186714 | AD111: 61.2403738 | AE111: 60.58888046 | AF111: 59.93738712 | AG111: 59.28589378 | AH111: 58.63440045 | AI111: 57.98290711 | AJ111: 57.33141377 | AK111: 56.67992043 | AL111: 56.02842709 | AM111: 55.37693375
R112: 175 | S112: 110 | T112: 65.14933383 | U112: 10866195.17 | V112: 7955169.791 | Y112: 64.49784049 | Z112: 63.84634715 | AA112: 63.19485381 | AB112: 62.54336048 | AC112: 61.89186714 | AD112: 61.2403738 | AE112: 60.58888046 | AF112: 59.93738712 | AG112: 59.28589378 | AH112: 58.63440045 | AI112: 57.98290711 | AJ112: 57.33141377 | AK112: 56.67992043 | AL112: 56.02842709 | AM112: 55.37693375
R113: 175 | S113: 120 | T113: 65.14933383 | U113: 11611210.3 | V113: 8302220.466 | Y113: 64.49784049 | Z113: 63.84634715 | AA113: 63.19485381 | AB113: 62.54336048 | AC113: 61.89186714 | AD113: 61.2403738 | AE113: 60.58888046 | AF113: 59.93738712 | AG113: 59.28589378 | AH113: 58.63440045 | AI113: 57.98290711 | AJ113: 57.33141377 | AK113: 56.67992043 | AL113: 56.02842709 | AM113: 55.37693375
R114: 180 | S114: 40 | T114: 62.50053877 | U114: 5371543.956 | V114: 5562396.578 | Y114: 61.87553338 | Z114: 61.25052799 | AA114: 60.6255226 | AB114: 60.00051722 | AC114: 59.37551183 | AD114: 58.75050644 | AE114: 58.12550105 | AF114: 57.50049567 | AG114: 56.87549028 | AH114: 56.25048489 | AI114: 55.6254795 | AJ114: 55.00047412 | AK114: 54.37546873 | AL114: 53.75046334 | AM114: 53.12545795
R115: 180 | S115: 50 | T115: 62.50053877 | U115: 6335061.156 | V115: 5939531.387 | Y115: 61.87553338 | Z115: 61.25052799 | AA115: 60.6255226 | AB115: 60.00051722 | AC115: 59.37551183 | AD115: 58.75050644 | AE115: 58.12550105 | AF115: 57.50049567 | AG115: 56.87549028 | AH115: 56.25048489 | AI115: 55.6254795 | AJ115: 55.00047412 | AK115: 54.37546873 | AL115: 53.75046334 | AM115: 53.12545795
R116: 180 | S116: 60 | T116: 62.50053877 | U116: 7254857.73 | V116: 6313989.559 | Y116: 61.87553338 | Z116: 61.25052799 | AA116: 60.6255226 | AB116: 60.00051722 | AC116: 59.37551183 | AD116: 58.75050644 | AE116: 58.12550105 | AF116: 57.50049567 | AG116: 56.87549028 | AH116: 56.25048489 | AI116: 55.6254795 | AJ116: 55.00047412 | AK116: 54.37546873 | AL116: 53.75046334 | AM116: 53.12545795
R117: 180 | S117: 70 | T117: 62.50053877 | U117: 8140492.305 | V117: 6686098.4 | Y117: 61.87553338 | Z117: 61.25052799 | AA117: 60.6255226 | AB117: 60.00051722 | AC117: 59.37551183 | AD117: 58.75050644 | AE117: 58.12550105 | AF117: 57.50049567 | AG117: 56.87549028 | AH117: 56.25048489 | AI117: 55.6254795 | AJ117: 55.00047412 | AK117: 54.37546873 | AL117: 53.75046334 | AM117: 53.12545795
R118: 180 | S118: 80 | T118: 62.50053877 | U118: 8998371.619 | V118: 7056133.868 | Y118: 61.87553338 | Z118: 61.25052799 | AA118: 60.6255226 | AB118: 60.00051722 | AC118: 59.37551183 | AD118: 58.75050644 | AE118: 58.12550105 | AF118: 57.50049567 | AG118: 56.87549028 | AH118: 56.25048489 | AI118: 55.6254795 | AJ118: 55.00047412 | AK118: 54.37546873 | AL118: 53.75046334 | AM118: 53.12545795
R119: 180 | S119: 90 | T119: 62.50053877 | U119: 9833054.028 | V119: 7424323.821 | Y119: 61.87553338 | Z119: 61.25052799 | AA119: 60.6255226 | AB119: 60.00051722 | AC119: 59.37551183 | AD119: 58.75050644 | AE119: 58.12550105 | AF119: 57.50049567 | AG119: 56.87549028 | AH119: 56.25048489 | AI119: 55.6254795 | AJ119: 55.00047412 | AK119: 54.37546873 | AL119: 53.75046334 | AM119: 53.12545795
R120: 180 | S120: 100 | T120: 62.50053877 | U120: 10647928.58 | V120: 7790856.744 | Y120: 61.87553338 | Z120: 61.25052799 | AA120: 60.6255226 | AB120: 60.00051722 | AC120: 59.37551183 | AD120: 58.75050644 | AE120: 58.12550105 | AF120: 57.50049567 | AG120: 56.87549028 | AH120: 56.25048489 | AI120: 55.6254795 | AJ120: 55.00047412 | AK120: 54.37546873 | AL120: 53.75046334 | AM120: 53.12545795
R121: 180 | S121: 110 | T121: 62.50053877 | U121: 11445601.58 | V121: 8155889.889 | Y121: 61.87553338 | Z121: 61.25052799 | AA121: 60.6255226 | AB121: 60.00051722 | AC121: 59.37551183 | AD121: 58.75050644 | AE121: 58.12550105 | AF121: 57.50049567 | AG121: 56.87549028 | AH121: 56.25048489 | AI121: 55.6254795 | AJ121: 55.00047412 | AK121: 54.37546873 | AL121: 53.75046334 | AM121: 53.12545795
R122: 180 | S122: 120 | T122: 62.50053877 | U122: 12228131.89 | V122: 8519555.799 | Y122: 61.87553338 | Z122: 61.25052799 | AA122: 60.6255226 | AB122: 60.00051722 | AC122: 59.37551183 | AD122: 58.75050644 | AE122: 58.12550105 | AF122: 57.50049567 | AG122: 56.87549028 | AH122: 56.25048489 | AI122: 55.6254795 | AJ122: 55.00047412 | AK122: 54.37546873 | AL122: 53.75046334 | AM122: 53.12545795
R123: 185 | S123: 40 | T123: 65.27201831 | U123: 5650033.442 | V123: 5635142.252 | Y123: 64.61929813 | Z123: 63.96657794 | AA123: 63.31385776 | AB123: 62.66113758 | AC123: 62.00841739 | AD123: 61.35569721 | AE123: 60.70297703 | AF123: 60.05025684 | AG123: 59.39753666 | AH123: 58.74481648 | AI123: 58.09209629 | AJ123: 57.43937611 | AK123: 56.78665593 | AL123: 56.13393575 | AM123: 55.48121556
R124: 185 | S124: 50 | T124: 65.27201831 | U124: 6659713.904 | V124: 6028286.788 | Y124: 64.61929813 | Z124: 63.96657794 | AA124: 63.31385776 | AB124: 62.66113758 | AC124: 62.00841739 | AD124: 61.35569721 | AE124: 60.70297703 | AF124: 60.05025684 | AG124: 59.39753666 | AH124: 58.74481648 | AI124: 58.09209629 | AJ124: 57.43937611 | AK124: 56.78665593 | AL124: 56.13393575 | AM124: 55.48121556
R125: 185 | S125: 60 | T125: 65.27201831 | U125: 7623128.872 | V125: 6418470.057 | Y125: 64.61929813 | Z125: 63.96657794 | AA125: 63.31385776 | AB125: 62.66113758 | AC125: 62.00841739 | AD125: 61.35569721 | AE125: 60.70297703 | AF125: 60.05025684 | AG125: 59.39753666 | AH125: 58.74481648 | AI125: 58.09209629 | AJ125: 57.43937611 | AK125: 56.78665593 | AL125: 56.13393575 | AM125: 55.48121556
R126: 185 | S126: 70 | T126: 65.27201831 | U126: 8550407.711 | V126: 6806080.339 | Y126: 64.61929813 | Z126: 63.96657794 | AA126: 63.31385776 | AB126: 62.66113758 | AC126: 62.00841739 | AD126: 61.35569721 | AE126: 60.70297703 | AF126: 60.05025684 | AG126: 59.39753666 | AH126: 58.74481648 | AI126: 58.09209629 | AJ126: 57.43937611 | AK126: 56.78665593 | AL126: 56.13393575 | AM126: 55.48121556
R127: 185 | S127: 80 | T127: 65.27201831 | U127: 9448337.191 | V127: 7191434.593 | Y127: =$T127*Y$77 -> 64.61929813 | Z127: 63.96657794 | AA127: 63.31385776 | AB127: 62.66113758 | AC127: 62.00841739 | AD127: 61.35569721 | AE127: 60.70297703 | AF127: 60.05025684 | AG127: 59.39753666 | AH127: 58.74481648 | AI127: 58.09209629 | AJ127: 57.43937611 | AK127: 56.78665593 | AL127: 56.13393575 | AM127: 55.48121556
R128: 185 | S128: 90 | T128: 65.27201831 | U128: 10321744.55 | V128: 7574789.934 | Y128: 64.61929813 | Z128: 63.96657794 | AA128: 63.31385776 | AB128: 62.66113758 | AC128: 62.00841739 | AD128: 61.35569721 | AE128: 60.70297703 | AF128: 60.05025684 | AG128: 59.39753666 | AH128: 58.74481648 | AI128: 58.09209629 | AJ128: 57.43937611 | AK128: 56.78665593 | AL128: 56.13393575 | AM128: 55.48121556
R129: 185 | S129: 100 | T129: 65.27201831 | U129: 11174217.75 | V129: 7956356.665 | Y129: 64.61929813 | Z129: 63.96657794 | AA129: 63.31385776 | AB129: 62.66113758 | AC129: 62.00841739 | AD129: 61.35569721 | AE129: 60.70297703 | AF129: 60.05025684 | AG129: 59.39753666 | AH129: 58.74481648 | AI129: 58.09209629 | AJ129: 57.43937611 | AK129: 56.78665593 | AL129: 56.13393575 | AM129: 55.48121556
R130: 185 | S130: 110 | T130: 65.27201831 | U130: 12008515.43 | V130: 8336308.865 | Y130: 64.61929813 | Z130: 63.96657794 | AA130: 63.31385776 | AB130: 62.66113758 | AC130: 62.00841739 | AD130: 61.35569721 | AE130: 60.70297703 | AF130: 60.05025684 | AG130: 59.39753666 | AH130: 58.74481648 | AI130: 58.09209629 | AJ130: 57.43937611 | AK130: 56.78665593 | AL130: 56.13393575 | AM130: 55.48121556
R131: 185 | S131: 120 | T131: 65.27201831 | U131: 12826816.3 | V131: 8714792.405 | Y131: 64.61929813 | Z131: 63.96657794 | AA131: 63.31385776 | AB131: 62.66113758 | AC131: 62.00841739 | AD131: 61.35569721 | AE131: 60.70297703 | AF131: 60.05025684 | AG131: 59.39753666 | AH131: 58.74481648 | AI131: 58.09209629 | AJ131: 57.43937611 | AK131: 56.78665593 | AL131: 56.13393575 | AM131: 55.48121556
R132: 190 | S132: 40 | T132: 68.33355473 | U132: 5948207.374 | V132: 5712895.892 | Y132: 67.65021918 | Z132: 66.96688364 | AA132: 66.28354809 | AB132: 65.60021254 | AC132: 64.916877 | AD132: 64.23354145 | AE132: 63.5502059 | AF132: 62.86687035 | AG132: 62.18353481 | AH132: 61.50019926 | AI132: 60.81686371 | AJ132: 60.13352816 | AK132: 59.45019262 | AL132: 58.76685707 | AM132: 58.08352152
R133: 190 | S133: 50 | T133: 68.33355473 | U133: 7007180.027 | V133: 6123207.931 | Y133: 67.65021918 | Z133: 66.96688364 | AA133: 66.28354809 | AB133: 65.60021254 | AC133: 64.916877 | AD133: 64.23354145 | AE133: 63.5502059 | AF133: 62.86687035 | AG133: 62.18353481 | AH133: 61.50019926 | AI133: 60.81686371 | AJ133: 60.13352816 | AK133: 59.45019262 | AL133: 58.76685707 | AM133: 58.08352152
R134: 190 | S134: 60 | T134: 68.33355473 | U134: 8017155.869 | V134: 6530256.046 | Y134: 67.65021918 | Z134: 66.96688364 | AA134: 66.28354809 | AB134: 65.60021254 | AC134: 64.916877 | AD134: 64.23354145 | AE134: 63.5502059 | AF134: 62.86687035 | AG134: 62.18353481 | AH134: 61.50019926 | AI134: 60.81686371 | AJ134: 60.13352816 | AK134: 59.45019262 | AL134: 58.76685707 | AM134: 58.08352152
R135: 190 | S135: 70 | T135: 68.33355473 | U135: 8988877.381 | V135: 6934492.766 | Y135: 67.65021918 | Z135: 66.96688364 | AA135: 66.28354809 | AB135: 65.60021254 | AC135: 64.916877 | AD135: 64.23354145 | AE135: 63.5502059 | AF135: 62.86687035 | AG135: 62.18353481 | AH135: 61.50019926 | AI135: 60.81686371 | AJ135: 60.13352816 | AK135: 59.45019262 | AL135: 58.76685707 | AM135: 58.08352152
R136: 190 | S136: 80 | T136: 68.33355473 | U136: 9929539.472 | V136: 7336278.349 | Y136: 67.65021918 | Z136: 66.96688364 | AA136: 66.28354809 | AB136: 65.60021254 | AC136: 64.916877 | AD136: 64.23354145 | AE136: 63.5502059 | AF136: 62.86687035 | AG136: 62.18353481 | AH136: 61.50019926 | AI136: 60.81686371 | AJ136: 60.13352816 | AK136: 59.45019262 | AL136: 58.76685707 | AM136: 58.08352152
R137: 190 | S137: 90 | T137: 68.33355473 | U137: 10844258.07 | V137: 7735900.868 | Y137: 67.65021918 | Z137: 66.96688364 | AA137: 66.28354809 | AB137: 65.60021254 | AC137: 64.916877 | AD137: 64.23354145 | AE137: 63.5502059 | AF137: 62.86687035 | AG137: 62.18353481 | AH137: 61.50019926 | AI137: 60.81686371 | AJ137: 60.13352816 | AK137: 59.45019262 | AL137: 58.76685707 | AM137: 58.08352152
R138: 190 | S138: 100 | T138: 68.33355473 | U138: 11736834.7 | V138: 8133593.752 | Y138: 67.65021918 | Z138: 66.96688364 | AA138: 66.28354809 | AB138: 65.60021254 | AC138: 64.916877 | AD138: 64.23354145 | AE138: 63.5502059 | AF138: 62.86687035 | AG138: 62.18353481 | AH138: 61.50019926 | AI138: 60.81686371 | AJ138: 60.13352816 | AK138: 59.45019262 | AL138: 58.76685707 | AM138: 58.08352152
R139: 190 | S139: 110 | T139: 68.33355473 | U139: 12610191.49 | V139: 8529548.935 | Y139: 67.65021918 | Z139: 66.96688364 | AA139: 66.28354809 | AB139: 65.60021254 | AC139: 64.916877 | AD139: 64.23354145 | AE139: 63.5502059 | AF139: 62.86687035 | AG139: 62.18353481 | AH139: 61.50019926 | AI139: 60.81686371 | AJ139: 60.13352816 | AK139: 59.45019262 | AL139: 58.76685707 | AM139: 58.08352152
R140: 190 | S140: 120 | T140: 68.33355473 | U140: 13466635.75 | V140: 8923926.455 | Y140: 67.65021918 | Z140: 66.96688364 | AA140: 66.28354809 | AB140: 65.60021254 | AC140: 64.916877 | AD140: 64.23354145 | AE140: 63.5502059 | AF140: 62.86687035 | AG140: 62.18353481 | AH140: 61.50019926 | AI140: 60.81686371 | AJ140: 60.13352816 | AK140: 59.45019262 | AL140: 58.76685707 | AM140: 58.08352152

Sheet Standard "Off-Design" Results
H1: Off-Design Results | L1: mdot_ref | M1: 71.451
H2: Flow | I2: Temp | J2: Pressure | K2: Power | L2: mdot | M2: mdot/mdot_ref | N2: Isentropic Eff | O2: isentropic enthalpy difference | Q2: PS Link Area
H3: 120 | I3: 190 | J3: 11.32833748 | K3: 6244.591042 | L3: 108.2995865 | M3: =L3/$M$1 -> 1.515718275 | N3: 0.7258069035 | O3: 100.1516511 | Q3: Area Name: | R3: ProjectArea1 | T3: Project Name: | U3: Geo_ORC_Chad 2018-03-07 | W3: Geo_ORC_Chad 2018-03-07 | X3: Geo_ORC_Chad 2018-03-07 | Y3: Geo_ORC_Chad 2018-03-07 | Z3: Geo_ORC_Chad 2018-03-07 | AA3: Geo_ORC_Chad 2018-03-07 | AB3: Geo_ORC_Chad 2018-03-07 | AC3: Geo_ORC_Chad 2018-03-07 | AD3: Geo_ORC_Chad 2018-03-07 | AE3: Geo_ORC_Chad 2018-03-07 | AF3: Geo_ORC_Chad 2018-03-07 | AG3: Geo_ORC_Chad 2018-03-07 | AH3: Geo_ORC_Chad 2018-03-07 | AI3: Geo_ORC_Chad 2018-03-07 | AJ3: Geo_ORC_Chad 2018-03-07 | AK3: Geo_ORC_Chad 2018-03-07 | AL3: Geo_ORC_Chad 2018-03-07 | AM3: Geo_ORC_Chad 2018-03-07 | AN3: Geo_ORC_Chad 2018-03-07 | AO3: Geo_ORC_Chad 2018-03-07 | AP3: Geo_ORC_Chad 2018-03-07 | AQ3: Geo_ORC_Chad 2018-03-07 | AR3: Geo_ORC_Chad 2018-03-07 | AS3: Geo_ORC_Chad 2018-03-07 | AT3: Geo_ORC_Chad 2018-03-07 | AU3: Geo_ORC_Chad 2018-03-07 | AV3: Geo_ORC_Chad 2018-03-07 | AW3: Geo_ORC_Chad 2018-03-07 | AX3: Geo_ORC_Chad 2018-03-07 | AY3: Geo_ORC_Chad 2018-03-07 | AZ3: Geo_ORC_Chad 2018-03-07 | BA3: Geo_ORC_Chad 2018-03-07 | BB3: Geo_ORC_Chad 2018-03-07 | BC3: Geo_ORC_Chad 2018-03-07 | BD3: Geo_ORC_Chad 2018-03-07 | BE3: Geo_ORC_Chad 2018-03-07 | BF3: Geo_ORC_Chad 2018-03-07 | BG3: Geo_ORC_Chad 2018-03-07 | BH3: Geo_ORC_Chad 2018-03-07 | BI3: Geo_ORC_Chad 2018-03-07 | BJ3: Geo_ORC_Chad 2018-03-07 | BK3: Geo_ORC_Chad 2018-03-07 | BL3: Geo_ORC_Chad 2018-03-07 | BM3: Geo_ORC_Chad 2018-03-07 | BN3: Geo_ORC_Chad 2018-03-07 | BO3: Geo_ORC_Chad 2018-03-07 | BP3: Geo_ORC_Chad 2018-03-07 | BQ3: Geo_ORC_Chad 2018-03-07 | BR3: Geo_ORC_Chad 2018-03-07 | BS3: Geo_ORC_Chad 2018-03-07 | BT3: Geo_ORC_Chad 2018-03-07 | BU3: Geo_ORC_Chad 2018-03-07 | BV3: Geo_ORC_Chad 2018-03-07 | BW3: Geo_ORC_Chad 2018-03-07 | BX3: Geo_ORC_Chad 2018-03-07 | BY3: Geo_ORC_Chad 2018-03-07 | BZ3: Geo_ORC_Chad 2018-03-07 | CA3: Geo_ORC_Chad 2018-03-07 | CB3: Geo_ORC_Chad 2018-03-07 | CC3: Geo_ORC_Chad 2018-03-07 | CD3: Geo_ORC_Chad 2018-03-07 | CE3: Geo_ORC_Chad 2018-03-07 | CF3: Geo_ORC_Chad 2018-03-07 | CG3: Geo_ORC_Chad 2018-03-07
H4: 120 | I4: 180 | J4: 10.01040039 | K4: 5341.80412 | L4: 96.39249079 | M4: =L4/$M$1 -> 1.349071263 | N4: 0.7358057242 | O4: 95.51771164 | Q4: Project Location: | R4: C:\Users\caugusti\Desktop\IPSEpro\GTO CEMAC Binary Plant | T4: Dataset Id: | U4: 1 | W4: 1 | X4: 1 | Y4: 1 | Z4: 1 | AA4: 1 | AB4: 1 | AC4: 1 | AD4: 1 | AE4: 1 | AF4: 1 | AG4: 1 | AH4: 1 | AI4: 1 | AJ4: 1 | AK4: 1 | AL4: 1 | AM4: 1 | AN4: 1 | AO4: 1 | AP4: 1 | AQ4: 1 | AR4: 1 | AS4: 1 | AT4: 1 | AU4: 1 | AV4: 1 | AW4: 1 | AX4: 1 | AY4: 1 | AZ4: 1 | BA4: 1 | BB4: 1 | BC4: 1 | BD4: 1 | BE4: 1 | BF4: 1 | BG4: 1 | BH4: 1 | BI4: 1 | BJ4: 1 | BK4: 1 | BL4: 1 | BM4: 1 | BN4: 1 | BO4: 1 | BP4: 1 | BQ4: 1 | BR4: 1 | BS4: 1 | BT4: 1 | BU4: 1 | BV4: 1 | BW4: 1 | BX4: 1 | BY4: 1 | BZ4: 1 | CA4: 1 | CB4: 1 | CC4: 1 | CD4: 1 | CE4: 1 | CF4: 1 | CG4: 1
H5: 120 | I5: 170 | J5: 8.820081305 | K5: 4533.253075 | L5: 85.52571339 | M5: 1.196984134 | N5: 0.744863095 | O5: 90.6371104 | Q5: Library: | R5: C:\ProgramData\SimTech\IPSEpro 7.0\LTP_Lib\LTP_Lib.iml | U5: Off-Design with n-Pentane | W5: Off-Design with n-Pentane | X5: Off-Design with n-Pentane | Y5: Off-Design with n-Pentane | Z5: Off-Design with n-Pentane | AA5: Off-Design with n-Pentane | AB5: Off-Design with n-Pentane | AC5: Off-Design with n-Pentane | AD5: Off-Design with n-Pentane | AE5: Off-Design with n-Pentane | AF5: Off-Design with n-Pentane | AG5: Off-Design with n-Pentane | AH5: Off-Design with n-Pentane | AI5: Off-Design with n-Pentane | AJ5: Off-Design with n-Pentane | AK5: Off-Design with n-Pentane | AL5: Off-Design with n-Pentane | AM5: Off-Design with n-Pentane | AN5: Off-Design with n-Pentane | AO5: Off-Design with n-Pentane | AP5: Off-Design with n-Pentane | AQ5: Off-Design with n-Pentane | AR5: Off-Design with n-Pentane | AS5: Off-Design with n-Pentane | AT5: Off-Design with n-Pentane | AU5: Off-Design with n-Pentane | AV5: Off-Design with n-Pentane | AW5: Off-Design with n-Pentane | AX5: Off-Design with n-Pentane | AY5: Off-Design with n-Pentane | AZ5: Off-Design with n-Pentane | BA5: Off-Design with n-Pentane | BB5: Off-Design with n-Pentane | BC5: Off-Design with n-Pentane | BD5: Off-Design with n-Pentane | BE5: Off-Design with n-Pentane | BF5: Off-Design with n-Pentane | BG5: Off-Design with n-Pentane | BH5: Off-Design with n-Pentane | BI5: Off-Design with n-Pentane | BJ5: Off-Design with n-Pentane | BK5: Off-Design with n-Pentane | BL5: Off-Design with n-Pentane | BM5: Off-Design with n-Pentane | BN5: Off-Design with n-Pentane | BO5: Off-Design with n-Pentane | BP5: Off-Design with n-Pentane | BQ5: Off-Design with n-Pentane | BR5: Off-Design with n-Pentane | BS5: Off-Design with n-Pentane | BT5: Off-Design with n-Pentane | BU5: Off-Design with n-Pentane | BV5: Off-Design with n-Pentane | BW5: Off-Design with n-Pentane | BX5: Off-Design with n-Pentane | BY5: Off-Design with n-Pentane | BZ5: Off-Design with n-Pentane | CA5: Off-Design with n-Pentane | CB5: Off-Design with n-Pentane | CC5: Off-Design with n-Pentane | CD5: Off-Design with n-Pentane | CE5: Off-Design with n-Pentane | CF5: Off-Design with n-Pentane | CG5: Off-Design with n-Pentane
H6: 120 | I6: 160 | J6: 7.738148193 | K6: 3755.755546 | L6: 75.56123836 | M6: 1.057525274 | N6: 0.7491371209 | O6: 85.9493345 | T6: Date: | U6: 2017-09-01 | W6: 2018-03-31 | X6: 2018-03-31 | Y6: 2018-03-31 | Z6: 2018-03-31 | AA6: 2018-03-31 | AB6: 2018-03-31 | AC6: 2018-03-31 | AD6: 2018-03-31 | AE6: 2018-03-31 | AF6: 2018-03-31 | AG6: 2018-03-31 | AH6: 2018-03-31 | AI6: 2018-03-31 | AJ6: 2018-03-31 | AK6: 2018-03-31 | AL6: 2018-03-31 | AM6: 2018-03-31 | AN6: 2018-03-31 | AO6: 2018-03-30 | AP6: 2018-03-30 | AQ6: 2018-03-30 | AR6: 2018-03-30 | AS6: 2018-03-30 | AT6: 2018-03-30 | AU6: 2018-03-30 | AV6: 2018-03-30 | AW6: 2018-03-30 | AX6: 2018-03-30 | AY6: 2018-03-30 | AZ6: 2018-03-30 | BA6: 2018-03-30 | BB6: 2018-03-30 | BC6: 2018-03-30 | BD6: 2018-03-30 | BE6: 2018-03-30 | BF6: 2018-03-30 | BG6: 2018-03-30 | BH6: 2018-03-30 | BI6: 2018-03-30 | BJ6: 2018-03-30 | BK6: 2018-03-30 | BL6: 2018-03-30 | BM6: 2018-03-30 | BN6: 2018-04-02 | BO6: 2018-03-30 | BP6: 2018-03-30 | BQ6: 2018-03-30 | BR6: 2018-03-30 | BS6: 2018-03-30 | BT6: 2018-03-30 | BU6: 2018-03-30 | BV6: 2018-03-30 | BW6: 2018-03-30 | BX6: 2018-03-30 | BY6: 2018-03-30 | BZ6: 2018-03-30 | CA6: 2018-03-30 | CB6: 2018-03-30 | CC6: 2018-03-30 | CD6: 2018-03-30 | CE6: 2018-03-30 | CF6: 2018-03-30 | CG6: 2018-03-30
H7: 80 | I7: 190 | J7: 8.645024377 | K7: 4407.992302 | L7: 83.9180555 | M7: 1.174483989 | N7: 0.7457068504 | O7: 89.81236255 | T7: Start Time: | U7: 14:39:43 | W7: 07:39:42 | X7: 07:38:48 | Y7: 07:38:04 | Z7: 07:37:18 | AA7: 07:36:35 | AB7: 07:35:57 | AC7: 07:35:10 | AD7: 07:34:17 | AE7: 07:32:52 | AF7: 07:32:22 | AG7: 07:31:28 | AH7: 07:31:00 | AI7: 07:30:33 | AJ7: 07:29:58 | AK7: 07:29:37 | AL7: 07:29:08 | AM7: 07:28:41 | AN7: 07:27:45 | AO7: 16:47:47 | AP7: 16:46:31 | AQ7: 16:45:58 | AR7: 16:45:36 | AS7: 16:45:08 | AT7: 16:43:59 | AU7: 16:43:48 | AV7: 16:43:17 | AW7: 16:42:56 | AX7: 16:33:43 | AY7: 16:33:13 | AZ7: 16:32:39 | BA7: 16:32:02 | BB7: 16:30:57 | BC7: 16:30:37 | BD7: 16:29:49 | BE7: 16:29:14 | BF7: 16:28:16 | BG7: 16:27:45 | BH7: 16:27:25 | BI7: 16:27:01 | BJ7: 16:26:28 | BK7: 16:25:57 | BL7: 16:25:37 | BM7: 16:25:14 | BN7: 10:18:30 | BO7: 16:24:17 | BP7: 16:21:27 | BQ7: 12:33:06 | BR7: 12:32:49 | BS7: 12:32:31 | BT7: 12:32:18 | BU7: 12:31:59 | BV7: 12:31:07 | BW7: 12:30:26 | BX7: 12:29:39 | BY7: 12:29:07 | BZ7: 12:28:46 | CA7: 12:28:21 | CB7: 12:27:54 | CC7: 12:27:01 | CD7: 12:26:41 | CE7: 12:26:21 | CF7: 12:25:53 | CG7: 12:24:50
E8: Error | H8: 80 | I8: 180 | J8: 7.735199951 | K8: 3758.00259 | L8: 75.50698957 | M8: 1.056766029 | N8: 0.7491485096 | O8: 84.74148861 | T8: End Time: | U8: 14:39:43 | W8: 07:39:42 | X8: 07:38:49 | Y8: 07:38:05 | Z8: 07:37:18 | AA8: 07:36:35 | AB8: 07:35:57 | AC8: 07:35:11 | AD8: 07:34:18 | AE8: 07:32:53 | AF8: 07:32:22 | AG8: 07:31:28 | AH8: 07:31:01 | AI8: 07:30:34 | AJ8: 07:29:58 | AK8: 07:29:37 | AL8: 07:29:08 | AM8: 07:28:41 | AN8: 07:27:46 | AO8: 16:47:47 | AP8: 16:46:31 | AQ8: 16:45:59 | AR8: 16:45:36 | AS8: 16:45:08 | AT8: 16:43:59 | AU8: 16:43:48 | AV8: 16:43:18 | AW8: 16:42:56 | AX8: 16:33:44 | AY8: 16:33:14 | AZ8: 16:32:39 | BA8: 16:32:03 | BB8: 16:30:57 | BC8: 16:30:37 | BD8: 16:29:50 | BE8: 16:29:14 | BF8: 16:28:16 | BG8: 16:27:45 | BH8: 16:27:25 | BI8: 16:27:02 | BJ8: 16:26:29 | BK8: 16:25:57 | BL8: 16:25:37 | BM8: 16:25:15 | BN8: 10:18:30 | BO8: 16:24:17 | BP8: 16:21:27 | BQ8: 12:33:06 | BR8: 12:32:50 | BS8: 12:32:31 | BT8: 12:32:18 | BU8: 12:31:59 | BV8: 12:31:08 | BW8: 12:30:26 | BX8: 12:29:39 | BY8: 12:29:07 | BZ8: 12:28:46 | CA8: 12:28:21 | CB8: 12:27:54 | CC8: 12:27:02 | CD8: 12:26:41 | CE8: 12:26:21 | CF8: 12:25:53 | CG8: 12:24:50
H9: 80 | I9: 170 | J9: 6.895312653 | K9: 3139.049512 | L9: 67.67946342 | M9: 0.9472150624 | N9: 0.7460411297 | O9: 80.06103673 | S9: 0 | T9: Status: | U9: Converged | W9: Converged | X9: Converged | Y9: Converged | Z9: Converged | AA9: Converged | AB9: Converged | AC9: Converged | AD9: Converged | AE9: Converged | AF9: Converged | AG9: Converged | AH9: Converged | AI9: Converged | AJ9: Converged | AK9: Converged | AL9: Converged | AM9: Converged | AN9: Converged | AO9: Converged | AP9: Converged | AQ9: Converged | AR9: Converged | AS9: Converged | AT9: Converged | AU9: Converged | AV9: Converged | AW9: Converged | AX9: Converged | AY9: Converged | AZ9: Converged | BA9: Converged | BB9: Converged | BC9: Converged | BD9: Converged | BE9: Converged | BF9: Converged | BG9: Converged | BH9: Converged | BI9: Converged | BJ9: Converged | BK9: Converged | BL9: Converged | BM9: Converged | BN9: Converged | BO9: Converged | BP9: Converged | BQ9: Converged | BR9: Converged | BS9: Converged | BT9: Converged | BU9: Converged | BV9: Converged | BW9: Converged | BX9: Converged | BY9: Converged | BZ9: Converged | CA9: Converged | CB9: Converged | CC9: Converged | CD9: Converged | CE9: Converged | CF9: Converged | CG9: Converged
H10: 80 | I10: 160 | J10: 6.116551969 | K10: 2552.257856 | L10: 60.38718781 | M10: 0.8451552507 | N10: 0.7363299657 | O10: 76.52997081 | Q10: PS Control
H11: 40 | I11: 190 | J11: 5.144404825 | K11: 1852.426319 | L11: 51.0435186 | M11: 0.7143849435 | N11: 0.7119866123 | O11: 67.4012211 | T11: Damping | U11: Yes | W11: Yes | X11: Yes | Y11: Yes | Z11: Yes | AA11: Yes | AB11: Yes | AC11: Yes | AD11: Yes | AE11: Yes | AF11: Yes | AG11: Yes | AH11: Yes | AI11: Yes | AJ11: Yes | AK11: Yes | AL11: Yes | AM11: Yes | AN11: Yes | AO11: Yes | AP11: Yes | AQ11: Yes | AR11: Yes | AS11: Yes | AT11: Yes | AU11: Yes | AV11: Yes | AW11: Yes | AX11: Yes | AY11: Yes | AZ11: Yes | BA11: Yes | BB11: Yes | BC11: Yes | BD11: Yes | BE11: Yes | BF11: Yes | BG11: Yes | BH11: Yes | BI11: Yes | BJ11: Yes | BK11: Yes | BL11: Yes | BM11: Yes | BN11: Yes | BO11: Yes | BP11: Yes | BQ11: Yes | BR11: Yes | BS11: Yes | BT11: Yes | BU11: Yes | BV11: Yes | BW11: Yes | BX11: Yes | BY11: Yes | BZ11: Yes | CA11: Yes | CB11: Yes | CC11: Yes | CD11: Yes | CE11: Yes | CF11: Yes | CG11: Yes
H12: 40 | I12: 180 | J12: 4.687156345 | K12: 1528.12486 | L12: 46.62057512 | M12: 0.652483172 | N12: 0.6927130705 | O12: 63.6889655 | T12: Damping Decrease Factor | U12: 0.5 | W12: 0.5 | X12: 0.5 | Y12: 0.5 | Z12: 0.5 | AA12: 0.5 | AB12: 0.5 | AC12: 0.5 | AD12: 0.5 | AE12: 0.5 | AF12: 0.5 | AG12: 0.5 | AH12: 0.5 | AI12: 0.5 | AJ12: 0.5 | AK12: 0.5 | AL12: 0.5 | AM12: 0.5 | AN12: 0.5 | AO12: 0.5 | AP12: 0.5 | AQ12: 0.5 | AR12: 0.5 | AS12: 0.5 | AT12: 0.5 | AU12: 0.5 | AV12: 0.5 | AW12: 0.5 | AX12: 0.5 | AY12: 0.5 | AZ12: 0.5 | BA12: 0.5 | BB12: 0.5 | BC12: 0.5 | BD12: 0.5 | BE12: 0.5 | BF12: 0.5 | BG12: 0.5 | BH12: 0.5 | BI12: 0.5 | BJ12: 0.5 | BK12: 0.5 | BL12: 0.5 | BM12: 0.5 | BN12: 0.5 | BO12: 0.5 | BP12: 0.5 | BQ12: 0.5 | BR12: 0.5 | BS12: 0.5 | BT12: 0.5 | BU12: 0.5 | BV12: 0.5 | BW12: 0.5 | BX12: 0.5 | BY12: 0.5 | BZ12: 0.5 | CA12: 0.5 | CB12: 0.5 | CC12: 0.5 | CD12: 0.5 | CE12: 0.5 | CF12: 0.5 | CG12: 0.5
H13: 40 | I13: 170 | J13: 4.254868 | K13: 1231.774761 | L13: 42.39781048 | M13: 0.5933830244 | N13: 0.6710298146 | O13: 59.66433536 | T13: Minimum Damping Factor | U13: 0.1 | W13: 0.1 | X13: 0.1 | Y13: 0.1 | Z13: 0.1 | AA13: 0.1 | AB13: 0.1 | AC13: 0.1 | AD13: 0.1 | AE13: 0.1 | AF13: 0.1 | AG13: 0.1 | AH13: 0.1 | AI13: 0.1 | AJ13: 0.1 | AK13: 0.1 | AL13: 0.1 | AM13: 0.1 | AN13: 0.1 | AO13: 0.1 | AP13: 0.1 | AQ13: 0.1 | AR13: 0.1 | AS13: 0.1 | AT13: 0.1 | AU13: 0.1 | AV13: 0.1 | AW13: 0.1 | AX13: 0.1 | AY13: 0.1 | AZ13: 0.1 | BA13: 0.1 | BB13: 0.1 | BC13: 0.1 | BD13: 0.1 | BE13: 0.1 | BF13: 0.1 | BG13: 0.1 | BH13: 0.1 | BI13: 0.1 | BJ13: 0.1 | BK13: 0.1 | BL13: 0.1 | BM13: 0.1 | BN13: 0.1 | BO13: 0.1 | BP13: 0.1 | BQ13: 0.1 | BR13: 0.1 | BS13: 0.1 | BT13: 0.1 | BU13: 0.1 | BV13: 0.1 | BW13: 0.1 | BX13: 0.1 | BY13: 0.1 | BZ13: 0.1 | CA13: 0.1 | CB13: 0.1 | CC13: 0.1 | CD13: 0.1 | CE13: 0.1 | CF13: 0.1 | CG13: 0.1
H14: 40 | I14: 160 | J14: 3.847569951 | K14: 952.7981159 | L14: 38.35611991 | M14: 0.5368171181 | N14: 0.6370902709 | O14: 55.28858089 | T14: X Tolerance | U14: 0.01 | W14: 0.01 | X14: 0.01 | Y14: 0.01 | Z14: 0.01 | AA14: 0.01 | AB14: 0.01 | AC14: 0.01 | AD14: 0.01 | AE14: 0.01 | AF14: 0.01 | AG14: 0.01 | AH14: 0.01 | AI14: 0.01 | AJ14: 0.01 | AK14: 0.01 | AL14: 0.01 | AM14: 0.01 | AN14: 0.01 | AO14: 0.01 | AP14: 0.01 | AQ14: 0.01 | AR14: 0.01 | AS14: 0.01 | AT14: 0.01 | AU14: 0.01 | AV14: 0.01 | AW14: 0.01 | AX14: 0.01 | AY14: 0.01 | AZ14: 0.01 | BA14: 0.01 | BB14: 0.01 | BC14: 0.01 | BD14: 0.01 | BE14: 0.01 | BF14: 0.01 | BG14: 0.01 | BH14: 0.01 | BI14: 0.01 | BJ14: 0.01 | BK14: 0.01 | BL14: 0.01 | BM14: 0.01 | BN14: 0.01 | BO14: 0.01 | BP14: 0.01 | BQ14: 0.01 | BR14: 0.01 | BS14: 0.01 | BT14: 0.01 | BU14: 0.01 | BV14: 0.01 | BW14: 0.01 | BX14: 0.01 | BY14: 0.01 | BZ14: 0.01 | CA14: 0.01 | CB14: 0.01 | CC14: 0.01 | CD14: 0.01 | CE14: 0.01 | CF14: 0.01 | CG14: 0.01
T15: Y Tolerance | U15: 0.01 | W15: 0.01 | X15: 0.01 | Y15: 0.01 | Z15: 0.01 | AA15: 0.01 | AB15: 0.01 | AC15: 0.01 | AD15: 0.01 | AE15: 0.01 | AF15: 0.01 | AG15: 0.01 | AH15: 0.01 | AI15: 0.01 | AJ15: 0.01 | AK15: 0.01 | AL15: 0.01 | AM15: 0.01 | AN15: 0.01 | AO15: 0.01 | AP15: 0.01 | AQ15: 0.01 | AR15: 0.01 | AS15: 0.01 | AT15: 0.01 | AU15: 0.01 | AV15: 0.01 | AW15: 0.01 | AX15: 0.01 | AY15: 0.01 | AZ15: 0.01 | BA15: 0.01 | BB15: 0.01 | BC15: 0.01 | BD15: 0.01 | BE15: 0.01 | BF15: 0.01 | BG15: 0.01 | BH15: 0.01 | BI15: 0.01 | BJ15: 0.01 | BK15: 0.01 | BL15: 0.01 | BM15: 0.01 | BN15: 0.01 | BO15: 0.01 | BP15: 0.01 | BQ15: 0.01 | BR15: 0.01 | BS15: 0.01 | BT15: 0.01 | BU15: 0.01 | BV15: 0.01 | BW15: 0.01 | BX15: 0.01 | BY15: 0.01 | BZ15: 0.01 | CA15: 0.01 | CB15: 0.01 | CC15: 0.01 | CD15: 0.01 | CE15: 0.01 | CF15: 0.01 | CG15: 0.01
T16: Extended Protocol | U16: Yes | W16: Yes | X16: Yes | Y16: Yes | Z16: Yes | AA16: Yes | AB16: Yes | AC16: Yes | AD16: Yes | AE16: Yes | AF16: Yes | AG16: Yes | AH16: Yes | AI16: Yes | AJ16: Yes | AK16: Yes | AL16: Yes | AM16: Yes | AN16: Yes | AO16: Yes | AP16: Yes | AQ16: Yes | AR16: Yes | AS16: Yes | AT16: Yes | AU16: Yes | AV16: Yes | AW16: Yes | AX16: Yes | AY16: Yes | AZ16: Yes | BA16: Yes | BB16: Yes | BC16: Yes | BD16: Yes | BE16: Yes | BF16: Yes | BG16: Yes | BH16: Yes | BI16: Yes | BJ16: Yes | BK16: Yes | BL16: Yes | BM16: Yes | BN16: Yes | BO16: Yes | BP16: Yes | BQ16: Yes | BR16: Yes | BS16: Yes | BT16: Yes | BU16: Yes | BV16: Yes | BW16: Yes | BX16: Yes | BY16: Yes | BZ16: Yes | CA16: Yes | CB16: Yes | CC16: Yes | CD16: Yes | CE16: Yes | CF16: Yes | CG16: Yes
Q17: PS Control End
R20: Variables
Q21: Object | R21: Item | S21: UOM | T21: Description | U21: Value | W21: Value | X21: Value | Y21: Value | Z21: Value | AA21: Value | AB21: Value | AC21: Value | AD21: Value | AE21: Value | AF21: Value | AG21: Value | AH21: Value | AI21: Value | AJ21: Value | AK21: Value | AL21: Value | AM21: Value | AN21: Value | AO21: Value | AP21: Value | AQ21: Value | AR21: Value | AS21: Value | AT21: Value | AU21: Value | AV21: Value | AW21: Value | AX21: Value | AY21: Value | AZ21: Value | BA21: Value | BB21: Value | BC21: Value | BD21: Value | BE21: Value | BF21: Value | BG21: Value | BH21: Value | BI21: Value | BJ21: Value | BK21: Value | BL21: Value | BM21: Value | BN21: Value | BO21: Value | BP21: Value | BQ21: Value | BR21: Value | BS21: Value | BT21: Value | BU21: Value | BV21: Value | BW21: Value | BX21: Value | BY21: Value | BZ21: Value | CA21: Value | CB21: Value | CC21: Value | CD21: Value | CE21: Value | CF21: Value | CG21: Value
Q22: PS Inputs
Q23: W_Stream001 | R23: mass | S23: kg/s | T23: mass flow | U23: 40 | W23: 40 | X23: 50 | Y23: 60 | Z23: 70 | AA23: 80 | AB23: 90 | AC23: 100 | AD23: 110 | AE23: 120 | AF23: 40 | AG23: 50 | AH23: 60 | AI23: 70 | AJ23: 80 | AK23: 90 | AL23: 100 | AM23: 110 | AN23: 120 | AO23: 40 | AP23: 50 | AQ23: 60 | AR23: 70 | AS23: 80 | AT23: 90 | AU23: 100 | AV23: 110 | AW23: 120 | AX23: 40 | AY23: 50 | AZ23: 60 | BA23: 70 | BB23: 80 | BC23: 90 | BD23: 100 | BE23: 110 | BF23: 120 | BG23: 40 | BH23: 50 | BI23: 60 | BJ23: 70 | BK23: 80 | BL23: 90 | BM23: 100 | BN23: 110 | BO23: 120 | BP23: 40 | BQ23: 50 | BR23: 60 | BS23: 70 | BT23: 80 | BU23: 90 | BV23: 100 | BW23: 110 | BX23: 120 | BY23: 40 | BZ23: 50 | CA23: 60 | CB23: 70 | CC23: 80 | CD23: 90 | CE23: 100 | CF23: 110 | CG23: 120
E24: 5.59607373 | Q24: W_Stream001 | R24: t | S24: °C | T24: temperature | U24: 160 | W24: 160 | X24: 160 | Y24: 160 | Z24: 160 | AA24: 160 | AB24: 160 | AC24: 160 | AD24: 160 | AE24: 160 | AF24: 165 | AG24: 165 | AH24: 165 | AI24: 165 | AJ24: 165 | AK24: 165 | AL24: 165 | AM24: 165 | AN24: 165 | AO24: 170 | AP24: 170 | AQ24: 170 | AR24: 170 | AS24: 170 | AT24: 170 | AU24: 170 | AV24: 170 | AW24: 170 | AX24: 175 | AY24: 175 | AZ24: 175 | BA24: 175 | BB24: 175 | BC24: 175 | BD24: 175 | BE24: 175 | BF24: 175 | BG24: 180 | BH24: 180 | BI24: 180 | BJ24: 180 | BK24: 180 | BL24: 180 | BM24: 180 | BN24: 180 | BO24: 180 | BP24: 185 | BQ24: 185 | BR24: 185 | BS24: 185 | BT24: 185 | BU24: 185 | BV24: 185 | BW24: 185 | BX24: 185 | BY24: 190 | BZ24: 190 | CA24: 190 | CB24: 190 | CC24: 190 | CD24: 190 | CE24: 190 | CF24: 190 | CG24: 190
Q25: O_Stream001 | R25: p | S25: bar | T25: pressure | U25: 3.847569951 | W25: 3.968673152 | X25: 4.635622211 | Y25: 5.23780144 | Z25: 5.786423485 | AA25: 6.286578227 | AB25: 6.746843818 | AC25: 7.1694838 | AD25: 7.560841361 | AE25: 7.923404721 | AF25: 4.178873737 | AG25: 4.895129717 | AH25: 5.544312308 | AI25: 6.137152922 | AJ25: 6.68128028 | AK25: 7.18184323 | AL25: 7.644247211 | AM25: 8.071487851 | AN25: 8.468673029 | AO25: 4.394224815 | AP25: 5.162777087 | AQ25: 5.862777087 | AR25: 6.503737087 | AS25: 7.093128049 | AT25: 7.636 | AU25: 8.139737087 | AV25: 8.606692574 | AW25: 9.041179941 | AX25: 4.6177482 | AY25: 5.43881475 | AZ25: 6.191410065 | BA25: 6.883222721 | BB25: 7.52 | BC25: 8.110703734 | BD25: 8.65830213 | BE25: 9.167523258 | BF25: 9.641770237 | BG25: 4.845686697 | BH25: 5.725319877 | BI25: 6.532991822 | BJ25: 7.277753271 | BK25: 7.966759763 | BL25: 8.605839198 | BM25: 9.20117472 | BN25: 9.756 | BO25: 10.2737856 | BP25: 5.08128028 | BQ25: 6.02 | BR25: 6.886275996 | BS25: 7.686578227 | BT25: 8.430502442 | BU25: 9.123518387 | BV25: 9.76948376 | BW25: 10.3737855 | BX25: 10.94025447 | BY25: 5.323518437 | BZ25: 6.325319877 | CA25: 7.25161475 | CB25: 8.113128002 | CC25: 8.915408525 | CD25: 9.664810237 | CE25: 10.36699021 | CF25: 11.02461561 | CG25: 11.64308097
Q26: O_Stream002 | R26: p | S26: bar | T26: pressure | U26: 0.8186288866 | W26: 0.817 | X26: 0.817 | Y26: 0.817 | Z26: 0.817 | AA26: 0.817 | AB26: 0.817 | AC26: 0.817 | AD26: 0.817 | AE26: 0.817 | AF26: 0.817 | AG26: 0.817 | AH26: 0.817 | AI26: 0.817 | AJ26: 0.817 | AK26: 0.817 | AL26: 0.817 | AM26: 0.817 | AN26: 0.817 | AO26: 0.817 | AP26: 0.817 | AQ26: 0.817 | AR26: 0.817 | AS26: 0.817 | AT26: 0.817 | AU26: 0.817 | AV26: 0.817 | AW26: 0.817 | AX26: 0.817 | AY26: 0.817 | AZ26: 0.817 | BA26: 0.817 | BB26: 0.817 | BC26: 0.817 | BD26: 0.817 | BE26: 0.817 | BF26: 0.817 | BG26: 0.817 | BH26: 0.817 | BI26: 0.817 | BJ26: 0.817 | BK26: 0.817 | BL26: 0.817 | BM26: 0.817 | BN26: 0.817 | BO26: 0.817 | BP26: 0.817 | BQ26: 0.817 | BR26: 0.817 | BS26: 0.817 | BT26: 0.817 | BU26: 0.817 | BV26: 0.817 | BW26: 0.817 | BX26: 0.817 | BY26: 0.817 | BZ26: 0.817 | CA26: 0.817 | CB26: 0.817 | CC26: 0.817 | CD26: 0.817 | CE26: 0.817 | CF26: 0.817 | CG26: 0.817
Q27: PS Inputs End
Q30: PS Outputs
Q31: generator001 | R31: power | S31: kW | T31: electrical power output | U31: 1297.547409 | W31: 1406.025049 | X31: 1956.024878 | Y31: 2479.150985 | Z31: 2954.317459 | AA31: 3420.574531 | AB31: 3816.132313 | AC31: 4222.726004 | AD31: 4568.233624 | AE31: 4875.02084 | AF31: 1574.290856 | AG31: 2173.727598 | AH31: 2755.269934 | AI31: 3302.819908 | AJ31: 3783.079175 | AK31: 4230.496382 | AL31: 4628.432772 | AM31: 5015.83797 | AN31: 5358.475328 | AO31: 1770.993062 | AP31: 2412.616767 | AQ31: 3029.555112 | AR31: 3597.106204 | AS31: 4126.784952 | AT31: 4653.821411 | AU31: 5060.505591 | AV31: 5469.156532 | AW31: 5850.033741 | AX31: 1941.647232 | AY31: 2663.14933 | AZ31: 3333.861527 | BA31: 3943.263409 | BB31: 4559.105002 | BC31: 5041.727602 | BD31: 5507.710733 | BE31: 5949.524921 | BF31: 6381.910122 | BG31: 2141.291362 | BH31: 2903.817808 | BI31: 3623.180503 | BJ31: 4286.086621 | BK31: 4908.230809 | BL31: 5475.014262 | BM31: 5970.2871 | BN31: 6426.37793 | BO31: 6928.316152 | BP31: 2345.05522 | BQ31: 3179.715614 | BR31: 3940.316822 | BS31: 4697.915012 | BT31: 5347.301718 | BU31: 5922.454362 | BV31: 6460.840612 | BW31: 6978.290342 | BX31: 7437.862647 | BY31: 2560.821533 | BZ31: 3438.644457 | CA31: 4295.012772 | CB31: 5048.471843 | CC31: 5751.607117 | CD31: 6386.60296 | CE31: 6937.730974 | CF31: 7518.710792 | CG31: 8021.094675
Q32: motor001 | R32: power | S32: kW | T32: electrical power input | U32: 32.58444005 | W32: 29.4135935 | X32: 40.35808539 | Y32: 53.39473825 | Z32: 66.85546554 | AA32: 80.18839501 | AB32: 93.75484446 | AC32: 106.80242 | AD32: 119.8849475 | AE32: 132.6038882 | AF32: 32.19621195 | AG32: 45.77959028 | AH32: 60.64757362 | AI32: 75.9678784 | AJ32: 91.60092453 | AK32: 107.2257866 | AL32: 122.8319631 | AM32: 137.8730227 | AN32: 152.7477782 | AO32: 35.53929631 | AP32: 51.68185388 | AQ32: 68.80187297 | AR32: 86.5233641 | AS32: 104.5335972 | AT32: 122.3183352 | AU32: 140.4816946 | AV32: 158.139815 | AW32: 175.462964 | AX32: 39.99507849 | AY32: 58.07563293 | AZ32: 77.54885819 | BA32: 97.89695042 | BB32: 118.3061375 | BC32: 139.3664391 | BD32: 160.199849 | BE32: 180.7444146 | BF32: 200.5794997 | BG32: 44.66684338 | BH32: 65.26162267 | BI32: 87.37697587 | BJ32: 110.5063776 | BK32: 134.1885874 | BL32: 158.0594139 | BM32: 182.2013685 | BN32: 206.0120394 | BO32: 228.9707667 | BP32: 49.81271852 | BQ32: 72.90704159 | BR32: 98.02710586 | BS32: 124.068345 | BT32: 151.1260499 | BU32: 178.8445383 | BV32: 206.4312589 | BW32: 233.9369746 | BX32: 261.434674 | BY32: 55.34314743 | BZ32: 81.38726473 | CA32: 109.4881417 | CB32: 139.4226987 | CC32: 170.2730867 | CD32: 201.7050027 | CE32: 233.8989826 | CF32: 265.550323 | CG32: 297.449682
Q33: motor002 | R33: power | S33: kW | T33: electrical power input | U33: 312.1648534 | W33: 314.740631 | X33: 372.995608 | Y33: 439.8904777 | Z33: 487.3991463 | AA33: 557.1426928 | AB33: 582.2945413 | AC33: 645.8327941 | AD33: 667.1669409 | AE33: 692.0691779 | AF33: 332.8328474 | AG33: 399.385958 | AH33: 480.6249814 | AI33: 553.896484 | AJ33: 602.3397261 | AK33: 643.3966498 | AL33: 662.3197713 | AM33: 715.9092646 | AN33: 746.2944376 | AO33: 359.7462974 | AP33: 430.6736911 | AQ33: 500.1095603 | AR33: 560.7669415 | AS33: 613.1338439 | AT33: 693.5481484 | AU33: 707.26474 | AV33: 749.7798396 | AW33: 789.5024275 | AX33: 371.4201366 | AY33: 470.5880087 | AZ33: 545.7007376 | BA33: 599.7912311 | BB33: 690.3567503 | BC33: 711.1324111 | BD33: 748.4015146 | BE33: 791.0164945 | BF33: 876.0233823 | BG33: 403.4918565 | BH33: 485.8835663 | BI33: 563.345167 | BJ33: 629.7659809 | BK33: 691.5582893 | BL33: 755.9550424 | BM33: 786.6158593 | BN33: 833.9691483 | BO33: 940.7303403 | BP33: 427.020813 | BQ33: 524.1889341 | BR33: 594.7097957 | BS33: 697.683021 | BT33: 764.6441441 | BU33: 797.0535277 | BV33: 857.1119052 | BW33: 913.2380032 | BX33: 940.2239578 | BY33: 456.6330139 | BZ33: 544.9291903 | CA33: 650.2786956 | CB33: 715.7746435 | CC33: 789.5799657 | CD33: 862.7262759 | CE33: 879.3483502 | CF33: 956.1588346 | CG33: 986.6220961
Q34: O_Turbine001 | R34: eta_s | S34: ---- | T34: isentropic efficiency | U34: 0.6370902709 | W34: 0.6804910278 | X34: 0.7298298981 | Y34: 0.7576121474 | Z34: 0.7747342057 | AA34: 0.7851337147 | AB34: 0.7921281629 | AC34: 0.7964472662 | AD34: 0.8 | AE34: 0.7991867714 | AF34: 0.6985553694 | AG34: 0.7421842569 | AH34: 0.767234382 | AI34: 0.7828388453 | AJ34: 0.7912096846 | AK34: 0.7965710531 | AL34: 0.8 | AM34: 0.7988876713 | AN34: 0.7976260707 | AO34: 0.7170721605 | AP34: 0.7548730505 | AQ34: 0.7771206563 | AR34: 0.7884634822 | AS34: 0.79565842 | AT34: 0.8 | AU34: 0.7987513522 | AV34: 0.7969366185 | AW34: 0.7947670104 | AX34: 0.7289778523 | AY34: 0.7639399814 | AZ34: 0.7836628771 | BA34: 0.7935237558 | BB34: 0.8 | BC34: 0.798809451 | BD34: 0.7966794158 | BE34: 0.7939815116 | BF34: 0.7902020445 | BG34: 0.7398911355 | BH34: 0.7728450499 | BI34: 0.7889103941 | BJ34: 0.7975336153 | BK34: 0.7991001005 | BL34: 0.7969396624 | BM34: 0.7937154272 | BN34: 0.7893072742 | BO34: 0.7851996048 | BP34: 0.7510487554 | BQ34: 0.7810071119 | BR34: 0.7935508287 | BS34: 0.8 | BT34: 0.797813906 | BU34: 0.7943300488 | BV34: 0.7891943261 | BW34: 0.784417078 | BX34: 0.7799624354 | BY34: 0.7603225289 | BZ34: 0.7857138263 | CA34: 0.7972798339 | CB34: 0.7988042131 | CC34: 0.7953916518 | CD34: 0.7900226455 | CE34: 0.7844773505 | CF34: 0.779298386 | CG34: 0.7744579398
Q35: O_Turbine001 | R35: delta_hs | S35: kJ/kg | T35: isentropic enthalpy difference | U35: 55.28858089 | W35: 56.8133354 | X35: 63.23410254 | Y35: 68.53113274 | Z35: 72.5386329 | AA35: 76.51001565 | AB35: 79.08437005 | AC35: 82.11858895 | AD35: 84.08548839 | AE35: 85.9161144 | AF35: 58.87993799 | AG35: 65.51796545 | AH35: 71.1710854 | AI35: 75.813 | AJ35: 79.20974908 | AK35: 82.12393451 | AL35: 84.31592391 | AM35: 86.88528346 | AN35: 88.8288931 | AO35: 61.39094566 | AP35: 67.87978912 | AQ35: 73.22177513 | AR35: 77.56503586 | AS35: 81.16998552 | AT35: 84.85078712 | AU35: 86.98108176 | AV35: 89.36601681 | AW35: 91.48465699 | AX35: 63.08067062 | AY35: 70.3818297 | AZ35: 75.813 | BA35: 80.02685185 | BB35: 84.3392123 | BC35: 86.94487626 | BD35: 89.51860812 | BE35: 91.91960513 | BF35: 94.44870882 | BG35: 65.36968531 | BH35: 72.203446 | BI35: 77.75039312 | BJ35: 82.07095212 | BK35: 86.0671111 | BL35: 89.4673804 | BM35: 91.95443896 | BN35: 94.17429507 | BO35: 97.18622775 | BP35: 67.34143193 | BQ35: 74.53985357 | BR35: 79.93489029 | BS35: 85.11912707 | BT35: 88.99615126 | BU35: 91.87591407 | BV35: 94.56245065 | BW35: 97.10135115 | BX35: 99.00527415 | BY35: 69.42696965 | BZ35: 76.41906251 | CA35: 82.53821282 | CB35: 87.03523235 | CC35: 91.06903993 | CD35: 94.33069441 | CE35: 96.59664793 | CF35: 99.44295291 | CG35: 101.4093553
Q36: W_O_Htex002 | R36: htc_area | S36: kW/K | T36: heat transfer coefficient x transfer area | U36: 398.3317682 | W36: 395.8666533 | X36: 469.7676331 | Y36: 534.9878605 | Z36: 591.3082277 | AA36: 642.7384503 | AB36: 686.6163508 | AC36: 728.0702178 | AD36: 763.8755552 | AE36: 796.6735193 | AF36: 443.0033189 | AG36: 525.9006367 | AH36: 599.3594535 | AI36: 663.5599939 | AJ36: 719.4327412 | AK36: 769.2831468 | AL36: 813.3131988 | AM36: 854.8644693 | AN36: 891.8086492 | AO36: 497.7714066 | AP36: 590.2997559 | AQ36: 671.122271 | AR36: 741.9857014 | AS36: 804.7268712 | AT36: 862.5043558 | AU36: 911.5743943 | AV36: 957.4642027 | AW36: 999.2462587 | AX36: 559.2305681 | AY36: 665.0946381 | AZ36: 755.5265265 | BA36: 834.1627974 | BB36: 906.3605963 | BC36: 967.6667591 | BD36: 1023.91557 | BE36: 1075.325917 | BF36: 1124.061753 | BG36: 633.4405372 | BH36: 750.0807428 | BI36: 851.5819762 | BJ36: 940.5625961 | BK36: 1019.716612 | BL36: 1091.024049 | BM36: 1153.816928 | BN36: 1211.750634 | BO36: 1267.277769 | BP36: 720.4902237 | BQ36: 852.7870187 | BR36: 966.0120265 | BS36: 1068.332987 | BT36: 1157.323405 | BU36: 1235.54023 | BV36: 1307.814037 | BW36: 1373.404751 | BX36: 1432.048603 | BY36: 826.6413006 | BZ36: 974.747899 | CA36: 1105.262985 | CB36: 1217.56906 | CC36: 1318.445967 | CD36: 1409.184127 | CE36: 1488.353259 | CF36: 1563.707253 | CG36: 1630.366024
Q37: W_O_Htex002 | R37: MTD | S37: °C | T37: mean temperature difference | U37: 12.9563628 | W37: 13.23059967 | X37: 14.52919737 | Y37: 15.69619834 | Z37: 16.68688932 | AA37: 17.63111836 | AB37: 18.39429453 | AC37: 19.16972695 | AD37: 19.80358201 | AE37: 20.39461113 | AF37: 12.92114671 | AG37: 14.23282507 | AH37: 15.42728442 | AI37: 16.47474368 | AJ37: 17.3737262 | AK37: 18.18081437 | AL37: 18.88218062 | AM37: 19.58828903 | AN37: 20.20409363 | AO37: 12.57723505 | AP37: 13.88174216 | AQ37: 15.03939302 | AR37: 16.06344645 | AS37: 16.97924982 | AT37: 17.86325082 | AU37: 18.57087931 | AV37: 19.26930647 | AW37: 19.91383117 | AX37: 12.12605759 | AY37: 13.47492648 | AZ37: 14.63118682 | BA37: 15.64145607 | BB37: 16.61863442 | BC37: 17.41418209 | BD37: 18.17058611 | BE37: 18.87965839 | BF37: 19.59497421 | BG37: 11.65672036 | BH37: 12.94518451 | BI37: 14.09550972 | BJ37: 15.12325042 | BK37: 16.05795718 | BL37: 16.92178504 | BM37: 17.67808532 | BN37: 18.4018147 | BO37: 19.1473156 | BP37: 11.09345985 | BQ37: 12.37842726 | BR37: 13.50201148 | BS37: 14.56881992 | BT37: 15.50465887 | BU37: 16.33073245 | BV37: 17.12759777 | BW37: 17.86706747 | BX37: 18.5277812 | BY37: 10.45988003 | BZ37: 11.6996987 | CA37: 12.84770863 | CB37: 13.85511969 | CC37: 14.79322503 | CD37: 15.66205016 | CE37: 16.41558372 | CF37: 17.17910991 | CG37: 17.8505974
Q38: W_O_Htex002 | R38: q_trans | S38: kW | T38: transferred heat | U38: 5160.930905 | W38: 5237.553214 | X38: 6825.346657 | Y38: 8397.275568 | Z38: 9867.094953 | AA38: 11332.19769 | AB38: 12629.82339 | AC38: 13956.90727 | AD38: 15127.4722 | AE38: 16247.84662 | AF38: 5724.110877 | AG38: 7485.051768 | AH38: 9246.488759 | AI38: 10931.98081 | AJ38: 12499.22747 | AK38: 13986.19409 | AL38: 15357.12672 | AM38: 16745.33231 | AN38: 18018.18545 | AO38: 6260.587984 | AP38: 8194.389009 | AQ38: 10093.2716 | AR38: 11918.84758 | AS38: 13663.65858 | AT38: 15407.13164 | AU38: 16928.73806 | AV38: 18449.67116 | AW38: 19898.82129 | AX38: 6781.262075 | AY38: 8962.101354 | AZ38: 11054.24976 | BA38: 13047.52075 | BB38: 15062.4754 | BC38: 16851.12515 | BD38: 18605.14603 | BE38: 20301.78596 | BF38: 22025.96106 | BG38: 7383.839208 | BH38: 9709.933612 | BI38: 12003.48202 | BJ38: 14224.36367 | BK38: 16374.56568 | BL38: 18462.07444 | BM38: 20397.27409 | BN38: 22298.41063 | BO38: 24264.9674 | BP38: 7992.729367 | BQ38: 10556.16208 | BR38: 13043.10547 | BS38: 15564.35089 | BT38: 17943.90461 | BU38: 20177.27693 | BV38: 22399.71277 | BW38: 24538.71534 | BX38: 26532.68318 | BY38: 8646.568833 | BZ38: 11404.25672 | CA38: 14200.09678 | CB38: 16869.56505 | CC38: 19504.06789 | CD38: 22070.71247 | CE38: 24432.18753 | CF38: 26863.09877 | CG38: 29103.0075
Q39: W_O_Htex001 | R39: htc_area | S39: kW/K | T39: heat transfer coefficient x transfer area | U39: 454.9552762 | W39: 452.4525169 | X39: 548.5152338 | Y39: 639.9067827 | Z39: 727.0894152 | AA39: 810.5539955 | AB39: 890.5241941 | AC39: 967.418041 | AD39: 1041.353197 | AE39: 1112.606947 | AF39: 459.9613853 | AG39: 558.0537297 | AH39: 651.493254 | AI39: 740.7445749 | AJ39: 826.1943474 | AK39: 908.1984284 | AL39: 987.013201 | AM39: 1062.948644 | AN39: 1136.136542 | AO39: 467.276877 | AP39: 567.3329826 | AQ39: 662.7249453 | AR39: 753.9383517 | AS39: 841.3604774 | AT39: 925.3554818 | AU39: 1006.09531 | AV39: 1083.901573 | AW39: 1158.950252 | AX39: 474.3646785 | AY39: 576.3741883 | AZ39: 673.6951147 | BA39: 766.8232412 | BB39: 856.1932334 | BC39: 942.0182282 | BD39: 1024.638511 | BE39: 1104.270136 | BF39: 1181.138761 | BG39: 481.3064945 | BH39: 585.1558615 | BI39: 684.35833 | BJ39: 779.3747337 | BK39: 870.5754688 | BL39: 958.2716084 | BM39: 1042.68367 | BN39: 1124.071761 | BO39: 1202.655322 | BP39: 488.0663539 | BQ39: 593.7542914 | BR39: 694.7839584 | BS39: 791.6554845 | BT39: 884.6653568 | BU39: 974.1093821 | BV39: 1060.276854 | BW39: 1143.34854 | BX39: 1223.508416 | BY39: 494.6778542 | BZ39: 602.1405064 | CA39: 704.9919121 | CB39: 803.6170109 | CC39: 898.387414 | CD39: 989.5731331 | CE39: 1077.380503 | CF39: 1162.073273 | CG39: 1243.776144
Q40: W_O_Htex001 | R40: MTD | S40: °C | T40: mean temperature difference | U40: 26.26859645 | W40: 25.97704392 | X40: 24.4603454 | Y40: 23.19873204 | Z40: 22.12055858 | AA40: 21.18700914 | AB40: 20.36296811 | AC40: 19.63267966 | AD40: 18.97580451 | AE40: 18.38255347 | AF40: 26.71542753 | AG40: 25.15945316 | AH40: 23.86316467 | AI40: 22.75453797 | AJ40: 21.78947407 | AK40: 20.93946751 | AL40: 20.18209123 | AM40: 19.50358457 | AN40: 18.88909527 | AO40: 27.45598856 | AP40: 25.85907862 | AQ40: 24.5249118 | AR40: 23.38314891 | AS40: 22.38893395 | AT40: 21.51347968 | AU40: 20.73072313 | AV40: 20.02795191 | AW40: 19.39156713 | AX40: 28.19249865 | AY40: 26.55929681 | AZ40: 25.18865955 | BA40: 24.01305903 | BB40: 22.99024413 | BC40: 22.08398003 | BD40: 21.27591971 | BE40: 20.5487789 | BF40: 19.89051127 | BG40: 28.93339689 | BH40: 27.25617606 | BI40: 25.849334 | BJ40: 24.6411482 | BK40: 23.58593625 | BL40: 22.6526439 | BM40: 21.81727934 | BN40: 21.06476787 | BO40: 20.3828067 | BP40: 29.67235505 | BQ40: 27.95530204 | BR40: 26.51035811 | BS40: 25.26954664 | BT40: 24.18216106 | BU40: 23.21746426 | BV40: 22.3546926 | BW40: 21.57541346 | BX40: 20.86668477 | BY40: 30.41213492 | BZ40: 28.65215674 | CA40: 27.17173362 | CB40: 25.89349936 | CC40: 24.77332973 | CD40: 23.7784907 | CE40: 22.88487297 | CF40: 22.07790781 | CG40: 21.34239774
Q41: W_O_Htex001 | R41: q_trans | S41: kW | T41: transferred heat | U41: 11951.03655 | W41: 11753.3789 | X41: 13416.87208 | Y41: 14845.02598 | Z41: 16083.624 | AA41: 17173.21491 | AB41: 18133.71577 | AC41: 18993.00849 | AD41: 19760.51469 | AE41: 20452.5567 | AF41: 12288.06506 | AG41: 14040.32667 | AH41: 15546.6908 | AI41: 16855.30056 | AJ41: 18002.34031 | AK41: 19017.19148 | AL41: 19919.99047 | AM41: 20731.30878 | AN41: 21460.59139 | AO41: 12829.54859 | AP41: 14670.7082 | AQ41: 16253.27083 | AR41: 17629.45275 | AS41: 18837.16416 | AT41: 19907.61635 | AU41: 20857.08332 | AV41: 21708.32857 | AW41: 22473.86162 | AX41: 13373.52556 | AY41: 15308.09314 | AZ41: 16969.47688 | BA41: 18413.77176 | BB41: 19684.09146 | BC41: 20803.51174 | BD41: 21800.12669 | BE41: 22691.40286 | BF41: 23493.45385 | BG41: 13925.83183 | BH41: 15949.11118 | BI41: 17690.20705 | BJ41: 19204.68831 | BK41: 20533.33751 | BL41: 21707.38551 | BM41: 22748.52089 | BN41: 23678.31072 | BO41: 24513.49095 | BP41: 14482.07814 | BQ41: 16598.58056 | BR41: 18418.97155 | BS41: 20004.77519 | BT41: 21393.12014 | BU41: 22616.34976 | BV41: 23702.16315 | BW41: 24668.21748 | BX41: 25530.56442 | BY41: 15044.20964 | BZ41: 17252.62417 | CA41: 19155.85244 | CB41: 20808.45656 | CC41: 22256.04764 | CD41: 23530.55555 | CE41: 24655.71595 | CF41: 25656.14658 | CG41: 26545.16516
Q42: O_Xprescription003 | R42: x | S42: --- | T42: vapor quality | U42: 1.135121031 | W42: 1.131901528 | X42: 1.138858254 | Y42: 1.146633124 | Z42: 1.153425259 | AA42: 1.160320564 | AB42: 1.165877073 | AC42: 1.17168078 | AD42: 1.176305645 | AE42: 1.181409944 | AF42: 1.13411084 | AG42: 1.142308315 | AH42: 1.150896548 | AI42: 1.158376974 | AJ42: 1.165479746 | AK42: 1.171784711 | AL42: 1.177310571 | AM42: 1.183606597 | AN42: 1.18906988 | AO42: 1.135979581 | AP42: 1.145612725 | AQ42: 1.154424384 | AR42: 1.162843581 | AS42: 1.170353365 | AT42: 1.177604189 | AU42: 1.184372979 | AV42: 1.190911049 | AW42: 1.196900771 | AX42: 1.138615936 | AY42: 1.149574576 | AZ42: 1.159028017 | BA42: 1.16775343 | BB42: 1.176070586 | BC42: 1.184050433 | BD42: 1.191564545 | BE42: 1.198542069 | BF42: 1.206154485 | BG42: 1.141980396 | BH42: 1.152806989 | BI42: 1.163214454 | BJ42: 1.173033923 | BK42: 1.181963512 | BL42: 1.190968641 | BM42: 1.198940692 | BN42: 1.207215382 | BO42: 1.214890583 | BP42: 1.144820072 | BQ42: 1.156555724 | BR42: 1.167707594 | BS42: 1.178300918 | BT42: 1.188766009 | BU42: 1.198020782 | BV42: 1.207634034 | BW42: 1.215901558 | BX42: 1.223156664 | BY42: 1.148007813 | BZ42: 1.16054333 | CA42: 1.17265117 | CB42: 1.184136887 | CC42: 1.195308142 | CD42: 1.206325887 | CE42: 1.215481317 | CF42: 1.224328541 | CG42: 1.231968642
Q43: O_Condenser_a001 | R43: htc_area | S43: kW/K | T43: heat transfer coefficient x heat transfer area | U43: 1482.932177 | W43: 1486.568882 | X43: 1726.701418 | Y43: 1968.277888 | Z43: 2160.150679 | AA43: 2386.978649 | AB43: 2519.382461 | AC43: 2720.211861 | AD43: 2833.936516 | AE43: 2948.886013 | AF43: 1561.968348 | AG43: 1825.694495 | AH43: 2103.437703 | AI43: 2353.581012 | AJ43: 2546.38866 | AK43: 2717.838483 | AL43: 2839.462107 | AM43: 3022.940556 | AN43: 3156.107371 | AO43: 1657.987669 | AP43: 1936.567323 | AQ43: 2199.210194 | AR43: 2433.243499 | AS43: 2642.515697 | AT43: 2898.728832 | AU43: 3018.412821 | AV43: 3188.462634 | AW43: 3348.010198 | AX43: 1720.407991 | AY43: 2064.763813 | AZ43: 2347.539314 | BA43: 2578.397624 | BB43: 2870.836668 | BC43: 3020.770247 | BD43: 3195.14639 | BE43: 3374.411281 | BF43: 3632.912677 | BG43: 1825.430029 | BH43: 2146.27845 | BI43: 2443.541703 | BJ43: 2708.399058 | BK43: 2955.705064 | BL43: 3200.592734 | BM43: 3371.620272 | BN43: 3570.526955 | BO43: 3883.016068 | BP43: 1914.654252 | BQ43: 2274.896681 | BR43: 2568.880638 | BS43: 2916.100801 | BT43: 3184.655207 | BU43: 3378.420613 | BV43: 3620.113005 | BW43: 3848.125375 | BX43: 4011.16028 | BY43: 2016.688229 | BZ43: 2370.038552 | CA43: 2744.034551 | CB43: 3030.363323 | CC43: 3324.738273 | CD43: 3611.320488 | CE43: 3777.352957 | CF43: 4060.122624 | CG43: 4241.02915
Q44: O_Condenser_a001 | R44: MTD | S44: °C | T44: mean temperature difference | U44: 10.64720521 | W44: 10.46191455 | X44: 10.5637403 | Y44: 10.52040496 | Z44: 10.61609918 | AA44: 10.47898346 | AB44: 10.66574659 | AC44: 10.53057338 | AD44: 10.66891079 | AE44: 10.76304373 | AF44: 10.50008585 | AG44: 10.57219158 | AH44: 10.44800299 | AI44: 10.37310395 | AJ44: 10.46253393 | AK44: 10.55660068 | AL44: 10.76401479 | AM44: 10.70916126 | AN44: 10.78270842 | AO44: 10.42036653 | AP44: 10.53290166 | AQ44: 10.57267735 | AR44: 10.6350485 | AS44: 10.70730952 | AT44: 10.54764528 | AU44: 10.8129953 | AV44: 10.85163232 | AW44: 10.88201552 | AX44: 10.56008287 | AY44: 10.43578647 | AZ44: 10.4873348 | BA44: 10.64229007 | BB44: 10.48535312 | BC44: 10.76728276 | BD44: 10.89431583 | BE44: 10.95141445 | BF44: 10.74832703 | BG44: 10.47353014 | BH44: 10.57267473 | BI44: 10.63891799 | BJ44: 10.73023384 | BK44: 10.79717995 | BL44: 10.81215841 | BM44: 10.99970361 | BN44: 11.05255185 | BO44: 10.75513998 | BP44: 10.48550418 | BQ44: 10.5090207 | BR44: 10.6832603 | BS44: 10.556817 | BT44: 10.64475236 | BU44: 10.88720533 | BV44: 10.92592069 | BW44: 10.95159579 | BX44: 11.1051844 | BY44: 10.44891479 | BZ44: 10.61029126 | CA44: 10.5605369 | CB44: 10.73861282 | CC44: 10.80341601 | CD44: 10.83417362 | CE44: 11.13644494 | CF44: 11.06371707 | CG44: 11.21271455
Q45: O_Condenser_a001 | R45: q_trans | S45: kW | T45: transferred heat | U45: 15789.0832 | W45: 15552.35662 | X45: 18240.42535 | Y45: 20707.08046 | Z45: 22932.37385 | AA45: 25013.10978 | AB45: 26871.09488 | AC45: 28645.3906 | AD45: 30235.01586 | AE45: 31738.98912 | AF45: 16400.80174 | AG45: 19301.59197 | AH45: 21976.72341 | AI45: 24413.94048 | AJ45: 26641.67776 | AK45: 28691.13558 | AL45: 30564.01212 | AM45: 32373.1579 | AN45: 34031.38553 | AO45: 17276.83922 | AP45: 20397.67317 | AQ45: 23251.5398 | AR45: 25877.66263 | AS45: 28294.23347 | AT45: 30574.76348 | AU45: 32638.08363 | AV45: 34600.02418 | AW45: 36433.09895 | AX45: 18167.65096 | AY45: 21547.43426 | AZ45: 24619.43073 | BA45: 27440.05543 | BB45: 30101.7362 | BC45: 32525.48741 | BD45: 34808.93388 | BE45: 36954.57646 | BF45: 39047.73354 | BG45: 19118.69643 | BH45: 22691.90393 | BI45: 25996.63978 | BJ45: 29061.75522 | BK45: 31913.27944 | BL45: 34605.31564 | BM45: 37086.82369 | BN45: 39463.43431 | BO45: 41762.38136 | BP45: 20076.11517 | BQ45: 23906.93631 | BR45: 27444.02054 | BS45: 30784.7425 | BT45: 33899.86602 | BU45: 36781.5589 | BV45: 39553.06756 | BW45: 42143.11366 | BX45: 44544.67458 | BY45: 21072.20345 | BZ45: 25146.79933 | CA45: 28978.47813 | CB45: 32541.89844 | CC45: 35918.53067 | CD45: 39125.67315 | CE45: 42066.28322 | CF45: 44920.04799 | CG45: 47553.44925
Q46: G_Stream001 | R46: mass | S46: kg/s | T46: mass flow | U46: 1469.623163 | W46: 1481.74952 | X46: 1756.004813 | Y46: 2070.935367 | Z46: 2294.598726 | AA46: 2622.940403 | AB46: 2741.35136 | AC46: 3040.479487 | AD46: 3140.917304 | AE46: 3258.15313 | AF46: 1566.924836 | AG46: 1880.246441 | AH46: 2262.70702 | AI46: 2607.657761 | AJ46: 2835.720946 | AK46: 3029.010502 | AL46: 3118.09759 | AM46: 3370.388518 | AN46: 3513.437146 | AO46: 1693.629137 | AP46: 2027.544181 | AQ46: 2354.437361 | AR46: 2640.002797 | AS46: 2886.537959 | AT46: 3265.115891 | AU46: 3329.691452 | AV46: 3529.845872 | AW46: 3716.853585 | AX46: 1748.587741 | AY46: 2215.454527 | AZ46: 2569.073473 | BA46: 2823.723031 | BB46: 3250.091289 | BC46: 3347.899842 | BD46: 3523.356935 | BE46: 3723.981575 | BF46: 4124.180668 | BG46: 1899.576368 | BH46: 2287.463613 | BI46: 2652.140679 | BJ46: 2964.839451 | BK46: 3255.747946 | BL46: 3558.917759 | BM46: 3703.264075 | BN46: 3926.195931 | BO46: 4428.810877 | BP46: 2010.347004 | BQ46: 2467.799276 | BR46: 2799.80043 | BS46: 3284.582222 | BT46: 3599.824686 | BU46: 3752.40298 | BV46: 4035.148401 | BW46: 4299.381266 | BX46: 4426.426907 | BY46: 2149.756601 | BZ46: 2565.441149 | CA46: 3061.410094 | CB46: 3369.754743 | CC46: 3717.218623 | CD46: 4061.579978 | CE46: 4139.834096 | CF46: 4501.445808 | CG46: 4644.862064
Q47: O_Stream001 | R47: mass | S47: kg/s | T47: mass flow | U47: 38.35611991 | W47: 37.86763797 | X47: 44.13155323 | Y47: 49.71826741 | Z47: 54.7372421 | AA47: 59.29048305 | AB47: 63.42860484 | AC47: 67.22677026 | AD47: 70.71069675 | AE47: 73.92671545 | AF47: 39.85333249 | AG47: 46.54583516 | AH47: 52.53882503 | AI47: 57.94509672 | AJ47: 62.85257098 | AK47: 67.33562696 | AL47: 71.44670726 | AM47: 75.24183975 | AN47: 78.74726754 | AO47: 41.88876182 | AP47: 49.02547215 | AQ47: 55.43678038 | AR47: 61.24258699 | AS47: 66.53306877 | AT47: 71.38577841 | AU47: 75.84122631 | AV47: 79.95985872 | AW47: 83.77571123 | AX47: 43.96504692 | AY47: 51.57314014 | AZ47: 58.4281922 | BA47: 64.65587179 | BB47: 70.35709765 | BC47: 75.58576936 | BD47: 80.4122204 | BE47: 84.88121683 | BF47: 89.03573702 | BG47: 46.09771465 | BH47: 54.18347543 | BI47: 61.50459281 | BJ47: 68.18209216 | BK47: 74.30780192 | BL47: 79.95450531 | BM47: 85.17370596 | BN47: 90.01929923 | BO47: 94.53459064 | BP47: 48.27813054 | BQ47: 56.87122777 | BR47: 64.67967941 | BS47: 71.83496035 | BT47: 78.41690744 | BU47: 84.4980928 | BV47: 90.14345567 | BW47: 95.39477107 | BX47: 100.2914673 | BY47: 50.5127593 | BZ47: 59.63057831 | CA47: 67.95891991 | CB47: 75.60880031 | CC47: 82.67710754 | CD47: 89.2329385 | CE47: 95.32851739 | CF47: 101.0214133 | CG47: 106.3421981
Q48: PS Outputs End
T51: Net Power | U51: =U31-U32-U33 -> 952.7981159 | W51: 1061.870824 | X51: 1542.671185 | Y51: 1985.865769 | Z51: 2400.062847 | AA51: 2783.243443 | AB51: 3140.082927 | AC51: 3470.09079 | AD51: 3781.181735 | AE51: 4050.347773 | AF51: 1209.261797 | AG51: 1728.562049 | AH51: 2213.997379 | AI51: 2672.955546 | AJ51: 3089.138524 | AK51: 3479.873946 | AL51: 3843.281038 | AM51: 4162.055683 | AN51: 4459.433112 | AO51: 1375.707468 | AP51: 1930.261222 | AQ51: 2460.643678 | AR51: 2949.815899 | AS51: 3409.117511 | AT51: 3837.954927 | AU51: 4212.759156 | AV51: 4561.236877 | AW51: 4885.068349 | AX51: 1530.232017 | AY51: 2134.485688 | AZ51: 2710.611932 | BA51: 3245.575227 | BB51: 3750.442114 | BC51: 4191.228752 | BD51: 4599.10937 | BE51: 4977.764012 | BF51: 5305.30724 | BG51: 1693.132662 | BH51: 2352.672619 | BI51: 2972.45836 | BJ51: 3545.814262 | BK51: 4082.483933 | BL51: 4560.999806 | BM51: 5001.469873 | BN51: 5386.396742 | BO51: 5758.615045 | BP51: 1868.221689 | BQ51: 2582.619638 | BR51: 3247.57992 | BS51: 3876.163646 | BT51: 4431.531524 | BU51: 4946.556296 | BV51: 5397.297448 | BW51: 5831.115364 | BX51: 6236.204015 | BY51: 2048.845371 | BZ51: 2812.328002 | CA51: 3535.245935 | CB51: 4193.274501 | CC51: 4791.754064 | CD51: 5322.171682 | CE51: 5824.483641 | CF51: 6297.001634 | CG51: 6737.022896
R52: Min Mass Flow | S52: 120 | U52: 2 | W52: 2 | X52: 2 | Y52: 2 | Z52: 2 | AA52: 2 | AB52: 2 | AC52: 2 | AD52: 2 | AE52: 2 | AF52: 2 | AG52: 2 | AH52: 2 | AI52: 2 | AJ52: 2 | AK52: 2 | AL52: 2 | AM52: 2 | AN52: 2 | AO52: 2 | AP52: 2 | AQ52: 2 | AR52: 2 | AS52: 2 | AT52: 2 | AU52: 2 | AV52: 2 | AW52: 2 | AX52: 2 | AY52: 2 | AZ52: 2 | BA52: 2 | BB52: 2 | BC52: 2 | BD52: 2 | BE52: 2 | BF52: 2 | BG52: 2 | BH52: 2 | BI52: 2 | BJ52: 2 | BK52: 2 | BL52: 2 | BM52: 2 | BN52: 2 | BO52: 2 | BP52: 2 | BQ52: 2 | BR52: 2 | BS52: 2 | BT52: 2 | BU52: 2 | BV52: 2 | BW52: 2 | BX52: 2 | BY52: 2 | BZ52: 2 | CA52: 2 | CB52: 2 | CC52: 2 | CD52: 2 | CE52: 2 | CF52: 2 | CG52: 2
R53: Max Mass Flow | S53: 40 | T53: Actual Plant Efficiency (w-hr/lb) | U53: =U51*1000/(U23*2.20462*3600) -> 3.001267149 | W53: 3.34484081 | X53: 3.887470616 | Y53: 4.170252925 | Z53: 4.320045593 | AA53: 4.3835399 | AB53: 4.396047379 | AC53: 4.372246049 | AD53: 4.331104102 | AE53: 4.252798682 | AF53: 3.809115115 | AG53: 4.355908273 | AH53: 4.649321818 | AI53: 4.811244773 | AJ53: 4.865317121 | AK53: 4.871747369 | AL53: 4.842458411 | AM53: 4.767371076 | AN53: 4.682331574 | AO53: 4.333410785 | AP53: 4.864182243 | AQ53: 5.16727095 | AR53: 5.309585618 | AS53: 5.369276147 | AT53: 5.373052907 | AU53: 5.307993563 | AV53: 5.224607843 | AW53: 5.129241586 | AX53: 4.820155504 | AY53: 5.378819853 | AZ53: 5.692196076 | BA53: 5.841944088 | BB53: 5.906853994 | BC53: 5.86762853 | BD53: 5.794787222 | BE53: 5.701713284 | BF53: 5.570485524 | BG53: 5.333284516 | BH53: 5.928642323 | BI53: 6.24206498 | BJ53: 6.382365903 | BK53: 6.429811683 | BL53: 6.385299914 | BM53: 6.30175353 | BN53: 6.169776186 | BO53: 6.046451279 | BP53: 5.884806328 | BQ53: 6.508099753 | BR53: 6.819811225 | BS53: 6.976985499 | BT53: 6.979553046 | BU53: 6.925070561 | BV53: 6.80048848 | BW53: 6.67917319 | BX53: 6.547911859 | BY53: 6.453762034 | BZ53: 7.086955782 | CA53: 7.423900413 | CB53: 7.547776114 | CC53: 7.546894678 | CD53: 7.450923881 | CE53: 7.338734669 | CF53: 7.212816394 | CG53: 7.073763464
R54: Mass Flow Step | S54: -40 | T54: Actual Plant Efficiency (kW/kg/s) | U54: =U51/U23 -> 23.8199529 | W54: 26.5467706 | X54: 30.85342369 | Y54: 33.09776282 | Z54: 34.28661209 | AA54: 34.79054304 | AB54: 34.8898103 | AC54: 34.7009079 | AD54: 34.37437941 | AE54: 33.75289811 | AF54: 30.23154492 | AG54: 34.57124099 | AH54: 36.89995632 | AI54: 38.18507922 | AJ54: 38.61423155 | AK54: 38.66526606 | AL54: 38.43281038 | AM54: 37.83686984 | AN54: 37.1619426 | AO54: 34.39268671 | AP54: 38.60522445 | AQ54: 41.01072797 | AR54: 42.14022712 | AS54: 42.61396888 | AT54: 42.64394364 | AU54: 42.12759156 | AV54: 41.46578979 | AW54: 40.70890291 | AX54: 38.25580042 | AY54: 42.68971377 | AZ54: 45.17686553 | BA54: 46.36536039 | BB54: 46.88052643 | BC54: 46.56920836 | BD54: 45.9910937 | BE54: 45.25240011 | BF54: 44.21089366 | BG54: 42.32831656 | BH54: 47.05345238 | BI54: 49.54097266 | BJ54: 50.65448946 | BK54: 51.03104916 | BL54: 50.67777562 | BM54: 50.01469873 | BN54: 48.96724311 | BO54: 47.98845871 | BP54: 46.70554222 | BQ54: 51.65239276 | BR54: 54.126332 | BS54: 55.37376637 | BT54: 55.39414405 | BU54: 54.96173662 | BV54: 53.97297448 | BW54: 53.01013967 | BX54: 51.96836679 | BY54: 51.22113428 | BZ54: 56.24656004 | CA54: 58.92076558 | CB54: 59.90392144 | CC54: 59.8969258 | CD54: 59.13524091 | CE54: 58.24483641 | CF54: 57.2454694 | CG54: 56.14185747
T55: 1st Law Efficiency (%) | U55: =U51/(U38+U41) -> 0.05568022019 | W55: 0.06249632551 | X55: 0.07621057774 | Y55: 0.08544187264 | Z55: 0.09248540862 | AA55: 0.09763912146 | AB55: 0.1020715761 | AC55: 0.105314102 | AD55: 0.1083806225 | AE55: 0.1103624867 | AF55: 0.06713579754 | AG55: 0.08030344525 | AH55: 0.08929864658 | AI55: 0.09619348902 | AJ55: 0.1012780244 | AK55: 0.1054399082 | AL55: 0.1089454395 | AM55: 0.1110573296 | AN55: 0.1129577325 | AO55: 0.07206378346 | AP55: 0.08441955024 | AQ55: 0.09339531686 | AR55: 0.09983030717 | AS55: 0.104893268 | AT55: 0.1086785308 | AU55: 0.1114904745 | AV55: 0.1135822727 | AW55: 0.115288153 | AX55: 0.07592399605 | AY55: 0.08794678958 | AZ55: 0.09672560564 | BA55: 0.1031608993 | BB55: 0.1079370554 | BC55: 0.1113071085 | BD55: 0.1138244853 | BE55: 0.1157802933 | BF55: 0.1165504269 | BG55: 0.07945372122 | BH55: 0.09168979741 | BI55: 0.1001040441 | BJ55: 0.106069842 | BK55: 0.11061273 | BL55: 0.1135439663 | BM55: 0.115920216 | BN55: 0.1171548685 | BO55: 0.11805652 | BP55: 0.08312514748 | BQ55: 0.09510749825 | BR55: 0.1032220447 | BS55: 0.1089755097 | BT55: 0.112655483 | BU55: 0.1155909578 | BV55: 0.1170732717 | BW55: 0.1185019067 | BX55: 0.1197813103 | BY55: 0.08648282172 | BZ55: 0.09813796597 | CA55: 0.1059854694 | CB55: 0.1112923217 | CC55: 0.1147447512 | CD55: 0.1167110458 | CE55: 0.1186541536 | CF55: 0.119898936 | CG55: 0.1210645844
R56: Min Temp | S56: 190
R57: Max Temp | S57: 160 | T57: Relative Efficiency | W57: =W34/0.8 -> 0.8506137848 | X57: =X34/0.8 -> 0.9122873727 | Y57: 0.9470151842 | Z57: 0.9684177571 | AA57: 0.9814171434 | AB57: 0.9901602036 | AC57: 0.9955590827 | AD57: 1 | AE57: 0.9989834642 | AF57: 0.8731942117 | AG57: 0.9277303212 | AH57: 0.9590429775 | AI57: 0.9785485566 | AJ57: 0.9890121057 | AK57: 0.9957138164 | AL57: 1 | AM57: 0.9986095891 | AN57: 0.9970325884 | AO57: 0.8963402006 | AP57: 0.9435913131 | AQ57: 0.9714008204 | AR57: 0.9855793528 | AS57: 0.9945730249 | AT57: 1 | AU57: 0.9984391903 | AV57: 0.9961707732 | AW57: 0.993458763 | AX57: 0.9112223154 | AY57: 0.9549249768 | AZ57: 0.9795785963 | BA57: 0.9919046947 | BB57: 1 | BC57: 0.9985118138 | BD57: 0.9958492698 | BE57: 0.9924768895 | BF57: 0.9877525556 | BG57: 0.9248639194 | BH57: 0.9660563123 | BI57: 0.9861379927 | BJ57: 0.9969170192 | BK57: 0.9988751256 | BL57: 0.996174578 | BM57: 0.992144284 | BN57: 0.9866340928 | BO57: 0.981499506 | BP57: 0.9388109443 | BQ57: 0.9762588899 | BR57: 0.9919385359 | BS57: 1 | BT57: 0.9972673825 | BU57: 0.992912561 | BV57: 0.9864929077 | BW57: 0.9805213475 | BX57: 0.9749530442 | BY57: 0.9504031611 | BZ57: 0.9821422829 | CA57: 0.9965997923 | CB57: 0.9985052664 | CC57: 0.9942395648 | CD57: 0.9875283069 | CE57: 0.9805966882 | CF57: 0.9741229825 | CG57: 0.9680724247
R58: Temp Step | S58: -10 | T58: Relative Binary Flow Rate | W58: =W47/70.35 -> 0.5382748822 | X58: =X47/70.35 -> 0.6273141895 | Y58: 0.7067273264 | Z58: 0.7780702502 | AA58: 0.842792936 | AB58: 0.9016148521 | AC58: 0.9556044103 | AD58: 1.005127175 | AE58: 1.050841726 | AF58: 0.5665008172 | AG58: 0.6616323406 | AH58: 0.7468205406 | AI58: 0.8236687523 | AJ58: 0.8934267375 | AK58: 0.9571517692 | AL58: 1.0155893 | AM58: 1.069535746 | AN58: 1.119364144 | AO58: 0.5954337145 | AP58: 0.6968794904 | AQ58: 0.7880139357 | AR58: 0.870541393 | AS58: 0.9457436926 | AT58: 1.014723218 | AU58: 1.078055811 | AV58: 1.136600693 | AW58: 1.190841666 | AX58: 0.624947362 | AY58: 0.7330936765 | AZ58: 0.8305357811 | BA58: 0.9190600113 | BB58: 1.00010089 | BC58: 1.074424582 | BD58: 1.143030852 | BE58: 1.206556032 | BF58: 1.265611045 | BG58: 0.6552624684 | BH58: 0.7701986557 | BI58: 0.8742657116 | BJ58: 0.9691839681 | BK58: 1.056258734 | BL58: 1.136524596 | BM58: 1.21071366 | BN58: 1.279592029 | BO58: 1.343775276 | BP58: 0.6862562977 | BQ58: 0.8084040905 | BR58: 0.919398428 | BS58: 1.021108178 | BT58: 1.114668194 | BU58: 1.201110061 | BV58: 1.281356868 | BW58: 1.356002432 | BX58: 1.425607211 | BY58: 0.7180207434 | BZ58: 0.847627268 | CA58: 0.9660116548 | CB58: 1.074751959 | CC58: 1.175225409 | CD58: 1.268414193 | CE58: 1.355060659 | CF58: 1.435983131 | CG58: 1.511616178
T59: Gross Turbine Output | W59: =W31 -> 1406.025049 | X59: =X31 -> 1956.024878 | Y59: 2479.150985 | Z59: 2954.317459 | AA59: 3420.574531 | AB59: 3816.132313 | AC59: 4222.726004 | AD59: 4568.233624 | AE59: 4875.02084 | AF59: 1574.290856 | AG59: 2173.727598 | AH59: 2755.269934 | AI59: 3302.819908 | AJ59: 3783.079175 | AK59: 4230.496382 | AL59: 4628.432772 | AM59: 5015.83797 | AN59: 5358.475328 | AO59: 1770.993062 | AP59: 2412.616767 | AQ59: 3029.555112 | AR59: 3597.106204 | AS59: 4126.784952 | AT59: 4653.821411 | AU59: 5060.505591 | AV59: 5469.156532 | AW59: 5850.033741 | AX59: 1941.647232 | AY59: 2663.14933 | AZ59: 3333.861527 | BA59: 3943.263409 | BB59: 4559.105002 | BC59: 5041.727602 | BD59: 5507.710733 | BE59: 5949.524921 | BF59: 6381.910122 | BG59: 2141.291362 | BH59: 2903.817808 | BI59: 3623.180503 | BJ59: 4286.086621 | BK59: 4908.230809 | BL59: 5475.014262 | BM59: 5970.2871 | BN59: 6426.37793 | BO59: 6928.316152 | BP59: 2345.05522 | BQ59: 3179.715614 | BR59: 3940.316822 | BS59: 4697.915012 | BT59: 5347.301718 | BU59: 5922.454362 | BV59: 6460.840612 | BW59: 6978.290342 | BX59: 7437.862647 | BY59: 2560.821533 | BZ59: 3438.644457 | CA59: 4295.012772 | CB59: 5048.471843 | CC59: 5751.607117 | CD59: 6386.60296 | CE59: 6937.730974 | CF59: 7518.710792 | CG59: 8021.094675
T60: Net Plant Power Output | W60: =W51 -> 1061.870824 | X60: =X51 -> 1542.671185 | Y60: 1985.865769 | Z60: 2400.062847 | AA60: 2783.243443 | AB60: 3140.082927 | AC60: 3470.09079 | AD60: 3781.181735 | AE60: 4050.347773 | AF60: 1209.261797 | AG60: 1728.562049 | AH60: 2213.997379 | AI60: 2672.955546 | AJ60: 3089.138524 | AK60: 3479.873946 | AL60: 3843.281038 | AM60: 4162.055683 | AN60: 4459.433112 | AO60: 1375.707468 | AP60: 1930.261222 | AQ60: 2460.643678 | AR60: 2949.815899 | AS60: 3409.117511 | AT60: 3837.954927 | AU60: 4212.759156 | AV60: 4561.236877 | AW60: 4885.068349 | AX60: 1530.232017 | AY60: 2134.485688 | AZ60: 2710.611932 | BA60: 3245.575227 | BB60: 3750.442114 | BC60: 4191.228752 | BD60: 4599.10937 | BE60: 4977.764012 | BF60: 5305.30724 | BG60: 1693.132662 | BH60: 2352.672619 | BI60: 2972.45836 | BJ60: 3545.814262 | BK60: 4082.483933 | BL60: 4560.999806 | BM60: 5001.469873 | BN60: 5386.396742 | BO60: 5758.615045 | BP60: 1868.221689 | BQ60: 2582.619638 | BR60: 3247.57992 | BS60: 3876.163646 | BT60: 4431.531524 | BU60: 4946.556296 | BV60: 5397.297448 | BW60: 5831.115364 | BX60: 6236.204015 | BY60: 2048.845371 | BZ60: 2812.328002 | CA60: 3535.245935 | CB60: 4193.274501 | CC60: 4791.754064 | CD60: 5322.171682 | CE60: 5824.483641 | CF60: 6297.001634 | CG60: 6737.022896
U62: SAM Inputs
V63: SAM Plant Efficiency (%) | W63: =W53/VLOOKUP(W$24,'GETEM-Excel Max BE vs. Temp'!$C$4:$D$14,2) -> 0.4202034924 | X63: =X53/VLOOKUP(X$24,'GETEM-Excel Max BE vs. Temp'!$C$4:$D$14,2) -> 0.4883726379 | Y63: =Y53/VLOOKUP(Y$24,'GETEM-Excel Max BE vs. Temp'!$C$4:$D$14,2) -> 0.5238978305 | Z63: =Z53/VLOOKUP(Z$24,'GETEM-Excel Max BE vs. Temp'!$C$4:$D$14,2) -> 0.5427158866 | AA63: =AA53/VLOOKUP(AA$24,'GETEM-Excel Max BE vs. Temp'!$C$4:$D$14,2) -> 0.5506925082 | AB63: =AB53/VLOOKUP(AB$24,'GETEM-Excel Max BE vs. Temp'!$C$4:$D$14,2) -> 0.5522637896 | AC63: =AC53/VLOOKUP(AC$24,'GETEM-Excel Max BE vs. Temp'!$C$4:$D$14,2) -> 0.5492736916 | AD63: =AD53/VLOOKUP(AD$24,'GETEM-Excel Max BE vs. Temp'!$C$4:$D$14,2) -> 0.5441051378 | AE63: =AE53/VLOOKUP(AE$24,'GETEM-Excel Max BE vs. Temp'!$C$4:$D$14,2) -> 0.5342678353 | AF63: =AF53/VLOOKUP(AF$24,'GETEM-Excel Max BE vs. Temp'!$C$4:$D$14,2) -> 0.4572728819 | AG63: =AG53/VLOOKUP(AG$24,'GETEM-Excel Max BE vs. Temp'!$C$4:$D$14,2) -> 0.5229137658 | AH63: =AH53/VLOOKUP(AH$24,'GETEM-Excel Max BE vs. Temp'!$C$4:$D$14,2) -> 0.5581371847 | AI63: =AI53/VLOOKUP(AI$24,'GETEM-Excel Max BE vs. Temp'!$C$4:$D$14,2) -> 0.5775755513 | AJ63: =AJ53/VLOOKUP(AJ$24,'GETEM-Excel Max BE vs. Temp'!$C$4:$D$14,2) -> 0.5840667751 | AK63: =AK53/VLOOKUP(AK$24,'GETEM-Excel Max BE vs. Temp'!$C$4:$D$14,2) -> 0.5848387071 | AL63: =AL53/VLOOKUP(AL$24,'GETEM-Excel Max BE vs. Temp'!$C$4:$D$14,2) -> 0.5813226552 | AM63: =AM53/VLOOKUP(AM$24,'GETEM-Excel Max BE vs. Temp'!$C$4:$D$14,2) -> 0.5723086452 | AN63: =AN53/VLOOKUP(AN$24,'GETEM-Excel Max BE vs. Temp'!$C$4:$D$14,2) -> 0.5620999072 | AO63: =AO53/VLOOKUP(AO$24,'GETEM-Excel Max BE vs. Temp'!$C$4:$D$14,2) -> 0.4980754462 | AP63: =AP53/VLOOKUP(AP$24,'GETEM-Excel Max BE vs. Temp'!$C$4:$D$14,2) -> 0.559081486 | AQ63: =AQ53/VLOOKUP(AQ$24,'GETEM-Excel Max BE vs. Temp'!$C$4:$D$14,2) -> 0.593918027 | AR63: =AR53/VLOOKUP(AR$24,'GETEM-Excel Max BE vs. Temp'!$C$4:$D$14,2) -> 0.610275452 | AS63: =AS53/VLOOKUP(AS$24,'GETEM-Excel Max BE vs. Temp'!$C$4:$D$14,2) -> 0.6171361879 | AT63: =AT53/VLOOKUP(AT$24,'GETEM-Excel Max BE vs. Temp'!$C$4:$D$14,2) -> 0.6175702827 | AU63: =AU53/VLOOKUP(AU$24,'GETEM-Excel Max BE vs. Temp'!$C$4:$D$14,2) -> 0.6100924637 | AV63: =AV53/VLOOKUP(AV$24,'GETEM-Excel Max BE vs. Temp'!$C$4:$D$14,2) -> 0.6005082397 | AW63: =AW53/VLOOKUP(AW$24,'GETEM-Excel Max BE vs. Temp'!$C$4:$D$14,2) -> 0.5895469916 | AX63: =AX53/VLOOKUP(AX$24,'GETEM-Excel Max BE vs. Temp'!$C$4:$D$14,2) -> 0.5313673564 | AY63: =AY53/VLOOKUP(AY$24,'GETEM-Excel Max BE vs. Temp'!$C$4:$D$14,2) -> 0.5929537508 | AZ63: =AZ53/VLOOKUP(AZ$24,'GETEM-Excel Max BE vs. Temp'!$C$4:$D$14,2) -> 0.6274999174 | BA63: =BA53/VLOOKUP(BA$24,'GETEM-Excel Max BE vs. Temp'!$C$4:$D$14,2) -> 0.6440079336 | BB63: =BB53/VLOOKUP(BB$24,'GETEM-Excel Max BE vs. Temp'!$C$4:$D$14,2) -> 0.651163513 | BC63: =BC53/VLOOKUP(BC$24,'GETEM-Excel Max BE vs. Temp'!$C$4:$D$14,2) -> 0.6468393514 | BD63: =BD53/VLOOKUP(BD$24,'GETEM-Excel Max BE vs. Temp'!$C$4:$D$14,2) -> 0.6388094252 | BE63: =BE53/VLOOKUP(BE$24,'GETEM-Excel Max BE vs. Temp'!$C$4:$D$14,2) -> 0.6285490814 | BF63: =BF53/VLOOKUP(BF$24,'GETEM-Excel Max BE vs. Temp'!$C$4:$D$14,2) -> 0.6140827125 | BG63: =BG53/VLOOKUP(BG$24,'GETEM-Excel Max BE vs. Temp'!$C$4:$D$14,2) -> 0.5178147226 | BH63: =BH53/VLOOKUP(BH$24,'GETEM-Excel Max BE vs. Temp'!$C$4:$D$14,2) -> 0.5756186962 | BI63: =BI53/VLOOKUP(BI$24,'GETEM-Excel Max BE vs. Temp'!$C$4:$D$14,2) -> 0.6060492621 | BJ63: =BJ53/VLOOKUP(BJ$24,'GETEM-Excel Max BE vs. Temp'!$C$4:$D$14,2) -> 0.61967124 | BK63: =BK53/VLOOKUP(BK$24,'GETEM-Excel Max BE vs. Temp'!$C$4:$D$14,2) -> 0.6242778053 | BL63: =BL53/VLOOKUP(BL$24,'GETEM-Excel Max BE vs. Temp'!$C$4:$D$14,2) -> 0.6199561064 | BM63: =BM53/VLOOKUP(BM$24,'GETEM-Excel Max BE vs. Temp'!$C$4:$D$14,2) -> 0.6118444921 | BN63: =BN53/VLOOKUP(BN$24,'GETEM-Excel Max BE vs. Temp'!$C$4:$D$14,2) -> 0.59903066 | BO63: =BO53/VLOOKUP(BO$24,'GETEM-Excel Max BE vs. Temp'!$C$4:$D$14,2) -> 0.5870569031 | BP63: =BP53/VLOOKUP(BP$24,'GETEM-Excel Max BE vs. Temp'!$C$4:$D$14,2) -> 0.5498945334 | BQ63: =BQ53/VLOOKUP(BQ$24,'GETEM-Excel Max BE vs. Temp'!$C$4:$D$14,2) -> 0.6081370018 | BR63: =BR53/VLOOKUP(BR$24,'GETEM-Excel Max BE vs. Temp'!$C$4:$D$14,2) -> 0.6372642875 | BS63: =BS53/VLOOKUP(BS$24,'GETEM-Excel Max BE vs. Temp'!$C$4:$D$14,2) -> 0.6519511385 | BT63: =BT53/VLOOKUP(BT$24,'GETEM-Excel Max BE vs. Temp'!$C$4:$D$14,2) -> 0.652191058 | BU63: =BU53/VLOOKUP(BU$24,'GETEM-Excel Max BE vs. Temp'!$C$4:$D$14,2) -> 0.6471000459 | BV63: =BV53/VLOOKUP(BV$24,'GETEM-Excel Max BE vs. Temp'!$C$4:$D$14,2) -> 0.6354587103 | BW63: =BW53/VLOOKUP(BW$24,'GETEM-Excel Max BE vs. Temp'!$C$4:$D$14,2) -> 0.6241226338 | BX63: =BX53/VLOOKUP(BX$24,'GETEM-Excel Max BE vs. Temp'!$C$4:$D$14,2) -> 0.6118571684 | BY63: =BY53/VLOOKUP(BY$24,'GETEM-Excel Max BE vs. Temp'!$C$4:$D$14,2) -> 0.5815352623 | BZ63: =BZ53/VLOOKUP(BZ$24,'GETEM-Excel Max BE vs. Temp'!$C$4:$D$14,2) -> 0.6385910524 | CA63: =CA53/VLOOKUP(CA$24,'GETEM-Excel Max BE vs. Temp'!$C$4:$D$14,2) -> 0.6689524422 | CB63: =CB53/VLOOKUP(CB$24,'GETEM-Excel Max BE vs. Temp'!$C$4:$D$14,2) -> 0.6801146276 | CC63: =CC53/VLOOKUP(CC$24,'GETEM-Excel Max BE vs. Temp'!$C$4:$D$14,2) -> 0.6800352032 | CD63: =CD53/VLOOKUP(CD$24,'GETEM-Excel Max BE vs. Temp'!$C$4:$D$14,2) -> 0.6713874715 | CE63: =CE53/VLOOKUP(CE$24,'GETEM-Excel Max BE vs. Temp'!$C$4:$D$14,2) -> 0.6612783317 | CF63: =CF53/VLOOKUP(CF$24,'GETEM-Excel Max BE vs. Temp'!$C$4:$D$14,2) -> 0.6499320941 | CG63: =CG53/VLOOKUP(CG$24,'GETEM-Excel Max BE vs. Temp'!$C$4:$D$14,2) -> 0.6374023198
V64: Specified Plant Cost - Standard ($) | W64: ='Custom Design Results'!R75 -> 5243529.908 | X64: ='Custom Design Results'!S75 -> 5549320.267 | Y64: ='Custom Design Results'!T75 -> 5853618.337 | Z64: ='Custom Design Results'!U75 -> 6156499.456 | AA64: ='Custom Design Results'!V75 -> 6458069.858 | AB64: ='Custom Design Results'!W75 -> 6758436.086 | AC64: ='Custom Design Results'!X75 -> 7057696.049 | AD64: ='Custom Design Results'!Y75 -> 7355937.062 | AE64: ='Custom Design Results'!Z75 -> 7653236.22 | AF64: ='Custom Design Results'!AA75 -> 5317167.64 | AG64: ='Custom Design Results'!AB75 -> 5639421.069 | AH64: ='Custom Design Results'!AC75 -> 5959904.325 | AI64: ='Custom Design Results'!AD75 -> 6278752.693 | AJ64: ='Custom Design Results'!AE75 -> 6596109.969 | AK64: ='Custom Design Results'!AF75 -> 6912112.066 | AL64: ='Custom Design Results'!AG75 -> 7226878.112 | AM64: ='Custom Design Results'!AH75 -> 7540511.823 | AN64: ='Custom Design Results'!AI75 -> 7853103.308 | AO64: ='Custom Design Results'!AJ75 -> 5394143.543 | AP64: ='Custom Design Results'!AK75 -> 5733600.387 | AQ64: ='Custom Design Results'!AL75 -> 6070998.538 | AR64: ='Custom Design Results'!AM75 -> 6406533.536 | AS64: ='Custom Design Results'!AN75 -> 6740392.643 | AT64: ='Custom Design Results'!AO75 -> 7072740.354 | AU64: ='Custom Design Results'!AP75 -> 7403717.868 | AV64: ='Custom Design Results'!AQ75 -> 7733445.942 | AW64: ='Custom Design Results'!AR75 -> 8062028.193 | AX64: ='Custom Design Results'!AS75 -> 5482150.552 | AY64: ='Custom Design Results'!AT75 -> 5841412.89 | AZ64: ='Custom Design Results'!AU75 -> 6198298.506 | BA64: ='Custom Design Results'!AV75 -> 6553070.565 | BB64: ='Custom Design Results'!AW75 -> 6905961.883 | BC64: ='Custom Design Results'!AX75 -> 7257169.516 | BD64: ='Custom Design Results'!AY75 -> 7606858.976 | BE64: ='Custom Design Results'!AZ75 -> 7955169.791 | BF64: ='Custom Design Results'!BA75 -> 8302220.466 | BG64: ='Custom Design Results'!BB75 -> 5562396.578 | BH64: ='Custom Design Results'!BC75 -> 5939531.387 | BI64: ='Custom Design Results'!BD75 -> 6313989.559 | BJ64: ='Custom Design Results'!BE75 -> 6686098.4 | BK64: ='Custom Design Results'!BF75 -> 7056133.868 | BL64: ='Custom Design Results'!BG75 -> 7424323.821 | BM64: ='Custom Design Results'!BH75 -> 7790856.744 | BN64: ='Custom Design Results'!BI75 -> 8155889.889 | BO64: ='Custom Design Results'!BJ75 -> 8519555.799 | BP64: ='Custom Design Results'!BK75 -> 5635142.252 | BQ64: ='Custom Design Results'!BL75 -> 6028286.788 | BR64: ='Custom Design Results'!BM75 -> 6418470.057 | BS64: ='Custom Design Results'!BN75 -> 6806080.339 | BT64: ='Custom Design Results'!BO75 -> 7191434.593 | BU64: ='Custom Design Results'!BP75 -> 7574789.934 | BV64: ='Custom Design Results'!BQ75 -> 7956356.665 | BW64: ='Custom Design Results'!BR75 -> 8336308.865 | BX64: ='Custom Design Results'!BS75 -> 8714792.405 | BY64: ='Custom Design Results'!BT75 -> 5712895.892 | BZ64: ='Custom Design Results'!BU75 -> 6123207.931 | CA64: ='Custom Design Results'!BV75 -> 6530256.046 | CB64: ='Custom Design Results'!BW75 -> 6934492.766 | CC64: ='Custom Design Results'!BX75 -> 7336278.349 | CD64: ='Custom Design Results'!BY75 -> 7735900.868 | CE64: ='Custom Design Results'!BZ75 -> 8133593.752 | CF64: ='Custom Design Results'!CA75 -> 8529548.935 | CG64: ='Custom Design Results'!CB75 -> 8923926.455
U66: SAM Plant Efficiency (%)
U67: 0.4202034924
U68: 0.4883726379
U69: 0.5238978305
U70: 0.5427158866
U71: 0.5506925082
U72: 0.5522637896
U73: 0.5492736916
U74: 0.5441051378
U75: 0.5342678353
U76: 0.4572728819
U77: 0.5229137658
U78: 0.5581371847
U79: 0.5775755513
U80: 0.5840667751
U81: 0.5848387071
U82: 0.5813226552
U83: 0.5723086452
U84: 0.5620999072
U85: 0.4980754462
U86: 0.559081486
U87: 0.593918027
U88: 0.610275452
U89: 0.6171361879
U90: 0.6175702827
U91: 0.6100924637
U92: 0.6005082397
U93: 0.5895469916
U94: 0.5313673564
U95: 0.5929537508
U96: 0.6274999174
U97: 0.6440079336
U98: 0.651163513
U99: 0.6468393514
U100: 0.6388094252
U101: 0.6285490814
U102: 0.6140827125
U103: 0.5178147226
U104: 0.5756186962
U105: 0.6060492621
U106: 0.61967124
U107: 0.6242778053
U108: 0.6199561064
U109: 0.6118444921
U110: 0.59903066
U111: 0.5870569031
U112: 0.5498945334
U113: 0.6081370018
U114: 0.6372642875
U115: 0.6519511385
U116: 0.652191058
U117: 0.6471000459
U118: 0.6354587103
U119: 0.6241226338
U120: 0.6118571684
U121: 0.5815352623
U122: 0.6385910524
U123: 0.6689524422
U124: 0.6801146276
U125: 0.6800352032
U126: 0.6713874715
U127: 0.6612783317
U128: 0.6499320941
U129: 0.6374023198

Sheet Pivot Table
A1: Design | B1: Standard
A3: Sum of 1st Law Efficiency (%) | B3: Column Labels
A4: Row Labels | B4: 40 | C4: 50 | D4: 60 | E4: 70 | F4: 80 | G4: 90 | H4: 100 | I4: 110 | J4: 120
A5: 160 | B5: 0.06249632551 | C5: 0.07621057774 | D5: 0.08544187264 | E5: 0.09248540862 | F5: 0.09763912146 | G5: 0.1020715761 | H5: 0.105314102 | I5: 0.1083806225 | J5: 0.1103624867
A6: 165 | B6: 0.06713579754 | C6: 0.08030344525 | D6: 0.08929864658 | E6: 0.09619348902 | F6: 0.1012780244 | G6: 0.1054399082 | H6: 0.1089454395 | I6: 0.1110573296 | J6: 0.1129577325
A7: 170 | B7: 0.07206378346 | C7: 0.08441955024 | D7: 0.09339531686 | E7: 0.09983030717 | F7: 0.104893268 | G7: 0.1086785308 | H7: 0.1114904745 | I7: 0.1135822727 | J7: 0.115288153
A8: 175 | B8: 0.07592399605 | C8: 0.08794678958 | D8: 0.09672560564 | E8: 0.1031608993 | F8: 0.1079370554 | G8: 0.1113071085 | H8: 0.1138244853 | I8: 0.1157802933 | J8: 0.1165504269
A9: 180 | B9: 0.07945372122 | C9: 0.09168979741 | D9: 0.1001040441 | E9: 0.106069842 | F9: 0.11061273 | G9: 0.1135439663 | H9: 0.115920216 | I9: 0.1171548685 | J9: 0.11805652
A10: 185 | B10: 0.08312514748 | C10: 0.09510749825 | D10: 0.1032220447 | E10: 0.1089755097 | F10: 0.112655483 | G10: 0.1155909578 | H10: 0.1170732717 | I10: 0.1185019067 | J10: 0.1197813103
A11: 190 | B11: 0.08648282172 | C11: 0.09813796597 | D11: 0.1059854694 | E11: 0.1112923217 | F11: 0.1147447512 | G11: 0.1167110458 | H11: 0.1186541536 | I11: 0.119898936 | J11: 0.1210645844
A17: Design | B17: Custom
A18: Sum of Net Power | B18: Column Labels
B19: 160 | C19: 165 | D19: 170 | E19: 175 | F19: 180 | G19: 185 | H19: 190
A20: 40 | B20: 1424.117074 | C20: 1564.29199 | D20: 1713.144037 | E20: 1876.170888 | F20: 2043.62099 | G20: 2217.563421 | H20: 2407.504693
A21: 50 | B21: 1780.146342 | C21: 1955.364987 | D21: 2141.430046 | E21: 2345.21361 | F21: 2554.526238 | G21: 2771.954276 | H21: 3009.380866
A22: 60 | B22: 2136.175611 | C22: 2346.437985 | D22: 2569.716056 | E22: 2814.256332 | F22: 3065.431485 | G22: 3326.345132 | H22: 3611.257039
A23: 70 | B23: 2492.204879 | C23: 2737.511669 | D23: 2998.002065 | E23: 3283.299054 | F23: 3576.336733 | G23: 3880.735987 | H23: 4213.133213
A24: 80 | B24: 2848.234148 | C24: 3128.584764 | D24: 3426.288074 | E24: 3752.341776 | F24: 4087.24198 | G24: 4435.126842 | H24: 4815.009386
A25: 90 | B25: 3204.263416 | C25: 3519.65786 | D25: 3854.574083 | E25: 4221.384498 | F25: 4598.147228 | G25: 4989.517697 | H25: 5416.885559
A26: 100 | B26: 3560.292685 | C26: 3910.730955 | D26: 4282.860093 | E26: 4690.42722 | F26: 5109.052475 | G26: 5543.908553 | H26: 6018.761732
A27: 110 | B27: 3916.321953 | C27: 4301.804051 | D27: 4711.146102 | E27: 5159.469943 | F27: 5619.957723 | G27: 6098.299408 | H27: 6620.637905
A28: 120 | B28: 4272.351221 | C28: 4692.877147 | D28: 5139.432111 | E28: 5628.512665 | F28: 6130.86297 | G28: 6652.690263 | H28: 7222.514079
A31: Design | B31: Standard
A32: Sum of Net Power | B32: Column Labels
A33: Row Labels | B33: 160 | C33: 165 | D33: 170 | E33: 175 | F33: 180 | G33: 185 | H33: 190
A34: 40 | B34: 1061.870824 | C34: 1209.261797 | D34: 1375.707468 | E34: 1530.232017 | F34: 1693.132662 | G34: 1868.221689 | H34: 2048.845371
A35: 50 | B35: 1542.671185 | C35: 1728.562049 | D35: 1930.261222 | E35: 2134.485688 | F35: 2352.672619 | G35: 2582.619638 | H35: 2812.328002
A36: 60 | B36: 1985.865769 | C36: 2213.997379 | D36: 2460.643678 | E36: 2710.611932 | F36: 2972.45836 | G36: 3247.57992 | H36: 3535.245935
A37: 70 | B37: 2400.062847 | C37: 2672.955546 | D37: 2949.815899 | E37: 3245.575227 | F37: 3545.814262 | G37: 3876.163646 | H37: 4193.274501
A38: 80 | B38: 2783.243443 | C38: 3089.138524 | D38: 3409.117511 | E38: 3750.442114 | F38: 4082.483933 | G38: 4431.531524 | H38: 4791.754064
A39: 90 | B39: 3140.082927 | C39: 3479.873946 | D39: 3837.954927 | E39: 4191.228752 | F39: 4560.999806 | G39: 4946.556296 | H39: 5322.171682
A40: 100 | B40: 3470.09079 | C40: 3843.281038 | D40: 4212.759156 | E40: 4599.10937 | F40: 5001.469873 | G40: 5397.297448 | H40: 5824.483641
A41: 110 | B41: 3781.181735 | C41: 4162.055683 | D41: 4561.236877 | E41: 4977.764012 | F41: 5386.396742 | G41: 5831.115364 | H41: 6297.001634
A42: 120 | B42: 4050.347773 | C42: 4459.433112 | D42: 4885.068349 | E42: 5305.30724 | F42: 5758.615045 | G42: 6236.204015 | H42: 6737.022896
A46: Design | B46: Standard
A47: Sum of Actual Plant Efficiency (w-hr/lb) | B47: Column Labels
B48: 40 | C48: 50 | D48: 60 | E48: 70 | F48: 80 | G48: 90 | H48: 100 | I48: 110 | J48: 120
A49: 160 | B49: 3.34484081 | C49: 3.887470616 | D49: 4.170252925 | E49: 4.320045593 | F49: 4.3835399 | G49: 4.396047379 | H49: 4.372246049 | I49: 4.331104102 | J49: 4.252798682
A50: 165 | B50: 3.809115115 | C50: 4.355908273 | D50: 4.649321818 | E50: 4.811244773 | F50: 4.865317121 | G50: 4.871747369 | H50: 4.842458411 | I50: 4.767371076 | J50: 4.682331574
A51: 170 | B51: 4.333410785 | C51: 4.864182243 | D51: 5.16727095 | E51: 5.309585618 | F51: 5.369276147 | G51: 5.373052907 | H51: 5.307993563 | I51: 5.224607843 | J51: 5.129241586
A52: 175 | B52: 4.820155504 | C52: 5.378819853 | D52: 5.692196076 | E52: 5.841944088 | F52: 5.906853994 | G52: 5.86762853 | H52: 5.794787222 | I52: 5.701713284 | J52: 5.570485524
A53: 180 | B53: 5.333284516 | C53: 5.928642323 | D53: 6.24206498 | E53: 6.382365903 | F53: 6.429811683 | G53: 6.385299914 | H53: 6.30175353 | I53: 6.169776186 | J53: 6.046451279
A54: 185 | B54: 5.884806328 | C54: 6.508099753 | D54: 6.819811225 | E54: 6.976985499 | F54: 6.979553046 | G54: 6.925070561 | H54: 6.80048848 | I54: 6.67917319 | J54: 6.547911859
A55: 190 | B55: 6.453762034 | C55: 7.086955782 | D55: 7.423900413 | E55: 7.547776114 | F55: 7.546894678 | G55: 7.450923881 | H55: 7.338734669 | I55: 7.212816394 | J55: 7.073763464
A58: Design | B58: Custom
A59: Sum of Actual Plant Efficiency (w-hr/lb) | B59: Column Labels
A60: Row Labels | B60: 40 | C60: 50 | D60: 60 | E60: 70 | F60: 80 | G60: 90 | H60: 100 | I60: 110 | J60: 120
A61: 160 | B61: 4.485898659 | C61: 4.485898659 | D61: 4.485898659 | E61: 4.485898659 | F61: 4.485898659 | G61: 4.485898659 | H61: 4.485898659 | I61: 4.485898659 | J61: 4.485898659
A62: 165 | B62: 4.927442742 | C62: 4.927442742 | D62: 4.927442742 | E62: 4.927443978 | F62: 4.927443978 | G62: 4.927443978 | H62: 4.927443978 | I62: 4.927443978 | J62: 4.927443978
A63: 170 | B63: 5.396319361 | C63: 5.396319361 | D63: 5.396319361 | E63: 5.396319361 | F63: 5.396319361 | G63: 5.396319361 | H63: 5.396319361 | I63: 5.396319361 | J63: 5.396319361
A64: 175 | B64: 5.909845915 | C64: 5.909845915 | D64: 5.909845915 | E64: 5.909845915 | F64: 5.909845915 | G64: 5.909845915 | H64: 5.909845915 | I64: 5.909845915 | J64: 5.909845915
A65: 180 | B65: 6.437305491 | C65: 6.437305491 | D65: 6.437305491 | E65: 6.437305491 | F65: 6.437305491 | G65: 6.437305491 | H65: 6.437305491 | I65: 6.437305491 | J65: 6.437305491
A66: 185 | B66: 6.985215583 | C66: 6.985215583 | D66: 6.985215583 | E66: 6.985215583 | F66: 6.985215583 | G66: 6.985215583 | H66: 6.985215583 | I66: 6.985215583 | J66: 6.985215583
A67: 190 | B67: 7.583521237 | C67: 7.583521237 | D67: 7.583521237 | E67: 7.583521237 | F67: 7.583521237 | G67: 7.583521237 | H67: 7.583521237 | I67: 7.583521237 | J67: 7.583521237
A71: Design | B71: Standard
A72: Sum of 1st Law Efficiency (%) | B72: Column Labels
B73: 40 | C73: 50 | D73: 60 | E73: 70 | F73: 80 | G73: 90 | H73: 100 | I73: 110 | J73: 120
A74: 160 | B74: 0.06249632551 | C74: 0.07621057774 | D74: 0.08544187264 | E74: 0.09248540862 | F74: 0.09763912146 | G74: 0.1020715761 | H74: 0.105314102 | I74: 0.1083806225 | J74: 0.1103624867
A75: 165 | B75: 0.06713579754 | C75: 0.08030344525 | D75: 0.08929864658 | E75: 0.09619348902 | F75: 0.1012780244 | G75: 0.1054399082 | H75: 0.1089454395 | I75: 0.1110573296 | J75: 0.1129577325
A76: 170 | B76: 0.07206378346 | C76: 0.08441955024 | D76: 0.09339531686 | E76: 0.09983030717 | F76: 0.104893268 | G76: 0.1086785308 | H76: 0.1114904745 | I76: 0.1135822727 | J76: 0.115288153
A77: 175 | B77: 0.07592399605 | C77: 0.08794678958 | D77: 0.09672560564 | E77: 0.1031608993 | F77: 0.1079370554 | G77: 0.1113071085 | H77: 0.1138244853 | I77: 0.1157802933 | J77: 0.1165504269
A78: 180 | B78: 0.07945372122 | C78: 0.09168979741 | D78: 0.1001040441 | E78: 0.106069842 | F78: 0.11061273 | G78: 0.1135439663 | H78: 0.115920216 | I78: 0.1171548685 | J78: 0.11805652
A79: 185 | B79: 0.08312514748 | C79: 0.09510749825 | D79: 0.1032220447 | E79: 0.1089755097 | F79: 0.112655483 | G79: 0.1155909578 | H79: 0.1170732717 | I79: 0.1185019067 | J79: 0.1197813103
A80: 190 | B80: 0.08648282172 | C80: 0.09813796597 | D80: 0.1059854694 | E80: 0.1112923217 | F80: 0.1147447512 | G80: 0.1167110458 | H80: 0.1186541536 | I80: 0.119898936 | J80: 0.1210645844

Sheet Results Comparison
C1: kg/s | D1: °C | E1: bar | F1: bar | G1: kW | H1: kW | I1: kW | J1: ---- | K1: kJ/kg | L1: kW/K | M1: °C | N1: kW | O1: kW/K | P1: °C | Q1: kW | R1: --- | S1: kW/K | T1: °C | U1: kW | V1: kg/s | W1: kg/s | X1: kW
C2: mass flow | D2: temperature | E2: pressure | F2: pressure | G2: electrical power output | H2: electrical power input | I2: electrical power input | J2: isentropic efficiency | K2: isentropic enthalpy difference | L2: heat transfer coefficient x transfer area | M2: mean temperature difference | N2: transferred heat | O2: heat transfer coefficient x transfer area | P2: mean temperature difference | Q2: transferred heat | R2: vapor quality | S2: heat transfer coefficient x heat transfer area | T2: mean temperature difference | U2: transferred heat | V2: mass flow | W2: mass flow
B3: Design | C3: W_Stream001 | D3: W_Stream001 | E3: O_Stream001 | F3: O_Stream002 | G3: generator001 | H3: motor001 | I3: motor002 | J3: O_Turbine001 | K3: O_Turbine001 | L3: W_O_Htex002 | M3: W_O_Htex002 | N3: W_O_Htex002 | O3: W_O_Htex001 | P3: W_O_Htex001 | Q3: W_O_Htex001 | R3: O_Xprescription003 | S3: O_Condenser_a001 | T3: O_Condenser_a001 | U3: O_Condenser_a001 | V3: G_Stream001 | W3: O_Stream001 | X3: Net Power | Y3: Actual Plant Efficiency (w-hr/lb) | Z3: Actual Plant Efficiency (kW/kg/s) | AA3: 1st Law Efficiency (%)
B4: Custom | C4: 40 | D4: 160 | E4: 5.87890625 | F4: 0.817 | G4: 1747.300813 | H4: 42.67740407 | I4: 280.5063353 | J4: 0.8 | K4: 73.42755823 | L4: 334.9473437 | M4: 16.87039951 | N4: 5650.695504 | O4: 413.5988207 | P4: 21.94460789 | Q4: 9076.263946 | R4: 1.150156318 | S4: 1235.144138 | T4: 10.48015429 | U4: 12944.50114 | V4: 1320.579826 | W4: 30.97180058 | X4: 1424.117074 | Y4: 4.485898659 | Z4: 35.60292685 | AA4: 0.09670136451
B5: Custom | C5: 50 | D5: 160 | E5: 5.87890625 | F5: 0.817 | G5: 2184.126017 | H5: 53.34675509 | I5: 350.6329192 | J5: 0.8 | K5: 73.42755823 | L5: 418.6841796 | M5: 16.87039951 | N5: 7063.369379 | O5: 516.9985259 | P5: 21.94460789 | Q5: 11345.32993 | R5: 1.150156318 | S5: 1543.930172 | T5: 10.48015429 | U5: 16180.62642 | V5: 1650.724782 | W5: 38.71475073 | X5: 1780.146342 | Y5: 4.485898659 | Z5: 35.60292685 | AA5: 0.09670136451
B6: Custom | C6: 60 | D6: 160 | E6: 5.87890625 | F6: 0.817 | G6: 2620.95122 | H6: 64.01610611 | I6: 420.759503 | J6: 0.8 | K6: 73.42755823 | L6: 502.4210155 | M6: 16.87039951 | N6: 8476.043255 | O6: 620.3982311 | P6: 21.94460789 | Q6: 13614.39592 | R6: 1.150156318 | S6: 1852.716207 | T6: 10.48015429 | U6: 19416.75171 | V6: 1980.869739 | W6: 46.45770087 | X6: 2136.175611 | Y6: 4.485898659 | Z6: 35.60292685 | AA6: 0.09670136451
B7: Custom | C7: 70 | D7: 160 | E7: 5.87890625 | F7: 0.817 | G7: 3057.776423 | H7: 74.68545713 | I7: 490.8860869 | J7: 0.8 | K7: 73.42755823 | L7: 586.1578514 | M7: 16.87039951 | N7: 9888.717131 | O7: 723.7979362 | P7: 21.94460789 | Q7: 15883.46191 | R7: 1.150156318 | S7: 2161.502241 | T7: 10.48015429 | U7: 22652.87699 | V7: 2311.014695 | W7: 54.20065102 | X7: 2492.204879 | Y7: 4.485898659 | Z7: 35.60292685 | AA7: 0.09670136451
B8: Custom | C8: 80 | D8: 160 | E8: 5.87890625 | F8: 0.817 | G8: 3494.601626 | H8: 85.35480815 | I8: 561.0126707 | J8: 0.8 | K8: 73.42755823 | L8: 669.8946873 | M8: 16.87039951 | N8: 11301.39101 | O8: 827.1976414 | P8: 21.94460789 | Q8: 18152.52789 | R8: 1.150156318 | S8: 2470.288276 | T8: 10.48015429 | U8: 25889.00228 | V8: 2641.159652 | W8: 61.94360116 | X8: 2848.234148 | Y8: 4.485898659 | Z8: 35.60292685 | AA8: 0.09670136451
B9: Custom | C9: 90 | D9: 160 | E9: 5.87890625 | F9: 0.817 | G9: 3931.42683 | H9: 96.02415917 | I9: 631.1392545 | J9: 0.8 | K9: 73.42755823 | L9: 753.6315233 | M9: 16.87039951 | N9: 12714.06488 | O9: 930.5973466 | P9: 21.94460789 | Q9: 20421.59388 | R9: 1.150156318 | S9: 2779.07431 | T9: 10.48015429 | U9: 29125.12756 | V9: 2971.304608 | W9: 69.68655131 | X9: 3204.263416 | Y9: 4.485898659 | Z9: 35.60292685 | AA9: 0.09670136451
B10: Custom | C10: 100 | D10: 160 | E10: 5.87890625 | F10: 0.817 | G10: 4368.252033 | H10: 106.6935102 | I10: 701.2658384 | J10: 0.8 | K10: 73.42755823 | L10: 837.3683592 | M10: 16.87039951 | N10: 14126.73876 | O10: 1033.997052 | P10: 21.94460789 | Q10: 22690.65987 | R10: 1.150156318 | S10: 3087.860345 | T10: 10.48015429 | U10: 32361.25285 | V10: 3301.449565 | W10: 77.42950145 | X10: 3560.292685 | Y10: 4.485898659 | Z10: 35.60292685 | AA10: 0.09670136451
B11: Custom | C11: 110 | D11: 160 | E11: 5.87890625 | F11: 0.817 | G11: 4805.077236 | H11: 117.3628612 | I11: 771.3924222 | J11: 0.8 | K11: 73.42755823 | L11: 921.1051951 | M11: 16.87039951 | N11: 15539.41263 | O11: 1137.396757 | P11: 21.94460789 | Q11: 24959.72585 | R11: 1.150156318 | S11: 3396.646379 | T11: 10.48015429 | U11: 35597.37813 | V11: 3631.594521 | W11: 85.1724516 | X11: 3916.321953 | Y11: 4.485898659 | Z11: 35.60292685 | AA11: 0.09670136451
B12: Custom | C12: 120 | D12: 160 | E12: 5.87890625 | F12: 0.817 | G12: 5241.90244 | H12: 128.0322122 | I12: 841.519006 | J12: 0.8 | K12: 73.42755823 | L12: 1004.842031 | M12: 16.87039951 | N12: 16952.08651 | O12: 1240.796462 | P12: 21.94460789 | Q12: 27228.79184 | R12: 1.150156318 | S12: 3705.432413 | T12: 10.48015429 | U12: 38833.50341 | V12: 3961.739477 | W12: 92.91540174 | X12: 4272.351221 | Y12: 4.485898659 | Z12: 35.60292685 | AA12: 0.09670136451
B13: Custom | C13: 40 | D13: 165 | E13: 6.3125 | F13: 0.817 | G13: 1909.722607 | H13: 48.69574336 | I13: 296.7348738 | J13: 0.8 | K13: 76.33567243 | L13: 372.0475947 | M13: 16.70634677 | N13: 6215.556131 | O13: 420.0059618 | P13: 22.43829374 | Q13: 9424.217142 | R13: 1.157324931 | S13: 1295.08675 | T13: 10.57334427 | U13: 13693.39807 | V13: 1396.981239 | W13: 32.561216 | X13: 1564.29199 | Y13: 4.927442742 | Z13: 39.10729974 | AA13: 0.1000201194
B14: Custom | C14: 50 | D14: 165 | E14: 6.3125 | F14: 0.817 | G14: 2387.153259 | H14: 60.8696792 | I14: 370.9185922 | J14: 0.8 | K14: 76.33567243 | L14: 465.0594934 | M14: 16.70634677 | N14: 7769.445164 | O14: 525.0074522 | P14: 22.43829374 | Q14: 11780.27143 | R14: 1.157324931 | S14: 1618.858437 | T14: 10.57334427 | U14: 17116.74759 | V14: 1746.226549 | W14: 40.70152 | X14: 1955.364987 | Y14: 4.927442742 | Z14: 39.10729974 | AA14: 0.1000201194
B15: Custom | C15: 60 | D15: 165 | E15: 6.3125 | F15: 0.817 | G15: 2864.58391 | H15: 73.04361503 | I15: 445.1023107 | J15: 0.8 | K15: 76.33567243 | L15: 558.0713921 | M15: 16.70634677 | N15: 9323.334197 | O15: 630.0089427 | P15: 22.43829374 | Q15: 14136.32571 | R15: 1.157324931 | S15: 1942.630125 | T15: 10.57334427 | U15: 20540.09711 | V15: 2095.471859 | W15: 48.841824 | X15: 2346.437985 | Y15: 4.927442742 | Z15: 39.10729974 | AA15: 0.1000201194
B16: Custom | C16: 70 | D16: 165 | E16: 6.31640625 | F16: 0.817 | G16: 3341.877736 | H16: 85.24601763 | I16: 519.1200493 | J16: 0.8 | K16: 76.36109702 | L16: 650.8406478 | M16: 16.71284162 | N16: 10877.39666 | O16: 734.8826438 | P16: 22.43130951 | Q16: 16484.38003 | R16: 1.157387894 | S16: 2265.516719 | T16: 10.57409419 | U16: 23955.78717 | V16: 2443.935761 | W16: 56.96082353 | X16: 2737.511669 | Y16: 4.927443978 | Z16: 39.10730955 | AA16: 0.1000487541
B17: Custom | C17: 80 | D17: 165 | E17: 6.31640625 | F17: 0.817 | G17: 3819.288841 | H17: 97.42402015 | I17: 593.2800563 | J17: 0.8 | K17: 76.36109702 | L17: 743.8178832 | M17: 16.71284162 | N17: 12431.31047 | O17: 839.8658786 | P17: 22.43130951 | Q17: 18839.29147 | R17: 1.157387894 | S17: 2589.161964 | T17: 10.57409419 | U17: 27378.04248 | V17: 2793.069442 | W17: 65.09808404 | X17: 3128.584764 | Y17: 4.927443978 | Z17: 39.10730955 | AA17: 0.1000487541
B18: Custom | C18: 90 | D18: 165 | E18: 6.31640625 | F18: 0.817 | G18: 4296.699946 | H18: 109.6020227 | I18: 667.4400633 | J18: 0.8 | K18: 76.36109702 | L18: 836.7951186 | M18: 16.71284162 | N18: 13985.22428 | O18: 944.8491135 | P18: 22.43130951 | Q18: 21194.2029 | R18: 1.157387894 | S18: 2912.80721 | T18: 10.57409419 | U18: 30800.29779 | V18: 3142.203122 | W18: 73.23534454 | X18: 3519.65786 | Y18: 4.927443978 | Z18: 39.10730955 | AA18: 0.1000487541
B19: Custom | C19: 100 | D19: 165 | E19: 6.31640625 | F19: 0.817 | G19: 4774.111051 | H19: 121.7800252 | I19: 741.6000704 | J19: 0.8 | K19: 76.36109702 | L19: 929.772354 | M19: 16.71284162 | N19: 15539.13809 | O19: 1049.832348 | P19: 22.43130951 | Q19: 23549.11433 | R19: 1.157387894 | S19: 3236.452455 | T19: 10.57409419 | U19: 34222.5531 | V19: 3491.336802 | W19: 81.37260505 | X19: 3910.730955 | Y19: 4.927443978 | Z19: 39.10730955 | AA19: 0.1000487541
B20: Custom | C20: 110 | D20: 165 | E20: 6.31640625 | F20: 0.817 | G20: 5251.522156 | H20: 133.9580277 | I20: 815.7600774 | J20: 0.8 | K20: 76.36109702 | L20: 1022.749589 | M20: 16.71284162 | N20: 17093.0519 | O20: 1154.815583 | P20: 22.43130951 | Q20: 25904.02577 | R20: 1.157387894 | S20: 3560.097701 | T20: 10.57409419 | U20: 37644.80841 | V20: 3840.470482 | W20: 89.50986555 | X20: 4301.804051 | Y20: 4.927443978 | Z20: 39.10730955 | AA20: 0.1000487541
B21: Custom | C21: 120 | D21: 165 | E21: 6.31640625 | F21: 0.817 | G21: 5728.933261 | H21: 146.1360302 | I21: 889.9200844 | J21: 0.8 | K21: 76.36109702 | L21: 1115.726825 | M21: 16.71284162 | N21: 18646.96571 | O21: 1259.798818 | P21: 22.43130951 | Q21: 28258.9372 | R21: 1.157387894 | S21: 3883.742946 | T21: 10.57409419 | U21: 41067.06371 | V21: 4189.604162 | W21: 97.64712606 | X21: 4692.877147 | Y21: 4.927443978 | Z21: 39.10730955 | AA21: 0.1000487541
B22: Custom | C22: 40 | D22: 170 | E22: 6.78125 | F22: 0.817 | G22: 2081.997256 | H22: 55.44963392 | I22: 313.4035847 | J22: 0.8 | K22: 79.29562517 | L22: 413.692657 | M22: 16.4907 | N22: 6822.081499 | O22: 426.0538736 | P22: 22.90893743 | Q22: 9760.441532 | R22: 1.164687158 | S22: 1357.486535 | T22: 10.65396026 | U22: 14462.6076 | V22: 1475.454915 | W22: 34.17344696 | X22: 1713.144037 | Y22: 5.396319361 | Z22: 42.82860093 | AA22: 0.1033102161
B23: Custom | C23: 50 | D23: 170 | E23: 6.78125 | F23: 0.817 | G23: 2602.49657 | H23: 69.31204239 | I23: 391.7544808 | J23: 0.8 | K23: 79.29562517 | L23: 517.1158213 | M23: 16.4907 | N23: 8527.601874 | O23: 532.5673419 | P23: 22.90893743 | Q23: 12200.55192 | R23: 1.164687158 | S23: 1696.858169 | T23: 10.65396026 | U23: 18078.2595 | V23: 1844.318644 | W23: 42.7168087 | X23: 2141.430046 | Y23: 5.396319361 | Z23: 42.82860093 | AA23: 0.1033102161
B24: Custom | C24: 60 | D24: 170 | E24: 6.78125 | F24: 0.817 | G24: 3122.995883 | H24: 83.17445087 | I24: 470.105377 | J24: 0.8 | K24: 79.29562517 | L24: 620.5389856 | M24: 16.4907 | N24: 10233.12225 | O24: 639.0808103 | P24: 22.90893743 | Q24: 14640.6623 | R24: 1.164687158 | S24: 2036.229803 | T24: 10.65396026 | U24: 21693.91141 | V24: 2213.182373 | W24: 51.26017044 | X24: 2569.716056 | Y24: 5.396319361 | Z24: 42.82860093 | AA24: 0.1033102161
B25: Custom | C25: 70 | D25: 170 | E25: 6.78125 | F25: 0.817 | G25: 3643.495197 | H25: 97.03685935 | I25: 548.4562732 | J25: 0.8 | K25: 79.29562517 | L25: 723.9621498 | M25: 16.4907 | N25: 11938.64262 | O25: 745.5942787 | P25: 22.90893743 | Q25: 17080.77268 | R25: 1.164687158 | S25: 2375.601437 | T25: 10.65396026 | U25: 25309.56331 | V25: 2582.046102 | W25: 59.80353219 | X25: 2998.002065 | Y25: 5.396319361 | Z25: 42.82860093 | AA25: 0.1033102161
B26: Custom | C26: 80 | D26: 170 | E26: 6.78125 | F26: 0.817 | G26: 4163.994511 | H26: 110.8992678 | I26: 626.8071693 | J26: 0.8 | K26: 79.29562517 | L26: 827.3853141 | M26: 16.4907 | N26: 13644.163 | O26: 852.1077471 | P26: 22.90893743 | Q26: 19520.88306 | R26: 1.164687158 | S26: 2714.973071 | T26: 10.65396026 | U26: 28925.21521 | V26: 2950.909831 | W26: 68.34689393 | X26: 3426.288074 | Y26: 5.396319361 | Z26: 42.82860093 | AA26: 0.1033102161
B27: Custom | C27: 90 | D27: 170 | E27: 6.78125 | F27: 0.817 | G27: 4684.493825 | H27: 124.7616763 | I27: 705.1580655 | J27: 0.8 | K27: 79.29562517 | L27: 930.8084783 | M27: 16.4907 | N27: 15349.68337 | O27: 958.6212155 | P27: 22.90893743 | Q27: 21960.99345 | R27: 1.164687158 | S27: 3054.344704 | T27: 10.65396026 | U27: 32540.86711 | V27: 3319.773559 | W27: 76.89025567 | X27: 3854.574083 | Y27: 5.396319361 | Z27: 42.82860093 | AA27: 0.1033102161
B28: Custom | C28: 100 | D28: 170 | E28: 6.78125 | F28: 0.817 | G28: 5204.993139 | H28: 138.6240848 | I28: 783.5089617 | J28: 0.8 | K28: 79.29562517 | L28: 1034.231643 | M28: 16.4907 | N28: 17055.20375 | O28: 1065.134684 | P28: 22.90893743 | Q28: 24401.10383 | R28: 1.164687158 | S28: 3393.716338 | T28: 10.65396026 | U28: 36156.51901 | V28: 3688.637288 | W28: 85.43361741 | X28: 4282.860093 | Y28: 5.396319361 | Z28: 42.82860093 | AA28: 0.1033102161
B29: Custom | C29: 110 | D29: 170 | E29: 6.78125 | F29: 0.817 | G29: 5725.492453 | H29: 152.4864933 | I29: 861.8598578 | J29: 0.8 | K29: 79.29562517 | L29: 1137.654807 | M29: 16.4907 | N29: 18760.72412 | O29: 1171.648152 | P29: 22.90893743 | Q29: 26841.21421 | R29: 1.164687158 | S29: 3733.087972 | T29: 10.65396026 | U29: 39772.17091 | V29: 4057.501017 | W29: 93.97697915 | X29: 4711.146102 | Y29: 5.396319361 | Z29: 42.82860093 | AA29: 0.1033102161
B30: Custom | C30: 120 | D30: 170 | E30: 6.78125 | F30: 0.817 | G30: 6245.991767 | H30: 166.3489017 | I30: 940.210754 | J30: 0.8 | K30: 79.29562517 | L30: 1241.077971 | M30: 16.4907 | N30: 20466.2445 | O30: 1278.161621 | P30: 22.90893743 | Q30: 29281.3246 | R30: 1.164687158 | S30: 4072.459606 | T30: 10.65396026 | U30: 43387.82281 | V30: 4426.364746 | W30: 102.5203409 | X30: 5139.432111 | Y30: 5.396319361 | Z30: 42.82860093 | AA30: 0.1033102161
B31: Custom | C31: 40 | D31: 175 | E31: 7.520996094 | F31: 0.817 | G31: 2265.775685 | H31: 64.12844384 | I31: 325.476353 | J31: 0.8 | K31: 83.83661359 | L31: 452.0231182 | M31: 16.55355239 | N31: 7482.58837 | O31: 428.0792038 | P31: 22.98852658 | Q31: 9840.910154 | R31: 1.175119333 | S31: 1397.55842 | T31: 10.74712039 | U31: 15019.72858 | V31: 1532.291615 | W31: 35.17556209 | X31: 1876.170888 | Y31: 5.909845915 | Z31: 46.9042722 | AA31: 0.108302078
B32: Custom | C32: 50 | D32: 175 | E32: 7.520996094 | F32: 0.817 | G32: 2832.219606 | H32: 80.1605548 | I32: 406.8454412 | J32: 0.8 | K32: 83.83661359 | L32: 565.0288977 | M32: 16.55355239 | N32: 9353.235462 | O32: 535.0990048 | P32: 22.98852658 | Q32: 12301.13769 | R32: 1.175119333 | S32: 1746.948024 | T32: 10.74712039 | U32: 18774.66072 | V32: 1915.364518 | W32: 43.96945261 | X32: 2345.21361 | Y32: 5.909845915 | Z32: 46.9042722 | AA32: 0.108302078
B33: Custom | C33: 60 | D33: 175 | E33: 7.520996094 | F33: 0.817 | G33: 3398.663528 | H33: 96.19266576 | I33: 488.2145295 | J33: 0.8 | K33: 83.83661359 | L33: 678.0346773 | M33: 16.55355239 | N33: 11223.88255 | O33: 642.1188057 | P33: 22.98852658 | Q33: 14761.36523 | R33: 1.175119333 | S33: 2096.337629 | T33: 10.74712039 | U33: 22529.59287 | V33: 2298.437422 | W33: 52.76334313 | X33: 2814.256332 | Y33: 5.909845915 | Z33: 46.9042722 | AA33: 0.108302078
B34: Custom | C34: 70 | D34: 175 | E34: 7.520996094 | F34: 0.817 | G34: 3965.107449 | H34: 112.2247767 | I34: 569.5836177 | J34: 0.8 | K34: 83.83661359 | L34: 791.0404568 | M34: 16.55355239 | N34: 13094.52965 | O34: 749.1386067 | P34: 22.98852658 | Q34: 17221.59277 | R34: 1.175119333 | S34: 2445.727234 | T34: 10.74712039 | U34: 26284.52501 | V34: 2681.510326 | W34: 61.55723365 | X34: 3283.299054 | Y34: 5.909845915 | Z34: 46.9042722 | AA34: 0.108302078
B35: Custom | C35: 80 | D35: 175 | E35: 7.520996064 | F35: 0.817 | G35: 4531.55137 | H35: 128.2568877 | I35: 650.952706 | J35: 0.8 | K35: 83.83661359 | L35: 904.0462364 | M35: 16.55355239 | N35: 14965.17674 | O35: 856.1584076 | P35: 22.98852658 | Q35: 19681.82031 | R35: 1.175119333 | S35: 2795.116839 | T35: 10.74712039 | U35: 30039.45716 | V35: 3064.58323 | W35: 70.35112418 | X35: 3752.341776 | Y35: 5.909845915 | Z35: 46.9042722 | AA35: 0.108302078
B36: Custom | C36: 90 | D36: 175 | E36: 7.520996064 | F36: 0.817 | G36: 5097.995291 | H36: 144.2889986 | I36: 732.3217942 | J36: 0.8 | K36: 83.83661359 | L36: 1017.052016 | M36: 16.55355239 | N36: 16835.82383 | O36: 963.1782086 | P36: 22.98852658 | Q36: 22142.04785 | R36: 1.175119333 | S36: 3144.506444 | T36: 10.74712039 | U36: 33794.3893 | V36: 3447.656133 | W36: 79.1450147 | X36: 4221.384498 | Y36: 5.909845915 | Z36: 46.9042722 | AA36: 0.108302078
B37: Custom | C37: 100 | D37: 175 | E37: 7.520996064 | F37: 0.817 | G37: 5664.439213 | H37: 160.3211096 | I37: 813.6908825 | J37: 0.8 | K37: 83.83661359 | L37: 1130.057795 | M37: 16.55355239 | N37: 18706.47092 | O37: 1070.19801 | P37: 22.98852658 | Q37: 24602.27538 | R37: 1.175119333 | S37: 3493.896049 | T37: 10.74712039 | U37: 37549.32145 | V37: 3830.729037 | W37: 87.93890522 | X37: 4690.42722 | Y37: 5.909845915 | Z37: 46.9042722 | AA37: 0.108302078
B38: Custom | C38: 110 | D38: 175 | E38: 7.520996064 | F38: 0.817 | G38: 6230.883134 | H38: 176.3532206 | I38: 895.0599707 | J38: 0.8 | K38: 83.83661359 | L38: 1243.063575 | M38: 16.55355239 | N38: 20577.11802 | O38: 1177.21781 | P38: 22.98852658 | Q38: 27062.50292 | R38: 1.175119333 | S38: 3843.285654 | T38: 10.74712039 | U38: 41304.25359 | V38: 4213.801941 | W38: 96.73279574 | X38: 5159.469943 | Y38: 5.909845915 | Z38: 46.9042722 | AA38: 0.108302078
B39: Custom | C39: 120 | D39: 175 | E39: 7.520996064 | F39: 0.817 | G39: 6797.327055 | H39: 192.3853315 | I39: 976.429059 | J39: 0.8 | K39: 83.83661359 | L39: 1356.069355 | M39: 16.55355239 | N39: 22447.76511 | O39: 1284.237611 | P39: 22.98852658 | Q39: 29522.73046 | R39: 1.175119333 | S39: 4192.675259 | T39: 10.74712039 | U39: 45059.18574 | V39: 4596.874844 | W39: 105.5266863 | X39: 5628.512665 | Y39: 5.909845915 | Z39: 46.9042722 | AA39: 0.108302078
B40: Custom | C40: 40 | D40: 180 | E40: 7.520996094 | F40: 0.817 | G40: 2467.998399 | H40: 69.85197069 | I40: 354.5254385 | J40: 0.8 | K40: 83.83661359 | L40: 527.5479417 | M40: 15.4496229 | N40: 8150.416761 | O40: 441.805455 | P40: 24.26231041 | Q40: 10719.22109 | R40: 1.175119333 | S40: 1522.291887 | T40: 10.74712039 | U40: 16360.25417 | V40: 1669.050152 | W40: 38.31501569 | X40: 2043.62099 | Y40: 6.437305491 | Z40: 51.09052475 | AA40: 0.108302078
B41: Custom | C41: 50 | D41: 180 | E41: 7.520996094 | F41: 0.817 | G41: 3084.997999 | H41: 87.31496337 | I41: 443.1567981 | J41: 0.8 | K41: 83.83661359 | L41: 659.4349271 | M41: 15.4496229 | N41: 10188.02095 | O41: 552.2568188 | P41: 24.26231041 | Q41: 13399.02636 | R41: 1.175119333 | S41: 1902.864858 | T41: 10.74712039 | U41: 20450.31771 | V41: 2086.312691 | W41: 47.89376962 | X41: 2554.526238 | Y41: 6.437305491 | Z41: 51.09052475 | AA41: 0.108302078
B42: Custom | C42: 60 | D42: 180 | E42: 7.520996094 | F42: 0.817 | G42: 3701.997599 | H42: 104.777956 | I42: 531.7881577 | J42: 0.8 | K42: 83.83661359 | L42: 791.3219125 | M42: 15.4496229 | N42: 12225.62514 | O42: 662.7081825 | P42: 24.26231041 | Q42: 16078.83163 | R42: 1.175119333 | S42: 2283.43783 | T42: 10.74712039 | U42: 24540.38125 | V42: 2503.575229 | W42: 57.47252354 | X42: 3065.431485 | Y42: 6.437305491 | Z42: 51.09052475 | AA42: 0.108302078
B43: Custom | C43: 70 | D43: 180 | E43: 7.520996064 | F43: 0.817 | G43: 4318.997199 | H43: 122.2409487 | I43: 620.4195173 | J43: 0.8 | K43: 83.83661359 | L43: 923.2088979 | M43: 15.4496229 | N43: 14263.22933 | O43: 773.1595463 | P43: 24.26231041 | Q43: 18758.63691 | R43: 1.175119333 | S43: 2664.010802 | T43: 10.74712039 | U43: 28630.44479 | V43: 2920.837767 | W43: 67.05127746 | X43: 3576.336733 | Y43: 6.437305491 | Z43: 51.09052475 | AA43: 0.108302078
B44: Custom | C44: 80 | D44: 180 | E44: 7.520996064 | F44: 0.817 | G44: 4935.996799 | H44: 139.7039414 | I44: 709.0508769 | J44: 0.8 | K44: 83.83661359 | L44: 1055.095883 | M44: 15.4496229 | N44: 16300.83352 | O44: 883.61091 | P44: 24.26231041 | Q44: 21438.44218 | R44: 1.175119333 | S44: 3044.583773 | T44: 10.74712039 | U44: 32720.50833 | V44: 3338.100305 | W44: 76.63003138 | X44: 4087.24198 | Y44: 6.437305491 | Z44: 51.09052475 | AA44: 0.108302078
B45: Custom | C45: 90 | D45: 180 | E45: 7.520996064 | F45: 0.817 | G45: 5552.996398 | H45: 157.1669341 | I45: 797.6822365 | J45: 0.8 | K45: 83.83661359 | L45: 1186.982869 | M45: 15.4496229 | N45: 18338.43771 | O45: 994.0622738 | P45: 24.26231041 | Q45: 24118.24745 | R45: 1.175119333 | S45: 3425.156745 | T45: 10.74712039 | U45: 36810.57188 | V45: 3755.362843 | W45: 86.20878531 | X45: 4598.147228 | Y45: 6.437305491 | Z45: 51.09052475 | AA45: 0.108302078
B46: Custom | C46: 100 | D46: 180 | E46: 7.520996064 | F46: 0.817 | G46: 6169.995998 | H46: 174.6299267 | I46: 886.3135962 | J46: 0.8 | K46: 83.83661359 | L46: 1318.869854 | M46: 15.4496229 | N46: 20376.0419 | O46: 1104.513638 | P46: 24.26231041 | Q46: 26798.05272 | R46: 1.175119333 | S46: 3805.729717 | T46: 10.74712039 | U46: 40900.63542 | V46: 4172.625381 | W46: 95.78753923 | X46: 5109.052475 | Y46: 6.437305491 | Z46: 51.09052475 | AA46: 0.108302078
B47: Custom | C47: 110 | D47: 180 | E47: 7.520996064 | F47: 0.817 | G47: 6786.995598 | H47: 192.0929194 | I47: 974.9449558 | J47: 0.8 | K47: 83.83661359 | L47: 1450.75684 | M47: 15.4496229 | N47: 22413.64609 | O47: 1214.965001 | P47: 24.26231041 | Q47: 29477.858 | R47: 1.175119333 | S47: 4186.302688 | T47: 10.74712039 | U47: 44990.69896 | V47: 4589.887919 | W47: 105.3662932 | X47: 5619.957723 | Y47: 6.437305491 | Z47: 51.09052475 | AA47: 0.108302078
B48: Custom | C48: 120 | D48: 180 | E48: 7.520996064 | F48: 0.817 | G48: 7403.995198 | H48: 209.5559121 | I48: 1063.576315 | J48: 0.8 | K48: 83.83661359 | L48: 1582.643825 | M48: 15.4496229 | N48: 24451.25028 | O48: 1325.416365 | P48: 24.26231041 | Q48: 32157.66327 | R48: 1.175119333 | S48: 4566.87566 | T48: 10.74712039 | U48: 49080.7625 | V48: 5007.150457 | W48: 114.9450471 | X48: 6130.86297 | Y48: 6.437305491 | Z48: 51.09052475 | AA48: 0.108302078
B49: Custom | C49: 40 | D49: 185 | E49: 8.46875 | F49: 0.817 | G49: 2664.928636 | H49: 81.35618821 | I49: 366.0090267 | J49: 0.8 | K49: 88.67357017 | L49: 576.0626526 | M49: 15.5100183 | N49: 8934.742283 | O49: 441.8142776 | P49: 24.12763616 | Q49: 10659.93414 | R49: 1.188387064 | S49: 1558.505022 | T49: 10.83742822 | U49: 16890.1863 | V49: 1723.113084 | W49: 39.11553285 | X49: 2217.563421 | Y49: 6.985215583 | Z49: 55.43908553 | AA49: 0.1131717296
B50: Custom | C50: 50 | D50: 185 | E50: 8.46875 | F50: 0.817 | G50: 3331.160795 | H50: 101.6952353 | I50: 457.5112834 | J50: 0.8 | K50: 88.67357017 | L50: 720.0783157 | M50: 15.5100183 | N50: 11168.42785 | O50: 552.267847 | P50: 24.12763616 | Q50: 13324.91768 | R50: 1.188387064 | S50: 1948.131278 | T50: 10.83742822 | U50: 21112.73288 | V50: 2153.891356 | W50: 48.89441607 | X50: 2771.954276 | Y50: 6.985215583 | Z50: 55.43908553 | AA50: 0.1131717296
B51: Custom | C51: 60 | D51: 185 | E51: 8.46875 | F51: 0.817 | G51: 3997.392954 | H51: 122.0342823 | I51: 549.01354 | J51: 0.8 | K51: 88.67357017 | L51: 864.0939789 | M51: 15.5100183 | N51: 13402.11342 | O51: 662.7214164 | P51: 24.12763616 | Q51: 15989.90121 | R51: 1.188387064 | S51: 2337.757533 | T51: 10.83742822 | U51: 25335.27945 | V51: 2584.669627 | W51: 58.67329928 | X51: 3326.345132 | Y51: 6.985215583 | Z51: 55.43908553 | AA51: 0.1131717296
B52: Custom | C52: 70 | D52: 185 | E52: 8.46875 | F52: 0.817 | G52: 4663.625113 | H52: 142.3733294 | I52: 640.5157967 | J52: 0.8 | K52: 88.67357017 | L52: 1008.109642 | M52: 15.5100183 | N52: 15635.799 | O52: 773.1749858 | P52: 24.12763616 | Q52: 18654.88475 | R52: 1.188387064 | S52: 2727.383789 | T52: 10.83742822 | U52: 29557.82603 | V52: 3015.447898 | W52: 68.45218249 | X52: 3880.735987 | Y52: 6.985215583 | Z52: 55.43908553 | AA52: 0.1131717296
B53: Custom | C53: 80 | D53: 185 | E53: 8.46875 | F53: 0.817 | G53: 5329.857272 | H53: 162.7123764 | I53: 732.0180534 | J53: 0.8 | K53: 88.67357017 | L53: 1152.125305 | M53: 15.5100183 | N53: 17869.48457 | O53: 883.6285552 | P53: 24.12763616 | Q53: 21319.86828 | R53: 1.188387064 | S53: 3117.010044 | T53: 10.83742822 | U53: 33780.3726 | V53: 3446.226169 | W53: 78.23106571 | X53: 4435.126842 | Y53: 6.985215583 | Z53: 55.43908553 | AA53: 0.1131717296
B54: Custom | C54: 90 | D54: 185 | E54: 8.46875 | F54: 0.817 | G54: 5996.089431 | H54: 183.0514235 | I54: 823.52031 | J54: 0.8 | K54: 88.67357017 | L54: 1296.140968 | M54: 15.5100183 | N54: 20103.17014 | O54: 994.0821245 | P54: 24.12763616 | Q54: 23984.85182 | R54: 1.188387064 | S54: 3506.6363 | T54: 10.83742822 | U54: 38002.91918 | V54: 3877.00444 | W54: 88.00994892 | X54: 4989.517697 | Y54: 6.985215583 | Z54: 55.43908553 | AA54: 0.1131717296
B55: Custom | C55: 100 | D55: 185 | E55: 8.46875 | F55: 0.817 | G55: 6662.32159 | H55: 203.3904705 | I55: 915.0225667 | J55: 0.8 | K55: 88.67357017 | L55: 1440.156631 | M55: 15.5100183 | N55: 22336.85571 | O55: 1104.535694 | P55: 24.12763616 | Q55: 26649.83535 | R55: 1.188387064 | S55: 3896.262555 | T55: 10.83742822 | U55: 42225.46575 | V55: 4307.782711 | W55: 97.78883213 | X55: 5543.908553 | Y55: 6.985215583 | Z55: 55.43908553 | AA55: 0.1131717296
B56: Custom | C56: 110 | D56: 185 | E56: 8.46875 | F56: 0.817 | G56: 7328.553749 | H56: 223.7295176 | I56: 1006.524823 | J56: 0.8 | K56: 88.67357017 | L56: 1584.172295 | M56: 15.5100183 | N56: 24570.54128 | O56: 1214.989263 | P56: 24.12763616 | Q56: 29314.81889 | R56: 1.188387064 | S56: 4285.888811 | T56: 10.83742822 | U56: 46448.01233 | V56: 4738.560982 | W56: 107.5677153 | X56: 6098.299408 | Y56: 6.985215583 | Z56: 55.43908553 | AA56: 0.1131717296
B57: Custom | C57: 120 | D57: 185 | E57: 8.46875 | F57: 0.817 | G57: 7994.785908 | H57: 244.0685646 | I57: 1098.02708 | J57: 0.8 | K57: 88.67357017 | L57: 1728.187958 | M57: 15.5100183 | N57: 26804.22685 | O57: 1325.442833 | P57: 24.12763616 | Q57: 31979.80242 | R57: 1.188387064 | S57: 4675.515066 | T57: 10.83742822 | U57: 50670.5589 | V57: 5169.339253 | W57: 117.3465986 | X57: 6652.690263 | Y57: 6.985215583 | Z57: 55.43908553 | AA57: 0.1131717296
B58: Custom | C58: 40 | D58: 190 | E58: 9.15625 | F58: 0.817 | G58: 2884.400491 | H58: 92.44080604 | I58: 384.4549916 | J58: 0.8 | K58: 92.03057283 | L58: 648.0351256 | M58: 15.0552375 | N58: 9756.322723 | O58: 446.1829034 | P58: 24.44853474 | Q58: 10908.51822 | R58: 1.196980504 | S58: 1630.286246 | T58: 10.88238993 | U58: 17741.41062 | V58: 1809.953794 | W58: 40.79259157 | X58: 2407.504693 | Y58: 7.583521237 | Z58: 60.18761732 | AA58: 0.1165024546
B59: Custom | C59: 50 | D59: 190 | E59: 9.15625 | F59: 0.817 | G59: 3605.500613 | H59: 115.5510076 | I59: 480.5687395 | J59: 0.8 | K59: 92.03057283 | L59: 810.043907 | M59: 15.0552375 | N59: 12195.4034 | O59: 557.7286293 | P59: 24.44853474 | Q59: 13635.64777 | R59: 1.196980504 | S59: 2037.857807 | T59: 10.88238993 | U59: 22176.76327 | V59: 2262.442242 | W59: 50.99073947 | X59: 3009.380866 | Y59: 7.583521237 | Z59: 60.18761732 | AA59: 0.1165024546
B60: Custom | C60: 60 | D60: 190 | E60: 9.15625 | F60: 0.817 | G60: 4326.600736 | H60: 138.6612091 | I60: 576.6824874 | J60: 0.8 | K60: 92.03057283 | L60: 972.0526884 | M60: 15.0552375 | N60: 14634.48408 | O60: 669.2743551 | P60: 24.44853474 | Q60: 16362.77732 | R60: 1.196980504 | S60: 2445.429368 | T60: 10.88238993 | U60: 26612.11593 | V60: 2714.930691 | W60: 61.18888736 | X60: 3611.257039 | Y60: 7.583521237 | Z60: 60.18761732 | AA60: 0.1165024546
B61: Custom | C61: 70 | D61: 190 | E61: 9.15625 | F61: 0.817 | G61: 5047.700858 | H61: 161.7714106 | I61: 672.7962353 | J61: 0.8 | K61: 92.03057283 | L61: 1134.06147 | M61: 15.0552375 | N61: 17073.56477 | O61: 780.820081 | P61: 24.44853474 | Q61: 19089.90688 | R61: 1.196980504 | S61: 2853.00093 | T61: 10.88238993 | U61: 31047.46858 | V61: 3167.419139 | W61: 71.38703525 | X61: 4213.133213 | Y61: 7.583521237 | Z61: 60.18761732 | AA61: 0.1165024546
B62: Custom | C62: 80 | D62: 190 | E62: 9.15625 | F62: 0.817 | G62: 5768.800981 | H62: 184.8816121 | I62: 768.9099832 | J62: 0.8 | K62: 92.03057283 | L62: 1296.070251 | M62: 15.0552375 | N62: 19512.64545 | O62: 892.3658068 | P62: 24.44853474 | Q62: 21817.03643 | R62: 1.196980504 | S62: 3260.572491 | T62: 10.88238993 | U62: 35482.82124 | V62: 3619.907588 | W62: 81.58518315 | X62: 4815.009386 | Y62: 7.583521237 | Z62: 60.18761732 | AA62: 0.1165024546
B63: Custom | C63: 90 | D63: 190 | E63: 9.15625 | F63: 0.817 | G63: 6489.901104 | H63: 207.9918136 | I63: 865.0237311 | J63: 0.8 | K63: 92.03057283 | L63: 1458.079033 | M63: 15.0552375 | N63: 21951.72613 | O63: 1003.911533 | P63: 24.44853474 | Q63: 24544.16599 | R63: 1.196980504 | S63: 3668.144053 | T63: 10.88238993 | U63: 39918.17389 | V63: 4072.396036 | W63: 91.78333104 | X63: 5416.885559 | Y63: 7.583521237 | Z63: 60.18761732 | AA63: 0.1165024546
B64: Custom | C64: 100 | D64: 190 | E64: 9.15625 | F64: 0.817 | G64: 7211.001226 | H64: 231.1020151 | I64: 961.137479 | J64: 0.8 | K64: 92.03057283 | L64: 1620.087814 | M64: 15.0552375 | N64: 24390.80681 | O64: 1115.457259 | P64: 24.44853474 | Q64: 27271.29554 | R64: 1.196980504 | S64: 4075.715614 | T64: 10.88238993 | U64: 44353.52655 | V64: 4524.884485 | W64: 101.9814789 | X64: 6018.761732 | Y64: 7.583521237 | Z64: 60.18761732 | AA64: 0.1165024546
B65: Custom | C65: 110 | D65: 190 | E65: 9.15625 | F65: 0.817 | G65: 7932.101349 | H65: 254.2122166 | I65: 1057.251227 | J65: 0.8 | K65: 92.03057283 | L65: 1782.096595 | M65: 15.0552375 | N65: 26829.88749 | O65: 1227.002984 | P65: 24.44853474 | Q65: 29998.42509 | R65: 1.196980504 | S65: 4483.287175 | T65: 10.88238993 | U65: 48788.8792 | V65: 4977.372933 | W65: 112.1796268 | X65: 6620.637905 | Y65: 7.583521237 | Z65: 60.18761732 | AA65: 0.1165024546
B66: Custom | C66: 120 | D66: 190 | E66: 9.15625 | F66: 0.817 | G66: 8653.201472 | H66: 277.3224181 | I66: 1153.364975 | J66: 0.8 | K66: 92.03057283 | L66: 1944.105377 | M66: 15.0552375 | N66: 29268.96817 | O66: 1338.54871 | P66: 24.44853474 | Q66: 32725.55465 | R66: 1.196980504 | S66: 4890.858737 | T66: 10.88238993 | U66: 53224.23186 | V66: 5429.861381 | W66: 122.3777747 | X66: 7222.514079 | Y66: 7.583521237 | Z66: 60.18761732 | AA66: 0.1165024546
B67: Standard | C67: 40 | D67: 160 | E67: 3.968673152 | F67: 0.817 | G67: 1406.025049 | H67: 29.4135935 | I67: 314.740631 | J67: 0.6804910278 | K67: 56.8133354 | L67: 395.8666533 | M67: 13.23059967 | N67: 5237.553214 | O67: 452.4525169 | P67: 25.97704392 | Q67: 11753.3789 | R67: 1.131901528 | S67: 1486.568882 | T67: 10.46191455 | U67: 15552.35662 | V67: 1481.74952 | W67: 37.86763797 | X67: 1061.870824 | Y67: 3.34484081 | Z67: 26.5467706 | AA67: 0.06249632551
B68: Standard | C68: 50 | D68: 160 | E68: 4.635622211 | F68: 0.817 | G68: 1956.024878 | H68: 40.35808539 | I68: 372.995608 | J68: 0.7298298981 | K68: 63.23410254 | L68: 469.7676331 | M68: 14.52919737 | N68: 6825.346657 | O68: 548.5152338 | P68: 24.4603454 | Q68: 13416.87208 | R68: 1.138858254 | S68: 1726.701418 | T68: 10.5637403 | U68: 18240.42535 | V68: 1756.004813 | W68: 44.13155323 | X68: 1542.671185 | Y68: 3.887470616 | Z68: 30.85342369 | AA68: 0.07621057774
B69: Standard | C69: 60 | D69: 160 | E69: 5.23780144 | F69: 0.817 | G69: 2479.150985 | H69: 53.39473825 | I69: 439.8904777 | J69: 0.7576121474 | K69: 68.53113274 | L69: 534.9878605 | M69: 15.69619834 | N69: 8397.275568 | O69: 639.9067827 | P69: 23.19873204 | Q69: 14845.02598 | R69: 1.146633124 | S69: 1968.277888 | T69: 10.52040496 | U69: 20707.08046 | V69: 2070.935367 | W69: 49.71826741 | X69: 1985.865769 | Y69: 4.170252925 | Z69: 33.09776282 | AA69: 0.08544187264
B70: Standard | C70: 70 | D70: 160 | E70: 5.786423485 | F70: 0.817 | G70: 2954.317459 | H70: 66.85546554 | I70: 487.3991463 | J70: 0.7747342057 | K70: 72.5386329 | L70: 591.3082277 | M70: 16.68688932 | N70: 9867.094953 | O70: 727.0894152 | P70: 22.12055858 | Q70: 16083.624 | R70: 1.153425259 | S70: 2160.150679 | T70: 10.61609918 | U70: 22932.37385 | V70: 2294.598726 | W70: 54.7372421 | X70: 2400.062847 | Y70: 4.320045593 | Z70: 34.28661209 | AA70: 0.09248540862
B71: Standard | C71: 80 | D71: 160 | E71: 6.286578227 | F71: 0.817 | G71: 3420.574531 | H71: 80.18839501 | I71: 557.1426928 | J71: 0.7851337147 | K71: 76.51001565 | L71: 642.7384503 | M71: 17.63111836 | N71: 11332.19769 | O71: 810.5539955 | P71: 21.18700914 | Q71: 17173.21491 | R71: 1.160320564 | S71: 2386.978649 | T71: 10.47898346 | U71: 25013.10978 | V71: 2622.940403 | W71: 59.29048305 | X71: 2783.243443 | Y71: 4.3835399 | Z71: 34.79054304 | AA71: 0.09763912146
B72: Standard | C72: 90 | D72: 160 | E72: 6.746843818 | F72: 0.817 | G72: 3816.132313 | H72: 93.75484446 | I72: 582.2945413 | J72: 0.7921281629 | K72: 79.08437005 | L72: 686.6163508 | M72: 18.39429453 | N72: 12629.82339 | O72: 890.5241941 | P72: 20.36296811 | Q72: 18133.71577 | R72: 1.165877073 | S72: 2519.382461 | T72: 10.66574659 | U72: 26871.09488 | V72: 2741.35136 | W72: 63.42860484 | X72: 3140.082927 | Y72: 4.396047379 | Z72: 34.8898103 | AA72: 0.1020715761
B73: Standard | C73: 100 | D73: 160 | E73: 7.1694838 | F73: 0.817 | G73: 4222.726004 | H73: 106.80242 | I73: 645.8327941 | J73: 0.7964472662 | K73: 82.11858895 | L73: 728.0702178 | M73: 19.16972695 | N73: 13956.90727 | O73: 967.418041 | P73: 19.63267966 | Q73: 18993.00849 | R73: 1.17168078 | S73: 2720.211861 | T73: 10.53057338 | U73: 28645.3906 | V73: 3040.479487 | W73: 67.22677026 | X73: 3470.09079 | Y73: 4.372246049 | Z73: 34.7009079 | AA73: 0.105314102
B74: Standard | C74: 110 | D74: 160 | E74: 7.560841361 | F74: 0.817 | G74: 4568.233624 | H74: 119.8849475 | I74: 667.1669409 | J74: 0.8 | K74: 84.08548839 | L74: 763.8755552 | M74: 19.80358201 | N74: 15127.4722 | O74: 1041.353197 | P74: 18.97580451 | Q74: 19760.51469 | R74: 1.176305645 | S74: 2833.936516 | T74: 10.66891079 | U74: 30235.01586 | V74: 3140.917304 | W74: 70.71069675 | X74: 3781.181735 | Y74: 4.331104102 | Z74: 34.37437941 | AA74: 0.1083806225
B75: Standard | C75: 120 | D75: 160 | E75: 7.923404721 | F75: 0.817 | G75: 4875.02084 | H75: 132.6038882 | I75: 692.0691779 | J75: 0.7991867714 | K75: 85.9161144 | L75: 796.6735193 | M75: 20.39461113 | N75: 16247.84662 | O75: 1112.606947 | P75: 18.38255347 | Q75: 20452.5567 | R75: 1.181409944 | S75: 2948.886013 | T75: 10.76304373 | U75: 31738.98912 | V75: 3258.15313 | W75: 73.92671545 | X75: 4050.347773 | Y75: 4.252798682 | Z75: 33.75289811 | AA75: 0.1103624867
B76: Standard | C76: 40 | D76: 165 | E76: 4.178873737 | F76: 0.817 | G76: 1574.290856 | H76: 32.19621195 | I76: 332.8328474 | J76: 0.6985553694 | K76: 58.87993799 | L76: 443.0033189 | M76: 12.92114671 | N76: 5724.110877 | O76: 459.9613853 | P76: 26.71542753 | Q76: 12288.06506 | R76: 1.13411084 | S76: 1561.968348 | T76: 10.50008585 | U76: 16400.80174 | V76: 1566.924836 | W76: 39.85333249 | X76: 1209.261797 | Y76: 3.809115115 | Z76: 30.23154492 | AA76: 0.06713579754
B77: Standard | C77: 50 | D77: 165 | E77: 4.895129717 | F77: 0.817 | G77: 2173.727598 | H77: 45.77959028 | I77: 399.385958 | J77: 0.7421842569 | K77: 65.51796545 | L77: 525.9006367 | M77: 14.23282507 | N77: 7485.051768 | O77: 558.0537297 | P77: 25.15945316 | Q77: 14040.32667 | R77: 1.142308315 | S77: 1825.694495 | T77: 10.57219158 | U77: 19301.59197 | V77: 1880.246441 | W77: 46.54583516 | X77: 1728.562049 | Y77: 4.355908273 | Z77: 34.57124099 | AA77: 0.08030344525
B78: Standard | C78: 60 | D78: 165 | E78: 5.544312308 | F78: 0.817 | G78: 2755.269934 | H78: 60.64757362 | I78: 480.6249814 | J78: 0.767234382 | K78: 71.1710854 | L78: 599.3594535 | M78: 15.42728442 | N78: 9246.488759 | O78: 651.493254 | P78: 23.86316467 | Q78: 15546.6908 | R78: 1.150896548 | S78: 2103.437703 | T78: 10.44800299 | U78: 21976.72341 | V78: 2262.70702 | W78: 52.53882503 | X78: 2213.997379 | Y78: 4.649321818 | Z78: 36.89995632 | AA78: 0.08929864658
B79: Standard | C79: 70 | D79: 165 | E79: 6.137152922 | F79: 0.817 | G79: 3302.819908 | H79: 75.9678784 | I79: 553.896484 | J79: 0.7828388453 | K79: 75.813 | L79: 663.5599939 | M79: 16.47474368 | N79: 10931.98081 | O79: 740.7445749 | P79: 22.75453797 | Q79: 16855.30056 | R79: 1.158376974 | S79: 2353.581012 | T79: 10.37310395 | U79: 24413.94048 | V79: 2607.657761 | W79: 57.94509672 | X79: 2672.955546 | Y79: 4.811244773 | Z79: 38.18507922 | AA79: 0.09619348902
B80: Standard | C80: 80 | D80: 165 | E80: 6.68128028 | F80: 0.817 | G80: 3783.079175 | H80: 91.60092453 | I80: 602.3397261 | J80: 0.7912096846 | K80: 79.20974908 | L80: 719.4327412 | M80: 17.3737262 | N80: 12499.22747 | O80: 826.1943474 | P80: 21.78947407 | Q80: 18002.34031 | R80: 1.165479746 | S80: 2546.38866 | T80: 10.46253393 | U80: 26641.67776 | V80: 2835.720946 | W80: 62.85257098 | X80: 3089.138524 | Y80: 4.865317121 | Z80: 38.61423155 | AA80: 0.1012780244
B81: Standard | C81: 90 | D81: 165 | E81: 7.18184323 | F81: 0.817 | G81: 4230.496382 | H81: 107.2257866 | I81: 643.3966498 | J81: 0.7965710531 | K81: 82.12393451 | L81: 769.2831468 | M81: 18.18081437 | N81: 13986.19409 | O81: 908.1984284 | P81: 20.93946751 | Q81: 19017.19148 | R81: 1.171784711 | S81: 2717.838483 | T81: 10.55660068 | U81: 28691.13558 | V81: 3029.010502 | W81: 67.33562696 | X81: 3479.873946 | Y81: 4.871747369 | Z81: 38.66526606 | AA81: 0.1054399082
B82: Standard | C82: 100 | D82: 165 | E82: 7.644247211 | F82: 0.817 | G82: 4628.432772 | H82: 122.8319631 | I82: 662.3197713 | J82: 0.8 | K82: 84.31592391 | L82: 813.3131988 | M82: 18.88218062 | N82: 15357.12672 | O82: 987.013201 | P82: 20.18209123 | Q82: 19919.99047 | R82: 1.177310571 | S82: 2839.462107 | T82: 10.76401479 | U82: 30564.01212 | V82: 3118.09759 | W82: 71.44670726 | X82: 3843.281038 | Y82: 4.842458411 | Z82: 38.43281038 | AA82: 0.1089454395
B83: Standard | C83: 110 | D83: 165 | E83: 8.071487851 | F83: 0.817 | G83: 5015.83797 | H83: 137.8730227 | I83: 715.9092646 | J83: 0.7988876713 | K83: 86.88528346 | L83: 854.8644693 | M83: 19.58828903 | N83: 16745.33231 | O83: 1062.948644 | P83: 19.50358457 | Q83: 20731.30878 | R83: 1.183606597 | S83: 3022.940556 | T83: 10.70916126 | U83: 32373.1579 | V83: 3370.388518 | W83: 75.24183975 | X83: 4162.055683 | Y83: 4.767371076 | Z83: 37.83686984 | AA83: 0.1110573296
B84: Standard | C84: 120 | D84: 165 | E84: 8.468673029 | F84: 0.817 | G84: 5358.475328 | H84: 152.7477782 | I84: 746.2944376 | J84: 0.7976260707 | K84: 88.8288931 | L84: 891.8086492 | M84: 20.20409363 | N84: 18018.18545 | O84: 1136.136542 | P84: 18.88909527 | Q84: 21460.59139 | R84: 1.18906988 | S84: 3156.107371 | T84: 10.78270842 | U84: 34031.38553 | V84: 3513.437146 | W84: 78.74726754 | X84: 4459.433112 | Y84: 4.682331574 | Z84: 37.1619426 | AA84: 0.1129577325
B85: Standard | C85: 40 | D85: 170 | E85: 4.394224815 | F85: 0.817 | G85: 1770.993062 | H85: 35.53929631 | I85: 359.7462974 | J85: 0.7170721605 | K85: 61.39094566 | L85: 497.7714066 | M85: 12.57723505 | N85: 6260.587984 | O85: 467.276877 | P85: 27.45598856 | Q85: 12829.54859 | R85: 1.135979581 | S85: 1657.987669 | T85: 10.42036653 | U85: 17276.83922 | V85: 1693.629137 | W85: 41.88876182 | X85: 1375.707468 | Y85: 4.333410785 | Z85: 34.39268671 | AA85: 0.07206378346
B86: Standard | C86: 50 | D86: 170 | E86: 5.162777087 | F86: 0.817 | G86: 2412.616767 | H86: 51.68185388 | I86: 430.6736911 | J86: 0.7548730505 | K86: 67.87978912 | L86: 590.2997559 | M86: 13.88174216 | N86: 8194.389009 | O86: 567.3329826 | P86: 25.85907862 | Q86: 14670.7082 | R86: 1.145612725 | S86: 1936.567323 | T86: 10.53290166 | U86: 20397.67317 | V86: 2027.544181 | W86: 49.02547215 | X86: 1930.261222 | Y86: 4.864182243 | Z86: 38.60522445 | AA86: 0.08441955024
B87: Standard | C87: 60 | D87: 170 | E87: 5.862777087 | F87: 0.817 | G87: 3029.555112 | H87: 68.80187297 | I87: 500.1095603 | J87: 0.7771206563 | K87: 73.22177513 | L87: 671.122271 | M87: 15.03939302 | N87: 10093.2716 | O87: 662.7249453 | P87: 24.5249118 | Q87: 16253.27083 | R87: 1.154424384 | S87: 2199.210194 | T87: 10.57267735 | U87: 23251.5398 | V87: 2354.437361 | W87: 55.43678038 | X87: 2460.643678 | Y87: 5.16727095 | Z87: 41.01072797 | AA87: 0.09339531686
B88: Standard | C88: 70 | D88: 170 | E88: 6.503737087 | F88: 0.817 | G88: 3597.106204 | H88: 86.5233641 | I88: 560.7669415 | J88: 0.7884634822 | K88: 77.56503586 | L88: 741.9857014 | M88: 16.06344645 | N88: 11918.84758 | O88: 753.9383517 | P88: 23.38314891 | Q88: 17629.45275 | R88: 1.162843581 | S88: 2433.243499 | T88: 10.6350485 | U88: 25877.66263 | V88: 2640.002797 | W88: 61.24258699 | X88: 2949.815899 | Y88: 5.309585618 | Z88: 42.14022712 | AA88: 0.09983030717
B89: Standard | C89: 80 | D89: 170 | E89: 7.093128049 | F89: 0.817 | G89: 4126.784952 | H89: 104.5335972 | I89: 613.1338439 | J89: 0.79565842 | K89: 81.16998552 | L89: 804.7268712 | M89: 16.97924982 | N89: 13663.65858 | O89: 841.3604774 | P89: 22.38893395 | Q89: 18837.16416 | R89: 1.170353365 | S89: 2642.515697 | T89: 10.70730952 | U89: 28294.23347 | V89: 2886.537959 | W89: 66.53306877 | X89: 3409.117511 | Y89: 5.369276147 | Z89: 42.61396888 | AA89: 0.104893268
B90: Standard | C90: 90 | D90: 170 | E90: 7.636 | F90: 0.817 | G90: 4653.821411 | H90: 122.3183352 | I90: 693.5481484 | J90: 0.8 | K90: 84.85078712 | L90: 862.5043558 | M90: 17.86325082 | N90: 15407.13164 | O90: 925.3554818 | P90: 21.51347968 | Q90: 19907.61635 | R90: 1.177604189 | S90: 2898.728832 | T90: 10.54764528 | U90: 30574.76348 | V90: 3265.115891 | W90: 71.38577841 | X90: 3837.954927 | Y90: 5.373052907 | Z90: 42.64394364 | AA90: 0.1086785308
B91: Standard | C91: 100 | D91: 170 | E91: 8.139737087 | F91: 0.817 | G91: 5060.505591 | H91: 140.4816946 | I91: 707.26474 | J91: 0.7987513522 | K91: 86.98108176 | L91: 911.5743943 | M91: 18.57087931 | N91: 16928.73806 | O91: 1006.09531 | P91: 20.73072313 | Q91: 20857.08332 | R91: 1.184372979 | S91: 3018.412821 | T91: 10.8129953 | U91: 32638.08363 | V91: 3329.691452 | W91: 75.84122631 | X91: 4212.759156 | Y91: 5.307993563 | Z91: 42.12759156 | AA91: 0.1114904745
B92: Standard | C92: 110 | D92: 170 | E92: 8.606692574 | F92: 0.817 | G92: 5469.156532 | H92: 158.139815 | I92: 749.7798396 | J92: 0.7969366185 | K92: 89.36601681 | L92: 957.4642027 | M92: 19.26930647 | N92: 18449.67116 | O92: 1083.901573 | P92: 20.02795191 | Q92: 21708.32857 | R92: 1.190911049 | S92: 3188.462634 | T92: 10.85163232 | U92: 34600.02418 | V92: 3529.845872 | W92: 79.95985872 | X92: 4561.236877 | Y92: 5.224607843 | Z92: 41.46578979 | AA92: 0.1135822727
B93: Standard | C93: 120 | D93: 170 | E93: 9.041179941 | F93: 0.817 | G93: 5850.033741 | H93: 175.462964 | I93: 789.5024275 | J93: 0.7947670104 | K93: 91.48465699 | L93: 999.2462587 | M93: 19.91383117 | N93: 19898.82129 | O93: 1158.950252 | P93: 19.39156713 | Q93: 22473.86162 | R93: 1.196900771 | S93: 3348.010198 | T93: 10.88201552 | U93: 36433.09895 | V93: 3716.853585 | W93: 83.77571123 | X93: 4885.068349 | Y93: 5.129241586 | Z93: 40.70890291 | AA93: 0.115288153
B94: Standard | C94: 40 | D94: 175 | E94: 4.6177482 | F94: 0.817 | G94: 1941.647232 | H94: 39.99507849 | I94: 371.4201366 | J94: 0.7289778523 | K94: 63.08067062 | L94: 559.2305681 | M94: 12.12605759 | N94: 6781.262075 | O94: 474.3646785 | P94: 28.19249865 | Q94: 13373.52556 | R94: 1.138615936 | S94: 1720.407991 | T94: 10.56008287 | U94: 18167.65096 | V94: 1748.587741 | W94: 43.96504692 | X94: 1530.232017 | Y94: 4.820155504 | Z94: 38.25580042 | AA94: 0.07592399605
B95: Standard | C95: 50 | D95: 175 | E95: 5.43881475 | F95: 0.817 | G95: 2663.14933 | H95: 58.07563293 | I95: 470.5880087 | J95: 0.7639399814 | K95: 70.3818297 | L95: 665.0946381 | M95: 13.47492648 | N95: 8962.101354 | O95: 576.3741883 | P95: 26.55929681 | Q95: 15308.09314 | R95: 1.149574576 | S95: 2064.763813 | T95: 10.43578647 | U95: 21547.43426 | V95: 2215.454527 | W95: 51.57314014 | X95: 2134.485688 | Y95: 5.378819853 | Z95: 42.68971377 | AA95: 0.08794678958
B96: Standard | C96: 60 | D96: 175 | E96: 6.191410065 | F96: 0.817 | G96: 3333.861527 | H96: 77.54885819 | I96: 545.7007376 | J96: 0.7836628771 | K96: 75.813 | L96: 755.5265265 | M96: 14.63118682 | N96: 11054.24976 | O96: 673.6951147 | P96: 25.18865955 | Q96: 16969.47688 | R96: 1.159028017 | S96: 2347.539314 | T96: 10.4873348 | U96: 24619.43073 | V96: 2569.073473 | W96: 58.4281922 | X96: 2710.611932 | Y96: 5.692196076 | Z96: 45.17686553 | AA96: 0.09672560564
B97: Standard | C97: 70 | D97: 175 | E97: 6.883222721 | F97: 0.817 | G97: 3943.263409 | H97: 97.89695042 | I97: 599.7912311 | J97: 0.7935237558 | K97: 80.02685185 | L97: 834.1627974 | M97: 15.64145607 | N97: 13047.52075 | O97: 766.8232412 | P97: 24.01305903 | Q97: 18413.77176 | R97: 1.16775343 | S97: 2578.397624 | T97: 10.64229007 | U97: 27440.05543 | V97: 2823.723031 | W97: 64.65587179 | X97: 3245.575227 | Y97: 5.841944088 | Z97: 46.36536039 | AA97: 0.1031608993
B98: Standard | C98: 80 | D98: 175 | E98: 7.52 | F98: 0.817 | G98: 4559.105002 | H98: 118.3061375 | I98: 690.3567503 | J98: 0.8 | K98: 84.3392123 | L98: 906.3605963 | M98: 16.61863442 | N98: 15062.4754 | O98: 856.1932334 | P98: 22.99024413 | Q98: 19684.09146 | R98: 1.176070586 | S98: 2870.836668 | T98: 10.48535312 | U98: 30101.7362 | V98: 3250.091289 | W98: 70.35709765 | X98: 3750.442114 | Y98: 5.906853994 | Z98: 46.88052643 | AA98: 0.1079370554
B99: Standard | C99: 90 | D99: 175 | E99: 8.110703734 | F99: 0.817 | G99: 5041.727602 | H99: 139.3664391 | I99: 711.1324111 | J99: 0.798809451 | K99: 86.94487626 | L99: 967.6667591 | M99: 17.41418209 | N99: 16851.12515 | O99: 942.0182282 | P99: 22.08398003 | Q99: 20803.51174 | R99: 1.184050433 | S99: 3020.770247 | T99: 10.76728276 | U99: 32525.48741 | V99: 3347.899842 | W99: 75.58576936 | X99: 4191.228752 | Y99: 5.86762853 | Z99: 46.56920836 | AA99: 0.1113071085
B100: Standard | C100: 100 | D100: 175 | E100: 8.65830213 | F100: 0.817 | G100: 5507.710733 | H100: 160.199849 | I100: 748.4015146 | J100: 0.7966794158 | K100: 89.51860812 | L100: 1023.91557 | M100: 18.17058611 | N100: 18605.14603 | O100: 1024.638511 | P100: 21.27591971 | Q100: 21800.12669 | R100: 1.191564545 | S100: 3195.14639 | T100: 10.89431583 | U100: 34808.93388 | V100: 3523.356935 | W100: 80.4122204 | X100: 4599.10937 | Y100: 5.794787222 | Z100: 45.9910937 | AA100: 0.1138244853
B101: Standard | C101: 110 | D101: 175 | E101: 9.167523258 | F101: 0.817 | G101: 5949.524921 | H101: 180.7444146 | I101: 791.0164945 | J101: 0.7939815116 | K101: 91.91960513 | L101: 1075.325917 | M101: 18.87965839 | N101: 20301.78596 | O101: 1104.270136 | P101: 20.5487789 | Q101: 22691.40286 | R101: 1.198542069 | S101: 3374.411281 | T101: 10.95141445 | U101: 36954.57646 | V101: 3723.981575 | W101: 84.88121683 | X101: 4977.764012 | Y101: 5.701713284 | Z101: 45.25240011 | AA101: 0.1157802933
B102: Standard | C102: 120 | D102: 175 | E102: 9.641770237 | F102: 0.817 | G102: 6381.910122 | H102: 200.5794997 | I102: 876.0233823 | J102: 0.7902020445 | K102: 94.44870882 | L102: 1124.061753 | M102: 19.59497421 | N102: 22025.96106 | O102: 1181.138761 | P102: 19.89051127 | Q102: 23493.45385 | R102: 1.206154485 | S102: 3632.912677 | T102: 10.74832703 | U102: 39047.73354 | V102: 4124.180668 | W102: 89.03573702 | X102: 5305.30724 | Y102: 5.570485524 | Z102: 44.21089366 | AA102: 0.1165504269
B103: Standard | C103: 40 | D103: 180 | E103: 4.845686697 | F103: 0.817 | G103: 2141.291362 | H103: 44.66684338 | I103: 403.4918565 | J103: 0.7398911355 | K103: 65.36968531 | L103: 633.4405372 | M103: 11.65672036 | N103: 7383.839208 | O103: 481.3064945 | P103: 28.93339689 | Q103: 13925.83183 | R103: 1.141980396 | S103: 1825.430029 | T103: 10.47353014 | U103: 19118.69643 | V103: 1899.576368 | W103: 46.09771465 | X103: 1693.132662 | Y103: 5.333284516 | Z103: 42.32831656 | AA103: 0.07945372122
B104: Standard | C104: 50 | D104: 180 | E104: 5.725319877 | F104: 0.817 | G104: 2903.817808 | H104: 65.26162267 | I104: 485.8835663 | J104: 0.7728450499 | K104: 72.203446 | L104: 750.0807428 | M104: 12.94518451 | N104: 9709.933612 | O104: 585.1558615 | P104: 27.25617606 | Q104: 15949.11118 | R104: 1.152806989 | S104: 2146.27845 | T104: 10.57267473 | U104: 22691.90393 | V104: 2287.463613 | W104: 54.18347543 | X104: 2352.672619 | Y104: 5.928642323 | Z104: 47.05345238 | AA104: 0.09168979741
B105: Standard | C105: 60 | D105: 180 | E105: 6.532991822 | F105: 0.817 | G105: 3623.180503 | H105: 87.37697587 | I105: 563.345167 | J105: 0.7889103941 | K105: 77.75039312 | L105: 851.5819762 | M105: 14.09550972 | N105: 12003.48202 | O105: 684.35833 | P105: 25.849334 | Q105: 17690.20705 | R105: 1.163214454 | S105: 2443.541703 | T105: 10.63891799 | U105: 25996.63978 | V105: 2652.140679 | W105: 61.50459281 | X105: 2972.45836 | Y105: 6.24206498 | Z105: 49.54097266 | AA105: 0.1001040441
B106: Standard | C106: 70 | D106: 180 | E106: 7.277753271 | F106: 0.817 | G106: 4286.086621 | H106: 110.5063776 | I106: 629.7659809 | J106: 0.7975336153 | K106: 82.07095212 | L106: 940.5625961 | M106: 15.12325042 | N106: 14224.36367 | O106: 779.3747337 | P106: 24.6411482 | Q106: 19204.68831 | R106: 1.173033923 | S106: 2708.399058 | T106: 10.73023384 | U106: 29061.75522 | V106: 2964.839451 | W106: 68.18209216 | X106: 3545.814262 | Y106: 6.382365903 | Z106: 50.65448946 | AA106: 0.106069842
B107: Standard | C107: 80 | D107: 180 | E107: 7.966759763 | F107: 0.817 | G107: 4908.230809 | H107: 134.1885874 | I107: 691.5582893 | J107: 0.7991001005 | K107: 86.0671111 | L107: 1019.716612 | M107: 16.05795718 | N107: 16374.56568 | O107: 870.5754688 | P107: 23.58593625 | Q107: 20533.33751 | R107: 1.181963512 | S107: 2955.705064 | T107: 10.79717995 | U107: 31913.27944 | V107: 3255.747946 | W107: 74.30780192 | X107: 4082.483933 | Y107: 6.429811683 | Z107: 51.03104916 | AA107: 0.11061273
B108: Standard | C108: 90 | D108: 180 | E108: 8.605839198 | F108: 0.817 | G108: 5475.014262 | H108: 158.0594139 | I108: 755.9550424 | J108: 0.7969396624 | K108: 89.4673804 | L108: 1091.024049 | M108: 16.92178504 | N108: 18462.07444 | O108: 958.2716084 | P108: 22.6526439 | Q108: 21707.38551 | R108: 1.190968641 | S108: 3200.592734 | T108: 10.81215841 | U108: 34605.31564 | V108: 3558.917759 | W108: 79.95450531 | X108: 4560.999806 | Y108: 6.385299914 | Z108: 50.67777562 | AA108: 0.1135439663
B109: Standard | C109: 100 | D109: 180 | E109: 9.20117472 | F109: 0.817 | G109: 5970.2871 | H109: 182.2013685 | I109: 786.6158593 | J109: 0.7937154272 | K109: 91.95443896 | L109: 1153.816928 | M109: 17.67808532 | N109: 20397.27409 | O109: 1042.68367 | P109: 21.81727934 | Q109: 22748.52089 | R109: 1.198940692 | S109: 3371.620272 | T109: 10.99970361 | U109: 37086.82369 | V109: 3703.264075 | W109: 85.17370596 | X109: 5001.469873 | Y109: 6.30175353 | Z109: 50.01469873 | AA109: 0.115920216
B110: Standard | C110: 110 | D110: 180 | E110: 9.756 | F110: 0.817 | G110: 6426.37793 | H110: 206.0120394 | I110: 833.9691483 | J110: 0.7893072742 | K110: 94.17429507 | L110: 1211.750634 | M110: 18.4018147 | N110: 22298.41063 | O110: 1124.071761 | P110: 21.06476787 | Q110: 23678.31072 | R110: 1.207215382 | S110: 3570.526955 | T110: 11.05255185 | U110: 39463.43431 | V110: 3926.195931 | W110: 90.01929923 | X110: 5386.396742 | Y110: 6.169776186 | Z110: 48.96724311 | AA110: 0.1171548685
B111: Standard | C111: 120 | D111: 180 | E111: 10.2737856 | F111: 0.817 | G111: 6928.316152 | H111: 228.9707667 | I111: 940.7303403 | J111: 0.7851996048 | K111: 97.18622775 | L111: 1267.277769 | M111: 19.1473156 | N111: 24264.9674 | O111: 1202.655322 | P111: 20.3828067 | Q111: 24513.49095 | R111: 1.214890583 | S111: 3883.016068 | T111: 10.75513998 | U111: 41762.38136 | V111: 4428.810877 | W111: 94.53459064 | X111: 5758.615045 | Y111: 6.046451279 | Z111: 47.98845871 | AA111: 0.11805652
B112: Standard | C112: 40 | D112: 185 | E112: 5.08128028 | F112: 0.817 | G112: 2345.05522 | H112: 49.81271852 | I112: 427.020813 | J112: 0.7510487554 | K112: 67.34143193 | L112: 720.4902237 | M112: 11.09345985 | N112: 7992.729367 | O112: 488.0663539 | P112: 29.67235505 | Q112: 14482.07814 | R112: 1.144820072 | S112: 1914.654252 | T112: 10.48550418 | U112: 20076.11517 | V112: 2010.347004 | W112: 48.27813054 | X112: 1868.221689 | Y112: 5.884806328 | Z112: 46.70554222 | AA112: 0.08312514748
B113: Standard | C113: 50 | D113: 185 | E113: 6.02 | F113: 0.817 | G113: 3179.715614 | H113: 72.90704159 | I113: 524.1889341 | J113: 0.7810071119 | K113: 74.53985357 | L113: 852.7870187 | M113: 12.37842726 | N113: 10556.16208 | O113: 593.7542914 | P113: 27.95530204 | Q113: 16598.58056 | R113: 1.156555724 | S113: 2274.896681 | T113: 10.5090207 | U113: 23906.93631 | V113: 2467.799276 | W113: 56.87122777 | X113: 2582.619638 | Y113: 6.508099753 | Z113: 51.65239276 | AA113: 0.09510749825
B114: Standard | C114: 60 | D114: 185 | E114: 6.886275996 | F114: 0.817 | G114: 3940.316822 | H114: 98.02710586 | I114: 594.7097957 | J114: 0.7935508287 | K114: 79.93489029 | L114: 966.0120265 | M114: 13.50201148 | N114: 13043.10547 | O114: 694.7839584 | P114: 26.51035811 | Q114: 18418.97155 | R114: 1.167707594 | S114: 2568.880638 | T114: 10.6832603 | U114: 27444.02054 | V114: 2799.80043 | W114: 64.67967941 | X114: 3247.57992 | Y114: 6.819811225 | Z114: 54.126332 | AA114: 0.1032220447
B115: Standard | C115: 70 | D115: 185 | E115: 7.686578227 | F115: 0.817 | G115: 4697.915012 | H115: 124.068345 | I115: 697.683021 | J115: 0.8 | K115: 85.11912707 | L115: 1068.332987 | M115: 14.56881992 | N115: 15564.35089 | O115: 791.6554845 | P115: 25.26954664 | Q115: 20004.77519 | R115: 1.178300918 | S115: 2916.100801 | T115: 10.556817 | U115: 30784.7425 | V115: 3284.582222 | W115: 71.83496035 | X115: 3876.163646 | Y115: 6.976985499 | Z115: 55.37376637 | AA115: 0.1089755097
B116: Standard | C116: 80 | D116: 185 | E116: 8.430502442 | F116: 0.817 | G116: 5347.301718 | H116: 151.1260499 | I116: 764.6441441 | J116: 0.797813906 | K116: 88.99615126 | L116: 1157.323405 | M116: 15.50465887 | N116: 17943.90461 | O116: 884.6653568 | P116: 24.18216106 | Q116: 21393.12014 | R116: 1.188766009 | S116: 3184.655207 | T116: 10.64475236 | U116: 33899.86602 | V116: 3599.824686 | W116: 78.41690744 | X116: 4431.531524 | Y116: 6.979553046 | Z116: 55.39414405 | AA116: 0.112655483
B117: Standard | C117: 90 | D117: 185 | E117: 9.123518387 | F117: 0.817 | G117: 5922.454362 | H117: 178.8445383 | I117: 797.0535277 | J117: 0.7943300488 | K117: 91.87591407 | L117: 1235.54023 | M117: 16.33073245 | N117: 20177.27693 | O117: 974.1093821 | P117: 23.21746426 | Q117: 22616.34976 | R117: 1.198020782 | S117: 3378.420613 | T117: 10.88720533 | U117: 36781.5589 | V117: 3752.40298 | W117: 84.4980928 | X117: 4946.556296 | Y117: 6.925070561 | Z117: 54.96173662 | AA117: 0.1155909578
B118: Standard | C118: 100 | D118: 185 | E118: 9.76948376 | F118: 0.817 | G118: 6460.840612 | H118: 206.4312589 | I118: 857.1119052 | J118: 0.7891943261 | K118: 94.56245065 | L118: 1307.814037 | M118: 17.12759777 | N118: 22399.71277 | O118: 1060.276854 | P118: 22.3546926 | Q118: 23702.16315 | R118: 1.207634034 | S118: 3620.113005 | T118: 10.92592069 | U118: 39553.06756 | V118: 4035.148401 | W118: 90.14345567 | X118: 5397.297448 | Y118: 6.80048848 | Z118: 53.97297448 | AA118: 0.1170732717
B119: Standard | C119: 110 | D119: 185 | E119: 10.3737855 | F119: 0.817 | G119: 6978.290342 | H119: 233.9369746 | I119: 913.2380032 | J119: 0.784417078 | K119: 97.10135115 | L119: 1373.404751 | M119: 17.86706747 | N119: 24538.71534 | O119: 1143.34854 | P119: 21.57541346 | Q119: 24668.21748 | R119: 1.215901558 | S119: 3848.125375 | T119: 10.95159579 | U119: 42143.11366 | V119: 4299.381266 | W119: 95.39477107 | X119: 5831.115364 | Y119: 6.67917319 | Z119: 53.01013967 | AA119: 0.1185019067
B120: Standard | C120: 120 | D120: 185 | E120: 10.94025447 | F120: 0.817 | G120: 7437.862647 | H120: 261.434674 | I120: 940.2239578 | J120: 0.7799624354 | K120: 99.00527415 | L120: 1432.048603 | M120: 18.5277812 | N120: 26532.68318 | O120: 1223.508416 | P120: 20.86668477 | Q120: 25530.56442 | R120: 1.223156664 | S120: 4011.16028 | T120: 11.1051844 | U120: 44544.67458 | V120: 4426.426907 | W120: 100.2914673 | X120: 6236.204015 | Y120: 6.547911859 | Z120: 51.96836679 | AA120: 0.1197813103
B121: Standard | C121: 40 | D121: 190 | E121: 5.323518437 | F121: 0.817 | G121: 2560.821533 | H121: 55.34314743 | I121: 456.6330139 | J121: 0.7603225289 | K121: 69.42696965 | L121: 826.6413006 | M121: 10.45988003 | N121: 8646.568833 | O121: 494.6778542 | P121: 30.41213492 | Q121: 15044.20964 | R121: 1.148007813 | S121: 2016.688229 | T121: 10.44891479 | U121: 21072.20345 | V121: 2149.756601 | W121: 50.5127593 | X121: 2048.845371 | Y121: 6.453762034 | Z121: 51.22113428 | AA121: 0.08648282172
B122: Standard | C122: 50 | D122: 190 | E122: 6.325319877 | F122: 0.817 | G122: 3438.644457 | H122: 81.38726473 | I122: 544.9291903 | J122: 0.7857138263 | K122: 76.41906251 | L122: 974.747899 | M122: 11.6996987 | N122: 11404.25672 | O122: 602.1405064 | P122: 28.65215674 | Q122: 17252.62417 | R122: 1.16054333 | S122: 2370.038552 | T122: 10.61029126 | U122: 25146.79933 | V122: 2565.441149 | W122: 59.63057831 | X122: 2812.328002 | Y122: 7.086955782 | Z122: 56.24656004 | AA122: 0.09813796597
B123: Standard | C123: 60 | D123: 190 | E123: 7.25161475 | F123: 0.817 | G123: 4295.012772 | H123: 109.4881417 | I123: 650.2786956 | J123: 0.7972798339 | K123: 82.53821282 | L123: 1105.262985 | M123: 12.84770863 | N123: 14200.09678 | O123: 704.9919121 | P123: 27.17173362 | Q123: 19155.85244 | R123: 1.17265117 | S123: 2744.034551 | T123: 10.5605369 | U123: 28978.47813 | V123: 3061.410094 | W123: 67.95891991 | X123: 3535.245935 | Y123: 7.423900413 | Z123: 58.92076558 | AA123: 0.1059854694
B124: Standard | C124: 70 | D124: 190 | E124: 8.113128002 | F124: 0.817 | G124: 5048.471843 | H124: 139.4226987 | I124: 715.7746435 | J124: 0.7988042131 | K124: 87.03523235 | L124: 1217.56906 | M124: 13.85511969 | N124: 16869.56505 | O124: 803.6170109 | P124: 25.89349936 | Q124: 20808.45656 | R124: 1.184136887 | S124: 3030.363323 | T124: 10.73861282 | U124: 32541.89844 | V124: 3369.754743 | W124: 75.60880031 | X124: 4193.274501 | Y124: 7.547776114 | Z124: 59.90392144 | AA124: 0.1112923217
B125: Standard | C125: 80 | D125: 190 | E125: 8.915408525 | F125: 0.817 | G125: 5751.607117 | H125: 170.2730867 | I125: 789.5799657 | J125: 0.7953916518 | K125: 91.06903993 | L125: 1318.445967 | M125: 14.79322503 | N125: 19504.06789 | O125: 898.387414 | P125: 24.77332973 | Q125: 22256.04764 | R125: 1.195308142 | S125: 3324.738273 | T125: 10.80341601 | U125: 35918.53067 | V125: 3717.218623 | W125: 82.67710754 | X125: 4791.754064 | Y125: 7.546894678 | Z125: 59.8969258 | AA125: 0.1147447512
B126: Standard | C126: 90 | D126: 190 | E126: 9.664810237 | F126: 0.817 | G126: 6386.60296 | H126: 201.7050027 | I126: 862.7262759 | J126: 0.7900226455 | K126: 94.33069441 | L126: 1409.184127 | M126: 15.66205016 | N126: 22070.71247 | O126: 989.5731331 | P126: 23.7784907 | Q126: 23530.55555 | R126: 1.206325887 | S126: 3611.320488 | T126: 10.83417362 | U126: 39125.67315 | V126: 4061.579978 | W126: 89.2329385 | X126: 5322.171682 | Y126: 7.450923881 | Z126: 59.13524091 | AA126: 0.1167110458
B127: Standard | C127: 100 | D127: 190 | E127: 10.36699021 | F127: 0.817 | G127: 6937.730974 | H127: 233.8989826 | I127: 879.3483502 | J127: 0.7844773505 | K127: 96.59664793 | L127: 1488.353259 | M127: 16.41558372 | N127: 24432.18753 | O127: 1077.380503 | P127: 22.88487297 | Q127: 24655.71595 | R127: 1.215481317 | S127: 3777.352957 | T127: 11.13644494 | U127: 42066.28322 | V127: 4139.834096 | W127: 95.32851739 | X127: 5824.483641 | Y127: 7.338734669 | Z127: 58.24483641 | AA127: 0.1186541536
B128: Standard | C128: 110 | D128: 190 | E128: 11.02461561 | F128: 0.817 | G128: 7518.710792 | H128: 265.550323 | I128: 956.1588346 | J128: 0.779298386 | K128: 99.44295291 | L128: 1563.707253 | M128: 17.17910991 | N128: 26863.09877 | O128: 1162.073273 | P128: 22.07790781 | Q128: 25656.14658 | R128: 1.224328541 | S128: 4060.122624 | T128: 11.06371707 | U128: 44920.04799 | V128: 4501.445808 | W128: 101.0214133 | X128: 6297.001634 | Y128: 7.212816394 | Z128: 57.2454694 | AA128: 0.119898936
B129: Standard | C129: 120 | D129: 190 | E129: 11.64308097 | F129: 0.817 | G129: 8021.094675 | H129: 297.449682 | I129: 986.6220961 | J129: 0.7744579398 | K129: 101.4093553 | L129: 1630.366024 | M129: 17.8505974 | N129: 29103.0075 | O129: 1243.776144 | P129: 21.34239774 | Q129: 26545.16516 | R129: 1.231968642 | S129: 4241.02915 | T129: 11.21271455 | U129: 47553.44925 | V129: 4644.862064 | W129: 106.3421981 | X129: 6737.022896 | Y129: 7.073763464 | Z129: 56.14185747 | AA129: 0.1210645844

Sheet GETEM-Excel Max BE vs. Temp
B2: Maximum brine effectiveness (Plant Efficiency = 100%) vs. Plant Brine Efficiency (W/lb/hr) from SAM for Binary Plant
B3: Plant Efficiency (%) | C3: Resource Temperature ('C) | D3: Plant Brine Efficiency
B4: 100 | C4: 150 | D4: 7.21863
B5: 100 | C5: 155 | D5: 7.58974
B6: 100 | C6: 160 | D6: 7.96005
B7: 100 | C7: 165 | D7: 8.33007
B8: 100 | C8: 170 | D8: 8.70031
B9: 100 | C9: 175 | D9: 9.07123
B10: 100 | C10: 180 | D10: 10.2996
B11: 100 | C11: 185 | D11: 10.7017
B12: 100 | C12: 190 | D12: 11.0978
B13: 100 | C13: 195 | D13: 11.4883
B14: 100 | C14: 200 | D14: 11.8736
